Workbook

Sheet Budget
B2: Two-Year (2020-2022) Budget Assumptions for Study Variables
F4: Budget Deficit Implication ($Millions)
B5: Impact | C5: Option 1 | D5: Option 2 | E5: Option 3 | F5: Option 1 | G5: Option 2 | H5: Option 3
B6: Property & Sales Taxes | C6: No change | D6: 5% Increase | E6: 10% Increase | F6: 0 | G6: 70 | H6: 140
B7: K-12 Education | C7: No change | D7: 5% Decrease | E7: 10% Decrease | F7: 0 | G7: 75 | H7: 150
B8: State Agency Budgets | C8: No change | D8: 5% Decrease | E8: 10% Decrease | F8: 0 | G8: 130 | H8: 260
B9: Transfers to Cities and Towns | C9: No change | D9: 5% Decrease | E9: 10% Decrease | F9: 0 | G9: 15 | H9: 30
B15: Annual Budget deficit | C15: 480

Sheet Summary
B1: Projected Likelihood to Support for Budget Proposals
B2: 1 | C2: =CONCATENATE(" ",TEXT('SG Data'!AB440,"##%")) -> 100%
B4: Component Description | C4: Amount of Change | E4: Impact on Budget | Q4: Current settings | R4: =Coefficients!V440 -> 0.3547825179
B5: Property & Sales Taxes | D5: =(C105-1)/100 -> 0.05 | E5: =Budget!H6*(C105-1)/10 -> 70 | Q5: No change | R5: =Coefficients!V441 -> 0.4241205502
B6: K-12 Education | D6: =(C106-1)/100 -> 0 | E6: =Budget!H7*(C106-1)/10 -> 0 | Q6: Change in Likelihood | R6: =R4-R5 -> -0.06933803228
B7: State Agency Budgets | D7: 0 | E7: =Budget!H8*(C107-1)/10 -> 0
B8: Transfers to Cities and Towns | D8: 0 | E8: =Budget!H9*(C108-1)/10 -> 0
B9: Rainy Day Fund | E9: =SUM(E5:E8)-480 -> -410
B101: Total
B102: Registered as - Republican
B103: Registered as - Democrat
B104: Registered as - Independent/Other
B105: Not Registered | C105: 6
B106: Registered Voter | C106: 1
B107: Male | C107: 1
B108: Female | C108: 1
B109: Age <30
B110: Age 30-49
B111: Age 50+
B112: Married
B113: Not Married
B114: Children under 18
B115: Education - No college
B116: Education - Less than 4 yrs college
B117: Education - 4+ years college
B118: Household Income - <$50k
B119: Household Income - <$50k
B120: Voted in past year
B121: Voted 1+ years ago/never voted
B122: Either good handle or follow closely WY budget
B123: Completely Understood Survey

Sheet Graph
B1: Impact of Increase/Decrease in the Four Components on Level of Support (Each Component Changed Between 1% and 10% while all other Components Remain at No Change) | O1: Change in Support
E2: ='SG Data'!AB440 -> 1 | G2: =Coefficients!V441 -> 0.4241205502 | O2: 0.01 | P2: 0.02 | Q2: 0.03 | R2: 0.04 | S2: 0.05 | T2: 0.06 | U2: 0.07 | V2: 0.08 | W2: 0.09 | X2: 0.1
N3: Property & Sales Taxes | O3: -0.01798274056 | P3: -0.03606458917 | Q3: -0.05319856529 | R3: -0.06589284388 | S3: -0.06933803228 | T3: -0.08409131624 | U3: -0.09585660428 | V3: -0.1042387249 | W3: -0.1090075513 | X3: -0.1105569645
N4: K-12 Education | O4: -0.02112423492 | P4: -0.04210826338 | Q4: -0.06088596088 | R4: -0.07559004661 | S4: -0.08461373836 | T4: -0.09383313774 | U4: -0.1011987112 | V4: -0.1065258163 | W4: -0.1093948561 | X4: -0.1100116551
N5: State Agency Budgets | O5: 0.006646333977 | P5: 0.01523717709 | Q5: 0.02592169335 | R5: 0.03873247781 | S5: 0.0533440402 | T5: 0.04751749742 | U5: 0.04283055953 | V5: 0.03949270619 | W5: 0.03779092869 | X5: 0.03759900448
N6: Transfers to Cities and Towns | O6: 0.0009640316526 | P6: 0.002116141437 | Q6: 0.003199357723 | R6: 0.004221562732 | S6: 0.005448460065 | T6: 0.005721949418 | U6: 0.00672360802 | V6: 0.008471631302 | W6: 0.01082477046 | X6: 0.013515671
O8: Reduction in RDF
O9: 0.01 | P9: 0.02 | Q9: 0.03 | R9: 0.04 | S9: 0.05 | T9: 0.06 | U9: 0.07 | V9: 0.08 | W9: 0.09 | X9: 0.1
N10: Property & Sales Taxes | O10: =O$9*$Y10*10 -> 14 | P10: =P$9*$Y10*10 -> 28 | Q10: 42 | R10: 56 | S10: 70 | T10: 84 | U10: 98 | V10: 112 | W10: 126 | X10: 140 | Y10: 140
N11: K-12 Education | O11: =O$9*$Y11*10 -> 15 | P11: 30 | Q11: 45 | R11: 60 | S11: 75 | T11: 90 | U11: 105 | V11: 120 | W11: 135 | X11: 150 | Y11: 150
N12: State Agency Budgets | O12: 26 | P12: 52 | Q12: 78 | R12: 104 | S12: 130 | T12: 156 | U12: 182 | V12: 208 | W12: 234 | X12: 260 | Y12: 260
N13: Transfers to Cities and Towns | O13: 3 | P13: 6 | Q13: 9 | R13: 12 | S13: 15 | T13: 18 | U13: 21 | V13: 24 | W13: 27 | X13: 30 | Y13: 30
O15: Reduction in RDF
O16: 0.01 | P16: 0.02 | Q16: 0.03 | R16: 0.04 | S16: 0.05 | T16: 0.06 | U16: 0.07 | V16: 0.08 | W16: 0.09 | X16: 0.1
N17: Property & Sales Taxes | O17: =O3/O10 -> -0.001284481469 | P17: =P3/P10 -> -0.001288021042 | Q17: -0.001266632507 | R17: -0.001176657927 | S17: -0.0009905433183 | T17: -0.001001087098 | U17: -0.0009781286151 | V17: -0.0009307029012 | W17: -0.0008651392959 | X17: -0.0007896926039
N18: K-12 Education | O18: =O4/O11 -> -0.001408282328 | P18: -0.001403608779 | Q18: -0.001353021353 | R18: -0.00125983411 | S18: -0.001128183178 | T18: -0.001042590419 | U18: -0.0009637972497 | V18: -0.0008877151362 | W18: -0.000810332267 | X18: -0.0007334110338
N19: State Agency Budgets | O19: =O5/O12 -> 0.0002556282299 | P19: 0.0002930226364 | Q19: 0.0003323294019 | R19: 0.0003724276712 | S19: 0.0004103387708 | T19: 0.0003045993424 | U19: 0.0002353327447 | V19: 0.0001898687798 | W19: 0.0001614996953 | X19: 0.0001446115557
N20: Transfers to Cities and Towns | O20: =O6/O13 -> 0.0003213438842 | P20: 0.0003526902395 | Q20: 0.0003554841914 | R20: 0.0003517968943 | S20: 0.000363230671 | T20: 0.0003178860788 | U20: 0.0003201718105 | V20: 0.0003529846376 | W20: 0.0004009174243 | X20: 0.0004505223668

Sheet SummaryB
B2: Alternative Scenario by Base
C4: Current Setting* | D4: No Change | E4: Difference
B5: Total | C5: 0.4241205502 | D5: 0.4241205502 | E5: =C5-D5 -> 0
B6: Registered as - Republican | C6: 0.4321752022 | D6: 0.4321752022 | E6: =C6-D6 -> 0
B7: Registered as - Democrat | C7: 0.4800759988 | D7: 0.4800759988 | E7: 0
B8: Registered as - Ind/Other | C8: 0.405696414 | D8: 0.405696414 | E8: 0
B9: Not Registered | C9: 0.373411294 | D9: 0.373411294 | E9: 0
B10: Registered Voter | C10: 0.4374801841 | D10: 0.4374801841 | E10: 0
B11: Male | C11: 0.4014737417 | D11: 0.4014737417 | E11: 0
B12: Female | C12: 0.4473487162 | D12: 0.4473487162 | E12: 0
B13: Age <30 | C13: 0.4472697878 | D13: 0.4472697878 | E13: 0
B14: Age 30-49 | C14: 0.4487426269 | D14: 0.4487426269 | E14: 0
B15: Age 50+ | C15: 0.3970652631 | D15: 0.3970652631 | E15: 0
B16: Married | C16: 0.44854246 | D16: 0.44854246 | E16: 0
B17: Not Married | C17: 0.4039733202 | D17: 0.4039733202 | E17: 0
B18: Children under 18 | C18: 0.4267996001 | D18: 0.4267996001 | E18: 0
B19: Education - No college | C19: 0.447186297 | D19: 0.447186297 | E19: 0
B20: Education - Less than 4 yrs college | C20: 0.4366995573 | D20: 0.4366995573 | E20: 0
B21: Education - 4+ years college | C21: 0.3824213968 | D21: 0.3824213968 | E21: 0
B22: Household Income - <$50k | C22: 0.4339131525 | D22: 0.4339131525 | E22: 0
B23: Household Income - <$50k | C23: 0.4276143179 | D23: 0.4276143179 | E23: 0
B24: Voted in past year | C24: 0.4371971093 | D24: 0.4371971093 | E24: 0
B25: Voted 1+ years ago/never voted | C25: 0.3922270774 | D25: 0.3922270774 | E25: 0
B26: Either good handle or follow closely WY budget | C26: 0.4102988039 | D26: 0.4102988039 | E26: 0
B27: Completely Understood Survey | C27: 0.4403327992 | D27: 0.4403327992 | E27: 0
B28: *Based on the setting of the slider bars on the main Summary sheet

Sheet Summary2
D2: ='SG Data'!AB440 -> 1
B4: Agreement with your involvement with Wyoming politics and current budget issues Average Score (1=completely disagree, 7=completely agree) | E4: Selected Base | F4: Total | G4: Difference
C5: I feel I have a good handle on the Wyoming state budget | E5: =Ratings!B$438 -> 3.910055076 | F5: =Ratings!B$439 -> 3.910055076 | G5: =E5-F5 -> 0
C6: I follow the Wyoming legislative sessions closely | E6: =Ratings!C$438 -> 3.65681931 | F6: =Ratings!C$439 -> 3.65681931 | G6: =E6-F6 -> 0
C7: I have strong opinions on how money in the Wyoming state budget is allocated | E7: =Ratings!D$438 -> 4.603163818 | F7: =Ratings!D$439 -> 4.603163818 | G7: 0
C8: I am directly affected by Wyoming state budget decisions | E8: =Ratings!E$438 -> 4.710047396 | F8: =Ratings!E$439 -> 4.710047396 | G8: 0
C9: I could do a better job on deciding budgetary matters than my state elected officials | E9: =Ratings!F$438 -> 3.771909259 | F9: =Ratings!F$439 -> 3.771909259 | G9: 0
C10: My state representative represents my best interests | E10: =Ratings!G$438 -> 4.316056093 | F10: =Ratings!G$439 -> 4.316056093 | G10: 0
C11: My state senator represents my best interests | E11: =Ratings!H$438 -> 4.307095393 | F11: =Ratings!H$439 -> 4.307095393 | G11: 0
B13: Considering the exercises where you selected your preferred alternative Percent indicating "Yes" | E13: Selected Base | F13: Total | G13: Difference
C14: Did you understand the information that was presented to you? | E14: =Ratings!I$438 -> 0.9451426487 | F14: =Ratings!I$439 -> 0.9451426487 | G14: =E14-F14 -> 0
C15: Were you given enough background information to make informed choices? | E15: =Ratings!J$438 -> 0.8473400035 | F15: =Ratings!J$439 -> 0.8473400035 | G15: =E15-F15 -> 0
C16: Were you confident in your choices? | E16: =Ratings!K$438 -> 0.8297892733 | F16: =Ratings!K$439 -> 0.8297892733 | G16: 0
C17: Did the alternatives seem realistic? | E17: =Ratings!L$438 -> 0.7832068017 | F17: =Ratings!L$439 -> 0.7832068017 | G17: 0
B19: Importance (Thurstone Case 5 Scaling on rank ordering) | E19: Selected Base | F19: Total | G19: Difference
C20: Avoiding increases to property and sales taxes paid by citizens and businesses | E20: ='Imp Worksheet'!C470 -> 0.2708650872 | F20: ='Imp Worksheet'!B470 -> 0.2708650872 | G20: =E20-F20 -> 0
C21: Maintaining K-12 funding at current levels | E21: ='Imp Worksheet'!C471 -> 0.2863145618 | F21: ='Imp Worksheet'!B471 -> 0.2863145618 | G21: =E21-F21 -> 0
C22: Protecting state agency budgets from additional cuts | E22: ='Imp Worksheet'!C472 -> 0.1805896538 | F22: ='Imp Worksheet'!B472 -> 0.1805896538 | G22: 0
C23: Maintaining funding to counties, cities and towns at current levels | E23: ='Imp Worksheet'!C473 -> 0.1759161354 | F23: ='Imp Worksheet'!B473 -> 0.1759161354 | G23: 0
C24: Maintaining the Rainy-Day fund for use in the future | E24: ='Imp Worksheet'!C474 -> 0.08631456177 | F24: ='Imp Worksheet'!B474 -> 0.08631456177 | G24: 0
B99: Total
B100: Registered as - Republican
B101: Registered as - Democrat
B102: Registered as - Independent/Other
B103: Not Registered
B104: Registered Voter
B105: Male
B106: Female
B107: Age <30
B108: Age 30-49
B109: Age 50+
B110: Married
B111: Not Married
B112: Children under 18
B113: Education - No college
B114: Education - Less than 4 yrs college
B115: Education - 4+ years college
B116: Household Income - <$50k
B117: Household Income - <$50k
B118: Voted in past year
B119: Voted 1+ years ago/never voted
B120: Either good handle or follow closely WY budget
B121: Completely Understood Survey

Sheet Coefficients (hidden)
D1: x1 | G1: x2 | J1: x3 | M1: x4 | R1: EXP | V1: Percent | Z1: Difa | AA1: x1 | AD1: x2 | AG1: x3 | AJ1: x4 | AU1: Max-Min | BI1: Exp | BM1: =PRODUCT(BI3:BL3) -> 0.1282797843
A2: ID | B2: RLH | C2: Intercept | D2: Level 1 | E2: Level 2 | F2: Level 3 | G2: Level 1 | H2: Level 2 | I2: Level 3 | J2: Level 1 | K2: Level 2 | L2: Level 3 | M2: Level 1 | N2: Level 2 | O2: Level 3 | P2: None | R2: Support | S2: No Support | T2: Sum | V2: Support | W2: No Support | Y2: Maxa | Z2: Max-Min | AA2: Level 1 | AB2: Level 2 | AC2: Level 3 | AD2: Level 1 | AE2: Level 2 | AF2: Level 3 | AG2: Level 1 | AH2: Level 2 | AI2: Level 3 | AJ2: Level 1 | AK2: Level 2 | AL2: Level 3 | AU2: x1 | AV2: x2 | AW2: x3 | AX2: x4 | AY2: Total | AZ2: x1 | BA2: x2 | BB2: x3 | BC2: x4 | BE2: x1 | BF2: x2 | BG2: x3 | BH2: x4 | BI2: x1 | BJ2: x2 | BK2: x3 | BL2: x4 | BM2: Total | BR2: x1 | BS2: x2 | BT2: x3 | BU2: x4 | BW2: x1 | BX2: x2 | BY2: x3 | BZ2: x4
A3: 1001 | B3: 0.505518125 | C3: -1.214324676 | D3: -1.990927598 | E3: -0.708648647 | F3: 2.699576245 | G3: -0.046926277 | H3: 0.014601252 | I3: 0.032325025 | J3: -0.68147284 | K3: 0.270407553 | L3: 0.411065287 | M3: -0.616493822 | N3: 0.256087527 | O3: 0.360406295 | P3: 1.214324676 | R3: =EXP(SUMPRODUCT(C3:O3,C$440:O$440)) -> 0.03808760941 | S3: =EXP(P3) -> 3.368018792 | T3: =SUM(R3:S3) -> 3.406106402 | V3: ='SG Data'!$AB2*R3/$T3 -> 0.007543237621 | W3: ='SG Data'!$AB2*S3/$T3 -> 0.6670349348 | Y3: =MAX(D3:O3) -> 2.699576245 | Z3: =MAX(D3:O3)-MIN(D3:O3) -> 4.690503843 | AA3: =((($Y3-D3)/$Z3*-5+(1-(($Y3-D3)/$Z3))*5)) -> -5 | AB3: =((($Y3-E3)/$Z3*-5+(1-(($Y3-E3)/$Z3))*5)) -> -2.266223429 | AC3: =((($Y3-F3)/$Z3*-5+(1-(($Y3-F3)/$Z3))*5)) -> 5 | AD3: =((($Y3-G3)/$Z3*-5+(1-(($Y3-G3)/$Z3))*5)) -> -0.8554530898 | AE3: =((($Y3-H3)/$Z3*-5+(1-(($Y3-H3)/$Z3))*5)) -> -0.7242784206 | AF3: =((($Y3-I3)/$Z3*-5+(1-(($Y3-I3)/$Z3))*5)) -> -0.6864919192 | AG3: =((($Y3-J3)/$Z3*-5+(1-(($Y3-J3)/$Z3))*5)) -> -2.208285502 | AH3: =((($Y3-K3)/$Z3*-5+(1-(($Y3-K3)/$Z3))*5)) -> -0.1789077961 | AI3: =((($Y3-L3)/$Z3*-5+(1-(($Y3-L3)/$Z3))*5)) -> 0.1209698689 | AJ3: =((($Y3-M3)/$Z3*-5+(1-(($Y3-M3)/$Z3))*5)) -> -2.069752372 | AK3: =((($Y3-N3)/$Z3*-5+(1-(($Y3-N3)/$Z3))*5)) -> -0.2094376208 | AL3: =((($Y3-O3)/$Z3*-5+(1-(($Y3-O3)/$Z3))*5)) -> 0.0129665633 | AU3: =MAX(D3:F3)-MIN(D3:F3) -> 4.690503843 | AV3: =MAX(G3:I3)-MIN(G3:I3) -> 0.079251302 | AW3: =MAX(J3:L3)-MIN(J3:L3) -> 1.092538127 | AX3: =MAX(M3:O3)-MIN(M3:O3) -> 0.976900117 | AY3: =SUM(AU3:AX3) -> 6.839193389 | AZ3: =AU3/$AY3 -> 0.6858270524 | BA3: =AV3/$AY3 -> 0.01158781416 | BB3: =AW3/$AY3 -> 0.1597466346 | BC3: =AX3/$AY3 -> 0.1428384988 | BE3: =SUMPRODUCT(D3:F3,$D$440:$F$440) -> -0.708648647 | BF3: =SUMPRODUCT(G3:I3,$G$440:$I$440) -> -0.046926277 | BG3: =SUMPRODUCT(J3:L3,$J$440:$L$440) -> -0.68147284 | BH3: =SUMPRODUCT(M3:O3,$M$440:$O$440) -> -0.616493822 | BI3: =EXP(BE3) -> 0.4923090314 | BJ3: =EXP(BF3) -> 0.9541577384 | BK3: =EXP(BG3) -> 0.5058713758 | BL3: =EXP(BH3) -> 0.539833877 | BM3: =SUM(BI3:BL3) -> 2.492172023 | BN3: =BI3/$BM3 -> 0.1975421548 | BO3: =BJ3/$BM3 -> 0.3828619091 | BP3: =BK3/$BM3 -> 0.2029841324 | BQ3: =BL3/$BM3 -> 0.2166118037 | BR3: =BE3-MIN($BE3:$BH3) -> 0 | BS3: =BF3-MIN($BE3:$BH3) -> 0.66172237 | BT3: =BG3-MIN($BE3:$BH3) -> 0.027175807 | BU3: =BH3-MIN($BE3:$BH3) -> 0.092154825 | BV3: =SUM(BR3:BU3) -> 0.781053002 | BW3: =BR3/$BV3 -> 0 | BX3: =BS3/$BV3 -> 0.847218266 | BY3: =BT3/$BV3 -> 0.03479380648 | BZ3: =BU3/$BV3 -> 0.1179879275
A4: 1002 | B4: 0.338662651 | C4: -0.499752967 | D4: -1.130066763 | E4: 1.681407145 | F4: -0.551340382 | G4: -0.519228338 | H4: 0.409339109 | I4: 0.109889229 | J4: -0.030421367 | K4: 0.262661863 | L4: -0.232240496 | M4: -0.481082994 | N4: -0.110886494 | O4: 0.591969488 | P4: 0.499752967 | R4: =EXP(SUMPRODUCT(C4:O4,C$440:O$440)) -> 1.162905342 | S4: 1.648314032 | T4: 2.811219374 | V4: ='SG Data'!$AB3*R4/$T4 -> 0.2316640194 | W4: ='SG Data'!$AB3*S4/$T4 -> 0.3283629718 | Y4: 1.681407145 | Z4: 2.811473908 | AA4: -5 | AB4: 5 | AC4: -2.941555213 | AD4: -2.827337386 | AE4: 0.4754407203 | AF4: -0.5896585472 | AG4: -1.088722741 | AH4: -0.04626871323 | AI4: -1.806563758 | AJ4: -2.691659997 | AK4: -1.374925387 | AL4: 1.12503017 | AU4: 2.811473908 | AV4: 0.928567447 | AW4: 0.494902359 | AX4: 1.073052482 | AY4: 5.307996196 | AZ4: 0.5296676569 | BA4: 0.1749374741 | BB4: 0.09323713521 | BC4: 0.2021577338 | BE4: 1.681407145 | BF4: -0.519228338 | BG4: -0.030421367 | BH4: -0.481082994 | BI4: 5.373111401 | BJ4: 0.5949794939 | BK4: 0.970036706 | BL4: 0.6181136159 | BM4: 7.556241217 | BN4: 0.711082567 | BO4: 0.07874014035 | BP4: 0.1283755611 | BQ4: 0.08180173159 | BR4: 2.200635483 | BS4: 0 | BT4: 0.488806971 | BU4: 0.038145344 | BV4: 2.727587798 | BW4: 0.80680647 | BX4: 0 | BY4: 0.1792085195 | BZ4: 0.0139850105
A5: 1004 | B5: 0.740941358 | C5: -2.222579636 | D5: 2.494324245 | E5: -0.309589354 | F5: -2.184734891 | G5: -1.457693949 | H5: -0.286687331 | I5: 1.74438128 | J5: -1.749913396 | K5: 1.36988825 | L5: 0.380025146 | M5: 0.711353159 | N5: -0.171890377 | O5: -0.539462782 | P5: 2.222579636 | R5: 0.006549129257 | S5: 9.23111309 | T5: 9.237662219 | V5: ='SG Data'!$AB4*R5/$T5 -> 0.0008500910109 | W5: ='SG Data'!$AB4*S5/$T5 -> 1.198218259 | Y5: 2.494324245 | Z5: 4.679059136 | AA5: 5 | AB5: -0.9924730966 | AC5: -5 | AD5: -3.446181335 | AE5: -0.94352731 | AF5: 3.397235548 | AG5: -4.070707417 | AH5: 2.596875863 | AI5: 0.4813584579 | AJ5: 1.189466655 | AK5: -0.6981853499 | AL5: -1.483754402 | AU5: 4.679059136 | AV5: 3.202075229 | AW5: 3.119801646 | AX5: 1.250815941 | AY5: 12.25175195 | AZ5: 0.3819093918 | BA5: 0.261356518 | BB5: 0.2546412675 | BC5: 0.1020928228 | BE5: -0.309589354 | BF5: -1.457693949 | BG5: -1.749913396 | BH5: 0.711353159 | BI5: 0.7337482051 | BJ5: 0.2327724414 | BK5: 0.1737889936 | BL5: 2.036745435 | BM5: 3.177055075 | BN5: 0.2309523089 | BO5: 0.07326673157 | BP5: 0.05470128452 | BQ5: 0.641079675 | BR5: 1.440324042 | BS5: 0.292219447 | BT5: 0 | BU5: 2.461266555 | BV5: 4.193810044 | BW5: 0.3434404579 | BX5: 0.06967875129 | BY5: 0 | BZ5: 0.5868807908
A6: 1005 | B6: 0.387317194 | C6: -1.296834207 | D6: 0.902545215 | E6: -0.484893948 | F6: -0.417651266 | G6: 1.553222981 | H6: 0.334214615 | I6: -1.887437596 | J6: -0.560743557 | K6: 0.462395481 | L6: 0.098348076 | M6: -0.277637122 | N6: 0.081871598 | O6: 0.195765524 | P6: 1.296834207 | R6: 0.3440783613 | S6: 3.657698802 | T6: 4.001777163 | V6: ='SG Data'!$AB5*R6/$T6 -> 0.03220390305 | W6: ='SG Data'!$AB5*S6/$T6 -> 0.3423411375 | Y6: 1.553222981 | Z6: 3.440660577 | AA6: 3.108858019 | AB6: -0.9236210123 | AC6: -0.7281856286 | AD6: 5 | AE6: 1.457051375 | AF6: -5 | AG6: -1.144071729 | AH6: 1.829598632 | AI6: 0.771524472 | AJ6: -0.321245912 | AK6: 0.7236369294 | AL6: 1.054660358 | AU6: 1.387439163 | AV6: 3.440660577 | AW6: 1.023139038 | AX6: 0.473402646 | AY6: 6.324641424 | AZ6: 0.219370407 | BA6: 0.5440087977 | BB6: 0.1617702838 | BC6: 0.07485051156 | BE6: -0.484893948 | BF6: 1.553222981 | BG6: -0.560743557 | BH6: -0.277637122 | BI6: 0.6157624961 | BJ6: 4.726679658 | BK6: 0.5707844952 | BL6: 0.7575716777 | BM6: 6.670798327 | BN6: 0.09230716714 | BO6: 0.7085628176 | BP6: 0.08556464567 | BQ6: 0.1135653696 | BR6: 0.075849609 | BS6: 2.113966538 | BT6: 0 | BU6: 0.283106435 | BV6: 2.472922582 | BW6: 0.03067205158 | BX6: 0.8548454179 | BY6: 0 | BZ6: 0.1144825305
A7: 1006 | B7: 0.716290248 | C7: -2.247876018 | D7: 3.47482234 | E7: -1.06281829 | F7: -2.41200405 | G7: -0.775808688 | H7: -0.384795284 | I7: 1.160603971 | J7: -2.460767931 | K7: 0.195355906 | L7: 2.265412025 | M7: -0.812426623 | N7: 0.49768118 | O7: 0.314745443 | P7: 2.247876018 | R7: 0.0006363909069 | S7: 9.467605442 | T7: 9.468241833 | V7: ='SG Data'!$AB6*R7/$T7 -> 0.0001227852117 | W7: ='SG Data'!$AB6*S7/$T7 -> 1.826679051 | Y7: 3.47482234 | Z7: 5.935590271 | AA7: 5 | AB7: -2.644800977 | AC7: -4.917844934 | AD7: -2.161260859 | AE7: -1.502500085 | AF7: 1.101115031 | AG7: -5 | AH7: -0.5250889705 | AI7: 2.96244306 | AJ7: -2.222953013 | AK7: -0.01574573728 | AL7: -0.3239471606 | AU7: 5.88682639 | AV7: 1.936412659 | AW7: 4.726179956 | AX7: 1.310107803 | AY7: 13.85952681 | AZ7: 0.4247494501 | BA7: 0.1397170831 | BB7: 0.341005867 | BC7: 0.09452759976 | BE7: -1.06281829 | BF7: -0.775808688 | BG7: -2.460767931 | BH7: -0.812426623 | BI7: 0.345480772 | BJ7: 0.460331366 | BK7: 0.085369368 | BL7: 0.4437798721 | BM7: 1.334961378 | BN7: 0.2587945821 | BO7: 0.3448274786 | BP7: 0.0639489422 | BQ7: 0.3324289971 | BR7: 1.397949641 | BS7: 1.684959243 | BT7: 0 | BU7: 1.648341308 | BV7: 4.731250192 | BW7: 0.2954715105 | BX7: 0.3561340396 | BY7: 0 | BZ7: 0.3483944499
A8: 1007 | B8: 0.883134147 | C8: 0.525259147 | D8: 1.049877521 | E8: 1.276796051 | F8: -2.326673572 | G8: -2.561310268 | H8: 1.904153949 | I8: 0.657156319 | J8: -4.229505078 | K8: 2.639687862 | L8: 1.589817216 | M8: -0.307042643 | N8: -0.878625476 | O8: 1.185668119 | P8: -0.525259147 | R8: 0.005012588699 | S8: 0.5914020844 | T8: 0.5964146731 | V8: ='SG Data'!$AB7*R8/$T8 -> 0.00884243036 | W8: ='SG Data'!$AB7*S8/$T8 -> 1.043259693 | Y8: 2.639687862 | Z8: 6.86919294 | AA8: 2.685593701 | AB8: 3.015936045 | AC8: -2.229905285 | AD8: -2.571483543 | AE8: 3.929228048 | AF8: 2.113879956 | AG8: -5 | AH8: 5 | AI8: 3.471624461 | AJ8: 0.7102231212 | AK8: -0.1218729314 | AL8: 2.883274272 | AU8: 3.603469623 | AV8: 4.465464217 | AW8: 6.86919294 | AX8: 2.064293595 | AY8: 17.00242037 | AZ8: 0.2119386266 | BA8: 0.2626369728 | BB8: 0.4040126516 | BC8: 0.121411749 | BE8: 1.276796051 | BF8: -2.561310268 | BG8: -4.229505078 | BH8: -0.307042643 | BI8: 3.585134716 | BJ8: 0.07720351685 | BK8: 0.01455959463 | BL8: 0.7356192312 | BM8: 4.412517059 | BN8: 0.8124919787 | BO8: 0.01749648009 | BP8: 0.003299612089 | BQ8: 0.1667119291 | BR8: 5.506301129 | BS8: 1.66819481 | BT8: 0 | BU8: 3.922462435 | BV8: 11.09695837 | BW8: 0.4961991334 | BX8: 0.1503290139 | BY8: 0 | BZ8: 0.3534718526
A9: 1008 | B9: 0.949049865 | C9: -0.211450034 | D9: 4.485913686 | E9: -0.526027127 | F9: -3.959886559 | G9: 1.797790951 | H9: -0.97653256 | I9: -0.821258392 | J9: -2.210505535 | K9: 0.624809396 | L9: 1.58569614 | M9: -0.607319689 | N9: 0.873772115 | O9: -0.266452427 | P9: 0.211450034 | R9: 0.172473542 | S9: 1.235468233 | T9: 1.407941775 | V9: ='SG Data'!$AB8*R9/$T9 -> 0.1468864474 | W9: ='SG Data'!$AB8*S9/$T9 -> 1.052181903 | Y9: 4.485913686 | Z9: 8.445800245 | AA9: 5 | AB9: -0.9342402941 | AC9: -5 | AD9: 1.817207775 | AE9: -1.467647929 | AF9: -1.283800142 | AG9: -2.928697136 | AH9: 0.4283736556 | AI9: 1.566083187 | AJ9: -1.030492348 | AK9: 0.7231506 | AL9: -0.6268985474 | AU9: 8.445800245 | AV9: 2.774323511 | AW9: 3.796201675 | AX9: 1.481091804 | AY9: 16.49741724 | AZ9: 0.5119468172 | BA9: 0.1681671423 | BB9: 0.230108848 | BC9: 0.08977719257 | BE9: -0.526027127 | BF9: 1.797790951 | BG9: -2.210505535 | BH9: -0.607319689 | BI9: 0.5909480738 | BJ9: 6.036298247 | BK9: 0.109645205 | BL9: 0.5448091719 | BM9: 7.281700697 | BN9: 0.08115522711 | BO9: 0.8289681899 | BP9: 0.01505763689 | BQ9: 0.07481894608 | BR9: 1.684478408 | BS9: 4.008296486 | BT9: 0 | BU9: 1.603185846 | BV9: 7.29596074 | BW9: 0.2308782171 | BX9: 0.5493856983 | BY9: 0 | BZ9: 0.2197360845
A10: 1011 | B10: 0.62562911 | C10: -1.696939371 | D10: 4.303632406 | E10: -0.846516656 | F10: -3.457115749 | G10: -0.920882973 | H10: 0.609941924 | I10: 0.310941049 | J10: -0.438732917 | K10: 1.782902943 | L10: -1.344170025 | M10: -0.522167685 | N10: -0.25067679 | O10: 0.772844475 | P10: 1.696939371 | R10: 0.0119713426 | S10: 5.457219282 | T10: 5.469190625 | V10: ='SG Data'!$AB9*R10/$T10 -> 0.002297793427 | W10: ='SG Data'!$AB9*S10/$T10 -> 1.047465018 | Y10: 4.303632406 | Z10: 7.760748155 | AA10: 5 | AB10: -1.636150226 | AC10: -5 | AD10: -1.73197387 | AE10: 0.240548452 | AF10: -0.1447248091 | AG10: -1.110706376 | AH10: 1.75195044 | AI10: -2.27739429 | AJ10: -1.218215041 | AK10: -0.8683893679 | AL10: 0.4504541824 | AU10: 7.760748155 | AV10: 1.530824897 | AW10: 3.127072968 | AX10: 1.29501216 | AY10: 13.71365818 | AZ10: 0.5659137812 | BA10: 0.1116277566 | BB10: 0.2280261712 | BC10: 0.09443229101 | BE10: -0.846516656 | BF10: -0.920882973 | BG10: -0.438732917 | BH10: -0.522167685 | BI10: 0.4289063613 | BJ10: 0.3981673148 | BK10: 0.6448529859 | BL10: 0.5932332105 | BM10: 2.065159872 | BN10: 0.2076867593 | BO10: 0.1928021749 | BP10: 0.3122533003 | BQ10: 0.2872577656 | BR10: 0.074366317 | BS10: 0 | BT10: 0.482150056 | BU10: 0.398715288 | BV10: 0.955231661 | BW10: 0.077851604 | BX10: 0 | BY10: 0.5047467287 | BZ10: 0.4174016673
A11: 1012 | B11: 0.29900185 | C11: -0.651252577 | D11: 0.928499881 | E11: -0.257351188 | F11: -0.671148693 | G11: 0.328893346 | H11: -0.786938943 | I11: 0.458045598 | J11: 1.179930353 | K11: -0.540860547 | L11: -0.639069806 | M11: 0.406339467 | N11: -0.758452303 | O11: 0.352112836 | P11: 0.651252577 | R11: 2.736170735 | S11: 1.917941695 | T11: 4.65411243 | V11: ='SG Data'!$AB10*R11/$T11 -> 0.4191495203 | W11: ='SG Data'!$AB10*S11/$T11 -> 0.2938063517 | Y11: 1.179930353 | Z11: 1.966869296 | AA11: 3.721671681 | AB11: -2.307458324 | AC11: -4.411296672 | AD11: 0.6731389893 | AE11: -5 | AF11: 1.329777701 | AG11: 5 | AH11: -3.748882824 | AI11: -4.248200492 | AJ11: 1.066892256 | AK11: -4.8551676 | AL11: 0.7911920295 | AU11: 1.599648574 | AV11: 1.244984541 | AW11: 1.819000159 | AX11: 1.16479177 | AY11: 5.828425044 | AZ11: 0.2744564032 | BA11: 0.2136056536 | BB11: 0.3120911988 | BC11: 0.1998467444 | BE11: -0.257351188 | BF11: 0.328893346 | BG11: 1.179930353 | BH11: 0.406339467 | BI11: 0.7730966638 | BJ11: 1.389429659 | BK11: 3.254147553 | BL11: 1.501312112 | BM11: 6.917985989 | BN11: 0.1117516955 | BO11: 0.2008430867 | BP11: 0.4703894398 | BQ11: 0.2170157781 | BR11: 0 | BS11: 0.586244534 | BT11: 1.437281541 | BU11: 0.663690655 | BV11: 2.68721673 | BW11: 0 | BX11: 0.2181604957 | BY11: 0.5348588095 | BZ11: 0.2469806948
A12: 1013 | B12: 0.682236108 | C12: -1.85049745 | D12: 2.508733403 | E12: 0.479933833 | F12: -2.988667236 | G12: 2.367197365 | H12: 0.534080715 | I12: -2.90127808 | J12: 1.784571189 | K12: 0.976299099 | L12: -2.760870288 | M12: -0.323053646 | N12: -0.154857911 | O12: 0.477911557 | P12: 1.85049745 | R12: 11.68319274 | S12: 6.362984002 | T12: 18.04617674 | V12: ='SG Data'!$AB11*R12/$T12 -> 0.6566584555 | W12: ='SG Data'!$AB11*S12/$T12 -> 0.3576340253 | Y12: 2.508733403 | Z12: 5.497400639 | AA12: 5 | AB12: 1.309529352 | AC12: -5 | AD12: 4.742540071 | AE12: 1.408024778 | AF12: -4.841035497 | AG12: 3.682718867 | AH12: 2.212438378 | AI12: -4.585627894 | AJ12: -0.1511382105 | AK12: 0.1548168145 | AL12: 1.305850748 | AU12: 5.497400639 | AV12: 5.268475445 | AW12: 4.545441477 | AX12: 0.800965203 | AY12: 16.11228276 | AZ12: 0.341193158 | BA12: 0.3269850413 | BB12: 0.2821103343 | BC12: 0.04971146638 | BE12: 0.479933833 | BF12: 2.367197365 | BG12: 1.784571189 | BH12: -0.323053646 | BI12: 1.615967475 | BJ12: 10.66745337 | BK12: 5.957024962 | BL12: 0.7239350171 | BM12: 18.96438083 | BN12: 0.0852106636 | BO12: 0.5624994283 | BP12: 0.3141165017 | BQ12: 0.03817340644 | BR12: 0.802987479 | BS12: 2.690251011 | BT12: 2.107624835 | BU12: 0 | BV12: 5.600863325 | BW12: 0.1433685188 | BX12: 0.4803279164 | BY12: 0.3763035648 | BZ12: 0
A13: 1014 | B13: 0.668646243 | C13: -1.990294619 | D13: 2.806019484 | E13: -1.083081009 | F13: -1.722938475 | G13: 4.768403893 | H13: -1.754712537 | I13: -3.013691356 | J13: -0.625884601 | K13: -0.615569064 | L13: 1.241453665 | M13: 1.139558161 | N13: -0.894546014 | O13: -0.245012147 | P13: 1.990294619 | R13: 9.103890276 | S13: 7.317689375 | T13: 16.42157965 | V13: ='SG Data'!$AB12*R13/$T13 -> 0.4560094588 | W13: ='SG Data'!$AB12*S13/$T13 -> 0.36653952 | Y13: 4.768403893 | Z13: 7.782095249 | AA13: 2.478334117 | AB13: -2.519163817 | AC13: -3.341381287 | AD13: 5 | AE13: -3.382210987 | AF13: -5 | AG13: -1.931665986 | AH13: -1.918410511 | AI13: 0.4678655103 | AJ13: 0.3369296881 | AK13: -2.276896165 | AL13: -1.442244511 | AU13: 4.528957959 | AV13: 7.782095249 | AW13: 1.867338266 | AX13: 2.034104175 | AY13: 16.21249565 | AZ13: 0.2793498334 | BA13: 0.4800060039 | BB13: 0.1151789525 | BC13: 0.1254652102 | BE13: -1.083081009 | BF13: 4.768403893 | BG13: -0.625884601 | BH13: 1.139558161 | BI13: 0.3385508389 | BJ13: 117.7311804 | BK13: 0.5347881451 | BL13: 3.125387142 | BM13: 121.7299065 | BN13: 0.002781164044 | BO13: 0.9671508322 | BP13: 0.004393235488 | BQ13: 0.02567476828 | BR13: 0 | BS13: 5.851484902 | BT13: 0.457196408 | BU13: 2.22263917 | BV13: 8.53132048 | BW13: 0 | BX13: 0.6858826738 | BY13: 0.05359034502 | BZ13: 0.2605269812
A14: 1015 | B14: 0.422502827 | C14: -0.995907702 | D14: -0.921779928 | E14: 1.018355854 | F14: -0.096575926 | G14: 2.204591382 | H14: -1.78136149 | I14: -0.423229892 | J14: 0.763571192 | K14: -0.344133357 | L14: -0.419437835 | M14: 0.073196664 | N14: -0.244087328 | O14: 0.170890664 | P14: 0.995907702 | R14: 21.40891427 | S14: 2.70718054 | T14: 24.11609481 | V14: ='SG Data'!$AB13*R14/$T14 -> 0.6309945078 | W14: ='SG Data'!$AB13*S14/$T14 -> 0.07978994312 | Y14: 2.204591382 | Z14: 3.985952872 | AA14: -2.843472842 | AB14: 2.023959976 | AC14: -0.7731924634 | AD14: 5 | AE14: -5 | AF14: -1.592705329 | AG14: 1.384753568 | AH14: -1.39426712 | AI14: -1.583191777 | AJ14: -0.3472652248 | AK14: -1.143270602 | AL14: -0.102169502 | AU14: 1.940135782 | AV14: 3.985952872 | AW14: 1.183009027 | AX14: 0.414977992 | AY14: 7.524075673 | AZ14: 0.2578570267 | BA14: 0.5297598064 | BB14: 0.1572298151 | BC14: 0.05515335173 | BE14: 1.018355854 | BF14: 2.204591382 | BG14: 0.763571192 | BH14: 0.073196664 | BI14: 2.768638973 | BJ14: 9.066546057 | BK14: 2.145926067 | BL14: 1.075942115 | BM14: 15.05705321 | BN14: 0.1838765484 | BO14: 0.6021461125 | BP14: 0.1425196575 | BQ14: 0.07145768166 | BR14: 0.94515919 | BS14: 2.131394718 | BT14: 0.690374528 | BU14: 0 | BV14: 3.766928436 | BW14: 0.2509097813 | BX14: 0.5658176826 | BY14: 0.1832725362 | BZ14: 0
A15: 1016 | B15: 0.515508141 | C15: -1.067824043 | D15: 2.668572246 | E15: -0.389251926 | F15: -2.27932032 | G15: -0.539563913 | H15: -0.368615499 | I15: 0.908179412 | J15: -0.777714607 | K15: 0.686412639 | L15: 0.091301968 | M15: 0.160654824 | N15: 0.763731426 | O15: -0.92438625 | P15: 1.067824043 | R15: 0.07326299322 | S15: 2.909042656 | T15: 2.98230565 | V15: ='SG Data'!$AB14*R15/$T15 -> 0.02945618147 | W15: ='SG Data'!$AB14*S15/$T15 -> 1.169612169 | Y15: 2.668572246 | Z15: 4.947892566 | AA15: 5 | AB15: -1.180053692 | AC15: -5 | AD15: -1.483843609 | AE15: -1.138346184 | AF15: 1.4421361 | AG15: -1.96516104 | AH15: 0.993931597 | AI15: -0.2088242492 | AJ15: -0.0686577943 | AK15: 1.150197696 | AL15: -2.261593594 | AU15: 4.947892566 | AV15: 1.447743325 | AW15: 1.464127246 | AX15: 1.688117676 | AY15: 9.547880813 | AZ15: 0.5182189287 | BA15: 0.151629807 | BB15: 0.1533457816 | BC15: 0.1768054827 | BE15: -0.389251926 | BF15: -0.539563913 | BG15: -0.777714607 | BH15: 0.160654824 | BI15: 0.6775635526 | BJ15: 0.5830024367 | BK15: 0.4594548472 | BL15: 1.174279566 | BM15: 2.894300402 | BN15: 0.2341027048 | BO15: 0.2014312116 | BP15: 0.1587446994 | BQ15: 0.4057213843 | BR15: 0.388462681 | BS15: 0.238150694 | BT15: 0 | BU15: 0.938369431 | BV15: 1.564982806 | BW15: 0.2482216926 | BX15: 0.1521746393 | BY15: 0 | BZ15: 0.5996036681
A16: 1017 | B16: 0.42107895 | C16: -0.630585639 | D16: -1.646158918 | E16: 1.016350993 | F16: 0.629807925 | G16: 0.106152107 | H16: 0.961234846 | I16: -1.067386953 | J16: -0.236415299 | K16: 1.057602451 | L16: -0.821187152 | M16: -2.145710502 | N16: 0.693753414 | O16: 1.451957088 | P16: 0.630585639 | R16: 0.1510403378 | S16: 1.878710503 | T16: 2.029750841 | V16: ='SG Data'!$AB15*R16/$T16 -> 0.07811625275 | W16: ='SG Data'!$AB15*S16/$T16 -> 0.971646559 | Y16: 1.451957088 | Z16: 3.59766759 | AA16: -3.611457086 | AB16: 3.789198601 | AC16: 2.714771745 | AD16: 1.259229216 | AE16: 3.635998936 | AF16: -2.002714892 | AG16: 0.3070361706 | AH16: 3.903860273 | AI16: -1.318383183 | AJ16: -5 | AK16: 2.89251326 | AL16: 5 | AU16: 2.662509911 | AV16: 2.028621799 | AW16: 1.878789603 | AX16: 3.59766759 | AY16: 10.1675889 | AZ16: 0.2618624667 | BA16: 0.1995184717 | BB16: 0.1847822154 | BC16: 0.3538368461 | BE16: 1.016350993 | BF16: 0.106152107 | BG16: -0.236415299 | BH16: -2.145710502 | BI16: 2.763093797 | BJ16: 1.111991005 | BK16: 0.7894527469 | BL16: 0.1169848895 | BM16: 4.781522439 | BN16: 0.5778690433 | BO16: 0.2325600307 | BP16: 0.1651048922 | BQ16: 0.02446603378 | BR16: 3.162061495 | BS16: 2.251862609 | BT16: 1.909295203 | BU16: 0 | BV16: 7.323219307 | BW16: 0.4317857164 | BX16: 0.3074962683 | BY16: 0.2607180153 | BZ16: 0
A17: 1019 | B17: 0.552786097 | C17: -1.324828835 | D17: 3.744665621 | E17: -1.204019821 | F17: -2.5406458 | G17: -0.075910171 | H17: -0.385362167 | I17: 0.461272337 | J17: 0.16527897 | K17: -0.019787919 | L17: -0.145491051 | M17: -0.077024078 | N17: 0.198293233 | O17: -0.121269156 | P17: 1.324828835 | R17: 0.08074139105 | S17: 3.761541456 | T17: 3.842282847 | V17: ='SG Data'!$AB16*R17/$T17 -> 0.03700868414 | W17: ='SG Data'!$AB16*S17/$T17 -> 1.724142944 | Y17: 3.744665621 | Z17: 6.285311421 | AA17: 5 | AB17: -2.873413281 | AC17: -5 | AD17: -1.078578349 | AE17: -1.570919898 | AF17: -0.2239150363 | AG17: -0.6948437575 | AH17: -0.9892872252 | AI17: -1.189282299 | AJ17: -1.080350587 | AK17: -0.6423176999 | AL17: -1.150744996 | AU17: 6.285311421 | AV17: 0.846634504 | AW17: 0.310770021 | AX17: 0.319562389 | AY17: 7.762278335 | AZ17: 0.8097250768 | BA17: 0.1090703615 | BB17: 0.04003592858 | BC17: 0.04116863313 | BE17: -1.204019821 | BF17: -0.075910171 | BG17: 0.16527897 | BH17: -0.077024078 | BI17: 0.2999858953 | BJ17: 0.9268994653 | BK17: 1.17972218 | BL17: 0.9258675603 | BM17: 3.332475101 | BN17: 0.09001894575 | BO17: 0.2781414526 | BP17: 0.3540078003 | BQ17: 0.2778318014 | BR17: 0 | BS17: 1.12810965 | BT17: 1.369298791 | BU17: 1.126995743 | BV17: 3.624404184 | BW17: 0 | BX17: 0.3112538207 | BY17: 0.3777996938 | BZ17: 0.3109464855
A18: 1020 | B18: 0.271229184 | C18: -0.342187326 | D18: -0.086778614 | E18: 0.453482294 | F18: -0.36670368 | G18: 0.475251519 | H18: 0.665016825 | I18: -1.140268343 | J18: -0.530272408 | K18: 0.318348558 | L18: 0.21192385 | M18: -0.273770319 | N18: 0.229311407 | O18: 0.044458912 | P18: 0.342187326 | R18: 0.8045306299 | S18: 1.408024032 | T18: 2.212554662 | V18: ='SG Data'!$AB17*R18/$T18 -> 0.1493061449 | W18: ='SG Data'!$AB17*S18/$T18 -> 0.2613034635 | Y18: 0.665016825 | Z18: 1.805285168 | AA18: 0.8355862424 | AB18: 3.828248663 | AC18: -0.7150001744 | AD18: 3.948834736 | AE18: 5 | AF18: -5 | AG18: -1.621054968 | AH18: 3.079703566 | AI18: 2.490186132 | AJ18: -0.2002152382 | AK18: 2.586500871 | AL18: 1.562549098 | AU18: 0.820185974 | AV18: 1.805285168 | AW18: 0.848620966 | AX18: 0.503081726 | AY18: 3.977173834 | AZ18: 0.2062233154 | BA18: 0.4539115571 | BB18: 0.2133728626 | BC18: 0.1264922649 | BE18: 0.453482294 | BF18: 0.475251519 | BG18: -0.530272408 | BH18: -0.273770319 | BI18: 1.57378303 | BJ18: 1.608418694 | BK18: 0.5884446508 | BL18: 0.7605067291 | BM18: 4.531153104 | BN18: 0.3473250613 | BO18: 0.3549689577 | BP18: 0.1298664241 | BQ18: 0.1678395569 | BR18: 0.983754702 | BS18: 1.005523927 | BT18: 0 | BU18: 0.256502089 | BV18: 2.245780718 | BW18: 0.4380457514 | BX18: 0.4477391399 | BY18: 0 | BZ18: 0.1142151088
A19: 1021 | B19: 0.420901671 | C19: -0.751724456 | D19: -0.717907633 | E19: -0.645797101 | F19: 1.363704734 | G19: 0.939604676 | H19: -0.406048618 | I19: -0.533556058 | J19: -0.650201569 | K19: 0.283099993 | L19: 0.367101576 | M19: -1.096818769 | N19: 1.643922952 | O19: -0.547104183 | P19: 0.751724456 | R19: 0.1102574472 | S19: 2.12065384 | T19: 2.230911287 | V19: ='SG Data'!$AB18*R19/$T19 -> 0.02004486322 | W19: ='SG Data'!$AB18*S19/$T19 -> 0.385536009 | Y19: 1.643922952 | Z19: 2.740741721 | AA19: -3.61748689 | AB19: -3.354380989 | AC19: 3.977582543 | AD19: 2.430190993 | AE19: -2.479623323 | AF19: -2.944853006 | AG19: -3.37045134 | AH19: 0.03483692545 | AI19: 0.3413290781 | AJ19: -5 | AK19: 5 | AL19: -2.994285336 | AU19: 2.081612367 | AV19: 1.473160734 | AW19: 1.017303145 | AX19: 2.740741721 | AY19: 7.312817967 | AZ19: 0.2846525616 | BA19: 0.2014491186 | BB19: 0.1391123298 | BC19: 0.3747859899 | BE19: -0.645797101 | BF19: 0.939604676 | BG19: -0.650201569 | BH19: -1.096818769 | BI19: 0.5242444997 | BJ19: 2.558969596 | BK19: 0.5219405591 | BL19: 0.3339317097 | BM19: 3.939086365 | BN19: 0.133087841 | BO19: 0.6496353112 | BP19: 0.1325029489 | BQ19: 0.08477389901 | BR19: 0.451021668 | BS19: 2.036423445 | BT19: 0.4466172 | BU19: 0 | BV19: 2.934062313 | BW19: 0.1537191852 | BX19: 0.6940627798 | BY19: 0.1522180351 | BZ19: 0
A20: 1023 | B20: 0.505259197 | C20: -1.335372223 | D20: 3.569470941 | E20: -1.094744177 | F20: -2.474726764 | G20: 0.191273442 | H20: -0.020652375 | I20: -0.170621067 | J20: -0.001439557 | K20: 0.092011233 | L20: -0.090571677 | M20: 0.074923653 | N20: 0.127432586 | O20: -0.202356238 | P20: 1.335372223 | R20: 0.1147087626 | S20: 3.801410656 | T20: 3.916119418 | V20: ='SG Data'!$AB19*R20/$T20 -> 0.02259533134 | W20: ='SG Data'!$AB19*S20/$T20 -> 0.7488018471 | Y20: 3.569470941 | Z20: 6.044197705 | AA20: 5 | AB20: -2.716847373 | AC20: -5 | AD20: -0.5891578401 | AE20: -0.9397847179 | AF20: -1.187904815 | AG20: -0.9079975082 | AH20: -0.7533851104 | AI20: -1.055464756 | AJ20: -0.7816561578 | AK20: -0.694781215 | AL20: -1.240409998 | AU20: 6.044197705 | AV20: 0.361894509 | AW20: 0.18258291 | AX20: 0.329788824 | AY20: 6.918463948 | AZ20: 0.8736328975 | BA20: 0.05230850543 | BB20: 0.0263906716 | BC20: 0.04766792549 | BE20: -1.094744177 | BF20: 0.191273442 | BG20: -0.001439557 | BH20: 0.074923653 | BI20: 0.3346252008 | BJ20: 1.210790488 | BK20: 0.9985614787 | BL20: 1.077801861 | BM20: 3.621779028 | BN20: 0.09239249502 | BO20: 0.3343082166 | BP20: 0.2757102161 | BQ20: 0.2975890722 | BR20: 0 | BS20: 1.286017619 | BT20: 1.09330462 | BU20: 1.16966783 | BV20: 3.548990069 | BW20: 0 | BX20: 0.3623615716 | BY20: 0.3080607719 | BZ20: 0.3295776565
A21: 1024 | B21: 0.532597138 | C21: 0.816282225 | D21: -2.169248155 | E21: 1.544400515 | F21: 0.62484764 | G21: -0.401890902 | H21: 0.998385045 | I21: -0.596494143 | J21: 1.018535903 | K21: 0.153109724 | L21: -1.171645627 | M21: 0.607133824 | N21: -1.321291607 | O21: 0.714157783 | P21: -0.816282225 | R21: 36.03395055 | S21: 0.4420721279 | T21: 36.47602268 | V21: ='SG Data'!$AB20*R21/$T21 -> 1.800649262 | W21: ='SG Data'!$AB20*S21/$T21 -> 0.02209074605 | Y21: 1.544400515 | Z21: 3.71364867 | AA21: -5 | AB21: 5 | AC21: 2.523856033 | AD21: -0.2409142327 | AE21: 3.529706177 | AF21: -0.7649359114 | AG21: 3.583967794 | AH21: 1.253574545 | AI21: -2.313686305 | AJ21: 2.476156809 | AK21: -2.716648441 | AL21: 2.764347665 | AU21: 3.71364867 | AV21: 1.594879188 | AW21: 2.19018153 | AX21: 2.03544939 | AY21: 9.534158778 | AZ21: 0.389509841 | BA21: 0.1672805357 | BB21: 0.229719431 | BC21: 0.2134901922 | BE21: 1.544400515 | BF21: -0.401890902 | BG21: 1.018535903 | BH21: 0.607133824 | BI21: 4.685162101 | BJ21: 0.6690537341 | BK21: 2.769137509 | BL21: 1.835163951 | BM21: 9.958517294 | BN21: 0.4704678379 | BO21: 0.06718407112 | BP21: 0.2780672491 | BQ21: 0.1842808419 | BR21: 1.946291417 | BS21: 0 | BT21: 1.420426805 | BU21: 1.009024726 | BV21: 4.375742948 | BW21: 0.4447910767 | BX21: 0 | BY21: 0.3246138592 | BZ21: 0.2305950642
A22: 1026 | B22: 0.273798367 | C22: -0.279238189 | D22: 0.427339588 | E22: 0.389463705 | F22: -0.816803293 | G22: 0.794777134 | H22: -0.410635246 | I22: -0.384141888 | J22: 0.180902383 | K22: -0.697838048 | L22: 0.516935665 | M22: 0.261574502 | N22: 0.189818215 | O22: -0.451392717 | P22: 0.279238189 | R22: 3.847715267 | S22: 1.322122221 | T22: 5.169837488 | V22: ='SG Data'!$AB21*R22/$T22 -> 0.43512468 | W22: ='SG Data'!$AB21*S22/$T22 -> 0.149514184 | Y22: 0.794777134 | Z22: 1.611580427 | AA22: 2.720017321 | AB22: 2.484994095 | AC22: -5 | AD22: 5 | AE22: -2.479691114 | AF22: -2.31529747 | AG22: 1.190852528 | AH22: -4.261810065 | AI22: 3.275968954 | AJ22: 1.691430207 | AK22: 1.246176059 | AL22: -2.73259485 | AU22: 1.244142881 | AV22: 1.20541238 | AW22: 1.214773713 | AX22: 0.712967219 | AY22: 4.377296193 | AZ22: 0.2842263411 | BA22: 0.275378299 | BB22: 0.2775169099 | BC22: 0.16287845 | BE22: 0.389463705 | BF22: 0.794777134 | BG22: 0.180902383 | BH22: 0.261574502 | BI22: 1.476188909 | BJ22: 2.213947528 | BK22: 1.198298199 | BL22: 1.298973714 | BM22: 6.18740835 | BN22: 0.2385795191 | BO22: 0.3578150015 | BP22: 0.1936672241 | BQ22: 0.2099382553 | BR22: 0.208561322 | BS22: 0.613874751 | BT22: 0 | BU22: 0.080672119 | BV22: 0.903108192 | BW22: 0.2309372497 | BX22: 0.6797355582 | BY22: 0 | BZ22: 0.08932719215
A23: 1027 | B23: 0.380551824 | C23: -0.625382633 | D23: -1.570072075 | E23: 1.511745332 | F23: 0.058326744 | G23: 0.558812213 | H23: 0.42438289 | I23: -0.983195104 | J23: -1.6784011 | K23: 1.050400375 | L23: 0.628000725 | M23: -0.745291538 | N23: 0.199554069 | O23: 0.54573747 | P23: 0.625382633 | R23: 0.3758678252 | S23: 1.868960947 | T23: 2.244828772 | V23: ='SG Data'!$AB22*R23/$T23 -> 0.1490146936 | W23: ='SG Data'!$AB22*S23/$T23 -> 0.7409589866 | Y23: 1.511745332 | Z23: 3.190146432 | AA23: -4.660426168 | AB23: 5 | AC23: 0.4440380121 | AD23: 2.012885962 | AE23: 1.591496769 | AF23: -2.820770893 | AG23: -5 | AH23: 3.553843948 | AI23: 2.229767894 | AJ23: -2.075025922 | AK23: 0.8867365779 | AL23: 1.971901188 | AU23: 3.081817407 | AV23: 1.542007317 | AW23: 2.728801475 | AX23: 1.291029008 | AY23: 8.643655207 | AZ23: 0.3565409926 | BA23: 0.1783975969 | BB23: 0.3156999452 | BC23: 0.1493614654 | BE23: 1.511745332 | BF23: 0.558812213 | BG23: -1.6784011 | BH23: -0.745291538 | BI23: 4.534638341 | BJ23: 1.748594309 | BK23: 0.1866722077 | BL23: 0.474595917 | BM23: 6.944500775 | BN23: 0.6529826244 | BO23: 0.251795538 | BP23: 0.02688057987 | BQ23: 0.0683412577 | BR23: 3.190146432 | BS23: 2.237213313 | BT23: 0 | BU23: 0.933109562 | BV23: 6.360469307 | BW23: 0.5015583407 | BX23: 0.3517371447 | BY23: 0 | BZ23: 0.1467045146
A24: 1028 | B24: 0.459819159 | C24: -0.702500603 | D24: 2.51258684 | E24: -1.144644734 | F24: -1.367942106 | G24: 1.251339487 | H24: -0.740643453 | I24: -0.510696034 | J24: 0.60965118 | K24: -0.000275656 | L24: -0.609375524 | M24: 0.232743181 | N24: 1.781867504 | O24: -2.014610684 | P24: 0.702500603 | R24: 1.279652442 | S24: 2.018794605 | T24: 3.298447046 | V24: ='SG Data'!$AB23*R24/$T24 -> 0.1274971631 | W24: ='SG Data'!$AB23*S24/$T24 -> 0.2011410103 | Y24: 2.51258684 | Z24: 4.527197524 | AA24: 5 | AB24: -3.078356543 | AC24: -3.571591863 | AD24: 2.214065995 | AE24: -2.185969412 | AF24: -1.678044989 | AG24: 0.7966586395 | AH24: -0.5505916909 | AI24: -1.896015355 | AJ24: -0.03588289867 | AK24: 3.385934495 | AL24: -5 | AU24: 3.880528946 | AV24: 1.99198294 | AW24: 1.219026704 | AX24: 3.796478188 | AY24: 10.88801678 | AZ24: 0.3564036523 | BA24: 0.1829518617 | BB24: 0.1119603991 | BC24: 0.3486840869 | BE24: -1.144644734 | BF24: 1.251339487 | BG24: 0.60965118 | BH24: 0.232743181 | BI24: 0.318336992 | BJ24: 3.495021359 | BK24: 1.839789531 | BL24: 1.262057317 | BM24: 6.9152052 | BN24: 0.04603435224 | BO24: 0.5054110844 | BP24: 0.2660498826 | BQ24: 0.1825046808 | BR24: 0 | BS24: 2.395984221 | BT24: 1.754295914 | BU24: 1.377387915 | BV24: 5.52766805 | BW24: 0 | BX24: 0.4334529858 | BY24: 0.3173663646 | BZ24: 0.2491806495
A25: 1029 | B25: 0.305128777 | C25: -0.668420925 | D25: -0.962999351 | E25: 0.35655759 | F25: 0.606441761 | G25: 0.764252624 | H25: 0.308290499 | I25: -1.072543122 | J25: -1.353675723 | K25: 0.346836413 | L25: 1.00683931 | M25: 0.600134171 | N25: -0.761161537 | O25: 0.161027367 | P25: 0.668420925 | R25: 0.7399650949 | S25: 1.951153868 | T25: 2.691118963 | V25: ='SG Data'!$AB24*R25/$T25 -> 0.2447121319 | W25: ='SG Data'!$AB24*S25/$T25 -> 0.6452615484 | Y25: 1.00683931 | Z25: 2.360515033 | AA25: -3.344952832 | AB25: 2.245170181 | AC25: 3.303770392 | AD25: 3.97231459 | AE25: 2.040693233 | AF25: -3.809020078 | AG25: -5 | AH25: 2.203987741 | AI25: 5 | AJ25: 3.277049147 | AK25: -2.489894461 | AL25: 1.416833059 | AU25: 1.569441112 | AV25: 1.836795746 | AW25: 2.360515033 | AX25: 1.361295708 | AY25: 7.128047599 | AZ25: 0.2201782592 | BA25: 0.2576856735 | BB25: 0.3311587079 | BC25: 0.1909773594 | BE25: 0.35655759 | BF25: 0.764252624 | BG25: -1.353675723 | BH25: 0.600134171 | BI25: 1.42840379 | BJ25: 2.147388868 | BK25: 0.2582891144 | BL25: 1.822363292 | BM25: 5.656445064 | BN25: 0.2525267679 | BO25: 0.3796357683 | BP25: 0.04566279907 | BQ25: 0.3221746647 | BR25: 1.710233313 | BS25: 2.117928347 | BT25: 0 | BU25: 1.953809894 | BV25: 5.781971554 | BW25: 0.2957872236 | BX25: 0.3662986452 | BY25: 0 | BZ25: 0.3379141311
A26: 1030 | B26: 0.456111348 | C26: -0.852931884 | D26: 0.999205277 | E26: 1.848137197 | F26: -2.847342474 | G26: -1.714141306 | H26: 0.982061447 | I26: 0.732079859 | J26: -0.428090263 | K26: 0.809262265 | L26: -0.381172002 | M26: 0.66672384 | N26: -0.257762258 | O26: -0.408961582 | P26: 0.852931884 | R26: 0.6185962901 | S26: 2.346516491 | T26: 2.965112781 | V26: ='SG Data'!$AB25*R26/$T26 -> 0.1482873189 | W26: ='SG Data'!$AB25*S26/$T26 -> 0.562497132 | Y26: 1.848137197 | Z26: 4.695479671 | AA26: 3.19202301 | AB26: 5 | AC26: -5 | AD26: -2.586612556 | AE26: 3.155511661 | AF26: 2.623123906 | AG26: 0.1523004688 | AH26: 2.787499883 | AI26: 0.2522226584 | AJ26: 2.483934678 | AK26: 0.5150493612 | AL26: 0.1930389712 | AU26: 4.695479671 | AV26: 2.696202753 | AW26: 1.237352528 | AX26: 1.075685422 | AY26: 9.704720374 | AZ26: 0.4838346176 | BA26: 0.2778238475 | BB26: 0.1275000701 | BC26: 0.1108414648 | BE26: 1.848137197 | BF26: -1.714141306 | BG26: -0.428090263 | BH26: 0.66672384 | BI26: 6.347983459 | BJ26: 0.1801183208 | BK26: 0.651752583 | BL26: 1.947845403 | BM26: 9.127699766 | BN26: 0.695463657 | BO26: 0.01973315572 | BP26: 0.07140381473 | BQ26: 0.2133993725 | BR26: 3.562278503 | BS26: 0 | BT26: 1.286051043 | BU26: 2.380865146 | BV26: 7.229194692 | BW26: 0.4927628394 | BX26: 0 | BY26: 0.177896861 | BZ26: 0.3293402996
A27: 1032 | B27: 0.840800043 | C27: -2.710912061 | D27: -0.646132348 | E27: 0.221634976 | F27: 0.424497372 | G27: 3.123623693 | H27: -1.387821878 | I27: -1.735801814 | J27: 2.743729797 | K27: -0.994047055 | L27: -1.749682742 | M27: 0.329081599 | N27: -0.375654727 | O27: 0.046573127 | P27: 2.710912061 | R27: 40.737865 | S27: 15.04298938 | T27: 55.78085439 | V27: ='SG Data'!$AB26*R27/$T27 -> 0.3459722992 | W27: ='SG Data'!$AB26*S27/$T27 -> 0.1277547958 | Y27: 3.123623693 | Z27: 4.873306435 | AA27: -2.735520208 | AB27: -0.9548660765 | AC27: -0.5385934724 | AD27: 5 | AE27: -4.257463349 | AF27: -4.971516406 | AG27: 4.220459659 | AH27: -3.449439416 | AI27: -5 | AJ27: -0.734386153 | AK27: -2.180501507 | AL27: -1.3140921 | AU27: 1.07062972 | AV27: 4.859425507 | AW27: 4.493412539 | AX27: 0.704736326 | AY27: 11.12820409 | AZ27: 0.09620867043 | BA27: 0.4366765263 | BB27: 0.403785957 | BC27: 0.06332884625 | BE27: 0.221634976 | BF27: 3.123623693 | BG27: 2.743729797 | BH27: 0.329081599 | BI27: 1.248115703 | BJ27: 22.72859204 | BK27: 15.54485626 | BL27: 1.389691248 | BM27: 40.91125525 | BN27: 0.0305078809 | BO27: 0.5555584129 | BP27: 0.3799652728 | BQ27: 0.03396843338 | BR27: 0 | BS27: 2.901988717 | BT27: 2.522094821 | BU27: 0.107446623 | BV27: 5.531530161 | BW27: 0 | BX27: 0.5246267547 | BY27: 0.455948851 | BZ27: 0.01942439431
A28: 1033 | B28: 0.489475211 | C28: -1.025352519 | D28: 0.259788575 | E28: -1.56295316 | F28: 1.303164585 | G28: 1.084942502 | H28: -0.200063082 | I28: -0.88487942 | J28: 2.798272937 | K28: -0.817520263 | L28: -1.980752674 | M28: 0.37365612 | N28: -0.384714385 | O28: 0.011058265 | P28: 1.025352519 | R28: 5.304554971 | S28: 2.788078138 | T28: 8.092633109 | V28: ='SG Data'!$AB27*R28/$T28 -> 0.2658499407 | W28: ='SG Data'!$AB27*S28/$T28 -> 0.1397309315 | Y28: 2.798272937 | Z28: 4.779025611 | AA28: -0.3117195191 | AB28: -4.125764229 | AC28: 1.871520528 | AD28: 1.414895892 | AE28: -1.273948422 | AF28: -2.70691069 | AG28: 5 | AH28: -2.56596322 | AI28: -5 | AJ28: -0.07345432805 | AK28: -1.660326981 | AL28: -0.8321819109 | AU28: 2.866117745 | AV28: 1.969821922 | AW28: 4.779025611 | AX28: 0.758370505 | AY28: 10.37333578 | AZ28: 0.2762966325 | BA28: 0.189892814 | BB28: 0.4607028743 | BC28: 0.07310767923 | BE28: -1.56295316 | BF28: 1.084942502 | BG28: 2.798272937 | BH28: 0.37365612 | BI28: 0.2095164212 | BJ28: 2.959269662 | BK28: 16.41627034 | BL28: 1.453037394 | BM28: 21.03809382 | BN28: 0.009958907066 | BO28: 0.1406624425 | BP28: 0.7803116805 | BQ28: 0.06906696997 | BR28: 0 | BS28: 2.647895662 | BT28: 4.361226097 | BU28: 1.93660928 | BV28: 8.945731039 | BW28: 0 | BX28: 0.2959954475 | BY28: 0.487520369 | BZ28: 0.2164841835
A29: 1034 | B29: 0.759927992 | C29: 0.581778072 | D29: -0.766000495 | E29: 1.27760444 | F29: -0.511603945 | G29: -0.44801916 | H29: -1.524514829 | I29: 1.972533989 | J29: -0.290985785 | K29: -2.122915597 | L29: 2.413901382 | M29: -0.879821408 | N29: 0.459991235 | O29: 0.419830173 | P29: -0.581778072 | R29: 1.271956364 | S29: 0.5589037115 | T29: 1.830860075 | V29: ='SG Data'!$AB28*R29/$T29 -> 0.3291131863 | W29: ='SG Data'!$AB28*S29/$T29 -> 0.1446139086 | Y29: 2.413901382 | Z29: 4.536816979 | AA29: -2.00910328 | AB29: 2.495387301 | AC29: -1.44836532 | AD29: -1.308212465 | AE29: -3.681011884 | AF29: 4.02714305 | AG29: -0.9620812996 | AH29: -5 | AI29: 5 | AJ29: -2.259986033 | AK29: 0.6932136429 | AL29: 0.6046910902 | AU29: 2.043604935 | AV29: 3.497048818 | AW29: 4.536816979 | AX29: 1.339812643 | AY29: 11.41728337 | AZ29: 0.1789922233 | BA29: 0.3062942999 | BB29: 0.3973639639 | BC29: 0.1173495129 | BE29: 1.27760444 | BF29: -0.44801916 | BG29: -0.290985785 | BH29: -0.879821408 | BI29: 3.588034071 | BJ29: 0.6388924427 | BK29: 0.747526304 | BL29: 0.4148569952 | BM29: 5.389309813 | BN29: 0.6657687525 | BO29: 0.1185481008 | BP29: 0.1387053871 | BQ29: 0.0769777596 | BR29: 2.157425848 | BS29: 0.431802248 | BT29: 0.588835623 | BU29: 0 | BV29: 3.178063719 | BW29: 0.678849148 | BX29: 0.1358696005 | BY29: 0.1852812514 | BZ29: 0
A30: 1035 | B30: 0.345237661 | C30: -0.947788525 | D30: -2.337152341 | E30: 0.981442989 | F30: 1.355709352 | G30: -0.456009455 | H30: 0.565055367 | I30: -0.109045912 | J30: -0.043058651 | K30: -0.128370131 | L30: 0.171428782 | M30: 0.582943532 | N30: -0.327354131 | O30: -0.255589401 | P30: 0.947788525 | R30: 1.124715247 | S30: 2.579997745 | T30: 3.704712992 | V30: ='SG Data'!$AB29*R30/$T30 -> 0.09855824191 | W30: ='SG Data'!$AB29*S30/$T30 -> 0.2260839288 | Y30: 1.355709352 | Z30: 3.692861693 | AA30: -5 | AB30: 3.986513999 | AC30: 5 | AD30: 0.09399767006 | AE30: 2.858966702 | AF30: 1.033549627 | AG30: 1.212238315 | AH30: 0.9812210519 | AI30: 1.793054632 | AJ30: 2.907406547 | AK30: 0.4423868996 | AL30: 0.6367205518 | AU30: 3.692861693 | AV30: 1.021064822 | AW30: 0.299798913 | AX30: 0.910297663 | AY30: 5.924023091 | AZ30: 0.6233705771 | BA30: 0.1723600341 | BB30: 0.05060731675 | BC30: 0.153662072 | BE30: 0.981442989 | BF30: -0.456009455 | BG30: -0.043058651 | BH30: 0.582943532 | BI30: 2.668303798 | BJ30: 0.6338078444 | BK30: 0.9578552093 | BL30: 1.791303437 | BM30: 6.051270289 | BN30: 0.4409493661 | BO30: 0.1047396355 | BP30: 0.1582899397 | BQ30: 0.2960210586 | BR30: 1.437452444 | BS30: 0 | BT30: 0.412950804 | BU30: 1.038952987 | BV30: 2.889356235 | BW30: 0.4974992099 | BX30: 0 | BY30: 0.1429213882 | BZ30: 0.3595794019
A31: 1036 | B31: 0.40948253 | C31: -0.511297882 | D31: 0.559658316 | E31: 0.514036458 | F31: -1.073694774 | G31: -1.174578531 | H31: 0.081259391 | I31: 1.09331914 | J31: -0.411757511 | K31: 0.385749977 | L31: 0.026007534 | M31: 0.17378159 | N31: -2.214665873 | O31: 2.040884283 | P31: 0.511297882 | R31: 0.2441882399 | S31: 1.66745395 | T31: 1.91164219 | V31: ='SG Data'!$AB30*R31/$T31 -> 0.09831719293 | W31: ='SG Data'!$AB30*S31/$T31 -> 0.6713648115 | Y31: 2.040884283 | Z31: 4.255550156 | AA31: 1.519307933 | AB31: 1.412102386 | AC31: -2.318863467 | AD31: -2.555927427 | AE31: 0.3951314867 | AF31: 2.773342792 | AG31: -0.7633953404 | AH31: 1.110645521 | AI31: 0.2652966711 | AJ31: 0.6125468516 | AK31: -5 | AL31: 5 | AU31: 1.63335309 | AV31: 2.267897671 | AW31: 0.797507488 | AX31: 4.255550156 | AY31: 8.954308405 | AZ31: 0.1824097425 | BA31: 0.253274465 | BB31: 0.08906410768 | BC31: 0.4752516848 | BE31: 0.514036458 | BF31: -1.174578531 | BG31: -0.411757511 | BH31: 0.17378159 | BI31: 1.672026657 | BJ31: 0.3089491647 | BK31: 0.6624849019 | BL31: 1.189795674 | BM31: 3.833256398 | BN31: 0.4361896215 | BO31: 0.08059705187 | BP31: 0.1728256169 | BQ31: 0.3103877097 | BR31: 1.688614989 | BS31: 0 | BT31: 0.76282102 | BU31: 1.348360121 | BV31: 3.79979613 | BW31: 0.4443962074 | BX31: 0 | BY31: 0.2007531441 | BZ31: 0.3548506485
A32: 1037 | B32: 0.415551791 | C32: -0.990289639 | D32: -0.28192571 | E32: 0.234820438 | F32: 0.047105272 | G32: 2.403162204 | H32: 0.443227979 | I32: -2.846390183 | J32: -1.935690027 | K32: 0.994632764 | L32: 0.941057263 | M32: -0.626595716 | N32: 0.514746204 | O32: 0.111849513 | P32: 0.990289639 | R32: 0.4006797737 | S32: 2.692014072 | T32: 3.092693845 | V32: ='SG Data'!$AB31*R32/$T32 -> 0.1153022157 | W32: ='SG Data'!$AB31*S32/$T32 -> 0.7746714646 | Y32: 2.403162204 | Z32: 5.249552387 | AA32: -0.114889263 | AB32: 0.8694730405 | AC32: 0.5118898559 | AD32: 5 | AE32: 1.266473633 | AF32: -5 | AG32: -3.265185127 | AH32: 2.316858017 | AI32: 2.214800743 | AJ32: -0.7714595391 | AK32: 1.402710439 | AL32: 0.635222735 | AU32: 0.516746148 | AV32: 5.249552387 | AW32: 2.930322791 | AX32: 1.14134192 | AY32: 9.837963246 | AZ32: 0.05252572459 | BA32: 0.5336015449 | BB32: 0.2978586845 | BC32: 0.1160140459 | BE32: 0.234820438 | BF32: 2.403162204 | BG32: -1.935690027 | BH32: -0.626595716 | BI32: 1.26468166 | BJ32: 11.05808908 | BK32: 0.1443246466 | BL32: 0.5344079844 | BM32: 13.00150338 | BN32: 0.09727195564 | BO32: 0.8505238791 | BP32: 0.01110061217 | BQ32: 0.0411035531 | BR32: 2.170510465 | BS32: 4.338852231 | BT32: 0 | BU32: 1.309094311 | BV32: 7.818457007 | BW32: 0.27761366 | BX32: 0.554949938 | BY32: 0 | BZ32: 0.1674364021
A33: 1038 | B33: 0.908451011 | C33: 0.519522113 | D33: 3.149813237 | E33: 0.710672199 | F33: -3.860485436 | G33: -3.025112109 | H33: 1.228431197 | I33: 1.796680912 | J33: 1.913777636 | K33: -0.358036206 | L33: -1.55574143 | M33: -0.180521856 | N33: 1.120406919 | O33: -0.939885063 | P33: -0.519522113 | R33: 0.9402006049 | S33: 0.5948047295 | T33: 1.535005334 | V33: ='SG Data'!$AB32*R33/$T33 -> 0.5451145829 | W33: ='SG Data'!$AB32*S33/$T33 -> 0.3448590974 | Y33: 3.149813237 | Z33: 7.010298673 | AA33: 5 | AB33: 1.520631785 | AC33: -5 | AD33: -3.808362716 | AE33: 2.259200885 | AF33: 3.069793616 | AG33: 3.236828902 | AH33: -0.003851628334 | AI33: -1.712345488 | AJ33: 0.249367754 | AK33: 2.105107196 | AL33: -0.8338431653 | AU33: 7.010298673 | AV33: 4.821793021 | AW33: 3.469519066 | AX33: 2.060291982 | AY33: 17.36190274 | AZ33: 0.4037747923 | BA33: 0.2777226144 | BB33: 0.1998351861 | BC33: 0.1186674072 | BE33: 0.710672199 | BF33: -3.025112109 | BG33: 1.913777636 | BH33: -0.180521856 | BI33: 2.035358965 | BJ33: 0.04855237781 | BK33: 6.778647756 | BL33: 0.8348344344 | BM33: 9.697393533 | BN33: 0.2098872195 | BO33: 0.005006745126 | BP33: 0.6990174971 | BQ33: 0.08608853828 | BR33: 3.735784308 | BS33: 0 | BT33: 4.938889745 | BU33: 2.844590253 | BV33: 11.51926431 | BW33: 0.3243075433 | BX33: 0 | BY33: 0.4287504491 | BZ33: 0.2469420075
A34: 1039 | B34: 0.351110114 | C34: -0.600063475 | D34: 1.62033977 | E34: -1.519890612 | F34: -0.100449158 | G34: 2.021068773 | H34: -0.360541164 | I34: -1.660527609 | J34: -0.513792192 | K34: 0.012654648 | L34: 0.501137544 | M34: -0.30649984 | N34: 0.462136305 | O34: -0.155636465 | P34: 0.600063475 | R34: 0.3988470193 | S34: 1.822234463 | T34: 2.221081482 | V34: ='SG Data'!$AB33*R34/$T34 -> 0.08402691936 | W34: ='SG Data'!$AB33*S34/$T34 -> 0.3838984395 | Y34: 2.021068773 | Z34: 3.681596382 | AA34: 3.911534668 | AB34: -4.617999959 | AC34: -0.7624946107 | AD34: 5 | AE34: -1.468959902 | AF34: -5 | AG34: -1.885222338 | AH34: -0.4552805811 | AI34: 0.8715430175 | AJ34: -1.322172154 | AK34: 0.7656073446 | AL34: -0.9123950921 | AU34: 3.140230382 | AV34: 3.681596382 | AW34: 1.014929736 | AX34: 0.768636145 | AY34: 8.605392645 | AZ34: 0.3649142476 | BA34: 0.4278243346 | BB34: 0.1179411304 | BC34: 0.08932028749 | BE34: -1.519890612 | BF34: 2.021068773 | BG34: -0.513792192 | BH34: -0.30649984 | BI34: 0.2187358127 | BJ34: 7.546385999 | BK34: 0.5982226966 | BL34: 0.7360186359 | BM34: 9.099363144 | BN34: 0.02403858482 | BO34: 0.8293312267 | BP34: 0.06574335886 | BQ34: 0.08088682958 | BR34: 0 | BS34: 3.540959385 | BT34: 1.00609842 | BU34: 1.213390772 | BV34: 5.760448577 | BW34: 0 | BX34: 0.6147020215 | BY34: 0.1746562627 | BZ34: 0.2106417158
A35: 1040 | B35: 0.324741009 | C35: -0.365844787 | D35: -0.323807929 | E35: 0.517954454 | F35: -0.194146525 | G35: 0.758725073 | H35: -0.145808341 | I35: -0.612916731 | J35: 1.234490175 | K35: -1.097990348 | L35: -0.136499828 | M35: 1.170031967 | N35: -0.638655697 | O35: -0.53137627 | P35: 0.365844787 | R35: 27.53221798 | S35: 1.44173145 | T35: 28.97394943 | V35: ='SG Data'!$AB34*R35/$T35 -> 0.640944316 | W35: ='SG Data'!$AB34*S35/$T35 -> 0.03356320869 | Y35: =MAX(D35:O35) -> 1.234490175 | Z35: =MAX(D35:O35)-MIN(D35:O35) -> 2.332480523 | AA35: =((($Y35-D35)/$Z35*-5+(1-(($Y35-D35)/$Z35))*5)) -> -1.680862235 | AB35: =((($Y35-E35)/$Z35*-5+(1-(($Y35-E35)/$Z35))*5)) -> 1.928009842 | AC35: =((($Y35-F35)/$Z35*-5+(1-(($Y35-F35)/$Z35))*5)) -> -1.124967329 | AD35: =((($Y35-G35)/$Z35*-5+(1-(($Y35-G35)/$Z35))*5)) -> 2.960261201 | AE35: =((($Y35-H35)/$Z35*-5+(1-(($Y35-H35)/$Z35))*5)) -> -0.9177279398 | AF35: =((($Y35-I35)/$Z35*-5+(1-(($Y35-I35)/$Z35))*5)) -> -2.92035298 | AG35: =((($Y35-J35)/$Z35*-5+(1-(($Y35-J35)/$Z35))*5)) -> 5 | AH35: =((($Y35-K35)/$Z35*-5+(1-(($Y35-K35)/$Z35))*5)) -> -5 | AI35: =((($Y35-L35)/$Z35*-5+(1-(($Y35-L35)/$Z35))*5)) -> -0.8778197266 | AJ35: =((($Y35-M35)/$Z35*-5+(1-(($Y35-M35)/$Z35))*5)) -> 4.723649534 | AK35: =((($Y35-N35)/$Z35*-5+(1-(($Y35-N35)/$Z35))*5)) -> -3.030703166 | AL35: =((($Y35-O35)/$Z35*-5+(1-(($Y35-O35)/$Z35))*5)) -> -2.57076609 | AU35: =MAX(D35:F35)-MIN(D35:F35) -> 0.841762383 | AV35: =MAX(G35:I35)-MIN(G35:I35) -> 1.371641804 | AW35: =MAX(J35:L35)-MIN(J35:L35) -> 2.332480523 | AX35: =MAX(M35:O35)-MIN(M35:O35) -> 1.808687664 | AY35: =SUM(AU35:AX35) -> 6.354572374 | AZ35: =AU35/$AY35 -> 0.1324656221 | BA35: =AV35/$AY35 -> 0.2158511578 | BB35: =AW35/$AY35 -> 0.3670554658 | BC35: =AX35/$AY35 -> 0.2846277542 | BE35: =SUMPRODUCT(D35:F35,$D$440:$F$440) -> 0.517954454 | BF35: =SUMPRODUCT(G35:I35,$G$440:$I$440) -> 0.758725073 | BG35: =SUMPRODUCT(J35:L35,$J$440:$L$440) -> 1.234490175 | BH35: =SUMPRODUCT(M35:O35,$M$440:$O$440) -> 1.170031967 | BI35: =EXP(BE35) -> 1.678590501 | BJ35: =EXP(BF35) -> 2.135551811 | BK35: =EXP(BG35) -> 3.436625996 | BL35: =EXP(BH35) -> 3.222095638 | BM35: =SUM(BI35:BL35) -> 10.47286395 | BN35: =BI35/$BM35 -> 0.1602799874 | BO35: =BJ35/$BM35 -> 0.2039128764 | BP35: =BK35/$BM35 -> 0.3281457693 | BQ35: =BL35/$BM35 -> 0.3076613669 | BR35: =BE35-MIN($BE35:$BH35) -> 0 | BS35: =BF35-MIN($BE35:$BH35) -> 0.240770619 | BT35: =BG35-MIN($BE35:$BH35) -> 0.716535721 | BU35: =BH35-MIN($BE35:$BH35) -> 0.652077513 | BV35: =SUM(BR35:BU35) -> 1.609383853 | BW35: =BR35/$BV35 -> 0 | BX35: =BS35/$BV35 -> 0.1496042219 | BY35: =BT35/$BV35 -> 0.4452236299 | BZ35: =BU35/$BV35 -> 0.4051721482
A36: 1041 | B36: 0.521040122 | C36: -1.152040512 | D36: 0.439208071 | E36: 0.412448925 | F36: -0.851656996 | G36: -0.003894856 | H36: -0.193780764 | I36: 0.19767562 | J36: 2.863858011 | K36: -1.095600916 | L36: -1.768257096 | M36: 0.274661855 | N36: -0.224785473 | O36: -0.049876382 | P36: 1.152040512 | R36: 10.96856466 | S36: 3.16464382 | T36: 14.13320847 | V36: ='SG Data'!$AB35*R36/$T36 -> 0.5235296934 | W36: ='SG Data'!$AB35*S36/$T36 -> 0.151048479 | Y36: 2.863858011 | Z36: 4.632115107 | AA36: -0.234433696 | AB36: -0.2922024375 | AC36: -3.021206125 | AD36: -1.191022461 | AE36: -1.600955944 | AF36: -0.7558638536 | AG36: 5 | AH36: -3.547842261 | AI36: -5 | AJ36: -0.5896628132 | AK36: -1.667890181 | AL36: -1.290289265 | AU36: 1.290865067 | AV36: 0.391456384 | AW36: 4.632115107 | AX36: 0.499447328 | AY36: 6.813883886 | AZ36: 0.1894462965 | BA36: 0.05744981725 | BB36: 0.6798054068 | BC36: 0.07329847945 | BE36: 0.412448925 | BF36: -0.003894856 | BG36: 2.863858011 | BH36: 0.274661855 | BI36: 1.510512391 | BJ36: 0.9961127191 | BK36: 17.52902382 | BL36: 1.316085572 | BM36: 21.3517345 | BN36: 0.07074424754 | BO36: 0.04665254334 | BP36: 0.8209648644 | BQ36: 0.06163834474 | BR36: 0.416343781 | BS36: 0 | BT36: 2.867752867 | BU36: 0.278556711 | BV36: 3.562653359 | BW36: 0.116863399 | BX36: 0 | BY36: 0.8049486094 | BZ36: 0.07818799163
A37: 1042 | B37: 0.302279091 | C37: -0.289253489 | D37: 0.145810849 | E37: 0.093669931 | F37: -0.23948078 | G37: -0.786198272 | H37: -0.254563076 | I37: 1.040761348 | J37: 0.344336428 | K37: -0.908211258 | L37: 0.563874831 | M37: -0.20812614 | N37: 1.086041763 | O37: -0.877915622 | P37: 0.289253489 | R37: 0.4293119183 | S37: 1.335430202 | T37: 1.764742121 | V37: ='SG Data'!$AB36*R37/$T37 -> 0.5064880184 | W37: ='SG Data'!$AB36*S37/$T37 -> 1.575496436 | Y37: 1.086041763 | Z37: 1.994253021 | AA37: 0.2852977827 | AB37: 0.02384190195 | AC37: -1.646711972 | AD37: -4.388177003 | AE37: -1.722340771 | AF37: 4.772945486 | AG37: 1.280786203 | AH37: -5 | AI37: 2.381641514 | AJ37: -1.489486988 | AK37: 5 | AL37: -4.848085295 | AU37: 0.385291629 | AV37: 1.82695962 | AW37: 1.472086089 | AX37: 1.963957385 | AY37: 5.648294723 | AZ37: 0.06821379689 | BA37: 0.3234533093 | BB37: 0.260624872 | BC37: 0.3477080219 | BE37: 0.093669931 | BF37: -0.786198272 | BG37: 0.344336428 | BH37: -0.20812614 | BI37: 1.098197205 | BJ37: 0.4555734736 | BK37: 1.411053273 | BL37: 0.8121045914 | BM37: 3.776928544 | BN37: 0.2907646233 | BO37: 0.1206200934 | BP37: 0.3735980856 | BQ37: 0.2150171977 | BR37: 0.879868203 | BS37: 0 | BT37: 1.1305347 | BU37: 0.578072132 | BV37: 2.588475035 | BW37: 0.3399175928 | BX37: 0 | BY37: 0.4367570422 | BZ37: 0.223325365
A38: 1043 | B38: 0.977518888 | C38: -0.226010947 | D38: 5.490936062 | E38: -1.559703107 | F38: -3.931232956 | G38: -0.341710882 | H38: 0.007789447 | I38: 0.333921435 | J38: 0.011272825 | K38: 0.445639332 | L38: -0.456912157 | M38: -0.000732987 | N38: 0.491884936 | O38: -0.491151949 | P38: 0.226010947 | R38: 0.1204060982 | S38: 1.253589388 | T38: 1.373995486 | V38: ='SG Data'!$AB37*R38/$T38 -> 0.06759914812 | W38: ='SG Data'!$AB37*S38/$T38 -> 0.7037980303 | Y38: 5.490936062 | Z38: 9.422169018 | AA38: 5 | AB38: -2.483031938 | AC38: -5 | AD38: -1.190344211 | AE38: -0.819410164 | AF38: -0.4732775618 | AG38: -0.8157131617 | AH38: -0.3547083696 | AI38: -1.312610406 | AJ38: -0.8284552511 | AK38: -0.3056266731 | AL38: -1.348950013 | AU38: 9.422169018 | AV38: 0.675632317 | AW38: 0.902551489 | AX38: 0.983036885 | AY38: 11.98338971 | AZ38: 0.786269098 | BA38: 0.05638073478 | BB38: 0.07531687702 | BC38: 0.08203329015 | BE38: -1.559703107 | BF38: -0.341710882 | BG38: 0.011272825 | BH38: -0.000732987 | BI38: 0.2101984684 | BJ38: 0.7105536089 | BK38: 1.011336603 | BL38: 0.9992672816 | BM38: 2.931355962 | BN38: 0.07170690668 | BO38: 0.242397586 | BP38: 0.345006412 | BQ38: 0.3408890952 | BR38: 0 | BS38: 1.217992225 | BT38: 1.570975932 | BU38: 1.55897012 | BV38: 4.347938277 | BW38: 0 | BX38: 0.2801309833 | BY38: 0.3613151411 | BZ38: 0.3585538756
A39: 1046 | B39: 0.408028615 | C39: -1.045327629 | D39: 1.316720703 | E39: -2.08932621 | F39: 0.772605507 | G39: 0.791161773 | H39: -0.248732793 | I39: -0.54242898 | J39: 0.819570204 | K39: 0.984172621 | L39: -1.803742826 | M39: -0.518363533 | N39: 0.793898683 | O39: -0.27553515 | P39: 1.045327629 | R39: 0.1297318832 | S39: 2.844330256 | T39: 2.974062139 | V39: ='SG Data'!$AB38*R39/$T39 -> 0.02041323497 | W39: ='SG Data'!$AB38*S39/$T39 -> 0.4475536809 | Y39: 1.316720703 | Z39: 3.406046913 | AA39: 5 | AB39: -5 | AC39: 3.402502344 | AD39: 3.456982703 | AE39: 0.4038991946 | AF39: -0.458379554 | AG39: 3.540388575 | AH39: 4.023653841 | AI39: -4.161540075 | AJ39: -0.3877244879 | AK39: 3.465018148 | AL39: 0.3252086842 | AU39: 3.406046913 | AV39: 1.333590753 | AW39: 2.787915447 | AX39: 1.312262216 | AY39: 8.839815329 | AZ39: 0.3853074738 | BA39: 0.150861834 | BB39: 0.315381639 | BC39: 0.1484490532 | BE39: -2.08932621 | BF39: 0.791161773 | BG39: 0.819570204 | BH39: -0.518363533 | BI39: 0.1237705031 | BJ39: 2.20595776 | BK39: 2.269524195 | BL39: 0.5954942577 | BM39: 5.194746717 | BN39: 0.02382609005 | BO39: 0.4246516492 | BP39: 0.4368883257 | BQ39: 0.1146339351 | BR39: 0 | BS39: 2.880487983 | BT39: 2.908896414 | BU39: 1.570962677 | BV39: 7.360347074 | BW39: 0 | BX39: 0.3913521949 | BY39: 0.3952118541 | BZ39: 0.2134359509
A40: 1047 | B40: 0.554794618 | C40: -1.872718467 | D40: 3.22165428 | E40: -1.162459618 | F40: -2.059194661 | G40: 1.016377028 | H40: -0.296242634 | I40: -0.720134394 | J40: 0.71501392 | K40: 0.571307199 | L40: -1.286321118 | M40: -0.971667151 | N40: 0.284519261 | O40: 0.68714789 | P40: 1.872718467 | R40: 0.1027502196 | S40: 6.505958615 | T40: 6.608708835 | V40: ='SG Data'!$AB39*R40/$T40 -> 0.009923414731 | W40: ='SG Data'!$AB39*S40/$T40 -> 0.6283327256 | Y40: 3.22165428 | Z40: 5.280848941 | AA40: 5 | AB40: -3.301911202 | AC40: -5 | AD40: 0.8240099714 | AE40: -1.661612467 | AF40: -2.464308709 | AG40: 0.2533382643 | AH40: -0.01878980181 | AI40: -3.536459665 | AJ40: -2.940619923 | AK40: -0.5618614579 | AL40: 0.2005701767 | AU40: 5.280848941 | AV40: 1.736511422 | AW40: 2.001335038 | AX40: 1.658815041 | AY40: 10.67751044 | AZ40: 0.4945767995 | BA40: 0.1626326129 | BB40: 0.187434613 | BC40: 0.1553559746 | BE40: -1.162459618 | BF40: 1.016377028 | BG40: 0.71501392 | BH40: -0.971667151 | BI40: 0.3127160721 | BJ40: 2.763165735 | BK40: 2.044215138 | BL40: 0.378451576 | BM40: 5.498548521 | BN40: 0.0568724766 | BO40: 0.5025263894 | BP40: 0.3717735926 | BQ40: 0.0688275414 | BR40: 0 | BS40: 2.178836646 | BT40: 1.877473538 | BU40: 0.190792467 | BV40: 4.247102651 | BW40: 0 | BX40: 0.5130171849 | BY40: 0.4420598446 | BZ40: 0.04492297048
A41: 1048 | B41: 0.377125052 | C41: -0.719714508 | D41: -0.756994914 | E41: 0.803188255 | F41: -0.046193341 | G41: 0.778398563 | H41: -0.579802326 | I41: -0.198596236 | J41: 1.09770683 | K41: -2.173239067 | L41: 1.075532237 | M41: -0.199485434 | N41: 0.134762629 | O41: 0.064722806 | P41: 0.719714508 | R41: 5.81298208 | S41: 2.05384677 | T41: 7.86682885 | V41: ='SG Data'!$AB40*R41/$T41 -> 1.625805401 | W41: ='SG Data'!$AB40*S41/$T41 -> 0.5744306668 | Y41: 1.09770683 | Z41: 3.270945897 | AA41: -0.6702305767 | AB41: 4.099592032 | AC41: 1.502845944 | AD41: 4.023804499 | AE41: -0.1285139187 | AF41: 1.036916822 | AG41: 5 | AH41: -5 | AI41: 4.932207399 | AJ41: 1.034198349 | AK41: 2.056068088 | AL41: 1.841940966 | AU41: 1.560183169 | AV41: 1.358200889 | AW41: 3.270945897 | AX41: 0.334248063 | AY41: 6.523578018 | AZ41: 0.2391606515 | BA41: 0.2081987653 | BB41: 0.5014036604 | BC41: 0.05123692276 | BE41: 0.803188255 | BF41: 0.778398563 | BG41: 1.09770683 | BH41: -0.199485434 | BI41: 2.232647844 | BJ41: 2.177981571 | BK41: 2.997284853 | BL41: 0.8191521525 | BM41: 8.227066421 | BN41: 0.2713783662 | BO41: 0.2647336802 | BP41: 0.3643200018 | BQ41: 0.09956795176 | BR41: 1.002673689 | BS41: 0.977883997 | BT41: 1.297192264 | BU41: 0 | BV41: 3.27774995 | BW41: 0.3059030446 | BX41: 0.2983400235 | BY41: 0.395756932 | BZ41: 0
A42: 1049 | B42: 0.755504348 | C42: -2.400283906 | D42: 2.252626015 | E42: -0.883810461 | F42: -1.368815554 | G42: 0.908085169 | H42: -1.086365626 | I42: 0.178280457 | J42: 0.119985298 | K42: -0.505028811 | L42: 0.385043513 | M42: -0.467692275 | N42: 1.332324157 | O42: -0.864631882 | P42: 2.400283906 | R42: 0.06563040661 | S42: 11.02630637 | T42: 11.09193678 | V42: ='SG Data'!$AB41*R42/$T42 -> 0.006225232935 | W42: ='SG Data'!$AB41*S42/$T42 -> 1.04587689 | Y42: 2.252626015 | Z42: 3.621441569 | AA42: 5 | AB42: -3.66074025 | AC42: -5 | AD42: 1.287277261 | AE42: -4.22006217 | AF42: -0.7279553418 | AG42: -0.8889275897 | AH42: -2.614798619 | AI42: -0.157014041 | AJ42: -2.511700073 | AK42: 2.458741663 | AL42: -3.607781839 | AU42: 3.621441569 | AV42: 1.994450795 | AW42: 0.890072324 | AX42: 2.196956039 | AY42: 8.702920727 | AZ42: 0.4161179543 | BA42: 0.2291702817 | BB42: 0.1022728291 | BC42: 0.2524389349 | BE42: -0.883810461 | BF42: 0.908085169 | BG42: 0.119985298 | BH42: -0.467692275 | BI42: 0.413205405 | BJ42: 2.479570027 | BK42: 1.127480275 | BL42: 0.6264462672 | BM42: 4.646701975 | BN42: 0.08892444733 | BO42: 0.5336193371 | BP42: 0.2426409702 | BQ42: 0.1348152454 | BR42: 0 | BS42: 1.79189563 | BT42: 1.003795759 | BU42: 0.416118186 | BV42: 3.211809575 | BW42: 0 | BX42: 0.5579084277 | BY42: 0.3125327749 | BZ42: 0.1295587974
A43: 1050 | B43: 0.44480962 | C43: -0.856437062 | D43: -0.329126528 | E43: 1.156570732 | F43: -0.827444204 | G43: 2.355787288 | H43: -1.433553673 | I43: -0.922233616 | J43: -1.058447307 | K43: 0.624475849 | L43: 0.433971458 | M43: 0.07711673 | N43: 0.141129068 | O43: -0.218245798 | P43: 0.856437062 | R43: 5.336608725 | S43: 2.35475588 | T43: 7.691364605 | V43: ='SG Data'!$AB42*R43/$T43 -> 0.2598759042 | W43: ='SG Data'!$AB42*S43/$T43 -> 0.1146691364 | Y43: 2.355787288 | Z43: 3.789340961 | AA43: -2.085437398 | AB43: 1.835289914 | AC43: -3.400488435 | AD43: 5 | AE43: -5 | AF43: -3.650635923 | AG43: -4.010101308 | AH43: 0.4311014585 | AI43: -0.07163607018 | AJ43: -1.01336903 | AK43: -0.8444416662 | AL43: -1.792825223 | AU43: 1.984014936 | AV43: 3.789340961 | AW43: 1.682923156 | AX43: 0.359374866 | AY43: 7.815653919 | AZ43: 0.2538514316 | BA43: 0.4848399123 | BB43: 0.215327236 | BC43: 0.04598142007 | BE43: 1.156570732 | BF43: 2.355787288 | BG43: -1.058447307 | BH43: 0.07711673 | BI43: 3.179012875 | BJ43: 10.54642867 | BK43: 0.3469941677 | BL43: 1.080168157 | BM43: 15.15260387 | BN43: 0.2097997745 | BO43: 0.6960142798 | BP43: 0.02289996958 | BQ43: 0.07128597608 | BR43: 2.215018039 | BS43: 3.414234595 | BT43: 0 | BU43: 1.135564037 | BV43: 6.764816671 | BW43: 0.3274320867 | BX43: 0.5047046744 | BY43: 0 | BZ43: 0.1678632389
A44: 1051 | B44: 0.537796746 | C44: -0.693247986 | D44: 1.40052781 | E44: 1.810980243 | F44: -3.211508052 | G44: 0.065649277 | H44: 0.213485896 | I44: -0.279135172 | J44: -3.011999896 | K44: 1.412312918 | L44: 1.599686978 | M44: 0.37976963 | N44: -0.046681618 | O44: -0.333088013 | P44: 0.693247986 | R44: 0.2348404969 | S44: 2.000201621 | T44: 2.235042118 | V44: ='SG Data'!$AB43*R44/$T44 -> 0.2187584116 | W44: ='SG Data'!$AB43*S44/$T44 -> 1.863226042 | Y44: 1.810980243 | Z44: 5.022488295 | AA44: 4.182770752 | AB44: 5 | AC44: -5 | AD44: 1.524967579 | AE44: 1.819316934 | AF44: 0.8384862398 | AG44: -4.602770292 | AH44: 4.206235432 | AI44: 4.57930561 | AJ44: 2.150395324 | AK44: 1.301311717 | AL44: 0.7310637077 | AU44: 5.022488295 | AV44: 0.492621068 | AW44: 4.611686874 | AX44: 0.712857643 | AY44: 10.83965388 | AZ44: 0.463343973 | BA44: 0.04544619906 | BB44: 0.4254459529 | BC44: 0.06576387502 | BE44: 1.810980243 | BF44: 0.065649277 | BG44: -3.011999896 | BH44: 0.37976963 | BI44: 6.116440092 | BJ44: 1.067852131 | BK44: 0.04919319904 | BL44: 1.461947762 | BM44: 8.695433184 | BN44: 0.7034083251 | BO44: 0.1228060878 | BP44: 0.005657360363 | BQ44: 0.1681282267 | BR44: 4.822980139 | BS44: 3.077649173 | BT44: 0 | BU44: 3.391769526 | BV44: 11.29239884 | BW44: 0.4270996985 | BX44: 0.2725416643 | BY44: 0 | BZ44: 0.3003586372
A45: 1052 | B45: 0.450471914 | C45: 0.780461501 | D45: 0.005603115 | E45: 1.121803096 | F45: -1.127406211 | G45: 0.957327516 | H45: 0.633309019 | I45: -1.590636535 | J45: 0.379449415 | K45: -0.054241155 | L45: -0.32520826 | M45: -0.061677081 | N45: -0.249173392 | O45: 0.310850473 | P45: -0.780461501 | R45: 23.9834605 | S45: 0.4581945053 | T45: 24.44165501 | V45: ='SG Data'!$AB44*R45/$T45 -> 0.9952780875 | W45: ='SG Data'!$AB44*S45/$T45 -> 0.01901439331 | Y45: 1.121803096 | Z45: 2.712439631 | AA45: 0.8848854432 | AB45: 5 | AC45: -3.292200428 | AD45: 4.393624919 | AE45: 3.199060096 | AF45: -5 | AG45: 2.263151325 | AH45: 0.664256496 | AI45: -0.3347228062 | AJ45: 0.6368423338 | AK45: -0.05440369006 | AL45: 2.010246371 | AU45: 2.249209307 | AV45: 2.547964051 | AW45: 0.704657675 | AX45: 0.560023865 | AY45: 6.061854898 | AZ45: 0.3710430792 | BA45: 0.4203274565 | BB45: 0.1162445632 | BC45: 0.09238490106 | BE45: 1.121803096 | BF45: 0.957327516 | BG45: 0.379449415 | BH45: -0.061677081 | BI45: 3.070385415 | BJ45: 2.604726075 | BK45: 1.461479699 | BL45: 0.9401864418 | BM45: 8.07677763 | BN45: 0.3801498017 | BO45: 0.3224957024 | BP45: 0.1809483641 | BQ45: 0.1164061319 | BR45: 1.183480177 | BS45: 1.019004597 | BT45: 0.441126496 | BU45: 0 | BV45: 2.64361127 | BW45: 0.447675568 | BX45: 0.3854593179 | BY45: 0.166865114 | BZ45: 0
A46: 1053 | B46: 0.253711013 | C46: -0.146328775 | D46: 0.518453904 | E46: -0.566137349 | F46: 0.047683445 | G46: 0.00218593 | H46: -0.077896626 | I46: 0.075710697 | J46: -0.563359847 | K46: 0.189055955 | L46: 0.374303891 | M46: -0.003503101 | N46: 0.481315248 | O46: -0.477812147 | P46: 0.146328775 | R46: 0.2788327492 | S46: 1.157576708 | T46: 1.436409457 | V46: ='SG Data'!$AB45*R46/$T46 -> 0.0727058868 | W46: ='SG Data'!$AB45*S46/$T46 -> 0.3018391538 | Y46: 0.518453904 | Z46: 1.084591253 | AA46: 5 | AB46: -5 | AC46: 0.6594665714 | AD46: 0.2399766034 | AE46: -0.4983896316 | AF46: 0.9178796088 | AG46: -4.974391256 | AH46: 1.962930062 | AI46: 3.670927756 | AJ46: 0.1875233775 | AK46: 4.657579241 | AL46: -4.185636047 | AU46: 1.084591253 | AV46: 0.153607323 | AW46: 0.937663738 | AX46: 0.959127395 | AY46: 3.134989709 | AZ46: 0.3459632578 | BA46: 0.04899771204 | BB46: 0.299096273 | BC46: 0.3059427571 | BE46: -0.566137349 | BF46: 0.00218593 | BG46: -0.563359847 | BH46: -0.003503101 | BI46: 0.5677140904 | BJ46: 1.002188321 | BK46: 0.5692931092 | BL46: 0.9965030277 | BM46: 3.135698548 | BN46: 0.1810486823 | BO46: 0.3196060799 | BP46: 0.1815522444 | BQ46: 0.3177929933 | BR46: 0 | BS46: 0.568323279 | BT46: 0.002777502 | BU46: 0.562634248 | BV46: 1.133735029 | BW46: 0 | BX46: 0.501284043 | BY46: 0.002449868734 | BZ46: 0.4962660883
A47: 1054 | B47: 0.500139507 | C47: 0.839918413 | D47: -1.174160806 | E47: 1.282828241 | F47: -0.108667435 | G47: -0.271087129 | H47: -0.622124677 | I47: 0.893211805 | J47: 1.743892183 | K47: -0.165911522 | L47: -1.577980661 | M47: 0.734900784 | N47: -1.635213567 | O47: 0.900312782 | P47: -0.839918413 | R47: 75.97865853 | S47: 0.4317457468 | T47: 76.41040427 | V47: ='SG Data'!$AB46*R47/$T47 -> 0.8179012868 | W47: ='SG Data'!$AB46*S47/$T47 -> 0.00464769198 | Y47: 1.743892183 | Z47: 3.37910575 | AA47: -3.63557759 | AB47: 3.635544502 | AC47: -0.4823960984 | AD47: -0.9630549059 | AE47: -2.001902382 | AF47: 2.482528098 | AG47: 5 | AH47: -0.6518021225 | AI47: -4.830627065 | AJ47: 2.014028345 | AK47: -5 | AL47: 2.503542465 | AU47: 2.456989047 | AV47: 1.515336482 | AW47: 3.321872844 | AX47: 2.535526349 | AY47: 9.829724722 | AZ47: 0.2499550208 | BA47: 0.1541585878 | BB47: 0.3379415943 | BC47: 0.2579447971 | BE47: 1.282828241 | BF47: -0.271087129 | BG47: 1.743892183 | BH47: 0.734900784 | BI47: 3.606826288 | BJ47: 0.7625500533 | BK47: 5.719561737 | BL47: 2.08527509 | BM47: 12.17421317 | BN47: 0.2962677126 | BO47: 0.06263649591 | BP47: 0.4698095604 | BQ47: 0.1712862311 | BR47: 1.55391537 | BS47: 0 | BT47: 2.014979312 | BU47: 1.005987913 | BV47: 4.574882595 | BW47: 0.3396623493 | BX47: 0 | BY47: 0.4404439393 | BZ47: 0.2198937114
A48: 1056 | B48: 0.705293526 | C48: -2.409124607 | D48: -0.888762005 | E48: 2.07036497 | F48: -1.181602965 | G48: 2.504859346 | H48: -0.607879952 | I48: -1.896979394 | J48: -0.741249558 | K48: 0.63570245 | L48: 0.105547108 | M48: 0.869049807 | N48: -1.138392007 | O48: 0.269342201 | P48: 2.409124607 | R48: 9.913524718 | S48: 11.12421882 | T48: 21.03774354 | V48: ='SG Data'!$AB47*R48/$T48 -> 0.6875133447 | W48: ='SG Data'!$AB47*S48/$T48 -> 0.7714762513 | Y48: 2.504859346 | Z48: 4.40183874 | AA48: -2.70955401 | AB48: 4.012925276 | AC48: -3.374823633 | AD48: 5 | AE48: -2.071452368 | AF48: -5 | AG48: -2.374438492 | AH48: 0.7536906588 | AI48: -0.4507045344 | AJ48: 1.283804029 | AK48: -3.276657934 | AL48: -0.07859846088 | AU48: 3.251967935 | AV48: 4.40183874 | AW48: 1.376952008 | AX48: 2.007441814 | AY48: 11.0382005 | AZ48: 0.294610334 | BA48: 0.3987822781 | BB48: 0.1247442469 | BC48: 0.1818631411 | BE48: 2.07036497 | BF48: 2.504859346 | BG48: -0.741249558 | BH48: 0.869049807 | BI48: 7.927715968 | BJ48: 12.24183698 | BK48: 0.4765181063 | BL48: 2.384643905 | BM48: 23.03071496 | BN48: 0.3442236154 | BO48: 0.5315439404 | BP48: 0.02069054769 | BQ48: 0.1035418965 | BR48: 2.811614528 | BS48: 3.246108904 | BT48: 0 | BU48: 1.610299365 | BV48: 7.668022797 | BW48: 0.3666674712 | BX48: 0.4233306277 | BY48: 0 | BZ48: 0.2100019011
A49: 1057 | R49: 1 | S49: 1 | T49: 2 | V49: ='SG Data'!$AB48*R49/$T49 -> 0 | W49: ='SG Data'!$AB48*S49/$T49 -> 0 | Y49: 0 | Z49: 0 | AU49: 0 | AV49: 0 | AW49: 0 | AX49: 0 | AY49: 0 | BE49: 0 | BF49: 0 | BG49: 0 | BH49: 0 | BI49: 1 | BJ49: 1 | BK49: 1 | BL49: 1 | BM49: 4 | BN49: 0.25 | BO49: 0.25 | BP49: 0.25 | BQ49: 0.25 | BR49: 0 | BS49: 0 | BT49: 0 | BU49: 0 | BV49: 0
A50: 1058 | B50: 0.506193481 | C50: -1.396342961 | D50: 3.727477932 | E50: -1.129989212 | F50: -2.597488719 | G50: 0.11905581 | H50: -0.078337124 | I50: -0.040718686 | J50: -0.108484957 | K50: 0.051301127 | L50: 0.057183831 | M50: -0.020332247 | N50: -0.092506136 | O50: 0.112838383 | P50: 1.396342961 | R50: 0.07917508864 | S50: 4.040397026 | T50: 4.119572115 | V50: ='SG Data'!$AB49*R50/$T50 -> 0.006316179395 | W50: ='SG Data'!$AB49*S50/$T50 -> 0.322321994 | Y50: 3.727477932 | Z50: 6.324966651 | AA50: 5 | AB50: -2.679830443 | AC50: -5 | AD50: -0.7050452929 | AE50: -1.017130629 | AF50: -0.9576545236 | AG50: -1.064795438 | AH50: -0.8121678862 | AI50: -0.8028671193 | AJ50: -0.9254228296 | AK50: -1.039532347 | AL50: -0.7148752688 | AU50: 6.324966651 | AV50: 0.197392934 | AW50: 0.165668788 | AX50: 0.205344519 | AY50: 6.893372892 | AZ50: 0.9175430881 | BA50: 0.02863517426 | BB50: 0.02403305183 | BC50: 0.02978868577 | BE50: -1.129989212 | BF50: 0.11905581 | BG50: -0.108484957 | BH50: -0.020332247 | BI50: 0.3230367413 | BJ50: 1.126432783 | BK50: 0.8971923912 | BL50: 0.9798730593 | BM50: 3.326534975 | BN50: 0.0971090771 | BO50: 0.3386204538 | BP50: 0.2697077884 | BQ50: 0.2945626806 | BR50: 0 | BS50: 1.249045022 | BT50: 1.021504255 | BU50: 1.109656965 | BV50: 3.380206242 | BW50: 0 | BX50: 0.3695174 | BY50: 0.3022017539 | BZ50: 0.3282808461
A51: 1060 | B51: 0.729751529 | C51: 0.145529212 | D51: 1.328151561 | E51: 1.323943172 | F51: -2.652094733 | G51: 2.600676953 | H51: -0.753677688 | I51: -1.846999265 | J51: 2.91493851 | K51: 0.203447444 | L51: -3.118385954 | M51: 1.933590527 | N51: -0.580094087 | O51: -1.35349644 | P51: -0.145529212 | R51: 7470.209879 | S51: 0.864564634 | T51: 7471.074444 | V51: ='SG Data'!$AB50*R51/$T51 -> 1.108098288 | W51: ='SG Data'!$AB50*S51/$T51 -> 0.0001282457396 | Y51: 2.91493851 | Z51: 6.033324464 | AA51: 2.369962517 | AB51: 2.362987276 | AC51: -4.227140487 | AD51: 4.479123725 | AE51: -1.080588273 | AF51: -2.892726147 | AG51: 5 | AH51: 0.505809306 | AI51: -5 | AJ51: 3.373453991 | AK51: -0.7928802236 | AL51: -2.074764461 | AU51: 3.980246294 | AV51: 4.447676218 | AW51: 6.033324464 | AX51: 3.287086967 | AY51: 17.74833394 | AZ51: 0.2242602774 | BA51: 0.2505968297 | BB51: 0.3399375109 | BC51: 0.185205382 | BE51: 1.323943172 | BF51: 2.600676953 | BG51: 2.91493851 | BH51: 1.933590527 | BI51: 3.758211472 | BJ51: 13.47285544 | BK51: 18.44767802 | BL51: 6.914291677 | BM51: 42.59303661 | BN51: 0.08823534952 | BO51: 0.3163159171 | BP51: 0.4331148819 | BQ51: 0.1623338514 | BR51: 0 | BS51: 1.276733781 | BT51: 1.590995338 | BU51: 0.609647355 | BV51: 3.477376474 | BW51: 0 | BX51: 0.3671543161 | BY51: 0.4575274923 | BZ51: 0.1753181916
A52: 1061 | B52: 0.568827361 | C52: -1.286540026 | D52: -0.923889655 | E52: 1.374449158 | F52: -0.450559503 | G52: -0.423691187 | H52: 1.718241444 | I52: -1.294550257 | J52: -3.107182136 | K52: 0.809562648 | L52: 2.297619488 | M52: -1.756481932 | N52: 0.272016156 | O52: 1.484465776 | P52: 1.286540026 | R52: 0.005519620765 | S52: 3.620238928 | T52: 3.625758549 | V52: ='SG Data'!$AB51*R52/$T52 -> 0.002107712812 | W52: ='SG Data'!$AB51*S52/$T52 -> 1.382418158 | Y52: 2.297619488 | Z52: 5.404801624 | AA52: -0.9604576951 | AB52: 3.2919441 | AC52: -0.084699092 | AD52: -0.0349871546 | AE52: 3.92803088 | AF52: -1.646256412 | AG52: -5 | AH52: 2.246787313 | AI52: 5 | AJ52: -2.500925477 | AK52: 1.25221521 | AL52: 3.495497581 | AU52: 2.298338813 | AV52: 3.012791701 | AW52: 5.404801624 | AX52: 3.240947708 | AY52: 13.95687985 | AZ52: 0.1646742566 | BA52: 0.2158642715 | BB52: 0.3872499931 | BC52: 0.2322114788 | BE52: 1.374449158 | BF52: -0.423691187 | BG52: -3.107182136 | BH52: -1.756481932 | BI52: 3.9528987 | BJ52: 0.6546260077 | BK52: 0.04472681201 | BL52: 0.1726511953 | BM52: 4.824902715 | BN52: 0.8192701353 | BO52: 0.1356765196 | BP52: 0.009269992504 | BQ52: 0.03578335263 | BR52: 4.481631294 | BS52: 2.683490949 | BT52: 0 | BU52: 1.350700204 | BV52: 8.515822447 | BW52: 0.5262711056 | BX52: 0.3151182362 | BY52: 0 | BZ52: 0.1586106583
A53: 1062 | B53: 0.362961755 | C53: 0.250208674 | D53: 0.523508213 | E53: 1.604852606 | F53: -2.128360819 | G53: 0.070861883 | H53: -0.405309477 | I53: 0.334447594 | J53: -0.807124683 | K53: 1.830752584 | L53: -1.023627901 | M53: -0.218387665 | N53: 0.46770816 | O53: -0.249320495 | P53: -0.250208674 | R53: 2.460613761 | S53: 0.7786382846 | T53: 3.239252045 | V53: ='SG Data'!$AB52*R53/$T53 -> 1.581525465 | W53: ='SG Data'!$AB52*S53/$T53 -> 0.500458989 | Y53: 1.830752584 | Z53: 3.959113403 | AA53: 1.698138603 | AB53: 4.429417764 | AC53: -5 | AD53: 0.5548363437 | AE53: -0.6478858608 | AF53: 1.220605884 | AG53: -1.662797951 | AH53: 5 | AI53: -2.209645682 | AJ53: -0.1757553786 | AK53: 1.557197824 | AL53: -0.2538860782 | AU53: 3.733213425 | AV53: 0.739757071 | AW53: 2.854380485 | AX53: 0.717028655 | AY53: 8.044379636 | AZ53: 0.4640772308 | BA53: 0.09195949277 | BB53: 0.354829162 | BC53: 0.08913411443 | BE53: 1.604852606 | BF53: 0.070861883 | BG53: -0.807124683 | BH53: -0.218387665 | BI53: 4.97712595 | BJ53: 1.073432956 | BK53: 0.4461390149 | BL53: 0.8038137708 | BM53: 7.300511692 | BN53: 0.6817502882 | BO53: 0.147035304 | BP53: 0.06111065 | BQ53: 0.1101037577 | BR53: 2.411977289 | BS53: 0.877986566 | BT53: 0 | BU53: 0.588737018 | BV53: 3.878700873 | BW53: 0.6218518437 | BX53: 0.2263609891 | BY53: 0 | BZ53: 0.1517871672
A54: 1063 | B54: 0.431672105 | C54: -0.662133675 | D54: -0.872821079 | E54: 0.653396578 | F54: 0.219424501 | G54: -2.609985913 | H54: 0.628790941 | I54: 1.981194973 | J54: -1.316529444 | K54: 0.187762031 | L54: 1.128767413 | M54: -0.101819492 | N54: 0.438219878 | O54: -0.336400386 | P54: 0.662133675 | R54: 0.01764907427 | S54: 1.93892496 | T54: 1.956574034 | V54: ='SG Data'!$AB53*R54/$T54 -> 0.01647847755 | W54: ='SG Data'!$AB53*S54/$T54 -> 1.810323359 | Y54: 1.981194973 | Z54: 4.591180886 | AA54: -1.216300605 | AB54: 2.107937091 | AC54: 1.162707339 | AD54: -5 | AE54: 2.054343827 | AF54: 5 | AG54: -2.182736858 | AH54: 1.093743665 | AI54: 3.143337017 | AJ54: 0.4630093723 | AK54: 1.639263115 | AL54: -0.04792866268 | AU54: 1.526217657 | AV54: 4.591180886 | AW54: 2.445296857 | AX54: 0.774620264 | AY54: 9.337315664 | AZ54: 0.1634535783 | BA54: 0.491702439 | BB54: 0.2618843515 | BC54: 0.08295963121 | BE54: 0.653396578 | BF54: -2.609985913 | BG54: -1.316529444 | BH54: -0.101819492 | BI54: 1.922058175 | BJ54: 0.07353557965 | BK54: 0.2680640206 | BL54: 0.9031925704 | BM54: 3.166850346 | BN54: 0.6069305351 | BO54: 0.02322041512 | BP54: 0.08464688614 | BQ54: 0.2852021636 | BR54: 3.263382491 | BS54: 0 | BT54: 1.293456469 | BU54: 2.508166421 | BV54: 7.065005381 | BW54: 0.4619079979 | BX54: 0 | BY54: 0.1830793325 | BZ54: 0.3550126696
A55: 1064 | B55: 0.394829147 | C55: -1.235019298 | D55: -0.177097781 | E55: -0.460808982 | F55: 0.637906763 | G55: 2.320129841 | H55: 0.070208319 | I55: -2.39033816 | J55: -0.990005722 | K55: 0.119029415 | L55: 0.870976307 | M55: 0.270468984 | N55: -0.252853316 | O55: -0.017615668 | P55: 1.235019298 | R55: 0.909159096 | S55: 3.438444875 | T55: 4.347603971 | V55: ='SG Data'!$AB54*R55/$T55 -> 0.2122810053 | W55: ='SG Data'!$AB54*S55/$T55 -> 0.8028479702 | Y55: 2.320129841 | Z55: 4.710468001 | AA55: -0.3014427048 | AB55: -0.9037420961 | AC55: 1.428755959 | AD55: 5 | AE55: 0.2235711579 | AF55: -5 | AG55: -2.027190424 | AH55: 0.3272149911 | AI55: 1.923546591 | AJ55: 0.6487107936 | AK55: -0.4622665019 | AL55: 0.03712686615 | AU55: 1.098715745 | AV55: 4.710468001 | AW55: 1.860982029 | AX55: 0.5233223 | AY55: 8.193488075 | AZ55: 0.1340962158 | BA55: 0.5749038697 | BB55: 0.2271293998 | BC55: 0.06387051463 | BE55: -0.460808982 | BF55: 2.320129841 | BG55: -0.990005722 | BH55: 0.270468984 | BI55: 0.6307731549 | BJ55: 10.17699561 | BK55: 0.3715745649 | BL55: 1.310578947 | BM55: 12.48992228 | BN55: 0.05050256846 | BO55: 0.8148165685 | BP55: 0.02974995013 | BQ55: 0.1049309129 | BR55: 0.52919674 | BS55: 3.310135563 | BT55: 0 | BU55: 1.260474706 | BV55: 5.099807009 | BW55: 0.1037679934 | BX55: 0.6490707506 | BY55: 0 | BZ55: 0.2471612561
A56: 1065 | B56: 0.498353802 | C56: -0.450221331 | D56: 0.480952171 | E56: 0.430421769 | F56: -0.91137394 | G56: 2.395799659 | H56: -0.379818681 | I56: -2.015980978 | J56: 2.26522864 | K56: 1.058890679 | L56: -3.324119319 | M56: -0.662158895 | N56: 0.217402157 | O56: 0.444756737 | P56: 0.450221331 | R56: 53.46727807 | S56: 1.56865934 | T56: 55.03593741 | V56: ='SG Data'!$AB55*R56/$T56 -> 0.9446788859 | W56: ='SG Data'!$AB55*S56/$T56 -> 0.02771563115 | Y56: 2.395799659 | Z56: 5.719918978 | AA56: 1.652317113 | AB56: 1.563975998 | AC56: -0.7818539244 | AD56: 5 | AE56: 0.1474516498 | AF56: -2.713012464 | AG56: 4.771725754 | AH56: 2.662713432 | AI56: -5 | AJ56: -0.3461571147 | AK56: 1.191558813 | AL56: 1.589037485 | AU56: 1.392326111 | AV56: 4.411780637 | AW56: 5.589347959 | AX56: 1.106915632 | AY56: 12.50037034 | AZ56: 0.1113827889 | BA56: 0.3529319946 | BB56: 0.4471345894 | BC56: 0.08855062706 | BE56: 0.430421769 | BF56: 2.395799659 | BG56: 2.26522864 | BH56: -0.662158895 | BI56: 1.537906028 | BJ56: 10.97697239 | BK56: 9.633326913 | BL56: 0.5157367103 | BM56: 22.66394204 | BN56: 0.06785695204 | BO56: 0.4843364128 | BP56: 0.4250508097 | BQ56: 0.02275582551 | BR56: 1.092580664 | BS56: 3.057958554 | BT56: 2.927387535 | BU56: 0 | BV56: 7.077926753 | BW56: 0.1543645056 | BX56: 0.4320415654 | BY56: 0.413593929 | BZ56: 0
A57: 1066 | B57: 0.5777289 | C57: -0.974127944 | D57: -0.645493691 | E57: 1.14918267 | F57: -0.503688979 | G57: 3.445605713 | H57: -0.666899078 | I57: -2.778706635 | J57: -1.564794235 | K57: 0.774322469 | L57: 0.790471766 | M57: 0.821830622 | N57: -0.34233326 | O57: -0.479497362 | P57: 0.974127944 | R57: 17.77329102 | S57: 2.648856252 | T57: 20.42214727 | V57: ='SG Data'!$AB56*R57/$T57 -> 0.6690903643 | W57: ='SG Data'!$AB56*S57/$T57 -> 0.09971840291 | Y57: 3.445605713 | Z57: 6.224312348 | AA57: -1.572773305 | AB57: 1.310559441 | AC57: -1.344949404 | AD57: 5 | AE57: -1.607163267 | AF57: -5 | AG57: -3.04972448 | AH57: 0.7083078505 | AI57: 0.7342533624 | AJ57: 0.7846346001 | AK57: -1.085714793 | AL57: -1.306083075 | AU57: 1.794676361 | AV57: 6.224312348 | AW57: 2.355266001 | AX57: 1.301327984 | AY57: 11.67558269 | AZ57: 0.153711931 | BA57: 0.5331050716 | BB57: 0.2017257779 | BC57: 0.1114572196 | BE57: 1.14918267 | BF57: 3.445605713 | BG57: -1.564794235 | BH57: 0.821830622 | BI57: 3.155612678 | BJ57: 31.36227423 | BK57: 0.2091310406 | BL57: 2.274660071 | BM57: 37.00167802 | BN57: 0.0852829614 | BO57: 0.8475905934 | BP57: 0.00565193396 | BQ57: 0.06147451123 | BR57: 2.713976905 | BS57: 5.010399948 | BT57: 0 | BU57: 2.386624857 | BV57: 10.11100171 | BW57: 0.2684182026 | BX57: 0.4955394225 | BY57: 0 | BZ57: 0.236042375
A58: 1068 | B58: 0.316106181 | C58: -0.559037862 | D58: 0.170580156 | E58: 1.319701006 | F58: -1.490281162 | G58: -0.000408311 | H58: -0.380112908 | I58: 0.380521219 | J58: -1.10953618 | K58: 1.299836523 | L58: -0.190300344 | M58: 0.123500404 | N58: -0.845149812 | O58: 0.721649409 | P58: 0.559037862 | R58: 0.7978928665 | S58: 1.748988922 | T58: 2.546881788 | V58: ='SG Data'!$AB57*R58/$T58 -> 0.4186785096 | W58: ='SG Data'!$AB57*S58/$T58 -> 0.9177473641 | Y58: 1.319701006 | Z58: 2.809982168 | AA58: 0.9105760062 | AB58: 5 | AC58: -5 | AD58: 0.3020722621 | AE58: -1.049198224 | AF58: 1.657701968 | AG58: -3.645027053 | AH58: 4.929307441 | AI58: -0.3737043857 | AJ58: 0.7430313415 | AK58: -2.704144328 | AL58: 2.871688996 | AU58: 2.809982168 | AV58: 0.760634127 | AW58: 2.409372703 | AX58: 1.566799221 | AY58: 7.546788219 | AZ58: 0.3723414632 | BA58: 0.1007891178 | BB58: 0.3192580251 | BC58: 0.2076113938 | BE58: 1.319701006 | BF58: -0.000408311 | BG58: -1.10953618 | BH58: 0.123500404 | BI58: 3.742302284 | BJ58: 0.9995917723 | BK58: 0.3297118526 | BL58: 1.131450462 | BM58: 6.203056371 | BN58: 0.6032997381 | BO58: 0.1611450409 | BP58: 0.05315312853 | BQ58: 0.1824020925 | BR58: 2.429237186 | BS58: 1.109127869 | BT58: 0 | BU58: 1.233036584 | BV58: 4.771401639 | BW58: 0.5091244397 | BX58: 0.2324532607 | BY58: 0 | BZ58: 0.2584222996
A59: 1069 | B59: 0.584310057 | C59: -1.474162535 | D59: 3.867072705 | E59: -1.420644228 | F59: -2.446428477 | G59: -0.045524571 | H59: -0.152370552 | I59: 0.197895123 | J59: -0.911675291 | K59: -0.085639763 | L59: 0.997315054 | M59: -0.831325918 | N59: -0.1059139 | O59: 0.937239818 | P59: 1.474162535 | R59: 0.009248142643 | S59: 4.367376716 | T59: 4.376624858 | V59: ='SG Data'!$AB58*R59/$T59 -> 0.001205776312 | W59: ='SG Data'!$AB58*S59/$T59 -> 0.5694202167 | Y59: 3.867072705 | Z59: 6.313501182 | AA59: 5 | AB59: -3.375252939 | AC59: -5 | AD59: -1.197191009 | AE59: -1.366425128 | AF59: -0.8116368022 | AG59: -2.569093373 | AH59: -1.260729751 | AI59: 0.454570185 | AJ59: -2.441827423 | AK59: -1.292842102 | AL59: 0.3594165859 | AU59: 6.313501182 | AV59: 0.350265675 | AW59: 1.908990345 | AX59: 1.768565736 | AY59: 10.34132294 | AZ59: 0.6105119451 | BA59: 0.03387048998 | BB59: 0.184598272 | BC59: 0.1710192929 | BE59: -1.420644228 | BF59: -0.045524571 | BG59: -0.911675291 | BH59: -0.831325918 | BI59: 0.2415583481 | BJ59: 0.9554961248 | BK59: 0.4018504434 | BL59: 0.4354715039 | BM59: 2.03437642 | BN59: 0.1187382756 | BO59: 0.4696751866 | BP59: 0.197530034 | BQ59: 0.2140565038 | BR59: 0 | BS59: 1.375119657 | BT59: 0.508968937 | BU59: 0.58931831 | BV59: 2.473406904 | BW59: 0 | BX59: 0.5559617606 | BY59: 0.2057764681 | BZ59: 0.2382617713
A60: 1070 | B60: 0.281832383 | C60: -0.335487825 | D60: 0.360932173 | E60: 0.084871497 | F60: -0.44580367 | G60: -0.487538173 | H60: 0.871588413 | I60: -0.38405024 | J60: -0.131266749 | K60: 0.322258042 | L60: -0.190991294 | M60: 0.588963642 | N60: -0.200774053 | O60: -0.388189589 | P60: 0.335487825 | R60: 0.7554379679 | S60: 1.398622502 | T60: 2.15406047 | V60: ='SG Data'!$AB59*R60/$T60 -> 0.2280754345 | W60: ='SG Data'!$AB59*S60/$T60 -> 0.4222602628 | Y60: 0.871588413 | Z60: 1.359126586 | AA60: 1.242761747 | AB60: -0.7884006104 | AC60: -4.69293145 | AD60: -5 | AE60: 5 | AF60: -4.238570314 | AG60: -2.378673718 | AH60: 0.9582103929 | AI60: -2.818106996 | AJ60: 2.920541222 | AK60: -2.890085273 | AL60: -4.269026263 | AU60: 0.806735843 | AV60: 1.359126586 | AW60: 0.513249336 | AX60: 0.977153231 | AY60: 3.656264996 | AZ60: 0.2206447957 | BA60: 0.3717254049 | BB60: 0.140375311 | BC60: 0.2672544884 | BE60: 0.084871497 | BF60: -0.487538173 | BG60: -0.131266749 | BH60: 0.588963642 | BI60: 1.088577172 | BJ60: 0.6141364323 | BK60: 0.8769838086 | BL60: 1.802119806 | BM60: 4.381817219 | BN60: 0.2484305296 | BO60: 0.1401556481 | BP60: 0.2001415771 | BQ60: 0.4112722452 | BR60: 0.57240967 | BS60: 0 | BT60: 0.356271424 | BU60: 1.076501815 | BV60: 2.005182909 | BW60: 0.2854650653 | BX60: 0 | BY60: 0.1776752746 | BZ60: 0.5368596601
A61: 1071 | B61: 0.820068436 | C61: -0.923072826 | D61: 0.141365293 | E61: 0.399747172 | F61: -0.541112465 | G61: 5.192932871 | H61: -1.399986157 | I61: -3.792946714 | J61: 0.236196923 | K61: 0.560409436 | L61: -0.796606359 | M61: 0.736052552 | N61: -0.317465608 | O61: -0.418586944 | P61: 0.923072826 | R61: 281.9857935 | S61: 2.517012862 | T61: 284.5028064 | V61: ='SG Data'!$AB60*R61/$T61 -> 1.745570617 | W61: ='SG Data'!$AB60*S61/$T61 -> 0.0155810108 | Y61: 5.192932871 | Z61: 8.985879585 | AA61: -0.6216729038 | AB61: -0.3341307923 | AC61: -1.38117313 | AD61: 5 | AE61: -2.336976826 | AF61: -5 | AG61: -0.51613885 | AH61: -0.1553366492 | AI61: -1.665501327 | AJ61: 0.04012904152 | AK61: -1.132286135 | AL61: -1.244819733 | AU61: 0.940859637 | AV61: 8.985879585 | AW61: 1.357015795 | AX61: 1.154639496 | AY61: 12.43839451 | AZ61: 0.0756415658 | BA61: 0.722430823 | BB61: 0.1090989511 | BC61: 0.09282866006 | BE61: 0.399747172 | BF61: 5.192932871 | BG61: 0.236196923 | BH61: 0.736052552 | BI61: 1.49144757 | BJ61: 179.9956837 | BK61: 1.266423674 | BL61: 2.087678226 | BM61: 184.8412331 | BN61: 0.008068803399 | BO61: 0.9737853433 | BP61: 0.006851413248 | BQ61: 0.01129444005 | BR61: 0.163550249 | BS61: 4.956735948 | BT61: 0 | BU61: 0.499855629 | BV61: 5.620141826 | BW61: 0.02910073341 | BX61: 0.8819592283 | BY61: 0 | BZ61: 0.08894003825
A62: 1072 | B62: 0.75344203 | C62: -1.079674919 | D62: 4.91899968 | E62: -1.798477935 | F62: -3.120521745 | G62: 1.18736094 | H62: -0.098465132 | I62: -1.088895808 | J62: -0.680773044 | K62: 0.12672967 | L62: 0.554043373 | M62: -0.447284495 | N62: 0.216638068 | O62: 0.230646427 | P62: 1.079674919 | R62: 0.05967456161 | S62: 2.943722447 | T62: 3.003397009 | V62: ='SG Data'!$AB61*R62/$T62 -> 0.04371653911 | W62: ='SG Data'!$AB61*S62/$T62 -> 2.156519529 | Y62: 4.91899968 | Z62: 8.039521425 | AA62: 5 | AB62: -3.355569019 | AC62: -5 | AD62: 0.3583819947 | AE62: -1.240999366 | AF62: -2.472951648 | AG62: -1.965306052 | AH62: -0.9608896558 | AI62: -0.4293733125 | AJ62: -1.674880122 | AK62: -0.8490566334 | AL62: -0.8316322641 | AU62: 8.039521425 | AV62: 2.276256748 | AW62: 1.234816417 | AX62: 0.677930922 | AY62: 12.22852551 | AZ62: 0.6574399683 | BA62: 0.18614319 | BB62: 0.1009783572 | BC62: 0.0554384845 | BE62: -1.798477935 | BF62: 1.18736094 | BG62: -0.680773044 | BH62: -0.447284495 | BI62: 0.1655506754 | BJ62: 3.278417839 | BK62: 0.5062255065 | BL62: 0.6393619871 | BM62: 4.589556008 | BN62: 0.03607117445 | BO62: 0.714321349 | BP62: 0.1102994507 | BQ62: 0.1393080259 | BR62: 0 | BS62: 2.985838875 | BT62: 1.117704891 | BU62: 1.35119344 | BV62: 5.454737206 | BW62: 0 | BX62: 0.5473845508 | BY62: 0.20490536 | BZ62: 0.2477100892
A63: 1074 | B63: 0.404030405 | C63: -0.407151137 | D63: -0.101165512 | E63: -0.585631967 | F63: 0.686797479 | G63: -1.682882227 | H63: 0.619111635 | I63: 1.063770592 | J63: -1.551239485 | K63: 1.746243346 | L63: -0.195003861 | M63: -0.332106165 | N63: -0.692013372 | O63: 1.024119537 | P63: 0.407151137 | R63: 0.01047241124 | S63: 1.502531177 | T63: 1.513003588 | V63: ='SG Data'!$AB62*R63/$T63 -> 0.007026320476 | W63: ='SG Data'!$AB62*S63/$T63 -> 1.008102655 | Y63: 1.746243346 | Z63: 3.429125573 | AA63: -0.387405094 | AB63: -1.80020391 | AC63: 1.910448905 | AD63: -5 | AE63: 1.713063762 | AF63: 3.009776138 | AG63: -4.61610405 | AH63: 5 | AI63: -0.6610560496 | AJ63: -1.060873149 | AK63: -2.110432867 | AL63: 2.894145917 | AU63: 1.272429446 | AV63: 2.746652819 | AW63: 3.297482831 | AX63: 1.716132909 | AY63: 9.032698005 | AZ63: 0.1408692558 | BA63: 0.304078894 | BB63: 0.365060675 | BC63: 0.1899911752 | BE63: -0.585631967 | BF63: -1.682882227 | BG63: -1.551239485 | BH63: -0.332106165 | BI63: 0.5567539005 | BJ63: 0.1858375773 | BK63: 0.2119850586 | BL63: 0.7174111549 | BM63: 1.671987691 | BN63: 0.332989234 | BO63: 0.1111476946 | BP63: 0.1267862555 | BQ63: 0.4290768159 | BR63: 1.09725026 | BS63: 0 | BT63: 0.131642742 | BU63: 1.350776062 | BV63: 2.579669064 | BW63: 0.4253453574 | BX63: 0 | BY63: 0.05103086432 | BZ63: 0.5236237783
A64: 1075 | B64: 0.711228001 | C64: -0.592300214 | D64: -3.789202215 | E64: 2.081226941 | F64: 1.707975274 | G64: 1.380946716 | H64: -0.111522979 | I64: -1.269423737 | J64: -3.152722142 | K64: 1.213398953 | L64: 1.939323189 | M64: -0.027602195 | N64: 0.016207592 | O64: 0.011394604 | P64: 0.592300214 | R64: 0.7331163239 | S64: 1.808142751 | T64: 2.541259075 | V64: ='SG Data'!$AB63*R64/$T64 -> 0.4448032376 | W64: ='SG Data'!$AB63*S64/$T64 -> 1.097053392 | Y64: 2.081226941 | Z64: 5.870429156 | AA64: -5 | AB64: 5 | AC64: 4.364183338 | AD64: 3.807105569 | AE64: 1.264753629 | AF64: -0.7076758597 | AG64: -3.915786127 | AH64: 3.521695834 | AI64: 4.758273632 | AJ64: 1.407708738 | AK64: 1.48233665 | AL64: 1.474137951 | AU64: 5.870429156 | AV64: 2.650370453 | AW64: 5.092045331 | AX64: 0.043809787 | AY64: 13.65665473 | AZ64: 0.4298585029 | BA64: 0.1940717186 | BB64: 0.3728618342 | BC64: 0.00320794425 | BE64: 2.081226941 | BF64: 1.380946716 | BG64: -3.152722142 | BH64: -0.027602195 | BI64: 8.014295953 | BJ64: 3.978666512 | BK64: 0.04273563592 | BL64: 0.9727752647 | BM64: 13.00847337 | BN64: 0.616082743 | BO64: 0.3058519167 | BP64: 0.003285215314 | BQ64: 0.07478012503 | BR64: 5.233949083 | BS64: 4.533668858 | BT64: 0 | BU64: 3.125119947 | BV64: 12.89273789 | BW64: 0.4059610246 | BX64: 0.3516451585 | BY64: 0 | BZ64: 0.2423938169
A65: 1076 | B65: 0.795217908 | C65: -0.926009958 | D65: 4.57051175 | E65: -1.455016451 | F65: -3.115495299 | G65: 0.594210448 | H65: -0.387843756 | I65: -0.206366693 | J65: -0.198010168 | K65: -0.384716156 | L65: 0.582726324 | M65: -0.795008006 | N65: 0.437122119 | O65: 0.357885887 | P65: 0.926009958 | R65: 0.06204879825 | S65: 2.524416528 | T65: 2.586465326 | V65: ='SG Data'!$AB64*R65/$T65 -> 0.04994640061 | W65: ='SG Data'!$AB64*S65/$T65 -> 2.032038053 | Y65: 4.57051175 | Z65: 7.686007049 | AA65: 5 | AB65: -2.839607956 | AC65: -5 | AD65: -0.1734291637 | AE65: -1.451146186 | AF65: -1.215032607 | AG65: -1.204160219 | AH65: -1.447076973 | AI65: -0.1883707634 | AJ65: -1.980893618 | AK65: -0.3778113976 | AL65: -0.4809029398 | AU65: 7.686007049 | AV65: 0.982054204 | AW65: 0.96744248 | AX65: 1.232130125 | AY65: 10.86763386 | AZ65: 0.7072383142 | BA65: 0.09036504329 | BB65: 0.08902052578 | BC65: 0.1133761167 | BE65: -1.455016451 | BF65: 0.594210448 | BG65: -0.198010168 | BH65: -0.795008006 | BI65: 0.2333965243 | BJ65: 1.811600028 | BK65: 0.8203615117 | BL65: 0.4515776196 | BM65: 3.316935683 | BN65: 0.07036510399 | BO65: 0.5461667638 | BP65: 0.2473251187 | BQ65: 0.1361430135 | BR65: 0 | BS65: 2.049226899 | BT65: 1.257006283 | BU65: 0.660008445 | BV65: 3.966241627 | BW65: 0 | BX65: 0.5166671856 | BY65: 0.3169262998 | BZ65: 0.1664065145
A66: 1079 | B66: 0.467344394 | C66: -0.110484491 | D66: 2.553216333 | E66: -0.928328231 | F66: -1.624888103 | G66: -0.568718573 | H66: 1.109941178 | I66: -0.541222605 | J66: -0.441935206 | K66: 0.315951967 | L66: 0.125983239 | M66: 0.563573738 | N66: -1.199373828 | O66: 0.63580009 | P66: 0.110484491 | R66: 0.226300218 | S66: 1.116819028 | T66: 1.343119246 | V66: ='SG Data'!$AB65*R66/$T66 -> 0.1867234849 | W66: ='SG Data'!$AB65*S66/$T66 -> 0.9215030491 | Y66: 2.553216333 | Z66: 4.178104436 | AA66: 5 | AB66: -3.332832789 | AC66: -5 | AD66: -2.472132288 | AE66: 1.545622119 | AF66: -2.406322617 | AG66: -2.168685189 | AH66: -0.3547353836 | AI66: -0.8094122136 | AJ66: 0.2379299621 | AK66: -3.98156142 | AL66: 0.4107986711 | AU66: 4.178104436 | AV66: 1.678659751 | AW66: 0.757887173 | AX66: 1.835173918 | AY66: 8.449825278 | AZ66: 0.4944604532 | BA66: 0.1986620665 | BB66: 0.08969264429 | BC66: 0.2171848361 | BE66: -0.928328231 | BF66: -0.568718573 | BG66: -0.441935206 | BH66: 0.563573738 | BI66: 0.3952138647 | BJ66: 0.5662505828 | BK66: 0.6427912831 | BL66: 1.756940138 | BM66: 3.361195869 | BN66: 0.1175813253 | BO66: 0.1684669995 | BP66: 0.1912388651 | BQ66: 0.5227128102 | BR66: 0 | BS66: 0.359609658 | BT66: 0.486393025 | BU66: 1.491901969 | BV66: 2.337904652 | BW66: 0 | BX66: 0.1538170762 | BY66: 0.2080465619 | BZ66: 0.6381363619
A67: 1080 | B67: 0.942436246 | C67: 0.325573208 | D67: -3.352789807 | E67: 2.728704104 | F67: 0.624085703 | G67: -1.735377716 | H67: -0.143749845 | I67: 1.879127561 | J67: -3.322586547 | K67: 0.92574316 | L67: 2.396843387 | M67: -0.922215922 | N67: 0.252909435 | O67: 0.669306487 | P67: -0.325573208 | R67: 0.05361626138 | S67: =EXP(P67) -> 0.7221133139 | T67: =SUM(R67:S67) -> 0.7757295752 | V67: ='SG Data'!$AB66*R67/$T67 -> 0.04662495896 | W67: ='SG Data'!$AB66*S67/$T67 -> 0.6279532135 | Y67: =MAX(D67:O67) -> 2.728704104 | Z67: =MAX(D67:O67)-MIN(D67:O67) -> 6.081493911 | AA67: =((($Y67-D67)/$Z67*-5+(1-(($Y67-D67)/$Z67))*5)) -> -5 | AB67: =((($Y67-E67)/$Z67*-5+(1-(($Y67-E67)/$Z67))*5)) -> 5 | AC67: =((($Y67-F67)/$Z67*-5+(1-(($Y67-F67)/$Z67))*5)) -> 1.539306901 | AD67: =((($Y67-G67)/$Z67*-5+(1-(($Y67-G67)/$Z67))*5)) -> -2.340436224 | AE67: =((($Y67-H67)/$Z67*-5+(1-(($Y67-H67)/$Z67))*5)) -> 0.2767297131 | AF67: =((($Y67-I67)/$Z67*-5+(1-(($Y67-I67)/$Z67))*5)) -> 3.603013412 | AG67: =((($Y67-J67)/$Z67*-5+(1-(($Y67-J67)/$Z67))*5)) -> -4.950335788 | AH67: =((($Y67-K67)/$Z67*-5+(1-(($Y67-K67)/$Z67))*5)) -> 2.035332156 | AI67: =((($Y67-L67)/$Z67*-5+(1-(($Y67-L67)/$Z67))*5)) -> 4.454310533 | AJ67: =((($Y67-M67)/$Z67*-5+(1-(($Y67-M67)/$Z67))*5)) -> -1.003327602 | AK67: =((($Y67-N67)/$Z67*-5+(1-(($Y67-N67)/$Z67))*5)) -> 0.9289695834 | AL67: =((($Y67-O67)/$Z67*-5+(1-(($Y67-O67)/$Z67))*5)) -> 1.61366492 | AU67: =MAX(D67:F67)-MIN(D67:F67) -> 6.081493911 | AV67: =MAX(G67:I67)-MIN(G67:I67) -> 3.614505277 | AW67: =MAX(J67:L67)-MIN(J67:L67) -> 5.719429934 | AX67: =MAX(M67:O67)-MIN(M67:O67) -> 1.591522409 | AY67: =SUM(AU67:AX67) -> 17.00695153 | AZ67: =AU67/$AY67 -> 0.3575887131 | BA67: =AV67/$AY67 -> 0.2125310506 | BB67: =AW67/$AY67 -> 0.3362995375 | BC67: =AX67/$AY67 -> 0.09358069882 | BE67: =SUMPRODUCT(D67:F67,$D$440:$F$440) -> 2.728704104 | BF67: =SUMPRODUCT(G67:I67,$G$440:$I$440) -> -1.735377716 | BG67: =SUMPRODUCT(J67:L67,$J$440:$L$440) -> -3.322586547 | BH67: =SUMPRODUCT(M67:O67,$M$440:$O$440) -> -0.922215922 | BI67: =EXP(BE67) -> 15.31303006 | BJ67: =EXP(BF67) -> 0.1763335837 | BK67: =EXP(BG67) -> 0.03605944159 | BL67: =EXP(BH67) -> 0.3976369317 | BM67: =SUM(BI67:BL67) -> 15.92306002 | BN67: =BI67/$BM67 -> 0.9616888992 | BO67: =BJ67/$BM67 -> 0.01107410155 | BP67: =BK67/$BM67 -> 0.002264605016 | BQ67: =BL67/$BM67 -> 0.0249723942 | BR67: =BE67-MIN($BE67:$BH67) -> 6.051290651 | BS67: =BF67-MIN($BE67:$BH67) -> 1.587208831 | BT67: =BG67-MIN($BE67:$BH67) -> 0 | BU67: =BH67-MIN($BE67:$BH67) -> 2.400370625 | BV67: =SUM(BR67:BU67) -> 10.03887011 | BW67: =BR67/$BV67 -> 0.6027860294 | BX67: =BS67/$BV67 -> 0.1581063221 | BY67: =BT67/$BV67 -> 0 | BZ67: =BU67/$BV67 -> 0.2391076485
A68: 1081 | B68: 0.289595675 | C68: -0.356515178 | D68: -0.60700052 | E68: -0.166852575 | F68: 0.773853095 | G68: 0.047269779 | H68: 0.156768807 | I68: -0.204038585 | J68: -0.132818076 | K68: 0.200540027 | L68: -0.067721951 | M68: -1.076638346 | N68: -0.084171931 | O68: 1.160810276 | P68: 0.356515178 | R68: =EXP(SUMPRODUCT(C68:O68,C$440:O$440)) -> 0.1853416508 | S68: 1.42834321 | T68: 1.613684861 | V68: ='SG Data'!$AB67*R68/$T68 -> 0.1534967475 | W68: ='SG Data'!$AB67*S68/$T68 -> 1.182929126 | Y68: 1.160810276 | Z68: 2.237448622 | AA68: -2.901011798 | AB68: -0.9338249734 | AC68: 3.270542719 | AD68: 0.0231684158 | AE68: 0.5125607841 | AF68: -1.100023248 | AG68: -0.7817119878 | AH68: 0.7081908404 | AI68: -0.490772905 | AJ68: -5 | AK68: -0.5642940569 | AL68: 5 | AU68: 1.380853615 | AV68: 0.360807392 | AW68: 0.333358103 | AX68: 2.237448622 | AY68: 4.312467732 | AZ68: 0.3202003356 | BA68: 0.08366610823 | BB68: 0.07730100808 | BC68: 0.5188325481 | BE68: -0.166852575 | BF68: 0.047269779 | BG68: -0.132818076 | BH68: -1.076638346 | BI68: 0.8463243715 | BJ68: 1.048404809 | BK68: 0.8756243747 | BL68: 0.3407390493 | BM68: 3.111092604 | BN68: 0.272034452 | BO68: 0.3369892645 | BP68: 0.2814523661 | BQ68: 0.1095239174 | BR68: 0.909785771 | BS68: 1.123908125 | BT68: 0.94382027 | BU68: 0 | BV68: 2.977514166 | BW68: 0.3055521218 | BX68: 0.3774652486 | BY68: 0.3169826296 | BZ68: 0
A69: 1082 | B69: 0.426935699 | C69: -0.806487595 | D69: -0.710898204 | E69: 1.778467973 | F69: -1.067569769 | G69: 0.152874381 | H69: -0.697745999 | I69: 0.544871618 | J69: -3.218306452 | K69: 0.765941463 | L69: 2.452364989 | M69: 0.069826039 | N69: -0.519126863 | O69: 0.449300825 | P69: 0.806487595 | R69: 0.1321753731 | S69: 2.240026273 | T69: 2.372201647 | V69: ='SG Data'!$AB68*R69/$T69 -> 0.04283682452 | W69: ='SG Data'!$AB68*S69/$T69 -> 0.7259719427 | Y69: 2.452364989 | Z69: 5.670671441 | AA69: -0.57828685 | AB69: 3.811609837 | AC69: -1.207262746 | AD69: 0.9449412086 | AE69: -0.5550934678 | AF69: 1.6362125 | AG69: -5 | AH69: 2.026060241 | AI69: 5 | AJ69: 0.7984888125 | AK69: -0.2401058374 | AL69: 1.467677267 | AU69: 2.846037742 | AV69: 1.242617617 | AW69: 5.670671441 | AX69: 0.968427688 | AY69: 10.72775449 | AZ69: 0.2652966886 | BA69: 0.1158320335 | BB69: 0.5285981747 | BC69: 0.0902731032 | BE69: 1.778467973 | BF69: 0.152874381 | BG69: -3.218306452 | BH69: 0.069826039 | BI69: 5.920778674 | BJ69: 1.165178601 | BK69: 0.0400227814 | BL69: 1.072321623 | BM69: 8.198301679 | BN69: 0.7221957553 | BO69: 0.1421243871 | BP69: 0.004881838089 | BQ69: 0.1307980195 | BR69: 4.996774425 | BS69: 3.371180833 | BT69: 0 | BU69: 3.288132491 | BV69: 11.65608775 | BW69: 0.4286836658 | BX69: 0.2892206121 | BY69: 0 | BZ69: 0.2820957222
A70: 1084 | B70: 0.406363664 | C70: -0.614635677 | D70: -0.853452992 | E70: -1.069645347 | F70: 1.923098339 | G70: -0.171727596 | H70: -0.596523072 | I70: 0.768250668 | J70: -1.606310226 | K70: 0.799183853 | L70: 0.807126373 | M70: 0.228234852 | N70: 0.040535401 | O70: -0.268770253 | P70: 0.614635677 | R70: 0.03939627564 | S70: 1.84898285 | T70: 1.888379125 | V70: ='SG Data'!$AB69*R70/$T70 -> 0.02231712882 | W70: ='SG Data'!$AB69*S70/$T70 -> 1.04740836 | Y70: 1.923098339 | Z70: 3.529408565 | AA70: -2.86690257 | AB70: -3.479448131 | AC70: 5 | AD70: -0.9353455301 | AE70: -2.138933803 | AF70: 1.727928632 | AG70: -5 | AH70: 1.815572736 | AI70: 1.838076563 | AJ70: 0.1978824333 | AK70: -0.33393316 | AL70: -1.210299974 | AU70: 2.992743686 | AV70: 1.36477374 | AW70: 2.413436599 | AX70: 0.497005105 | AY70: 7.26795913 | AZ70: 0.4117722228 | BA70: 0.1877795012 | BB70: 0.3320652409 | BC70: 0.0683830352 | BE70: -1.069645347 | BF70: -0.171727596 | BG70: -1.606310226 | BH70: 0.228234852 | BI70: 0.343130188 | BJ70: 0.8422085629 | BK70: 0.2006265165 | BL70: 1.256380354 | BM70: 2.642345622 | BN70: 0.129858178 | BO70: 0.318735201 | BP70: 0.07592743164 | BQ70: 0.4754791894 | BR70: 0.536664879 | BS70: 1.43458263 | BT70: 0 | BU70: 1.834545078 | BV70: 3.805792587 | BW70: 0.141012645 | BX70: 0.3769471397 | BY70: 0 | BZ70: 0.4820402153
A71: 1085 | B71: 0.723583144 | C71: -0.288771985 | D71: 2.024390081 | E71: 0.026669618 | F71: -2.051059699 | G71: -2.43398227 | H71: 0.584729063 | I71: 1.849253207 | J71: -3.035525821 | K71: -0.461768362 | L71: 3.497294183 | M71: -1.027960729 | N71: 0.302590437 | O71: 0.725370292 | P71: 0.288771985 | R71: 0.001159726373 | S71: 1.334787342 | T71: 1.335947069 | V71: ='SG Data'!$AB70*R71/$T71 -> 0.0009620437582 | W71: ='SG Data'!$AB70*S71/$T71 -> 1.10726449 | Y71: 3.497294183 | Z71: 6.532820004 | AA71: 2.745377798 | AB71: -0.3125978718 | AC71: -3.493045696 | AD71: -4.079197727 | AE71: 0.5416418664 | AF71: 2.477290091 | AG71: -5 | AH71: -1.06026577 | AI71: 5 | AJ71: -1.926954836 | AK71: 0.1097630976 | AL71: 0.7569259687 | AU71: 4.07544978 | AV71: 4.283235477 | AW71: 6.532820004 | AX71: 1.753331021 | AY71: 16.64483628 | AZ71: 0.244847694 | BA71: 0.2573311869 | BB71: 0.3924832839 | BC71: 0.1053378352 | BE71: 0.026669618 | BF71: -2.43398227 | BG71: -3.035525821 | BH71: -1.027960729 | BI71: 1.027028435 | BJ71: 0.08768694328 | BK71: 0.04804939085 | BL71: 0.3577357373 | BM71: 1.520500506 | BN71: 0.675454188 | BO71: 0.05766978894 | BP71: 0.03160103574 | BQ71: 0.2352749873 | BR71: 3.062195439 | BS71: 0.601543551 | BT71: 0 | BU71: 2.007565092 | BV71: 5.671304082 | BW71: 0.5399455566 | BX71: 0.1060679417 | BY71: 0 | BZ71: 0.3539865017
A72: 1088 | B72: 0.441548758 | C72: -0.830444481 | D72: -1.818259385 | E72: 0.233492718 | F72: 1.584766667 | G72: 1.025562186 | H72: 0.0635348 | I72: -1.089096986 | J72: 0.699266583 | K72: 1.547909886 | L72: -2.247176469 | M72: 0.101388676 | N72: -0.110923001 | O72: 0.009534325 | P72: 0.830444481 | R72: 3.418718188 | S72: 2.294338303 | T72: 5.713056491 | V72: ='SG Data'!$AB71*R72/$T72 -> 0.5818851654 | W72: ='SG Data'!$AB71*S72/$T72 -> 0.3905093517 | Y72: 1.584766667 | Z72: 3.831943136 | AA72: -3.880679935 | AB72: 1.473658661 | AC72: 5 | AD72: 3.540676463 | AE72: 1.030129329 | AF72: -1.977827066 | AG72: 2.689161732 | AH72: 4.903816994 | AI72: -5 | AJ72: 1.128914396 | AK72: 0.5748569125 | AL72: 0.8892074175 | AU72: 3.403026052 | AV72: 2.114659172 | AW72: 3.795086355 | AX72: 0.212311677 | AY72: 9.525083256 | AZ72: 0.3572699535 | BA72: 0.2220095211 | BB72: 0.3984307804 | BC72: 0.02228974501 | BE72: 0.233492718 | BF72: 1.025562186 | BG72: 0.699266583 | BH72: 0.101388676 | BI72: 1.263003631 | BJ72: 2.788662767 | BK72: 2.012276328 | BL72: 1.106706709 | BM72: 7.170649435 | BN72: 0.1761351802 | BO72: 0.3888996098 | BP72: 0.2806267894 | BQ72: 0.1543384206 | BR72: 0.132104042 | BS72: 0.92417351 | BT72: 0.597877907 | BU72: 0 | BV72: 1.654155459 | BW72: 0.07986192669 | BX72: 0.5586980988 | BY72: 0.3614399745 | BZ72: 0
A73: 1090 | B73: 0.413697265 | C73: -0.813278387 | D73: 1.614784064 | E73: -2.219849519 | F73: 0.605065455 | G73: 1.459063372 | H73: -0.232904064 | I73: -1.226159308 | J73: -0.737565268 | K73: 0.426401409 | L73: 0.311163859 | M73: -0.570919582 | N73: -0.49588719 | O73: 1.066806772 | P73: 0.813278387 | R73: 0.05599183603 | S73: 2.255289592 | T73: 2.311281428 | V73: ='SG Data'!$AB72*R73/$T73 -> 0.03735217292 | W73: ='SG Data'!$AB72*S73/$T73 -> 1.504504456 | Y73: 1.614784064 | Z73: 3.834633583 | AA73: 5 | AB73: -5 | AC73: 2.366844609 | AD73: 4.593909852 | AE73: 0.1815784012 | AF73: -2.408643644 | AG73: -1.134482685 | AH73: 1.900922528 | AI73: 1.600404767 | AJ73: -0.6999022167 | AK73: -0.5042319124 | AL73: 3.570978739 | AU73: 3.834633583 | AV73: 2.68522268 | AW73: 1.163966677 | AX73: 1.637726354 | AY73: 9.321549294 | AZ73: 0.4113729877 | BA73: 0.2880661353 | BB73: 0.1248683712 | BC73: 0.1756925059 | BE73: -2.219849519 | BF73: 1.459063372 | BG73: -0.737565268 | BH73: -0.570919582 | BI73: 0.1086254537 | BJ73: 4.301928334 | BK73: 0.4782769753 | BL73: 0.5650056307 | BM73: 5.453836394 | BN73: 0.01991725564 | BO73: 0.7887893995 | BP73: 0.08769551207 | BQ73: 0.1035978328 | BR73: 0 | BS73: 3.678912891 | BT73: 1.482284251 | BU73: 1.648929937 | BV73: 6.810127079 | BW73: 0 | BX73: 0.5402120766 | BY73: 0.217658824 | BZ73: 0.2421290995
A74: 1091 | B74: 0.482796621 | C74: -1.242643778 | D74: 0.198560139 | E74: 1.653397934 | F74: -1.851958073 | G74: -1.181229668 | H74: 0.550728918 | I74: 0.63050075 | J74: -2.680586842 | K74: 0.17139714 | L74: 2.509189702 | M74: -0.348862019 | N74: 0.636831539 | O74: -0.28796952 | P74: 1.242643778 | R74: 0.02237246375 | S74: 3.464761427 | T74: 3.487133891 | V74: ='SG Data'!$AB73*R74/$T74 -> 0.003660974814 | W74: ='SG Data'!$AB73*S74/$T74 -> 0.5669650182 | Y74: 2.509189702 | Z74: 5.189776544 | AA74: 0.5477282241 | AB74: 3.351004594 | AC74: -3.403344032 | AD74: -2.110940787 | AE74: 1.226310001 | AF74: 1.380019571 | AG74: -5 | AH74: 0.4953887857 | AI74: 5 | AJ74: -0.507080501 | AK74: 1.392218148 | AL74: -0.3897488616 | AU74: 3.505356007 | AV74: 1.811730418 | AW74: 5.189776544 | AX74: 0.985693558 | AY74: 11.49255653 | AZ74: 0.3050109868 | BA74: 0.1576438118 | BB74: 0.4515772041 | BC74: 0.08576799737 | BE74: 1.653397934 | BF74: -1.181229668 | BG74: -2.680586842 | BH74: -0.348862019 | BI74: 5.224702895 | BJ74: 0.30690112 | BK74: 0.06852293022 | BL74: 0.7054904678 | BM74: 6.305617413 | BN74: 0.8285791149 | BO74: 0.0486710658 | BP74: 0.01086696603 | BQ74: 0.1118828533 | BR74: 4.333984776 | BS74: 1.499357174 | BT74: 0 | BU74: 2.331724823 | BV74: 8.165066773 | BW74: 0.5307959992 | BX74: 0.1836307302 | BY74: 0 | BZ74: 0.2855732706
A75: 1092 | B75: 0.405309142 | C75: -0.719065407 | D75: 2.139083214 | E75: -2.102702653 | F75: -0.036380561 | G75: 0.343724596 | H75: -0.149324865 | I75: -0.194399731 | J75: -1.473681055 | K75: 0.532327876 | L75: 0.941353179 | M75: 0.307017797 | N75: -0.706033085 | O75: 0.399015288 | P75: 0.719065407 | R75: 0.02612907181 | S75: 2.052514049 | T75: 2.078643121 | V75: ='SG Data'!$AB74*R75/$T75 -> 0.03269595777 | W75: ='SG Data'!$AB74*S75/$T75 -> 2.568361905 | Y75: 2.139083214 | Z75: 4.241785867 | AA75: 5 | AB75: -5 | AC75: -0.1286506279 | AD75: 0.7674463674 | AE75: -0.3949165534 | AF75: -0.5011804418 | AG75: -3.517083093 | AH75: 1.212078147 | AI75: 2.176354317 | AJ75: 0.6809101769 | AK75: -1.707354846 | AL75: 0.8977940411 | AU75: 4.241785867 | AV75: 0.538124327 | AW75: 2.415034234 | AX75: 1.105048373 | AY75: 8.299992801 | AZ75: 0.5110589815 | BA75: 0.0648343125 | BB75: 0.2909682324 | BC75: 0.1331384737 | BE75: -2.102702653 | BF75: 0.343724596 | BG75: -1.473681055 | BH75: 0.307017797 | BI75: 0.1221259178 | BJ75: 1.41019021 | BK75: 0.2290806727 | BL75: 1.35936516 | BM75: 3.120761961 | BN75: 0.0391333653 | BO75: 0.4518736859 | BP75: 0.0734053656 | BQ75: 0.4355875832 | BR75: 0 | BS75: 2.446427249 | BT75: 0.629021598 | BU75: 2.40972045 | BV75: 5.485169297 | BW75: 0 | BX75: 0.4460076101 | BY75: 0.1146767883 | BZ75: 0.4393156017
A76: 1094 | B76: 0.434917956 | C76: -1.021913175 | D76: 1.418794806 | E76: -2.844627312 | F76: 1.425832506 | G76: -0.596012877 | H76: 0.70037717 | I76: -0.104364294 | J76: 1.175956436 | K76: -1.094463259 | L76: -0.081493177 | M76: -0.777236259 | N76: 1.222637951 | O76: -0.445401692 | P76: 1.021913175 | R76: 0.01718302696 | S76: 2.778505449 | T76: 2.795688476 | V76: ='SG Data'!$AB75*R76/$T76 -> 0.009382282955 | W76: ='SG Data'!$AB75*S76/$T76 -> 1.517120609 | Y76: 1.425832506 | Z76: 4.270459818 | AA76: 4.983520042 | AB76: -5 | AC76: 5 | AD76: 0.2655089401 | AE76: 3.301224302 | AF76: 1.416786798 | AG76: 4.41487315 | AH76: -0.9016964739 | AI76: 1.470343365 | AJ76: -0.1588560925 | AK76: 4.52418577 | AL76: 0.6181903642 | AU76: 4.270459818 | AV76: 1.296390047 | AW76: 2.270419695 | AX76: 1.99987421 | AY76: 9.83714377 | AZ76: 0.4341158285 | BA76: 0.1317852089 | BB76: 0.2308007027 | BC76: 0.2032982598 | BE76: -2.844627312 | BF76: -0.596012877 | BG76: 1.175956436 | BH76: -0.777236259 | BI76: 0.05815593672 | BJ76: 0.5510041837 | BK76: 3.241241502 | BL76: 0.4596746791 | BM76: 4.310076301 | BN76: 0.01349301791 | BO76: 0.1278409349 | BP76: 0.7520148775 | BQ76: 0.1066511697 | BR76: 0 | BS76: 2.248614435 | BT76: 4.020583748 | BU76: 2.067391053 | BV76: 8.336589236 | BW76: 0 | BX76: 0.2697283471 | BY76: 0.4822816183 | BZ76: 0.2479900346
A77: 1095 | B77: 0.40447124 | C77: -0.636866756 | D77: -0.494793503 | E77: -0.472291848 | F77: 0.967085351 | G77: 0.414880112 | H77: -2.261364698 | I77: 1.846484587 | J77: -1.346808345 | K77: 1.018976676 | L77: 0.327831669 | M77: -0.110257436 | N77: -0.225526382 | O77: 0.335783819 | P77: 0.636866756 | R77: 0.1163276765 | S77: 1.890548041 | T77: 2.006875718 | V77: ='SG Data'!$AB76*R77/$T77 -> 0.07746534341 | W77: ='SG Data'!$AB76*S77/$T77 -> 1.25896053 | Y77: 1.846484587 | Z77: 4.107849285 | AA77: -0.6995228587 | AB77: -0.6447456421 | AC77: 2.859222247 | AD77: 1.514953749 | AE77: -5 | AF77: 5 | AG77: -2.773637031 | AH77: 2.985544616 | AI77: 1.303046162 | AJ77: 0.2365778605 | AK77: -0.04402870029 | AL77: 1.322404589 | AU77: 1.461878854 | AV77: 4.107849285 | AW77: 2.365785021 | AX77: 0.561310201 | AY77: 8.496823361 | AZ77: 0.1720500465 | BA77: 0.4834570651 | BB77: 0.2784317056 | BC77: 0.06606118277 | BE77: -0.472291848 | BF77: 0.414880112 | BG77: -1.346808345 | BH77: -0.110257436 | BI77: 0.6235714983 | BJ77: 1.514189197 | BK77: 0.2600689879 | BL77: 0.895603545 | BM77: 3.293433228 | BN77: 0.1893378293 | BO77: 0.459760102 | BP77: 0.07896592095 | BQ77: 0.2719361478 | BR77: 0.874516497 | BS77: 1.761688457 | BT77: 0 | BU77: 1.236550909 | BV77: 3.872755863 | BW77: 0.2258124519 | BX77: 0.4548927222 | BY77: 0 | BZ77: 0.3192948259
A78: 1096 | B78: 0.411456171 | C78: -0.940346082 | D78: 2.64385687 | E78: 0.435896494 | F78: -3.079753364 | G78: 0.682004639 | H78: -0.133935567 | I78: -0.548069072 | J78: -0.566716601 | K78: 0.6877924 | L78: -0.121075799 | M78: 0.013373812 | N78: -0.357226394 | O78: 0.343852582 | P78: 0.940346082 | R78: 0.6867480881 | S78: 2.560867535 | T78: 3.247615623 | V78: ='SG Data'!$AB77*R78/$T78 -> 0.2031064407 | W78: ='SG Data'!$AB77*S78/$T78 -> 0.75737916 | Y78: 2.64385687 | Z78: 5.723610234 | AA78: 5 | AB78: 1.142364197 | AC78: -5 | AD78: 1.572351801 | AE78: 0.1467826714 | AF78: -0.5767702752 | AG78: -0.6093502872 | AH78: 1.582463882 | AI78: 0.1692506024 | AJ78: 0.4041541082 | AK78: -0.2433396778 | AL78: 0.9815497667 | AU78: 5.723610234 | AV78: 1.230073711 | AW78: 1.254509001 | AX78: 0.701078976 | AY78: 8.909271922 | AZ78: 0.6424329939 | BA78: 0.138066693 | BB78: 0.1408093739 | BC78: 0.0786909393 | BE78: 0.435896494 | BF78: 0.682004639 | BG78: -0.566716601 | BH78: 0.013373812 | BI78: 1.54634873 | BJ78: 1.977838613 | BK78: 0.5673853361 | BL78: 1.013463641 | BM78: 5.105036321 | BN78: 0.302906509 | BO78: 0.3874289014 | BP78: 0.1111422721 | BQ78: 0.1985223175 | BR78: 1.002613095 | BS78: 1.24872124 | BT78: 0 | BU78: 0.580090413 | BV78: 2.831424748 | BW78: 0.3541019749 | BX78: 0.4410222242 | BY78: 0 | BZ78: 0.2048758009
A79: 1098 | B79: 0.459226415 | C79: -0.249535539 | D79: -1.651829591 | E79: 0.684399712 | F79: 0.967429879 | G79: -0.257825471 | H79: -1.07465257 | I79: 1.332478041 | J79: -2.539695538 | K79: 1.970669427 | L79: 0.569026111 | M79: -0.291184179 | N79: -1.117732151 | O79: 1.40891633 | P79: 0.249535539 | R79: 0.0703803612 | S79: 1.283429175 | T79: 1.353809537 | V79: ='SG Data'!$AB78*R79/$T79 -> 0.04276177163 | W79: ='SG Data'!$AB78*S79/$T79 -> 0.7797872072 | Y79: 1.970669427 | Z79: 4.510364965 | AA79: -3.031498662 | AB79: 2.148191499 | AC79: 2.775702065 | AD79: 0.05916945681 | AE79: -1.751830552 | AF79: 3.585055997 | AG79: -5 | AH79: 5 | AI79: 1.892394902 | AJ79: -0.0147906512 | AK79: -1.847342958 | AL79: 3.754528511 | AU79: 2.61925947 | AV79: 2.407130611 | AW79: 4.510364965 | AX79: 2.526648481 | AY79: 12.06340353 | AZ79: 0.217124418 | BA79: 0.199539923 | BB79: 0.3738882609 | BC79: 0.2094473981 | BE79: 0.684399712 | BF79: -0.257825471 | BG79: -2.539695538 | BH79: -0.291184179 | BI79: 1.982581358 | BJ79: 0.7727300841 | BK79: 0.07889041527 | BL79: 0.747378014 | BM79: 3.581579872 | BN79: 0.5535493914 | BO79: 0.2157511801 | BP79: 0.02202670835 | BQ79: 0.2086727201 | BR79: 3.22409525 | BS79: 2.281870067 | BT79: 0 | BU79: 2.248511359 | BV79: 7.754476676 | BW79: 0.4157721255 | BX79: 0.2942648695 | BY79: 0 | BZ79: 0.289963005
A80: 1099 | B80: 0.424823076 | C80: -0.855373973 | D80: 0.666681635 | E80: -0.036330853 | F80: -0.630350782 | G80: 2.406900151 | H80: -1.420328211 | I80: -0.98657194 | J80: -0.488361293 | K80: 0.637238338 | L80: -0.148877045 | M80: 0.289446553 | N80: -0.558264156 | O80: 0.268817603 | P80: 0.855373973 | R80: 3.729523901 | S80: 2.352253896 | T80: 6.081777796 | V80: ='SG Data'!$AB79*R80/$T80 -> 1.276733719 | W80: ='SG Data'!$AB79*S80/$T80 -> 0.8052507352 | Y80: 2.406900151 | Z80: 3.827228362 | AA80: 0.4530580582 | AB80: -1.383812966 | AC80: -2.935902031 | AD80: 5 | AE80: -5 | AF80: -3.866656938 | AG80: -2.564903816 | AH80: 0.3761269367 | AI80: -1.677880059 | AJ80: -0.5326032254 | AK80: -2.747549993 | AL80: -0.5865037196 | AU80: 1.297032417 | AV80: 3.827228362 | AW80: 1.125599631 | AX80: 0.847710709 | AY80: 7.097571119 | AZ80: 0.1827431378 | BA80: 0.5392307168 | BB80: 0.1585894121 | BC80: 0.1194367333 | BE80: -0.036330853 | BF80: 2.406900151 | BG80: -0.488361293 | BH80: 0.289446553 | BI80: 0.9643211921 | BJ80: 11.09950098 | BK80: 0.6136311324 | BL80: 1.335688051 | BM80: 14.01314136 | BN80: 0.06881549021 | BO80: 0.7920780002 | BP80: 0.04378969116 | BQ80: 0.09531681844 | BR80: 0.45203044 | BS80: 2.895261444 | BT80: 0 | BU80: 0.777807846 | BV80: 4.12509973 | BW80: 0.1095804876 | BX80: 0.7018645932 | BY80: 0 | BZ80: 0.1885549191
A81: 1100 | B81: 0.455294235 | C81: -0.893886603 | D81: -0.474173331 | E81: -1.600503174 | F81: 2.074676505 | G81: 0.244701632 | H81: -0.621980837 | I81: 0.377279205 | J81: 0.383775755 | K81: -0.396173336 | L81: 0.012397581 | M81: -0.898798502 | N81: -0.183343785 | O81: 1.082142287 | P81: 0.893886603 | R81: 0.06299430887 | S81: 2.444612449 | T81: 2.507606758 | V81: ='SG Data'!$AB80*R81/$T81 -> 0.04589161309 | W81: ='SG Data'!$AB80*S81/$T81 -> 1.780910223 | Y81: 2.074676505 | Z81: 3.675179679 | AA81: -1.93530673 | AB81: -5 | AC81: 5 | AD81: 0.02071998423 | AE81: -2.337484361 | AF81: 0.3814576476 | AG81: 0.3991344705 | AH81: -1.723072222 | AI81: -0.6113689782 | AJ81: -3.090692882 | AK81: -1.143972505 | AL81: 2.299358658 | AU81: 3.675179679 | AV81: 0.999260042 | AW81: 0.779949091 | AX81: 1.980940789 | AY81: 7.435329601 | AZ81: 0.4942860473 | BA81: 0.1343935099 | BB81: 0.1048977158 | BC81: 0.2664227271 | BE81: -1.600503174 | BF81: 0.244701632 | BG81: 0.383775755 | BH81: -0.898798502 | BI81: 0.2017949545 | BJ81: 1.277240169 | BK81: 1.467816254 | BL81: 0.407058446 | BM81: 3.353909823 | BN81: 0.06016707815 | BO81: 0.3808212611 | BP81: 0.4376433272 | BQ81: 0.1213683335 | BR81: 0 | BS81: 1.845204806 | BT81: 1.984278929 | BU81: 0.701704672 | BV81: 4.531188407 | BW81: 0 | BX81: 0.4072231477 | BY81: 0.4379157852 | BZ81: 0.1548610671
A82: 1101 | B82: 0.552972699 | C82: -1.871223527 | D82: 2.95356614 | E82: -0.202878946 | F82: -2.750687194 | G82: 2.269783106 | H82: -0.335111741 | I82: -1.934671365 | J82: -1.164193318 | K82: -0.41221321 | L82: 1.576406528 | M82: -0.13528741 | N82: -0.380157508 | O82: 0.515444918 | P82: 1.871223527 | R82: 0.3316085424 | S82: 6.496239864 | T82: 6.827848406 | V82: ='SG Data'!$AB81*R82/$T82 -> 0.08553396171 | W82: ='SG Data'!$AB81*S82/$T82 -> 1.675617666 | Y82: 2.95356614 | Z82: 5.704253334 | AA82: 5 | AB82: -0.5334938706 | AC82: -5 | AD82: 3.801275129 | AE82: -0.7653082506 | AF82: -3.569460749 | AG82: -2.218752774 | AH82: -0.9004731258 | AI82: 2.585732029 | AJ82: -0.415000648 | AK82: -0.8442769856 | AL82: 0.725783763 | AU82: 5.704253334 | AV82: 4.204454471 | AW82: 2.740599846 | AX82: 0.895602426 | AY82: 13.54491008 | AZ82: 0.4211363015 | BA82: 0.3104084447 | BB82: 0.2023342961 | BC82: 0.06612095768 | BE82: -0.202878946 | BF82: 2.269783106 | BG82: -1.164193318 | BH82: -0.13528741 | BI82: 0.8163770612 | BJ82: 9.677301638 | BK82: 0.3121743859 | BL82: 0.8734648331 | BM82: 11.67931792 | BN82: 0.06989937828 | BO82: 0.8285844863 | BP82: 0.02672881997 | BQ82: 0.07478731543 | BR82: 0.961314372 | BS82: 3.433976424 | BT82: 0 | BU82: 1.028905908 | BV82: 5.424196704 | BW82: 0.1772270484 | BX82: 0.6330847887 | BY82: 0 | BZ82: 0.1896881629
A83: 1102 | B83: 0.445363841 | C83: -0.520840738 | D83: 0.601920291 | E83: 2.351035559 | F83: -2.952955851 | G83: -1.133200652 | H83: -0.181454134 | I83: 1.314654786 | J83: -1.57966452 | K83: 0.294760097 | L83: 1.284904423 | M83: 0.226077932 | N83: 0.044860605 | O83: -0.270938537 | P83: 0.520840738 | R83: 0.5186155514 | S83: 1.683442389 | T83: 2.20205794 | V83: ='SG Data'!$AB82*R83/$T83 -> 0.3014969658 | W83: ='SG Data'!$AB82*S83/$T83 -> 0.9786686323 | Y83: 2.351035559 | Z83: 5.30399141 | AA83: 1.702266024 | AB83: 5 | AC83: -5 | AD83: -1.569083435 | AE83: 0.2253133589 | AF83: 3.046036102 | AG83: -2.410834172 | AH83: 1.123154615 | AI83: 2.989945583 | AJ83: 0.993663144 | AK83: 0.6520009636 | AL83: 0.05660191859 | AU83: 5.30399141 | AV83: 2.447855438 | AW83: 2.864568943 | AX83: 0.497016469 | AY83: 11.11343226 | AZ83: 0.4772595258 | BA83: 0.2202609762 | BB83: 0.2577573585 | BC83: 0.0447221396 | BE83: 2.351035559 | BF83: -1.133200652 | BG83: -1.57966452 | BH83: 0.226077932 | BI83: 10.49643378 | BJ83: 0.3220009922 | BK83: 0.2060442103 | BL83: 1.253673363 | BM83: 12.27815234 | BN83: 0.8548870778 | BO83: 0.02622552509 | BP83: 0.01678136943 | BQ83: 0.1021060277 | BR83: 3.930700079 | BS83: 0.446463868 | BT83: 0 | BU83: 1.805742452 | BV83: 6.182906399 | BW83: 0.6357366302 | BX83: 0.07220938491 | BY83: 0 | BZ83: 0.2920539849
A84: 1103 | B84: 0.495335074 | C84: -0.821306696 | D84: 2.844935824 | E84: -2.060656957 | F84: -0.784278867 | G84: -0.719266896 | H84: 0.127184424 | I84: 0.592082471 | J84: 1.17568085 | K84: -0.76118177 | L84: -0.41449908 | M84: -0.602368819 | N84: 0.745838365 | O84: -0.143469547 | P84: 0.821306696 | R84: 0.048416311 | S84: 2.27346863 | T84: 2.321884941 | V84: ='SG Data'!$AB83*R84/$T84 -> 0.01356090253 | W84: ='SG Data'!$AB83*S84/$T84 -> 0.6367747949 | Y84: 2.844935824 | Z84: 4.905592781 | AA84: 5 | AB84: -5 | AC84: -2.398116503 | AD84: -2.265590274 | AE84: -0.5401080386 | AF84: 0.407581808 | AG84: 1.59724105 | AH84: -2.35103331 | AI84: -1.644324243 | AJ84: -2.027294757 | AK84: 0.7210116031 | AL84: -1.091833351 | AU84: 4.905592781 | AV84: 1.311349367 | AW84: 1.93686262 | AX84: 1.348207184 | AY84: 9.502011952 | AZ84: 0.5162688498 | BA84: 0.1380075476 | BB84: 0.2038371063 | BC84: 0.1418864963 | BE84: -2.060656957 | BF84: -0.719266896 | BG84: 1.17568085 | BH84: -0.602368819 | BI84: 0.1273702656 | BJ84: 0.4871092268 | BK84: 3.240348384 | BL84: 0.5475131392 | BM84: 4.402341016 | BN84: 0.02893239419 | BO84: 0.1106477724 | BP84: 0.7360511992 | BQ84: 0.1243686342 | BR84: 0 | BS84: 1.341390061 | BT84: 3.236337807 | BU84: 1.458288138 | BV84: 6.036016006 | BW84: 0 | BX84: 0.2222310311 | BY84: 0.5361711771 | BZ84: 0.2415977917
A85: 1106 | B85: 0.441668161 | C85: -1.420780879 | D85: 0.809276447 | E85: -1.47076032 | F85: 0.661483873 | G85: 0.088373724 | H85: -0.552649282 | I85: 0.464275559 | J85: -1.474207862 | K85: 0.206584241 | L85: 1.267623621 | M85: -0.036513333 | N85: 0.479227522 | O85: -0.44271419 | P85: 1.420780879 | R85: 0.01338141239 | S85: 4.140352292 | T85: 4.153733705 | V85: ='SG Data'!$AB84*R85/$T85 -> 0.00357019427 | W85: ='SG Data'!$AB84*S85/$T85 -> 1.10465634 | Y85: 1.267623621 | Z85: 2.741831483 | AA85: 3.328317488 | AB85: -4.987426135 | AC85: 2.789288832 | AD85: 0.6990431239 | AE85: -1.638894164 | AF85: 2.070031229 | AG85: -5 | AH85: 1.130180186 | AI85: 5 | AJ85: 0.2435554042 | AK85: 2.124563986 | AL85: -1.237939208 | AU85: 2.280036767 | AV85: 1.016924841 | AW85: 2.741831483 | AX85: 0.921941712 | AY85: 6.960734803 | AZ85: 0.3275569076 | BA85: 0.146094467 | BB85: 0.393899719 | BC85: 0.1324489063 | BE85: -1.47076032 | BF85: 0.088373724 | BG85: -1.474207862 | BH85: -0.036513333 | BI85: 0.2297507347 | BJ85: 1.0923963 | BK85: 0.2289600232 | BL85: 0.9641452389 | BM85: 2.515252297 | BN85: 0.09134301753 | BO85: 0.4343088372 | BP85: 0.09102865085 | BQ85: 0.3833194944 | BR85: 0.003447542 | BS85: 1.562581586 | BT85: 0 | BU85: 1.437694529 | BV85: 3.003723657 | BW85: 0.00114775605 | BX85: 0.5202148281 | BY85: 0 | BZ85: 0.4786374158
A86: 1107 | B86: 0.344906107 | C86: -0.561527223 | D86: -0.133883072 | E86: 1.309340941 | F86: -1.175457869 | G86: 0.843313077 | H86: 0.841884283 | I86: -1.68519736 | J86: 0.2917526 | K86: 0.080288248 | L86: -0.372040848 | M86: -0.892920102 | N86: 0.410633566 | O86: 0.482286536 | P86: 0.561527223 | R86: 2.691124922 | S86: 1.75334821 | T86: 4.444473133 | V86: ='SG Data'!$AB85*R86/$T86 -> 0.4084565432 | W86: ='SG Data'!$AB85*S86/$T86 -> 0.2661216293 | Y86: 1.309340941 | Z86: 2.994538301 | AA86: 0.1804790324 | AB86: 5 | AC86: -3.29776934 | AD86: 3.443740513 | AE86: 3.43896918 | AF86: -5 | AG86: 1.60185231 | AH86: 0.8956855132 | AI86: -0.6148281304 | AJ86: -2.35425906 | AK86: 1.998844948 | AL86: 2.238123805 | AU86: 2.48479881 | AV86: 2.528510437 | AW86: 0.663793448 | AX86: 1.375206638 | AY86: 7.052309333 | AZ86: 0.3523383182 | BA86: 0.3585365187 | BB86: 0.09412426719 | BC86: 0.1950008959 | BE86: 1.309340941 | BF86: 0.843313077 | BG86: 0.2917526 | BH86: -0.892920102 | BI86: 3.70373193 | BJ86: 2.324054006 | BK86: 1.338771765 | BL86: 0.4094583452 | BM86: 7.776016045 | BN86: 0.4763019917 | BO86: 0.2988746412 | BP86: 0.1721667955 | BQ86: 0.05265657154 | BR86: 2.202261043 | BS86: 1.736233179 | BT86: 1.184672702 | BU86: 0 | BV86: 5.123166924 | BW86: 0.4298632224 | BX86: 0.3388984206 | BY86: 0.231238357 | BZ86: 0
A87: 1108 | B87: 0.505394019 | C87: -1.374073285 | D87: 3.615150184 | E87: -1.11836774 | F87: -2.496782444 | G87: 0.147797486 | H87: -0.17034025 | I87: 0.022542765 | J87: -0.12004902 | K87: -0.006511161 | L87: 0.126560181 | M87: -0.015757367 | N87: 0.125108535 | O87: -0.109351168 | P87: 1.374073285 | R87: 0.08370555581 | S87: 3.951413192 | T87: 4.035118748 | V87: ='SG Data'!$AB86*R87/$T87 -> 0.01399362556 | W87: ='SG Data'!$AB86*S87/$T87 -> 0.6605845469 | Y87: 3.615150184 | Z87: 6.111932628 | AA87: 5 | AB87: -2.744715481 | AC87: -5 | AD87: -0.6730872361 | AE87: -1.193606285 | AF87: -0.8780219575 | AG87: -1.111322607 | AH87: -0.9255583552 | AI87: -0.7078345187 | AJ87: -0.9406864768 | AK87: -0.7102096201 | AL87: -1.093819384 | AU87: 6.111932628 | AV87: 0.318137736 | AW87: 0.246609201 | AX87: 0.234459703 | AY87: 6.911139268 | AZ87: 0.884359639 | BA87: 0.04603260384 | BB87: 0.03568285798 | BC87: 0.0339248992 | BE87: -1.11836774 | BF87: 0.147797486 | BG87: -0.12004902 | BH87: -0.015757367 | BI87: 0.326812803 | BJ87: 1.159278103 | BK87: 0.8868769609 | BL87: 0.9843661308 | BM87: 3.357333997 | BN87: 0.09734295225 | BO87: 0.345297222 | BP87: 0.2641610759 | BQ87: 0.2931987498 | BR87: 0 | BS87: 1.266165226 | BT87: 0.99831872 | BU87: 1.102610373 | BV87: 3.367094319 | BW87: 0 | BX87: 0.3760409142 | BY87: 0.2964926508 | BZ87: 0.327466435
A88: 1109 | B88: 0.320203728 | C88: -0.447806164 | D88: -1.416756706 | E88: 0.462834475 | F88: 0.953922231 | G88: -0.579830397 | H88: 0.464397726 | I88: 0.115432671 | J88: -0.250586402 | K88: -0.0235148 | L88: 0.274101202 | M88: -1.09433423 | N88: 0.729875046 | O88: 0.364459185 | P88: 0.447806164 | R88: 0.1481214523 | S88: 1.564875337 | T88: 1.712996789 | V88: ='SG Data'!$AB87*R88/$T88 -> 0.1579620831 | W88: ='SG Data'!$AB87*S88/$T88 -> 1.668839754 | Y88: 0.953922231 | Z88: 2.370678937 | AA88: -5 | AB88: 2.928493191 | AC88: 5 | AD88: -1.469676699 | AE88: 2.935087298 | AF88: 1.463082592 | AG88: -0.08085938674 | AH88: 0.8769742467 | AI88: 2.132378331 | AJ88: -3.639957225 | AK88: 4.054923965 | AL88: 2.513526455 | AU88: 2.370678937 | AV88: 1.044228123 | AW88: 0.524687604 | AX88: 1.824209276 | AY88: 5.76380394 | AZ88: 0.4113045762 | BA88: 0.1811699589 | BB88: 0.09103148016 | BC88: 0.3164939847 | BE88: 0.462834475 | BF88: -0.579830397 | BG88: -0.250586402 | BH88: -1.09433423 | BI88: 1.588570373 | BJ88: 0.5599933351 | BK88: 0.7783442266 | BL88: 0.3347624075 | BM88: 3.261670342 | BN88: 0.4870419773 | BO88: 0.1716891275 | BP88: 0.2386336279 | BQ88: 0.1026352674 | BR88: 1.557168705 | BS88: 0.514503833 | BT88: 0.843747828 | BU88: 0 | BV88: 2.915420366 | BW88: 0.534114642 | BX88: 0.1764767232 | BY88: 0.2894086348 | BZ88: 0
A89: 1111 | B89: 0.345252084 | C89: -0.681462961 | D89: -0.818416375 | E89: 0.504590956 | F89: 0.313825419 | G89: 1.375249766 | H89: -0.178385047 | I89: -1.196864719 | J89: -0.999037955 | K89: 0.117577347 | L89: 0.881460608 | M89: 0.58818688 | N89: -0.613619288 | O89: 0.025432408 | P89: 0.681462961 | R89: 2.197953469 | S89: 1.976767552 | T89: 4.174721021 | V89: ='SG Data'!$AB88*R89/$T89 -> 0.8036901889 | W89: ='SG Data'!$AB88*S89/$T89 -> 0.7228127026 | Y89: 1.375249766 | Z89: 2.572114485 | AA89: -3.528648914 | AB89: 1.615007555 | AC89: 0.8733394132 | AD89: 5 | AE89: -1.040301946 | AF89: -5 | AG89: -4.230878854 | AH89: 0.1103559879 | AI89: 3.08022092 | AJ89: 1.940016121 | AK89: -2.732428185 | AL89: -0.2478898815 | AU89: 1.323007331 | AV89: 2.572114485 | AW89: 1.880498563 | AX89: 1.201806168 | AY89: 6.977426547 | AZ89: 0.1896125057 | BA89: 0.3686336886 | BB89: 0.2695117677 | BC89: 0.1722420379 | BE89: 0.504590956 | BF89: 1.375249766 | BG89: -0.999037955 | BH89: 0.58818688 | BI89: 1.656307879 | BJ89: 3.95606469 | BK89: 0.368233528 | BL89: 1.800720531 | BM89: 7.781326628 | BN89: 0.2128567477 | BO89: 0.5084049133 | BP89: 0.0473227183 | BQ89: 0.2314156207 | BR89: 1.503628911 | BS89: 2.374287721 | BT89: 0 | BU89: 1.587224835 | BV89: 5.465141467 | BW89: 0.2751308306 | BX89: 0.4344421339 | BY89: 0 | BZ89: 0.2904270355
A90: 1112 | B90: 0.401667246 | C90: -0.637434799 | D90: 0.360155496 | E90: 1.931814257 | F90: -2.291969753 | G90: -1.597431703 | H90: 0.896617876 | I90: 0.700813827 | J90: -0.793150152 | K90: 0.434142015 | L90: 0.359008137 | M90: -0.204016955 | N90: -0.611757236 | O90: 0.815774191 | P90: 0.637434799 | R90: 0.2724720192 | S90: 1.891622259 | T90: 2.164094278 | V90: ='SG Data'!$AB89*R90/$T90 -> 0.07184512157 | W90: ='SG Data'!$AB89*S90/$T90 -> 0.4987808714 | Y90: 1.931814257 | Z90: 4.22378401 | AA90: 1.27902668 | AB90: 5 | AC90: -5 | AD90: -3.355649701 | AE90: 2.549125669 | AF90: 2.085550712 | AG90: -1.451476691 | AH90: 1.454193116 | AI90: 1.276310256 | AJ90: -0.05667715713 | AK90: -1.022020745 | AL90: 2.357724582 | AU90: 4.22378401 | AV90: 2.494049579 | AW90: 1.227292167 | AX90: 1.427531427 | AY90: 9.372657183 | AZ90: 0.4506495786 | BA90: 0.2660984532 | BB90: 0.1309438874 | BC90: 0.1523080807 | BE90: 1.931814257 | BF90: -1.597431703 | BG90: -0.793150152 | BH90: -0.204016955 | BI90: 6.902020929 | BJ90: 0.2024157147 | BK90: 0.4524173647 | BL90: 0.8154485451 | BM90: 8.372302554 | BN90: 0.8243874233 | BO90: 0.0241768275 | BP90: 0.05403738838 | BQ90: 0.09739836084 | BR90: 3.52924596 | BS90: 0 | BT90: 0.804281551 | BU90: 1.393414748 | BV90: 5.726942259 | BW90: 0.6162531069 | BX90: 0 | BY90: 0.1404382155 | BZ90: 0.2433086776
A91: 1113 | B91: 0.765742601 | C91: -2.599795052 | D91: 2.013591843 | E91: 0.054353321 | F91: -2.067945164 | G91: 1.798679011 | H91: 0.235570102 | I91: -2.034249113 | J91: 1.953919634 | K91: -0.878446526 | L91: -1.075473108 | M91: 1.285660603 | N91: -0.577980566 | O91: -0.707680036 | P91: 2.599795052 | R91: 12.09530689 | S91: 13.46097895 | T91: 25.55628584 | V91: ='SG Data'!$AB90*R91/$T91 -> 0.3077915895 | W91: ='SG Data'!$AB90*S91/$T91 -> 0.3425441079 | Y91: 2.013591843 | Z91: 4.081537007 | AA91: 5 | AB91: 0.1997531355 | AC91: -5 | AD91: 4.473451223 | AE91: 0.6437446532 | AF91: -4.91744274 | AG91: 4.853799662 | AH91: -2.085660044 | AI91: -2.568386482 | AJ91: 3.216526669 | AK91: -1.349501192 | AL91: -1.66727234 | AU91: 4.081537007 | AV91: 3.832928124 | AW91: 3.029392742 | AX91: 1.993340639 | AY91: 12.93719851 | AZ91: 0.3154884733 | BA91: 0.2962718799 | BB91: 0.2341614175 | BC91: 0.1540782293 | BE91: 0.054353321 | BF91: 1.798679011 | BG91: 1.953919634 | BH91: 1.285660603 | BI91: 1.055857593 | BJ91: 6.041661223 | BK91: 7.056291527 | BL91: 3.617056607 | BM91: 17.77086695 | BN91: 0.05941508627 | BO91: 0.3399756039 | BP91: 0.3970707533 | BQ91: 0.2035385565 | BR91: 0 | BS91: 1.74432569 | BT91: 1.899566313 | BU91: 1.231307282 | BV91: 4.875199285 | BW91: 0 | BX91: 0.3577957716 | BY91: 0.3896387003 | BZ91: 0.2525655281
A92: 1116 | B92: 0.967004929 | C92: 0.234104807 | D92: -3.853554946 | E92: -1.001650065 | F92: 4.85520501 | G92: 0.415789452 | H92: -0.219528631 | I92: -0.196260821 | J92: 0.166842429 | K92: 0.002173873 | L92: -0.169016302 | M92: -0.265975212 | N92: 0.397725024 | O92: -0.131749812 | P92: -0.234104807 | R92: 0.6370618139 | S92: 0.79127888 | T92: 1.428340694 | V92: ='SG Data'!$AB91*R92/$T92 -> 0.9285969366 | W92: ='SG Data'!$AB91*S92/$T92 -> 1.153387517 | Y92: 4.85520501 | Z92: 8.708759956 | AA92: -5 | AB92: -1.725245735 | AC92: 5 | AD92: -0.09764372934 | AE92: -0.8271598559 | AF92: -0.8004421485 | AG92: -0.3835019046 | AH92: -0.57258572 | AI92: -0.7691581091 | AJ92: -0.8804930299 | AK92: -0.1183865539 | AL92: -0.7263661499 | AU92: 8.708759956 | AV92: 0.635318083 | AW92: 0.335858731 | AX92: 0.663700236 | AY92: 10.34363701 | AZ92: 0.8419436946 | BA92: 0.06142115028 | BB92: 0.03247008096 | BC92: 0.0641650742 | BE92: -1.001650065 | BF92: 0.415789452 | BG92: 0.166842429 | BH92: -0.265975212 | BI92: 0.3672729167 | BJ92: 1.515566736 | BK92: 1.18156807 | BL92: 0.7664581262 | BM92: 3.830865848 | BN92: 0.09587203814 | BO92: 0.3956198927 | BP92: 0.3084336848 | BQ92: 0.2000743844 | BR92: 0 | BS92: 1.417439517 | BT92: 1.168492494 | BU92: 0.735674853 | BV92: 3.321606864 | BW92: 0 | BX92: 0.4267330768 | BY92: 0.3517853081 | BZ92: 0.2214816151
A93: 1119 | B93: 0.552702611 | C93: -0.428515463 | D93: 2.205789847 | E93: 1.709139807 | F93: -3.914929653 | G93: -1.782605542 | H93: 0.94297494 | I93: 0.839630602 | J93: -2.324638185 | K93: 1.47529088 | L93: 0.849347305 | M93: -0.5691934 | N93: 1.147111508 | O93: -0.577918108 | P93: 0.428515463 | R93: 0.03351330406 | S93: 1.534977101 | T93: 1.568490405 | V93: ='SG Data'!$AB92*R93/$T93 -> 0.03903254059 | W93: ='SG Data'!$AB92*S93/$T93 -> 1.787769296 | Y93: 2.205789847 | Z93: 6.1207195 | AA93: 5 | AB93: 4.188575722 | AC93: -5 | AD93: -1.516219848 | AE93: 2.936819508 | AF93: 2.767976061 | AG93: -2.401789989 | AH93: 3.806514549 | AI93: 2.78385116 | AJ93: 0.466246661 | AK93: 3.270336781 | AL93: 0.451992278 | AU93: 6.1207195 | AV93: 2.725580482 | AW93: 3.799929065 | AX93: 1.725029616 | AY93: 14.37125866 | AZ93: 0.4259000303 | BA93: 0.1896549597 | BB93: 0.2644117091 | BC93: 0.1200333009 | BE93: 1.709139807 | BF93: -1.782605542 | BG93: -2.324638185 | BH93: -0.5691934 | BI93: 5.524207549 | BJ93: 0.1681993254 | BK93: 0.09781882997 | BL93: 0.5659817755 | BM93: 6.35620748 | BN93: 0.8691043466 | BO93: 0.02646221445 | BP93: 0.01538949606 | BQ93: 0.08904394285 | BR93: 4.033777992 | BS93: 0.542032643 | BT93: 0 | BU93: 1.755444785 | BV93: 6.33125542 | BW93: 0.6371213487 | BX93: 0.08561219016 | BY93: 0 | BZ93: 0.2772664612
A94: 1120 | B94: 0.358694017 | C94: -0.963541898 | D94: 2.074358371 | E94: 0.788903737 | F94: -2.863262108 | G94: 0.002914845 | H94: -0.049061892 | I94: 0.046147047 | J94: -0.831268287 | K94: -0.111218147 | L94: 0.942486434 | M94: 0.274657337 | N94: -0.306896241 | O94: 0.032238904 | P94: 0.963541898 | R94: 0.4827123912 | S94: 2.620963237 | T94: 3.103675628 | V94: ='SG Data'!$AB93*R94/$T94 -> 0.08766991743 | W94: ='SG Data'!$AB93*S94/$T94 -> 0.4760176759 | Y94: 2.074358371 | Z94: 4.937620479 | AA94: 5 | AB94: 2.396611102 | AC94: -5 | AD94: 0.8047737067 | AE94: 0.6995069345 | AF94: 0.8923304603 | AG94: -0.8846698938 | AH94: 0.5736239201 | AI94: 2.707657075 | AJ94: 1.355124818 | AK94: 0.1773235263 | AL94: 0.8641627568 | AU94: 4.937620479 | AV94: 0.095208939 | AW94: 1.773754721 | AX94: 0.581553578 | AY94: 7.388137717 | AZ94: 0.6683173309 | BA94: 0.01288673041 | BB94: 0.2400814372 | BC94: 0.07871450158 | BE94: 0.788903737 | BF94: 0.002914845 | BG94: -0.831268287 | BH94: 0.274657337 | BI94: 2.200982248 | BJ94: 1.002919097 | BK94: 0.4354966012 | BL94: 1.316079626 | BM94: 4.955477572 | BN94: 0.4441513892 | BO94: 0.2023859623 | BP94: 0.08788186303 | BQ94: 0.2655807854 | BR94: 1.620172024 | BS94: 0.834183132 | BT94: 0 | BU94: 1.105925624 | BV94: 3.56028078 | BW94: 0.4550686095 | BX94: 0.2343026249 | BY94: 0 | BZ94: 0.3106287656
A95: 1121 | B95: 0.278753594 | C95: -0.596129245 | D95: -0.03872118 | E95: -0.21474258 | F95: 0.25346376 | G95: -0.184225804 | H95: -0.161423903 | I95: 0.345649707 | J95: 0.071631507 | K95: -0.132647413 | L95: 0.061015906 | M95: 0.211317779 | N95: -0.777828233 | O95: 0.566510454 | P95: 0.596129245 | R95: 0.4905891108 | S95: 1.815079458 | T95: 2.305668568 | V95: ='SG Data'!$AB94*R95/$T95 -> 0.2843582942 | W95: ='SG Data'!$AB94*S95/$T95 -> 1.05206758 | Y95: 0.566510454 | Z95: 1.344338687 | AA95: 0.4979229576 | AB95: -0.8114301221 | AC95: 2.67137034 | AD95: -0.5844279813 | AE95: -0.4148137225 | AF95: 3.357104879 | AG95: 1.318792639 | AH95: -0.2007568759 | AI95: 1.239827412 | AJ95: 2.357863175 | AK95: -5 | AL95: 5 | AU95: 0.46820634 | AV95: 0.529875511 | AW95: 0.20427892 | AX95: 1.344338687 | AY95: 2.546699458 | AZ95: 0.1838482898 | BA95: 0.2080636211 | BB95: 0.08021320276 | BC95: 0.5278748864 | BE95: -0.21474258 | BF95: -0.184225804 | BG95: 0.071631507 | BH95: 0.211317779 | BI95: 0.8067490868 | BJ95: 0.8317479706 | BK95: 1.074259414 | BL95: 1.235304847 | BM95: 3.948061318 | BN95: 0.2043405666 | BO95: 0.2106725057 | BP95: 0.2720979558 | BQ95: 0.3128889719 | BR95: 0 | BS95: 0.030516776 | BT95: 0.286374087 | BU95: 0.426060359 | BV95: 0.742951222 | BW95: 0 | BX95: 0.04107507343 | BY95: 0.3854547627 | BZ95: 0.5734701638
A96: 1124 | B96: 0.544240567 | C96: -0.866525149 | D96: 1.756499117 | E96: -1.098486201 | F96: -0.658012916 | G96: -1.315055654 | H96: 0.363878298 | I96: 0.951177356 | J96: 1.894775316 | K96: -0.687728658 | L96: -1.207046659 | M96: -1.904020478 | N96: 2.411284968 | O96: -0.50726449 | P96: 0.866525149 | R96: 0.03727948268 | S96: 2.378631088 | T96: 2.41591057 | V96: ='SG Data'!$AB95*R96/$T96 -> 0.0125371594 | W96: ='SG Data'!$AB95*S96/$T96 -> 0.7999380615 | Y96: 2.411284968 | Z96: 4.315305446 | AA96: 3.482643096 | AB96: -3.133308784 | AC96: -2.112585476 | AD96: -3.635172339 | AE96: 0.255476824 | AF96: 1.616444351 | AG96: 3.803075105 | AH96: -2.181446748 | AI96: -3.384879523 | AJ96: -5 | AK96: 5 | AL96: -1.763251164 | AU96: 2.854985318 | AV96: 2.26623301 | AW96: 3.101821975 | AX96: 4.315305446 | AY96: 12.53834575 | AZ96: 0.2277003183 | BA96: 0.1807441791 | BB96: 0.2473868592 | BC96: 0.3441686433 | BE96: -1.098486201 | BF96: -1.315055654 | BG96: 1.894775316 | BH96: -1.904020478 | BI96: 0.3333753652 | BJ96: 0.268459382 | BK96: 6.651053851 | BL96: 0.1489684891 | BM96: 7.401857088 | BN96: 0.04503942203 | BO96: 0.03626919283 | BP96: 0.898565559 | BQ96: 0.02012582617 | BR96: 0.805534277 | BS96: 0.588964824 | BT96: 3.798795794 | BU96: 0 | BV96: 5.193294895 | BW96: 0.155110444 | BX96: 0.1134087002 | BY96: 0.7314808558 | BZ96: 0
A97: 1125 | B97: 0.488359002 | C97: -0.929212525 | D97: -0.699461726 | E97: 0.966547898 | F97: -0.267086173 | G97: -2.47404079 | H97: 0.920375252 | I97: 1.553665538 | J97: 1.930414126 | K97: 0.118731141 | L97: -2.049145267 | M97: -0.339475249 | N97: 0.169199586 | O97: 0.170275663 | P97: 0.929212525 | R97: 0.4292282115 | S97: 2.532514101 | T97: 2.961742312 | V97: ='SG Data'!$AB96*R97/$T97 -> 0.2239503237 | W97: ='SG Data'!$AB96*S97/$T97 -> 1.321342208 | Y97: 1.930414126 | Z97: 4.404454916 | AA97: -0.9709451048 | AB97: 2.811610639 | AC97: 0.01073267655 | AD97: -5 | AE97: 2.706778947 | AF97: 4.144619266 | AG97: 5 | AH97: 0.8867033048 | AI97: -4.035305092 | AJ97: -0.1536215452 | AK97: 1.001288301 | AL97: 1.003731457 | AU97: 1.666009624 | AV97: 4.027706328 | AW97: 3.979559393 | AX97: 0.509750912 | AY97: 10.18302626 | AZ97: 0.1636065333 | BA97: 0.3955313702 | BB97: 0.3908032143 | BC97: 0.05005888222 | BE97: 0.966547898 | BF97: -2.47404079 | BG97: 1.930414126 | BH97: -0.339475249 | BI97: 2.628853706 | BJ97: 0.08424375897 | BK97: 6.892363958 | BL97: 0.712143923 | BM97: 10.31760535 | BN97: 0.2547930085 | BO97: 0.008165049558 | BP97: 0.668019732 | BQ97: 0.06902221001 | BR97: 3.440588688 | BS97: 0 | BT97: 4.404454916 | BU97: 2.134565541 | BV97: 9.979609145 | BW97: 0.3447618677 | BX97: 0 | BY97: 0.4413454327 | BZ97: 0.2138926996
A98: 1126 | B98: 0.302582744 | C98: -0.645834926 | D98: -0.706997607 | E98: 0.114909859 | F98: 0.592087748 | G98: -0.927343562 | H98: 0.776880726 | I98: 0.150462837 | J98: 0.046549566 | K98: -0.182935234 | L98: 0.136385668 | M98: 0.513394673 | N98: -0.398459042 | O98: -0.114935631 | P98: 0.645834926 | R98: 0.407251483 | S98: 1.907579052 | T98: 2.314830535 | V98: ='SG Data'!$AB97*R98/$T98 -> 0.1144144996 | W98: ='SG Data'!$AB97*S98/$T98 -> 0.5359211978 | Y98: 0.776880726 | Z98: 1.704224288 | AA98: -3.707060118 | AB98: 1.11570571 | AC98: 3.91567689 | AD98: -5 | AE98: 5 | AF98: 1.324322488 | AG98: 0.7145830796 | AH98: -0.6319814637 | AI98: 1.241720867 | AJ98: 3.453923848 | AK98: -1.896626085 | AL98: -0.2329752796 | AU98: 1.299085355 | AV98: 1.704224288 | AW98: 0.319320902 | AX98: 0.911853715 | AY98: 4.23448426 | AZ98: 0.3067871493 | BA98: 0.4024632478 | BB98: 0.07540963253 | BC98: 0.2153399704 | BE98: 0.114909859 | BF98: -0.927343562 | BG98: 0.046549566 | BH98: 0.513394673 | BI98: 1.121772315 | BJ98: 0.3956032112 | BK98: 1.047650006 | BL98: 1.67095392 | BM98: 4.235979452 | BN98: 0.2648200559 | BO98: 0.09339120165 | BP98: 0.2473217865 | BQ98: 0.394466956 | BR98: 1.042253421 | BS98: 0 | BT98: 0.973893128 | BU98: 1.440738235 | BV98: 3.456884784 | BW98: 0.3015007691 | BX98: 0 | BY98: 0.2817256544 | BZ98: 0.4167735765
A99: 1127 | B99: 0.87745326 | C99: -0.28382359 | D99: 4.852021219 | E99: -0.826707269 | F99: -4.025313951 | G99: -2.089239375 | H99: 0.904495455 | I99: 1.18474392 | J99: -2.053734857 | K99: 0.24022149 | L99: 1.813513367 | M99: 0.376204745 | N99: -0.478304936 | O99: 0.102100191 | P99: 0.28382359 | R99: 0.007617551046 | S99: 1.328198603 | T99: 1.335816154 | V99: ='SG Data'!$AB98*R99/$T99 -> 0.01041741875 | W99: ='SG Data'!$AB98*S99/$T99 -> 1.816384418 | Y99: =MAX(D99:O99) -> 4.852021219 | Z99: =MAX(D99:O99)-MIN(D99:O99) -> 8.87733517 | AA99: =((($Y99-D99)/$Z99*-5+(1-(($Y99-D99)/$Z99))*5)) -> 5 | AB99: =((($Y99-E99)/$Z99*-5+(1-(($Y99-E99)/$Z99))*5)) -> -1.396884177 | AC99: =((($Y99-F99)/$Z99*-5+(1-(($Y99-F99)/$Z99))*5)) -> -5 | AD99: =((($Y99-G99)/$Z99*-5+(1-(($Y99-G99)/$Z99))*5)) -> -2.819081358 | AE99: =((($Y99-H99)/$Z99*-5+(1-(($Y99-H99)/$Z99))*5)) -> 0.5532536641 | AF99: =((($Y99-I99)/$Z99*-5+(1-(($Y99-I99)/$Z99))*5)) -> 0.8689435188 | AG99: =((($Y99-J99)/$Z99*-5+(1-(($Y99-J99)/$Z99))*5)) -> -2.779086791 | AH99: =((($Y99-K99)/$Z99*-5+(1-(($Y99-K99)/$Z99))*5)) -> -0.195027157 | AI99: =((($Y99-L99)/$Z99*-5+(1-(($Y99-L99)/$Z99))*5)) -> 1.577229772 | AJ99: =((($Y99-M99)/$Z99*-5+(1-(($Y99-M99)/$Z99))*5)) -> -0.04184689244 | AK99: =((($Y99-N99)/$Z99*-5+(1-(($Y99-N99)/$Z99))*5)) -> -1.004421432 | AL99: =((($Y99-O99)/$Z99*-5+(1-(($Y99-O99)/$Z99))*5)) -> -0.3506158515 | AU99: =MAX(D99:F99)-MIN(D99:F99) -> 8.87733517 | AV99: =MAX(G99:I99)-MIN(G99:I99) -> 3.273983295 | AW99: =MAX(J99:L99)-MIN(J99:L99) -> 3.867248224 | AX99: =MAX(M99:O99)-MIN(M99:O99) -> 0.854509681 | AY99: =SUM(AU99:AX99) -> 16.87307637 | AZ99: =AU99/$AY99 -> 0.5261242808 | BA99: =AV99/$AY99 -> 0.1940359436 | BB99: =AW99/$AY99 -> 0.2291963919 | BC99: =AX99/$AY99 -> 0.05064338371 | BE99: =SUMPRODUCT(D99:F99,$D$440:$F$440) -> -0.826707269 | BF99: =SUMPRODUCT(G99:I99,$G$440:$I$440) -> -2.089239375 | BG99: =SUMPRODUCT(J99:L99,$J$440:$L$440) -> -2.053734857 | BH99: =SUMPRODUCT(M99:O99,$M$440:$O$440) -> 0.376204745 | BI99: =EXP(BE99) -> 0.4374874458 | BJ99: =EXP(BF99) -> 0.1237812511 | BK99: =EXP(BG99) -> 0.1282549939 | BL99: =EXP(BH99) -> 1.456745365 | BM99: =SUM(BI99:BL99) -> 2.146269055 | BN99: =BI99/$BM99 -> 0.2038362547 | BO99: =BJ99/$BM99 -> 0.05767275581 | BP99: =BK99/$BM99 -> 0.05975718355 | BQ99: =BL99/$BM99 -> 0.678733806 | BR99: =BE99-MIN($BE99:$BH99) -> 1.262532106 | BS99: =BF99-MIN($BE99:$BH99) -> 0 | BT99: =BG99-MIN($BE99:$BH99) -> 0.035504518 | BU99: =BH99-MIN($BE99:$BH99) -> 2.46544412 | BV99: =SUM(BR99:BU99) -> 3.763480744 | BW99: =BR99/$BV99 -> 0.3354692615 | BX99: =BS99/$BV99 -> 0 | BY99: =BT99/$BV99 -> 0.009433957662 | BZ99: =BU99/$BV99 -> 0.6550967808
A100: 1128 | B100: 0.421017948 | C100: -0.580893172 | D100: -1.077758737 | E100: 1.221764031 | F100: -0.144005294 | G100: 0.3301183 | H100: 1.90413934 | I100: -2.23425764 | J100: 1.045489407 | K100: 0.084206162 | L100: -1.129695569 | M100: 0.268981333 | N100: 0.736229195 | O100: -1.005210527 | P100: 0.580893172 | R100: 9.830206087 | S100: 1.787634383 | T100: 11.61784047 | V100: ='SG Data'!$AB99*R100/$T100 -> 0.6032535196 | W100: ='SG Data'!$AB99*S100/$T100 -> 0.1097023525 | Y100: 1.90413934 | Z100: 4.13839698 | AA100: -2.205442328 | AB100: 3.351112007 | AC100: 0.05087442336 | AD100: 1.196544102 | AE100: 5 | AF100: -5 | AG100: 2.925162962 | AH100: 0.6023233469 | AI100: -2.330942207 | AJ100: 1.048813067 | AK100: 2.177868265 | AL100: -2.030137227 | AU100: 2.299522768 | AV100: 4.13839698 | AW100: 2.175184976 | AX100: 1.741439722 | AY100: 10.35454445 | AZ100: 0.2220786033 | BA100: 0.3996696331 | BB100: 0.2100705625 | BC100: 0.1681812011 | BE100: 1.221764031 | BF100: 0.3301183 | BG100: 1.045489407 | BH100: 0.268981333 | BI100: 3.393168111 | BJ100: 1.39113269 | BK100: 2.844790443 | BL100: 1.308630713 | BM100: 8.937721957 | BN100: 0.379645745 | BO100: 0.1556473446 | BP100: 0.3182903269 | BQ100: 0.1464165834 | BR100: 0.952782698 | BS100: 0.061136967 | BT100: 0.776508074 | BU100: 0 | BV100: 1.790427739 | BW100: 0.5321536733 | BX100: 0.03414657049 | BY100: 0.4336997563 | BZ100: 0
A101: 1129 | B101: 0.580794071 | C101: 0.077398591 | D101: -0.728773296 | E101: 0.869980418 | F101: -0.141207122 | G101: -2.916075655 | H101: 0.91193165 | I101: 2.004144005 | J101: -0.765126135 | K101: 1.757330308 | L101: -0.992204173 | M101: -0.721795652 | N101: 1.959954039 | O101: -1.238158386 | P101: -0.077398591 | R101: 0.03156777576 | S101: 0.9255208758 | T101: 0.9570886515 | V101: ='SG Data'!$AB100*R101/$T101 -> 0.01281417227 | W101: ='SG Data'!$AB100*S101/$T101 -> 0.3756927327 | Y101: 2.004144005 | Z101: 4.92021966 | AA101: -0.554461975 | AB101: 2.694892372 | AC101: 0.6397249 | AD101: -5 | AE101: 2.780155297 | AF101: 5 | AG101: -0.6283465604 | AH101: 4.49836854 | AI101: -1.089866683 | AJ101: -0.5402804049 | AK101: 4.910187006 | AL101: -1.589751302 | AU101: 1.598753714 | AV101: 4.92021966 | AW101: 2.749534481 | AX101: 3.198112425 | AY101: 12.46662028 | AZ101: 0.1282427537 | BA101: 0.3946714947 | BB101: 0.2205517148 | BC101: 0.2565340367 | BE101: 0.869980418 | BF101: -2.916075655 | BG101: -0.765126135 | BH101: -0.721795652 | BI101: 2.386864113 | BJ101: 0.05414575754 | BK101: 0.4652752398 | BL101: 0.4858790026 | BM101: 3.392164113 | BN101: 0.7036405179 | BO101: 0.01596201001 | BP101: 0.1371617717 | BQ101: 0.1432357004 | BR101: 3.786056073 | BS101: 0 | BT101: 2.15094952 | BU101: 2.194280003 | BV101: 8.131285596 | BW101: 0.4656159261 | BX101: 0 | BY101: 0.2645276069 | BZ101: 0.269856467
A102: 1130 | B102: 0.570034388 | C102: -1.320246376 | D102: -0.572633612 | E102: 0.259714864 | F102: 0.312918749 | G102: 3.789022728 | H102: -1.157024134 | I102: -2.631998594 | J102: -0.437591396 | K102: 0.335244015 | L102: 0.102347381 | M102: -0.23517302 | N102: 0.223611859 | O102: 0.011561161 | P102: 1.320246376 | R102: 7.812513945 | S102: 3.74434378 | T102: 11.55685772 | V102: ='SG Data'!$AB101*R102/$T102 -> 0.3649768399 | W102: ='SG Data'!$AB101*S102/$T102 -> 0.1749243291 | Y102: 3.789022728 | Z102: 6.421021322 | AA102: -1.792776602 | AB102: -0.4964898682 | AC102: -0.4136309548 | AD102: 5 | AE102: -2.702897427 | AF102: -5 | AG102: -1.582463929 | AH102: -0.3788619283 | AI102: -0.7415715696 | AJ102: -1.267220659 | AK102: -0.5527161338 | AL102: -0.8829606344 | AU102: 0.885552361 | AV102: 6.421021322 | AW102: 0.772835411 | AX102: 0.458784879 | AY102: 8.538193973 | AZ102: 0.1037165897 | BA102: 0.7520350723 | BB102: 0.09051509177 | BC102: 0.05373324622 | BE102: 0.259714864 | BF102: 3.789022728 | BG102: -0.437591396 | BH102: -0.23517302 | BI102: 1.296560338 | BJ102: 44.21317086 | BK102: 0.6455895194 | BL102: 0.7904340769 | BM102: 46.9457548 | BN102: 0.02761826588 | BO102: 0.9417927362 | BP102: 0.01375181893 | BQ102: 0.016837179 | BR102: 0.69730626 | BS102: 4.226614124 | BT102: 0 | BU102: 0.202418376 | BV102: 5.12633876 | BW102: 0.1360242256 | BX102: 0.8244898205 | BY102: 0 | BZ102: 0.03948595391
A103: 1131 | B103: 0.514886681 | C103: -1.576580716 | D103: -0.169329675 | E103: 0.405686678 | F103: -0.236357003 | G103: 3.751460424 | H103: -1.129626687 | I103: -2.621833737 | J103: 0.328222833 | K103: 0.127078496 | L103: -0.455301329 | M103: 0.426554412 | N103: 0.380976808 | O103: -0.80753122 | P103: 1.576580716 | R103: 28.08803348 | S103: 4.838383687 | T103: 32.92641717 | V103: ='SG Data'!$AB102*R103/$T103 -> 0.7575081464 | W103: ='SG Data'!$AB102*S103/$T103 -> 0.1304867092 | Y103: 3.751460424 | Z103: 6.373294161 | AA103: -1.151905122 | AB103: -0.249677265 | AC103: -1.25707417 | AD103: 5 | AE103: -2.658656556 | AF103: -5 | AG103: -0.3712217019 | AH103: -0.6868266809 | AI103: -1.600608173 | AJ103: -0.2169348033 | AK103: -0.2884482198 | AL103: -2.153273533 | AU103: 0.642043681 | AV103: 6.373294161 | AW103: 0.783524162 | AX103: 1.234085632 | AY103: 9.032947636 | AZ103: 0.07107798106 | BA103: 0.7055608443 | BB103: 0.08674069568 | BC103: 0.1366204789 | BE103: 0.405686678 | BF103: 3.751460424 | BG103: 0.328222833 | BH103: 0.426554412 | BI103: 1.500332392 | BJ103: 42.58322618 | BK103: 1.388498341 | BL103: 1.531969882 | BM103: 47.00402679 | BN103: 0.03191923106 | BO103: 0.9059484704 | BP103: 0.02953998702 | BQ103: 0.03259231148 | BR103: 0.077463845 | BS103: 3.423237591 | BT103: 0 | BU103: 0.098331579 | BV103: 3.599033015 | BW103: 0.02152351609 | BX103: 0.9511548176 | BY103: 0 | BZ103: 0.02732166629
A104: 1133 | B104: 0.381466892 | C104: -0.273236217 | D104: -1.691229371 | E104: -0.625290865 | F104: 2.316520236 | G104: -0.80793088 | H104: 1.07035298 | I104: -0.2624221 | J104: -0.214401003 | K104: 0.480699517 | L104: -0.266298513 | M104: 1.019697544 | N104: -0.58237766 | O104: -0.437319884 | P104: 0.273236217 | R104: 0.4060977353 | S104: 1.314210647 | T104: 1.720308382 | V104: ='SG Data'!$AB103*R104/$T104 -> 0.3154780424 | W104: ='SG Data'!$AB103*S104/$T104 -> 1.020947831 | Y104: 2.316520236 | Z104: 4.007749607 | AA104: -5 | AB104: -2.34030663 | AC104: 5 | AD104: -2.79602376 | AE104: 1.890606005 | AF104: -1.434888875 | AG104: -1.315068273 | AH104: 0.4193228145 | AI104: -1.444561168 | AJ104: 1.764212291 | AK104: -2.233231065 | AL104: -1.871287855 | AU104: 4.007749607 | AV104: 1.87828386 | AW104: 0.74699803 | AX104: 1.602075204 | AY104: 8.235106701 | AZ104: 0.4866663848 | BA104: 0.2280825165 | BB104: 0.09070896797 | BC104: 0.1945421307 | BE104: -0.625290865 | BF104: -0.80793088 | BG104: -0.214401003 | BH104: 1.019697544 | BI104: 0.5351057623 | BJ104: 0.4457794839 | BK104: 0.8070247008 | BL104: 2.772356121 | BM104: 4.560266068 | BN104: 0.1173409083 | BO104: 0.09775295502 | BP104: 0.1769687752 | BQ104: 0.6079373615 | BR104: 0.182640015 | BS104: 0 | BT104: 0.593529877 | BU104: 1.827628424 | BV104: 2.603798316 | BW104: 0.07014368735 | BX104: 0 | BY104: 0.2279477152 | BZ104: 0.7019085974
A105: 1134 | B105: 0.417497265 | C105: -1.195068932 | D105: 1.108347473 | E105: 1.0978253 | F105: -2.206172773 | G105: -0.280210646 | H105: -0.56915144 | I105: 0.849362086 | J105: -2.208052223 | K105: 1.426923764 | L105: 0.781128459 | M105: 0.434612884 | N105: 0.040781748 | O105: -0.475394633 | P105: 1.195068932 | R105: 0.116380112 | S105: 3.303785499 | T105: 3.420165611 | V105: ='SG Data'!$AB104*R105/$T105 -> 0.04080144789 | W105: ='SG Data'!$AB104*S105/$T105 -> 1.158266902 | Y105: 1.426923764 | Z105: 3.634975987 | AA105: 4.123580755 | AB105: 4.094633733 | AC105: -4.994829539 | AD105: 0.303588205 | AE105: -0.4913023116 | AF105: 3.411099055 | AG105: -5 | AH105: 5 | AI105: 3.223384949 | AJ105: 2.270103342 | AK105: 1.18665427 | AL105: -0.2333726655 | AU105: 3.314520246 | AV105: 1.418513526 | AW105: 3.634975987 | AX105: 0.910007517 | AY105: 9.278017276 | AZ105: 0.3572444572 | BA105: 0.1528897267 | BB105: 0.3917837054 | BC105: 0.09808211064 | BE105: 1.0978253 | BF105: -0.280210646 | BG105: -2.208052223 | BH105: 0.434612884 | BI105: 2.997639963 | BJ105: 0.7556245554 | BK105: 0.1099145291 | BL105: 1.544365095 | BM105: 5.407544142 | BN105: 0.5543440579 | BO105: 0.1397352542 | BP105: 0.02032614552 | BQ105: 0.2855945424 | BR105: 3.305877523 | BS105: 1.927841577 | BT105: 0 | BU105: 2.642665107 | BV105: 7.876384207 | BW105: 0.419720196 | BX105: 0.2447622572 | BY105: 0 | BZ105: 0.3355175468
A106: 1136 | B106: 0.726769646 | C106: -1.764474093 | D106: -2.658020098 | E106: 0.304753827 | F106: 2.353266272 | G106: 0.619734546 | H106: 1.511919 | I106: -2.131653546 | J106: -1.049776292 | K106: -1.33864187 | L106: 2.388418162 | M106: -0.112414313 | N106: -0.700925543 | O106: 0.813339856 | P106: 1.764474093 | R106: 0.1350410699 | S106: 5.838501042 | T106: 5.973542112 | V106: ='SG Data'!$AB105*R106/$T106 -> 0.04129765388 | W106: ='SG Data'!$AB105*S106/$T106 -> 1.785504183 | Y106: 2.388418162 | Z106: 5.04643826 | AA106: -5 | AB106: 0.8710198606 | AC106: 4.930343168 | AD106: 1.495184277 | AE106: 3.263133091 | AF106: -3.956954341 | AG106: -1.813111103 | AH106: -2.38552587 | AI106: 5 | AJ106: 0.0443612977 | AK106: -1.121829984 | AL106: 1.878831713 | AU106: 5.01128637 | AV106: 3.643572546 | AW106: 3.727060032 | AX106: 1.514265399 | AY106: 13.89618435 | AZ106: 0.360623193 | BA106: 0.262199497 | BB106: 0.2682074402 | BC106: 0.1089698698 | BE106: 0.304753827 | BF106: 0.619734546 | BG106: -1.049776292 | BH106: -0.112414313 | BI106: 1.35629108 | BJ106: 1.858434647 | BK106: 0.3500160417 | BL106: 0.8936739201 | BM106: 4.458415689 | BN106: 0.3042092022 | BO106: 0.4168374546 | BP106: 0.07850682084 | BQ106: 0.2004465224 | BR106: 1.354530119 | BS106: 1.669510838 | BT106: 0 | BU106: 0.937361979 | BV106: 3.961402936 | BW106: 0.3419319218 | BX106: 0.421444338 | BY106: 0 | BZ106: 0.2366237402
A107: 1137 | B107: 0.487287073 | C107: -1.076111269 | D107: 0.260329629 | E107: 0.918410566 | F107: -1.178740194 | G107: 0.329806519 | H107: 0.375082846 | I107: -0.704889365 | J107: -2.85306841 | K107: 0.114177539 | L107: 2.738890871 | M107: -0.336293604 | N107: -0.787839119 | O107: 1.124132723 | P107: 1.076111269 | R107: 0.04893530311 | S107: 2.933250721 | T107: 2.982186024 | V107: ='SG Data'!$AB106*R107/$T107 -> 0.008859349196 | W107: ='SG Data'!$AB106*S107/$T107 -> 0.5310418198 | Y107: 2.738890871 | Z107: 5.591959281 | AA107: 0.5676336013 | AB107: 1.744467881 | AC107: -2.005829027 | AD107: 0.6918778715 | AE107: 0.7728447111 | AF107: -1.15845013 | AG107: -5 | AH107: 0.3062724528 | AI107: 5 | AJ107: -0.4992969735 | AK107: -1.30678768 | AL107: 2.112357106 | AU107: 2.09715076 | AV107: 1.079972211 | AW107: 5.591959281 | AX107: 1.911971842 | AY107: 10.68105409 | AZ107: 0.1963430521 | BA107: 0.1011110141 | BB107: 0.5235400207 | BC107: 0.1790059132 | BE107: 0.918410566 | BF107: 0.329806519 | BG107: -2.85306841 | BH107: -0.336293604 | BI107: 2.505305206 | BJ107: 1.390699029 | BK107: 0.05766710281 | BL107: 0.7144133204 | BM107: 4.668084658 | BN107: 0.5366880401 | BO107: 0.2979164112 | BP107: 0.01235348264 | BQ107: 0.153042066 | BR107: 3.771478976 | BS107: 3.182874929 | BT107: 0 | BU107: 2.516774806 | BV107: 9.471128711 | BW107: 0.3982079741 | BX107: 0.3360607828 | BY107: 0 | BZ107: 0.2657312431
A108: 1140 | B108: 0.746642813 | C108: -1.185787704 | D108: 4.650112564 | E108: -1.599785422 | F108: -3.050327142 | G108: 1.028531141 | H108: -0.389508693 | I108: -0.639022448 | J108: 0.033890934 | K108: 0.434491612 | L108: -0.468382546 | M108: 0.214399159 | N108: -0.59837293 | O108: 0.383973771 | P108: 1.185787704 | R108: 0.2211858696 | S108: 3.27326417 | T108: 3.494450039 | V108: ='SG Data'!$AB107*R108/$T108 -> 0.05318598363 | W108: ='SG Data'!$AB107*S108/$T108 -> 0.7870836181 | Y108: 4.650112564 | Z108: 7.700439706 | AA108: 5 | AB108: -3.116287153 | AC108: -5 | AD108: 0.2969160707 | AE108: -1.544588945 | AF108: -1.868614279 | AG108: -0.9947506977 | AH108: -0.4745197845 | AI108: -1.647016671 | AJ108: -0.7603378175 | AK108: -1.815825712 | AL108: -0.5401236239 | AU108: 7.700439706 | AV108: 1.667553589 | AW108: 0.902874158 | AX108: 0.982346701 | AY108: 11.25321415 | AZ108: 0.6842880266 | BA108: 0.148184649 | BB108: 0.08023255806 | BC108: 0.08729476642 | BE108: -1.599785422 | BF108: 1.028531141 | BG108: 0.033890934 | BH108: 0.214399159 | BI108: 0.2019398452 | BJ108: 2.796954484 | BK108: 1.034471775 | BL108: 1.239117161 | BM108: 5.272483265 | BN108: 0.03830070861 | BO108: 0.5304814342 | BP108: 0.1962020025 | BQ108: 0.2350158547 | BR108: 0 | BS108: 2.628316563 | BT108: 1.633676356 | BU108: 1.814184581 | BV108: 6.0761775 | BW108: 0 | BX108: 0.4325608597 | BY108: 0.2688658052 | BZ108: 0.2985733351
A109: 1141 | B109: 0.509729744 | C109: -1.420653644 | D109: 2.734004756 | E109: -0.187681297 | F109: -2.546323459 | G109: -1.367925647 | H109: 0.100401865 | I109: 1.267523782 | J109: -0.734407186 | K109: 1.515011604 | L109: -0.780604418 | M109: -0.932462328 | N109: 1.188193011 | O109: -0.255730683 | P109: 1.420653644 | R109: 0.00962751531 | S109: 4.139825528 | T109: 4.149453044 | V109: ='SG Data'!$AB108*R109/$T109 -> 0.002435648129 | W109: ='SG Data'!$AB108*S109/$T109 -> 1.047327164 | Y109: 2.734004756 | Z109: 5.280328215 | AA109: 5 | AB109: -0.5331523611 | AC109: -5 | AD109: -2.768324687 | AE109: 0.01242577399 | AF109: 2.222746552 | AG109: -1.568553697 | AH109: 2.691444353 | AI109: -1.656043016 | AJ109: -1.943634817 | AK109: 2.072508219 | AL109: -0.6620257629 | AU109: 5.280328215 | AV109: 2.635449429 | AW109: 2.295616022 | AX109: 2.120655339 | AY109: 12.332049 | AZ109: 0.4281793085 | BA109: 0.2137073432 | BB109: 0.1861504135 | BC109: 0.1719629348 | BE109: -0.187681297 | BF109: -1.367925647 | BG109: -0.734407186 | BH109: -0.932462328 | BI109: 0.8288788313 | BJ109: 0.2546346142 | BK109: 0.4797898008 | BL109: 0.3935833848 | BM109: 1.956886631 | BN109: 0.4235701845 | BO109: 0.1301223127 | BP109: 0.245180172 | BQ109: 0.2011273308 | BR109: 1.18024435 | BS109: 0 | BT109: 0.633518461 | BU109: 0.435463319 | BV109: 2.24922613 | BW109: 0.5247335225 | BX109: 0 | BY109: 0.2816606354 | BZ109: 0.1936058421
A110: 1142 | B110: 0.511753825 | C110: -1.215633841 | D110: -2.70504663 | E110: 0.91438174 | F110: 1.79066489 | G110: -0.458830382 | H110: -1.715603416 | I110: 2.174433798 | J110: 0.356306572 | K110: -0.729409544 | L110: 0.373102973 | M110: -0.917076266 | N110: 0.845907984 | O110: 0.071168283 | P110: 1.215633841 | R110: 0.2669077524 | S110: 3.372430972 | T110: 3.639338724 | V110: ='SG Data'!$AB109*R110/$T110 -> 0.09388687021 | W110: ='SG Data'!$AB109*S110/$T110 -> 1.186278728 | Y110: 2.174433798 | Z110: 4.879480428 | AA110: -5 | AB110: 2.417651169 | AC110: 4.213504565 | AD110: -0.3966077308 | AE110: -2.972236535 | AF110: 5 | AG110: 1.273932742 | AH110: -0.9511322667 | AI110: 1.308355261 | AJ110: -1.33573617 | AK110: 2.277321154 | AL110: 0.6895707524 | AU110: 4.49571152 | AV110: 3.890037214 | AW110: 1.102512517 | AX110: 1.76298425 | AY110: 11.2512455 | AZ110: 0.3995745644 | BA110: 0.3457428081 | BB110: 0.097990264 | BC110: 0.1566923635 | BE110: 0.91438174 | BF110: -0.458830382 | BG110: 0.356306572 | BH110: -0.917076266 | BI110: 2.495232073 | BJ110: 0.6320224382 | BK110: 1.42804528 | BL110: 0.3996859097 | BM110: 4.954985701 | BN110: 0.5035800754 | BO110: 0.1275528279 | BP110: 0.2882037136 | BQ110: 0.08066338308 | BR110: 1.831458006 | BS110: 0.458245884 | BT110: 1.273382838 | BU110: 0 | BV110: 3.563086728 | BW110: 0.5140088204 | BX110: 0.1286092422 | BY110: 0.3573819374 | BZ110: 0
A111: 1143 | B111: 0.359590521 | C111: -1.074212768 | D111: 1.166551169 | E111: 1.513909616 | F111: -2.680460785 | G111: 0.93453912 | H111: 0.329360746 | I111: -1.263899866 | J111: -0.010181814 | K111: 0.472121272 | L111: -0.461939458 | M111: 0.366867975 | N111: -0.606757223 | O111: 0.239889248 | P111: 1.074212768 | R111: 5.645857718 | S111: 2.927687224 | T111: 8.573544942 | V111: ='SG Data'!$AB110*R111/$T111 -> 1.371030079 | W111: ='SG Data'!$AB110*S111/$T111 -> 0.7109543751 | Y111: 1.513909616 | Z111: 4.194370401 | AA111: 4.171846037 | AB111: 5 | AC111: -5 | AD111: 3.618694963 | AE111: 2.175860125 | AF111: -1.622709051 | AG111: 1.366340394 | AH111: 2.516222354 | AI111: 0.289283289 | AJ111: 2.265282912 | AK111: -0.05598370257 | AL111: 1.962546828 | AU111: 4.194370401 | AV111: 2.198438986 | AW111: 0.93406073 | AX111: 0.973625198 | AY111: 8.300495315 | AZ111: 0.505315676 | BA111: 0.2648563613 | BB111: 0.1125307219 | BC111: 0.1172972408 | BE111: 1.513909616 | BF111: 0.93453912 | BG111: -0.010181814 | BH111: 0.366867975 | BI111: 4.544463214 | BJ111: 2.546039768 | BK111: 0.9898698452 | BL111: 1.443207367 | BM111: 9.523580195 | BN111: 0.4771801278 | BO111: 0.2673406131 | BP111: 0.1039388365 | BQ111: 0.1515404226 | BR111: 1.52409143 | BS111: 0.944720934 | BT111: 0 | BU111: 0.377049789 | BV111: 2.845862153 | BW111: 0.5355464699 | BX111: 0.3319629986 | BY111: 0 | BZ111: 0.1324905314
A112: 1145 | B112: 0.382664879 | C112: -0.557595808 | D112: 0.907827813 | E112: 0.71048726 | F112: -1.618315073 | G112: 1.798670197 | H112: -0.478803373 | I112: -1.319866824 | J112: -1.17856137 | K112: 0.143525392 | L112: 1.035035978 | M112: 0.415929784 | N112: 0.119325524 | O112: -0.535255308 | P112: 0.557595808 | R112: 3.283566118 | S112: 1.746468603 | T112: 5.030034721 | V112: ='SG Data'!$AB111*R112/$T112 -> 0.9524166472 | W112: ='SG Data'!$AB111*S112/$T112 -> 0.5065729489 | Y112: 1.798670197 | Z112: 3.41698527 | AA112: 2.392899549 | AB112: 1.815371297 | AC112: -5 | AD112: 5 | AE112: -1.665154778 | AF112: -4.126574376 | AG112: -3.713036 | AH112: 0.1561254316 | AI112: 2.765181414 | AJ112: 0.9533322396 | AK112: 0.08530315379 | AL112: -1.830364548 | AU112: 2.526142886 | AV112: 3.118537021 | AW112: 2.213597348 | AX112: 0.951185092 | AY112: 8.809462347 | AZ112: 0.2867533553 | BA112: 0.3539985641 | BB112: 0.2512749656 | BC112: 0.1079731151 | BE112: 0.71048726 | BF112: 1.798670197 | BG112: -1.17856137 | BH112: 0.415929784 | BI112: 2.034982583 | BJ112: 6.041607972 | BK112: 0.3077211171 | BL112: 1.515779433 | BM112: 9.900091105 | BN112: 0.2055519046 | BO112: 0.6102578156 | BP112: 0.03108265509 | BQ112: 0.1531076247 | BR112: 1.88904863 | BS112: 2.977231567 | BT112: 0 | BU112: 1.594491154 | BV112: 6.460771351 | BW112: 0.2923874763 | BX112: 0.4608167362 | BY112: 0 | BZ112: 0.2467957876
A113: 1146 | B113: 0.502862338 | C113: -1.198453484 | D113: -0.82502912 | E113: 0.278894954 | F113: 0.546134166 | G113: 0.153414389 | H113: 0.042301359 | I113: -0.195715747 | J113: 2.859244413 | K113: -1.080934793 | L113: -1.77830962 | M113: 0.059585125 | N113: -0.010494081 | O113: -0.049091045 | P113: 1.198453484 | R113: 8.607943132 | S113: 3.314986277 | T113: 11.92292941 | V113: ='SG Data'!$AB112*R113/$T113 -> 0.4869711307 | W113: ='SG Data'!$AB112*S113/$T113 -> 0.1875363941 | Y113: 2.859244413 | Z113: 4.637554033 | AA113: -2.944432575 | AB113: -0.5640310402 | AC113: 0.01221930669 | AD113: -0.8346059253 | AE113: -1.074199964 | AF113: -1.587438417 | AG113: 5 | AH113: -3.496244309 | AI113: -5 | AJ113: -1.036930822 | AK113: -1.188043252 | AL113: -1.271270237 | AU113: 1.371163286 | AV113: 0.349130136 | AW113: 4.637554033 | AX113: 0.10867617 | AY113: 6.466523625 | AZ113: 0.21204025 | BA113: 0.05399039055 | BB113: 0.7171633944 | BC113: 0.01680596504 | BE113: 0.278894954 | BF113: 0.153414389 | BG113: 2.859244413 | BH113: 0.059585125 | BI113: 1.321668501 | BJ113: 1.165807977 | BK113: 17.44833822 | BL113: 1.061396108 | BM113: 20.9972108 | BN113: 0.06294495555 | BO113: 0.05552203994 | BP113: 0.8309836188 | BQ113: 0.05054938575 | BR113: 0.219309829 | BS113: 0.093829264 | BT113: 2.799659288 | BU113: 0 | BV113: 3.112798381 | BW113: 0.07045423511 | BX113: 0.0301430586 | BY113: 0.8994027063 | BZ113: 0
A114: 1147 | B114: 0.644971793 | C114: -1.642584669 | D114: -1.961271604 | E114: 1.147075842 | F114: 0.814195762 | G114: 4.790399116 | H114: -1.420008138 | I114: -3.370390978 | J114: 0.622919154 | K114: -0.700307952 | L114: 0.077388797 | M114: -0.411213701 | N114: -0.386489515 | O114: 0.797703215 | P114: 1.642584669 | R114: 90.61282343 | S114: 5.168511153 | T114: 95.78133458 | V114: ='SG Data'!$AB113*R114/$T114 -> 0.9603510226 | W114: ='SG Data'!$AB113*S114/$T114 -> 0.05477795287 | Y114: 4.790399116 | Z114: 8.160790094 | AA114: -3.27330521 | AB114: 0.5355753156 | AC114: 0.1276735363 | AD114: 5 | AE114: -2.610056358 | AF114: -5 | AG114: -0.1067113772 | AH114: -1.728156226 | AI114: -0.7751887559 | AJ114: -1.373908356 | AK114: -1.343612042 | AL114: 0.1074640384 | AU114: 3.108347446 | AV114: 8.160790094 | AW114: 1.323227106 | AX114: 1.208916916 | AY114: 13.80128156 | AZ114: 0.2252216529 | BA114: 0.5913066882 | BB114: 0.09587711837 | BC114: 0.08759454045 | BE114: 1.147075842 | BF114: 4.790399116 | BG114: 0.622919154 | BH114: -0.411213701 | BI114: 3.148971344 | BJ114: 120.3493924 | BK114: 1.864362467 | BL114: 0.6628452658 | BM114: 126.0255715 | BN114: 0.02498676503 | BO114: 0.9549601005 | BP114: 0.01479352519 | BQ114: 0.005259609282 | BR114: 1.558289543 | BS114: 5.201612817 | BT114: 1.034132855 | BU114: 0 | BV114: 7.794035215 | BW114: 0.1999336031 | BX114: 0.6673837972 | BY114: 0.1326825998 | BZ114: 0
A115: 1149 | B115: 0.435918112 | C115: -1.108967724 | D115: -0.540918905 | E115: 0.174770821 | F115: 0.366148084 | G115: -2.437245758 | H115: 0.717986965 | I115: 1.719258794 | J115: -0.448429375 | K115: -0.956717258 | L115: 1.405146633 | M115: 0.112082375 | N115: 0.29448107 | O115: -0.406563445 | P115: 1.108967724 | R115: 0.02453168673 | S115: 3.031227715 | T115: 3.055759402 | V115: ='SG Data'!$AB114*R115/$T115 -> 0.009907856655 | W115: ='SG Data'!$AB114*S115/$T115 -> 1.224252128 | Y115: 1.719258794 | Z115: 4.156504552 | AA115: -0.437688497 | AB115: 1.28416629 | AC115: 1.744594663 | AD115: -5 | AE115: 2.591072459 | AF115: 5 | AG115: -0.2151709252 | AH115: -1.43804432 | AI115: 4.244287701 | AJ115: 1.133346183 | AK115: 1.57217331 | AL115: -0.1144470369 | AU115: 0.907066989 | AV115: 4.156504552 | AW115: 2.361863891 | AX115: 0.701044515 | AY115: 8.126479947 | AZ115: 0.111618683 | BA115: 0.5114766269 | BB115: 0.2906380015 | BC115: 0.0862666886 | BE115: 0.174770821 | BF115: -2.437245758 | BG115: -0.448429375 | BH115: 0.112082375 | BI115: 1.190973239 | BJ115: 0.08740124444 | BK115: 0.6386304132 | BL115: 1.118605002 | BM115: 3.035609899 | BN115: 0.3923340874 | BO115: 0.02879198822 | BP115: 0.2103796056 | BQ115: 0.3684943188 | BR115: 2.612016579 | BS115: 0 | BT115: 1.988816383 | BU115: 2.549328133 | BV115: 7.150161095 | BW115: 0.3653087734 | BX115: 0 | BY115: 0.2781498706 | BZ115: 0.3565413561
A116: 1150 | B116: 0.433302793 | C116: -0.600799022 | D116: -0.290154348 | E116: 0.214209735 | F116: 0.075944613 | G116: 0.784657715 | H116: -0.086157949 | I116: -0.698499767 | J116: 2.929148531 | K116: -2.743958018 | L116: -0.185190514 | M116: 1.222298717 | N116: -0.690301852 | O116: -0.531996865 | P116: 0.600799022 | R116: 94.58658667 | S116: 1.823575295 | T116: 96.41016196 | V116: ='SG Data'!$AB115*R116/$T116 -> 0.6261836771 | W116: ='SG Data'!$AB115*S116/$T116 -> 0.01207246317 | Y116: 2.929148531 | Z116: 5.673106549 | AA116: -0.6746737457 | AB116: 0.2143701647 | AC116: -0.02935013358 | AD116: 1.219900336 | AE116: -0.3150887507 | AF116: -1.394465302 | AG116: 5 | AH116: -5 | AI116: -0.4896537164 | AJ116: 1.991331294 | AK116: -1.380014815 | AL116: -1.100970194 | AU116: 0.504364083 | AV116: 1.483157482 | AW116: 5.673106549 | AX116: 1.912600569 | AY116: 9.573228683 | AZ116: 0.05268484643 | BA116: 0.1549276144 | BB116: 0.5926011732 | BC116: 0.199786366 | BE116: 0.214209735 | BF116: 0.784657715 | BG116: 2.929148531 | BH116: 1.222298717 | BI116: 1.238882465 | BJ116: 2.191656641 | BK116: 18.71169129 | BL116: 3.394982876 | BM116: 25.53721327 | BN116: 0.04851282916 | BO116: 0.08582207534 | BP116: 0.7327225211 | BQ116: 0.1329425744 | BR116: 0 | BS116: 0.57044798 | BT116: 2.714938796 | BU116: 1.008088982 | BV116: 4.293475758 | BW116: 0 | BX116: 0.1328639108 | BY116: 0.6323405439 | BZ116: 0.2347955453
A117: 1151 | B117: 0.522277395 | C117: -1.444978748 | D117: -2.909800885 | E117: 1.235565728 | F117: 1.674235158 | G117: 2.244747974 | H117: 0.451743535 | I117: -2.696491508 | J117: 1.035508168 | K117: -0.384361662 | L117: -0.651146506 | M117: -0.550341181 | N117: -0.233443001 | O117: 0.783784182 | P117: 1.444978748 | R117: 12.43483665 | S117: 4.241761996 | T117: 16.67659865 | V117: ='SG Data'!$AB116*R117/$T117 -> 0.573910196 | W117: ='SG Data'!$AB116*S117/$T117 -> 0.1957718084 | Y117: 2.244747974 | Z117: 5.154548859 | AA117: -5 | AB117: 3.042152139 | AC117: 3.893185744 | AD117: 5 | AE117: 1.52151044 | AF117: -4.586172558 | AG117: 2.654033672 | AH117: -0.1005620626 | AI117: -0.6181337285 | AJ117: -0.4225679714 | AK117: 0.1922252698 | AL117: 2.165680582 | AU117: 4.584036043 | AV117: 4.941239482 | AW117: 1.686654674 | AX117: 1.334125363 | AY117: 12.54605556 | AZ117: 0.3653766732 | BA117: 0.3938480471 | BB117: 0.134437048 | BC117: 0.1063382317 | BE117: 1.235565728 | BF117: 2.244747974 | BG117: 1.035508168 | BH117: -0.550341181 | BI117: 3.440324258 | BJ117: 9.438036626 | BK117: 2.816537146 | BL117: 0.5767529996 | BM117: 16.27165103 | BN117: 0.2114305581 | BO117: 0.5800294395 | BP117: 0.1730947364 | BQ117: 0.03544526604 | BR117: 1.785906909 | BS117: 2.795089155 | BT117: 1.585849349 | BU117: 0 | BV117: 6.166845413 | BW117: 0.2895981315 | BX117: 0.4532445631 | BY117: 0.2571573054 | BZ117: 0
A118: 1152 | B118: 0.466869308 | C118: -0.305222478 | D118: 0.207980671 | E118: -0.184367303 | F118: -0.023613367 | G118: 1.936416476 | H118: -0.71773198 | I118: -1.218684496 | J118: -1.838368016 | K118: -0.330641792 | L118: 2.169009807 | M118: 0.103782899 | N118: 0.441256785 | O118: -0.545039684 | P118: 0.305222478 | R118: 0.74994274 | S118: 1.356926856 | T118: 2.106869596 | V118: ='SG Data'!$AB117*R118/$T118 -> 0.3129352874 | W118: ='SG Data'!$AB117*S118/$T118 -> 0.5662169562 | Y118: 2.169009807 | Z118: 4.007377823 | AA118: 0.1064530907 | AB118: -0.8726110039 | AC118: -0.471466058 | AD118: 4.419587218 | AE118: -2.203567805 | AF118: -3.453643386 | AG118: -5 | AH118: -1.237623976 | AI118: 5 | AJ118: -0.1535617534 | AK118: 0.6885696874 | AL118: -1.772631908 | AU118: 0.392347974 | AV118: 3.155100972 | AW118: 4.007377823 | AX118: 0.986296469 | AY118: 8.541123238 | AZ118: 0.04593634386 | BA118: 0.3694011764 | BB118: 0.4691862781 | BC118: 0.1154762016 | BE118: -0.184367303 | BF118: 1.936416476 | BG118: -1.838368016 | BH118: 0.103782899 | BI118: 0.8316302874 | BJ118: 6.933858747 | BK118: 0.1590768252 | BL118: 1.109359586 | BM118: 9.033925445 | BN118: 0.09205635938 | BO118: 0.7675355292 | BP118: 0.01760882644 | BQ118: 0.122799285 | BR118: 1.654000713 | BS118: 3.774784492 | BT118: 0 | BU118: 1.942150915 | BV118: 7.37093612 | BW118: 0.2243949325 | BX118: 0.5121173797 | BY118: 0 | BZ118: 0.2634876878
A119: 1153 | B119: 0.477882128 | C119: -1.052026966 | D119: 2.200229878 | E119: 0.690987313 | F119: -2.891217191 | G119: 1.778962456 | H119: 1.060092916 | I119: -2.839055372 | J119: -0.755744522 | K119: 0.432065861 | L119: 0.32367866 | M119: 0.224599273 | N119: -0.637107112 | O119: 0.412507839 | P119: 1.052026966 | R119: 2.427295207 | S119: 2.863449354 | T119: 5.290744561 | V119: ='SG Data'!$AB118*R119/$T119 -> 0.6872619107 | W119: ='SG Data'!$AB118*S119/$T119 -> 0.8107541549 | Y119: 2.200229878 | Z119: 5.091447069 | AA119: 5 | AB119: 2.035729637 | AC119: -5 | AD119: 4.172597856 | AE119: 2.760681892 | AF119: -4.89755011 | AG119: -0.8057647658 | AH119: 1.527187668 | AI119: 1.314306733 | AJ119: 1.119707073 | AK119: -0.5727516196 | AL119: 1.488774184 | AU119: 5.091447069 | AV119: 4.618017828 | AW119: 1.187810383 | AX119: 1.049614951 | AY119: 11.94689023 | AZ119: 0.4261734201 | BA119: 0.386545598 | BB119: 0.09942423175 | BC119: 0.08785675023 | BE119: 0.690987313 | BF119: 1.778962456 | BG119: -0.755744522 | BH119: 0.224599273 | BI119: 1.995684927 | BJ119: 5.923707122 | BK119: 0.4696608117 | BL119: 1.251820977 | BM119: 9.640873838 | BN119: 0.2070024938 | BO119: 0.6144367432 | BP119: 0.04871558529 | BQ119: 0.1298451778 | BR119: 1.446731835 | BS119: 2.534706978 | BT119: 0 | BU119: 0.980343795 | BV119: 4.961782608 | BW119: 0.2915750143 | BX119: 0.5108460362 | BY119: 0 | BZ119: 0.1975789494
A120: 1155 | B120: 0.531540494 | C120: -0.618265044 | D120: -0.844613118 | E120: 2.44693253 | F120: -1.602319411 | G120: -1.242566104 | H120: 0.405404173 | I120: 0.837161931 | J120: -2.377472885 | K120: 0.593567507 | L120: 1.783905378 | M120: 0.311716777 | N120: -0.554761904 | O120: 0.243045126 | P120: 0.618265044 | R120: 0.2277162993 | S120: 1.85570568 | T120: 2.083421979 | V120: ='SG Data'!$AB119*R120/$T120 -> 0.09609061317 | W120: ='SG Data'!$AB119*S120/$T120 -> 0.7830616304 | Y120: 2.44693253 | Z120: 4.824405415 | AA120: -1.822697027 | AB120: 5 | AC120: -3.393266305 | AD120: -2.647571704 | AE120: 0.7683316774 | AF120: 1.663276693 | AG120: -5 | AH120: 1.158355562 | AI120: 3.625681105 | AJ120: 0.5741369779 | AK120: -1.221895085 | AL120: 0.4317947718 | AU120: 4.049251941 | AV120: 2.079728035 | AW120: 4.161378263 | AX120: 0.866478681 | AY120: 11.15683692 | AZ120: 0.3629390633 | BA120: 0.1864083924 | BB120: 0.3729890732 | BC120: 0.07766347104 | BE120: 2.44693253 | BF120: -1.242566104 | BG120: -2.377472885 | BH120: 0.311716777 | BI120: 11.55285428 | BJ120: 0.2886425799 | BK120: 0.09278475924 | BL120: 1.365767821 | BM120: 13.30004944 | BN120: 0.8686324311 | BO120: 0.02170236895 | BP120: 0.006976271756 | BQ120: 0.1026889282 | BR120: 4.824405415 | BS120: 1.134906781 | BT120: 0 | BU120: 2.689189662 | BV120: 8.648501858 | BW120: 0.557831344 | BX120: 0.1312258238 | BY120: 0 | BZ120: 0.3109428322
A121: 1157 | B121: 0.530521026 | C121: -1.418231647 | D121: 0.113623333 | E121: -0.207953276 | F121: 0.094329943 | G121: 3.746173858 | H121: -1.095608258 | I121: -2.6505656 | J121: 0.424025712 | K121: -0.302715649 | L121: -0.121310063 | M121: -0.052924935 | N121: -0.430643219 | O121: 0.483568154 | P121: 1.418231647 | R121: 12.0744266 | S121: 4.129811016 | T121: 16.20423762 | V121: ='SG Data'!$AB120*R121/$T121 -> 0.6616805407 | W121: ='SG Data'!$AB120*S121/$T121 -> 0.226314315 | Y121: 3.746173858 | Z121: 6.396739458 | AA121: -0.6787532912 | AB121: -1.181472858 | AC121: -0.708914579 | AD121: 5 | AE121: -2.569140728 | AF121: -5 | AG121: -0.1935023582 | AH121: -1.329614538 | AI121: -1.046023832 | AJ121: -0.9391176051 | AK121: -1.529603252 | AL121: -0.1004198708 | AU121: 0.321576609 | AV121: 6.396739458 | AW121: 0.726741361 | AX121: 0.914211373 | AY121: 8.359268801 | AZ121: 0.03846946625 | BA121: 0.7652271521 | BB121: 0.08693838879 | BC121: 0.1093649929 | BE121: -0.207953276 | BF121: 3.746173858 | BG121: 0.424025712 | BH121: -0.052924935 | BI121: 0.8122449872 | BJ121: 42.35870115 | BK121: 1.528100884 | BL121: 0.9484512053 | BM121: 45.64749822 | BN121: 0.0177938555 | BO121: 0.927952304 | BP121: 0.03347611465 | BQ121: 0.02077772588 | BR121: 0 | BS121: 3.954127134 | BT121: 0.631978988 | BU121: 0.155028341 | BV121: 4.741134463 | BW121: 0 | BX121: 0.8340044276 | BY121: 0.1332969974 | BZ121: 0.03269857504
A122: 1158 | B122: 0.79044499 | C122: -2.645874344 | D122: 0.044624154 | E122: -0.528996068 | F122: 0.484371914 | G122: 3.255286299 | H122: -1.242866649 | I122: -2.01241965 | J122: 2.681010568 | K122: -1.16637476 | L122: -1.514635808 | M122: -0.039804212 | N122: -0.167272571 | O122: 0.207076783 | P122: 2.645874344 | R122: 15.2049684 | S122: 14.09576424 | T122: 29.30073265 | V122: ='SG Data'!$AB121*R122/$T122 -> 0.6575711931 | W122: ='SG Data'!$AB121*S122/$T122 -> 0.6096013005 | Y122: 3.255286299 | Z122: 5.267705949 | AA122: -1.094991209 | AB122: -2.183928647 | AC122: -0.2601918403 | AD122: 5 | AE122: -3.539111696 | AF122: -5 | AG122: 3.90981817 | AH122: -3.393902586 | AI122: -4.05502728 | AJ122: -1.255266605 | AK122: -1.497247385 | AL122: -0.7865977059 | AU122: 1.013367982 | AV122: 5.267705949 | AW122: 4.195646376 | AX122: 0.374349354 | AY122: 10.85106966 | AZ122: 0.09338876384 | BA122: 0.4854549932 | BB122: 0.3866573994 | BC122: 0.0344988435 | BE122: -0.528996068 | BF122: 3.255286299 | BG122: 2.681010568 | BH122: -0.039804212 | BI122: 0.5891961858 | BJ122: 25.92703636 | BK122: 14.59983997 | BL122: 0.9609775686 | BM122: 42.07705008 | BN122: 0.01400279213 | BO122: 0.6161799913 | BP122: 0.3469786961 | BQ122: 0.02283852044 | BR122: 0 | BS122: 3.784282367 | BT122: 3.210006636 | BU122: 0.489191856 | BV122: 7.483480859 | BW122: 0 | BX122: 0.5056847794 | BY122: 0.42894566 | BZ122: 0.06536956067
A123: 1160 | B123: 0.657727513 | C123: -2.132503166 | D123: -1.417586971 | E123: -0.574543021 | F123: 1.992129992 | G123: 1.239992491 | H123: -0.768792906 | I123: -0.471199584 | J123: -1.756935251 | K123: 0.739552993 | L123: 1.017382259 | M123: -0.133391471 | N123: -1.379337229 | O123: 1.5127287 | P123: 2.132503166 | R123: 0.03482637009 | S123: 8.435957005 | T123: 8.470783375 | V123: ='SG Data'!$AB122*R123/$T123 -> 0.003164433459 | W123: ='SG Data'!$AB122*S123/$T123 -> 0.7665175709 | Y123: 1.992129992 | Z123: 3.749065243 | AA123: -4.094845627 | AB123: -1.846167902 | AC123: 5 | AD123: 2.993799915 | AE123: -2.364296749 | AF123: -1.570516692 | AG123: -5 | AH123: 1.658961854 | AI123: 2.40002462 | AJ123: -0.6694704553 | AK123: -3.992820883 | AL123: 3.721277809 | AU123: 3.409716963 | AV123: 2.008785397 | AW123: 2.77431751 | AX123: 2.892065929 | AY123: 11.0848858 | AZ123: 0.3076005495 | BA123: 0.1812184116 | BB123: 0.2502793047 | BC123: 0.2609017343 | BE123: -0.574543021 | BF123: 1.239992491 | BG123: -1.756935251 | BH123: -0.133391471 | BI123: 0.5629620719 | BJ123: 3.455587517 | BK123: 0.172572947 | BL123: 0.87512244 | BM123: 5.066244975 | BN123: 0.1111201836 | BO123: 0.6820806205 | BP123: 0.03406328509 | BQ123: 0.1727359108 | BR123: 1.18239223 | BS123: 2.996927742 | BT123: 0 | BU123: 1.62354378 | BV123: 5.802863752 | BW123: 0.2037601227 | BX123: 0.516456679 | BY123: 0 | BZ123: 0.2797831983
A124: 1161 | B124: 0.398947593 | C124: -0.931233921 | D124: 2.168517421 | E124: -1.968595501 | F124: -0.19992192 | G124: -0.114099144 | H124: 0.956547959 | I124: -0.842448815 | J124: 0.260582225 | K124: -0.174446085 | L124: -0.08613614 | M124: -0.000959458 | N124: 0.426648232 | O124: -0.425688774 | P124: 0.931233921 | R124: 0.06365319244 | S124: 2.537638492 | T124: 2.601291684 | V124: ='SG Data'!$AB123*R124/$T124 -> 0.03665621409 | W124: ='SG Data'!$AB123*S124/$T124 -> 1.461359851 | Y124: 2.168517421 | Z124: 4.137112922 | AA124: 5 | AB124: -5 | AC124: -0.7248602725 | AD124: -0.5174142162 | AE124: 2.070494606 | AF124: -2.277940662 | AG124: 0.3882448172 | AH124: -0.6632814965 | AI124: -0.4498235932 | AJ124: -0.2439392395 | AK124: 0.7896503628 | AL124: -1.270571396 | AU124: 4.137112922 | AV124: 1.798996774 | AW124: 0.43502831 | AX124: 0.852337006 | AY124: 7.223475012 | AZ124: 0.5727316721 | BA124: 0.2490486602 | BB124: 0.06022424239 | BC124: 0.1179954253 | BE124: -1.968595501 | BF124: -0.114099144 | BG124: 0.260582225 | BH124: -0.000959458 | BI124: 0.1396528608 | BJ124: 0.8921694982 | BK124: 1.297685412 | BL124: 0.9990410021 | BM124: 3.328548773 | BN124: 0.04195608067 | BO124: 0.2680355792 | BP124: 0.3898652236 | BQ124: 0.3001431165 | BR124: 0 | BS124: 1.854496357 | BT124: 2.229177726 | BU124: 1.967636043 | BV124: 6.051310126 | BW124: 0 | BX124: 0.3064619592 | BY124: 0.3683793558 | BZ124: 0.325158685
A125: 1162 | B125: 0.447921193 | C125: -1.129137353 | D125: 1.24613461 | E125: 1.603270486 | F125: -2.849405095 | G125: 0.446498729 | H125: 0.256474643 | I125: -0.702973372 | J125: -2.446256655 | K125: 1.887691613 | L125: 0.558565043 | M125: -0.685949033 | N125: -0.073332292 | O125: 0.759281326 | P125: 1.129137353 | R125: 0.1095281346 | S125: 3.092987193 | T125: 3.202515327 | V125: ='SG Data'!$AB124*R125/$T125 -> 0.03043768634 | W125: ='SG Data'!$AB124*S125/$T125 -> 0.8595359939 | Y125: 1.887691613 | Z125: 4.737096708 | AA125: 3.645674677 | AB125: 4.39958767 | AC125: -5 | AD125: 1.957645214 | AE125: 1.556504816 | AF125: -0.4688876852 | AG125: -4.148954592 | AH125: 5 | AI125: 2.194216939 | AJ125: -0.4329493456 | AK125: 0.8602831526 | AL125: 2.61792854 | AU125: 4.452675581 | AV125: 1.149472101 | AW125: 4.333948268 | AX125: 1.445230359 | AY125: 11.38132631 | AZ125: 0.391226423 | BA125: 0.1009963224 | BB125: 0.3807946588 | BC125: 0.1269825959 | BE125: 1.603270486 | BF125: 0.446498729 | BG125: -2.446256655 | BH125: -0.685949033 | BI125: 4.969257766 | BJ125: 1.562830701 | BK125: 0.08661721852 | BL125: 0.5036120582 | BM125: 7.122317743 | BN125: 0.6977023414 | BO125: 0.2194272648 | BP125: 0.01216138084 | BQ125: 0.07070901305 | BR125: 4.049527141 | BS125: 2.892755384 | BT125: 0 | BU125: 1.760307622 | BV125: 8.702590147 | BW125: 0.4653243543 | BX125: 0.3324016569 | BY125: 0 | BZ125: 0.2022739888
A126: 1163 | B126: 0.43301454 | C126: -0.813079144 | D126: 0.82792016 | E126: -1.299930089 | F126: 0.472009929 | G126: -1.280957026 | H126: -0.988441915 | I126: 2.26939894 | J126: -1.22767516 | K126: 0.882536269 | L126: 0.345138891 | M126: 0.550044552 | N126: -1.66190768 | O126: 1.111863128 | P126: 0.813079144 | R126: 0.01705013995 | S126: 2.254840286 | T126: 2.271890426 | V126: ='SG Data'!$AB125*R126/$T126 -> 0.003555238921 | W126: ='SG Data'!$AB125*S126/$T126 -> 0.470171856 | Y126: 2.26939894 | Z126: 3.93130662 | AA126: 1.333334132 | AB126: -4.079243554 | AC126: 0.4280111303 | AD126: -4.030982086 | AE126: -3.286916209 | AF126: 5 | AG126: -3.89544988 | AH126: 1.47226023 | AI126: 0.1052913573 | AJ126: 0.6265065176 | AK126: -5 | AL126: 2.05559519 | AU126: 2.127850249 | AV126: 3.550355966 | AW126: 2.110211429 | AX126: 2.773770808 | AY126: 10.56218845 | AZ126: 0.2014592202 | BA126: 0.3361382901 | BB126: 0.1997892235 | BC126: 0.2626132662 | BE126: -1.299930089 | BF126: -1.280957026 | BG126: -1.22767516 | BH126: 0.550044552 | BI126: 0.2725508467 | BJ126: 0.2777713388 | BK126: 0.2929729017 | BL126: 1.733330239 | BM126: 2.576625327 | BN126: 0.1057782223 | BO126: 0.1078043191 | BP126: 0.1137041147 | BQ126: 0.6727133439 | BR126: 0 | BS126: 0.018973063 | BT126: 0.072254929 | BU126: 1.849974641 | BV126: 1.941202633 | BW126: 0 | BX126: 0.009773870423 | BY126: 0.03722173449 | BZ126: 0.9530043951
A127: 1164 | B127: 0.589273844 | C127: -0.703472002 | D127: 3.39837017 | E127: 0.034326801 | F127: -3.432696971 | G127: -0.379005215 | H127: 0.075909884 | I127: 0.303095332 | J127: -1.262742894 | K127: 1.716455895 | L127: -0.453713002 | M127: -1.039779033 | N127: 0.773531812 | O127: 0.266247221 | P127: 0.703472002 | R127: 0.03506077331 | S127: 2.020756613 | T127: 2.055817386 | V127: ='SG Data'!$AB126*R127/$T127 -> 0.01794299158 | W127: ='SG Data'!$AB126*S127/$T127 -> 1.034159132 | Y127: 3.39837017 | Z127: 6.831067141 | AA127: 5 | AB127: 0.0753765121 | AC127: -5 | AD127: -0.5297002753 | AE127: 0.1362499922 | AF127: 0.4688267966 | AG127: -1.823403969 | AH127: 2.537845493 | AI127: -0.6390650135 | AJ127: -1.497007146 | AK127: 1.157498816 | AL127: 0.4148848425 | AU127: 6.831067141 | AV127: 0.682100547 | AW127: 2.979198789 | AX127: 1.813310845 | AY127: 12.30567732 | AZ127: 0.5551150873 | BA127: 0.05542974427 | BB127: 0.2420995376 | BC127: 0.1473556309 | BE127: 0.034326801 | BF127: -0.379005215 | BG127: -1.262742894 | BH127: -1.039779033 | BI127: 1.034922765 | BJ127: 0.6845420428 | BK127: 0.2828770596 | BL127: 0.3535327924 | BM127: 2.35587466 | BN127: 0.4392944934 | BO127: 0.290568108 | BP127: 0.1200730516 | BQ127: 0.150064347 | BR127: 1.297069695 | BS127: 0.883737679 | BT127: 0 | BU127: 0.222963861 | BV127: 2.403771235 | BW127: 0.5395978104 | BX127: 0.3676463326 | BY127: 0 | BZ127: 0.09275585703
A128: 1165 | B128: 0.39983237 | C128: -0.711302849 | D128: 0.194824655 | E128: 0.817580776 | F128: -1.01240543 | G128: -0.096334937 | H128: 0.046674429 | I128: 0.049660508 | J128: -2.833625736 | K128: 0.280132873 | L128: 2.553492863 | M128: -0.305320015 | N128: 0.136371287 | O128: 0.168948728 | P128: 0.711302849 | R128: 0.04376141609 | S128: 2.036642969 | T128: 2.080404385 | V128: ='SG Data'!$AB127*R128/$T128 -> 0.009843708784 | W128: ='SG Data'!$AB127*S128/$T128 -> 0.4581232071 | Y128: 2.553492863 | Z128: 5.387118599 | AA128: 0.6216516034 | AB128: 1.777661276 | AC128: -1.619305344 | AD128: 0.08117790373 | AE128: 0.346643316 | AF128: 0.3521863145 | AG128: -5 | AH128: 0.7800075342 | AI128: 5 | AJ128: -0.306756897 | AK128: 0.5131457911 | AL128: 0.5736186401 | AU128: 1.829986206 | AV128: 0.145995445 | AW128: 5.387118599 | AX128: 0.474268743 | AY128: 7.837368993 | AZ128: 0.2334949659 | BA128: 0.01862811935 | BB128: 0.6873631449 | BC128: 0.06051376979 | BE128: 0.817580776 | BF128: -0.096334937 | BG128: -2.833625736 | BH128: -0.305320015 | BI128: 2.265013629 | BJ128: 0.9081597888 | BK128: 0.05879927606 | BL128: 0.7368875216 | BM128: 3.968860215 | BN128: 0.5706962468 | BO128: 0.2288213088 | BP128: 0.01481515419 | BQ128: 0.1856672903 | BR128: 3.651206512 | BS128: 2.737290799 | BT128: 0 | BU128: 2.528305721 | BV128: 8.916803032 | BW128: 0.4094748419 | BX128: 0.3069811892 | BY128: 0 | BZ128: 0.2835439688
A129: 1166 | B129: 0.531246623 | C129: -1.803201397 | D129: -2.684241192 | E129: 1.113443802 | F129: 1.57079739 | G129: 2.260549506 | H129: -0.594011922 | I129: -1.666537584 | J129: 0.853072203 | K129: -1.357464847 | L129: 0.504392644 | M129: 0.597387284 | N129: 0.07952312 | O129: -0.676910404 | P129: 1.803201397 | R129: 20.5169505 | S129: 6.069045822 | T129: 26.58599632 | V129: ='SG Data'!$AB128*R129/$T129 -> 0.6484530283 | W129: ='SG Data'!$AB128*S129/$T129 -> 0.1918165735 | Y129: 2.260549506 | Z129: 4.944790698 | AA129: -5 | AB129: 2.68017339 | AC129: 3.605093404 | AD129: 5 | AE129: -0.7728660369 | AF129: -2.941867169 | AG129: 2.153616019 | AH129: -2.316820011 | AI129: 1.448470786 | AJ129: 1.636536663 | AK129: 0.5892442791 | AL129: -0.9405141479 | AU129: 4.255038582 | AV129: 3.92708709 | AW129: 2.21053705 | AX129: 1.274297688 | AY129: 11.66696041 | AZ129: 0.3647084101 | BA129: 0.33659899 | BB129: 0.1894698338 | BC129: 0.1092227661 | BE129: 1.113443802 | BF129: 2.260549506 | BG129: 0.853072203 | BH129: 0.597387284 | BI129: 3.044826138 | BJ129: 9.588356579 | BK129: 2.346845775 | BL129: 1.817364335 | BM129: 16.79739283 | BN129: 0.1812677818 | BO129: 0.5708240962 | BP129: 0.1397148831 | BQ129: 0.1081932389 | BR129: 0.516056518 | BS129: 1.663162222 | BT129: 0.255684919 | BU129: 0 | BV129: 2.434903659 | BW129: 0.2119412471 | BX129: 0.6830505248 | BY129: 0.1050082282 | BZ129: 0
A130: 1167 | B130: 0.472408541 | C130: -0.709111081 | D130: 1.62738257 | E130: 1.813414452 | F130: -3.440797022 | G130: -1.484851811 | H130: 0.57437653 | I130: 0.910475281 | J130: -0.510271064 | K130: 0.27639178 | L130: 0.233879284 | M130: -1.062956869 | N130: -0.554734262 | O130: 1.617691131 | P130: 0.709111081 | R130: 0.1417378048 | S130: 2.032184009 | T130: 2.173921813 | V130: ='SG Data'!$AB129*R130/$T130 -> 0.09766934001 | W130: ='SG Data'!$AB129*S130/$T130 -> 1.400346726 | Y130: 1.813414452 | Z130: 5.254211474 | AA130: 4.645937582 | AB130: 5 | AC130: -5 | AD130: -1.277376309 | AE130: 2.641819466 | AF130: 3.281494425 | AG130: 0.577480032 | AH130: 2.074684413 | AI130: 1.993773136 | AJ130: -0.4744110229 | AK130: 0.4928561103 | AL130: 4.627492494 | AU130: 5.254211474 | AV130: 2.395327092 | AW130: 0.786662844 | AX130: 2.680648 | AY130: 11.11684941 | AZ130: 0.4726349418 | BA130: 0.2154681604 | BB130: 0.07076311057 | BC130: 0.2411337872 | BE130: 1.813414452 | BF130: -1.484851811 | BG130: -0.510271064 | BH130: -1.062956869 | BI130: 6.131346922 | BJ130: 0.2265359083 | BK130: 0.6003328281 | BL130: 0.3454328989 | BM130: 7.303648557 | BN130: 0.8394909577 | BO130: 0.03101681393 | BP130: 0.08219629182 | BQ130: 0.04729593658 | BR130: 3.298266263 | BS130: 0 | BT130: 0.974580747 | BU130: 0.421894942 | BV130: 4.694741952 | BW130: 0.7025447398 | BX130: 0 | BY130: 0.2075898435 | BZ130: 0.08986541674
A131: 1169 | B131: 0.32553833 | C131: 0.34255481 | D131: 0.27405949 | E131: 0.506223058 | F131: -0.780282548 | G131: -0.575303075 | H131: 0.338869713 | I131: 0.236433362 | J131: 0.109965771 | K131: -0.884752755 | L131: 0.774786984 | M131: -1.213524606 | N131: 0.335431183 | O131: 0.878093423 | P131: -0.34255481 | R131: 0.4360126414 | S131: =EXP(P131) -> 0.7099542057 | T131: =SUM(R131:S131) -> 1.145966847 | V131: ='SG Data'!$AB130*R131/$T131 -> 0.5699588459 | W131: ='SG Data'!$AB130*S131/$T131 -> 0.9280572197 | Y131: =MAX(D131:O131) -> 0.878093423 | Z131: =MAX(D131:O131)-MIN(D131:O131) -> 2.091618029 | AA131: =((($Y131-D131)/$Z131*-5+(1-(($Y131-D131)/$Z131))*5)) -> 2.112121216 | AB131: =((($Y131-E131)/$Z131*-5+(1-(($Y131-E131)/$Z131))*5)) -> 3.222092371 | AC131: =((($Y131-F131)/$Z131*-5+(1-(($Y131-F131)/$Z131))*5)) -> -2.928675064 | AD131: =((($Y131-G131)/$Z131*-5+(1-(($Y131-G131)/$Z131))*5)) -> -1.948670732 | AE131: =((($Y131-H131)/$Z131*-5+(1-(($Y131-H131)/$Z131))*5)) -> 2.421978093 | AF131: =((($Y131-I131)/$Z131*-5+(1-(($Y131-I131)/$Z131))*5)) -> 1.932231162 | AG131: =((($Y131-J131)/$Z131*-5+(1-(($Y131-J131)/$Z131))*5)) -> 1.327591169 | AH131: =((($Y131-K131)/$Z131*-5+(1-(($Y131-K131)/$Z131))*5)) -> -3.428145835 | AI131: =((($Y131-L131)/$Z131*-5+(1-(($Y131-L131)/$Z131))*5)) -> 4.506093189 | AJ131: =((($Y131-M131)/$Z131*-5+(1-(($Y131-M131)/$Z131))*5)) -> -5 | AK131: =((($Y131-N131)/$Z131*-5+(1-(($Y131-N131)/$Z131))*5)) -> 2.405538523 | AL131: =((($Y131-O131)/$Z131*-5+(1-(($Y131-O131)/$Z131))*5)) -> 5 | AU131: =MAX(D131:F131)-MIN(D131:F131) -> 1.286505606 | AV131: =MAX(G131:I131)-MIN(G131:I131) -> 0.914172788 | AW131: =MAX(J131:L131)-MIN(J131:L131) -> 1.659539739 | AX131: =MAX(M131:O131)-MIN(M131:O131) -> 2.091618029 | AY131: =SUM(AU131:AX131) -> 5.951836162 | AZ131: =AU131/$AY131 -> 0.2161527251 | BA131: =AV131/$AY131 -> 0.1535950861 | BB131: =AW131/$AY131 -> 0.2788281958 | BC131: =AX131/$AY131 -> 0.3514239929 | BE131: =SUMPRODUCT(D131:F131,$D$440:$F$440) -> 0.506223058 | BF131: =SUMPRODUCT(G131:I131,$G$440:$I$440) -> -0.575303075 | BG131: =SUMPRODUCT(J131:L131,$J$440:$L$440) -> 0.109965771 | BH131: =SUMPRODUCT(M131:O131,$M$440:$O$440) -> -1.213524606 | BI131: =EXP(BE131) -> 1.65901335 | BJ131: =EXP(BF131) -> 0.5625343529 | BK131: =EXP(BG131) -> 1.116239862 | BL131: =EXP(BH131) -> 0.2971481016 | BM131: =SUM(BI131:BL131) -> 3.634935666 | BN131: =BI131/$BM131 -> 0.4564078988 | BO131: =BJ131/$BM131 -> 0.1547577191 | BP131: =BK131/$BM131 -> 0.3070865524 | BQ131: =BL131/$BM131 -> 0.08174782963 | BR131: =BE131-MIN($BE131:$BH131) -> 1.719747664 | BS131: =BF131-MIN($BE131:$BH131) -> 0.638221531 | BT131: =BG131-MIN($BE131:$BH131) -> 1.323490377 | BU131: =BH131-MIN($BE131:$BH131) -> 0 | BV131: =SUM(BR131:BU131) -> 3.681459572 | BW131: =BR131/$BV131 -> 0.4671374574 | BX131: =BS131/$BV131 -> 0.1733610049 | BY131: =BT131/$BV131 -> 0.3595015377 | BZ131: =BU131/$BV131 -> 0
A132: 1170 | B132: 0.365616524 | C132: -0.593982396 | D132: -0.619446143 | E132: 0.208190406 | F132: 0.411255737 | G132: -0.747647917 | H132: -0.364652935 | I132: 1.112300853 | J132: 0.269093027 | K132: 0.594649938 | L132: -0.863742966 | M132: 0.137719154 | N132: 1.290392083 | O132: -1.428111237 | P132: 0.593982396 | R132: =EXP(SUMPRODUCT(C132:O132,C$440:O$440)) -> 0.4835368625 | S132: 1.811186936 | T132: 2.294723798 | V132: ='SG Data'!$AB131*R132/$T132 -> 0.2137284688 | W132: ='SG Data'!$AB131*S132/$T132 -> 0.8005640119 | Y132: 1.290392083 | Z132: 2.71850332 | AA132: -2.025329754 | AB132: 1.019126889 | AC132: 1.766101628 | AD132: -2.496919297 | AE132: -1.088074294 | AF132: 4.344892358 | AG132: 1.243156856 | AH132: 2.440716221 | AI132: -2.923974318 | AJ132: 0.759898763 | AK132: 5 | AL132: -5 | AU132: 1.03070188 | AV132: 1.85994877 | AW132: 1.458392904 | AX132: 2.71850332 | AY132: 7.067546874 | AZ132: 0.1458358747 | BA132: 0.2631675181 | BB132: 0.2063506518 | BC132: 0.3846459554 | BE132: 0.208190406 | BF132: -0.747647917 | BG132: 0.269093027 | BH132: 0.137719154 | BI132: 1.231447622 | BJ132: 0.4734789057 | BK132: 1.308776887 | BL132: 1.147653191 | BM132: 4.161356606 | BN132: 0.2959245599 | BO132: 0.1137799402 | BP132: 0.3145072655 | BQ132: 0.2757882344 | BR132: 0.955838323 | BS132: 0 | BT132: 1.016740944 | BU132: 0.885367071 | BV132: 2.857946338 | BW132: 0.3344493598 | BX132: 0 | BY132: 0.3557592844 | BZ132: 0.3097913559
A133: 1172 | B133: 0.670343728 | C133: -1.748755322 | D133: -0.076673282 | E133: 1.574254993 | F133: -1.497581712 | G133: -1.112801289 | H133: -1.03919171 | I133: 2.151992999 | J133: -1.320259136 | K133: -0.197185382 | L133: 1.517444519 | M133: 1.371742169 | N133: -1.740211019 | O133: 0.368468851 | P133: 1.748755322 | R133: 0.2905967868 | S133: 5.747444504 | T133: 6.038041291 | V133: ='SG Data'!$AB132*R133/$T133 -> 0.05333634771 | W133: ='SG Data'!$AB132*S133/$T133 -> 1.054890186 | Y133: 2.151992999 | Z133: 3.892204018 | AA133: -0.7259749764 | AB133: 3.515653333 | AC133: -4.376627469 | AD133: -3.388034833 | AE133: -3.198914276 | AF133: 5 | AG133: -3.921043499 | AH133: -1.035599291 | AI133: 3.369693682 | AJ133: 2.995349611 | AK133: -5 | AL133: 0.4177012825 | AU133: 3.071836705 | AV133: 3.264794288 | AW133: 2.837703655 | AX133: 3.111953188 | AY133: 12.28628784 | AZ133: 0.2500215481 | BA133: 0.2657266647 | BB133: 0.2309650964 | BC133: 0.2532866908 | BE133: 1.574254993 | BF133: -1.112801289 | BG133: -1.320259136 | BH133: 1.371742169 | BI133: 4.827144022 | BJ133: 0.328637063 | BK133: 0.2670660866 | BL133: 3.942212717 | BM133: 9.365059889 | BN133: 0.5154418743 | BO133: 0.03509182717 | BP133: 0.0285172855 | BQ133: 0.420949013 | BR133: 2.894514129 | BS133: 0.207457847 | BT133: 0 | BU133: 2.692001305 | BV133: 5.793973281 | BW133: 0.4995732615 | BX133: 0.03580579974 | BY133: 0 | BZ133: 0.4646209388
A134: 1173 | B134: 0.50931964 | C134: 0.399297728 | D134: 0.574380329 | E134: -1.430113678 | F134: 0.85573335 | G134: 1.157623968 | H134: -1.867322954 | I134: 0.709698987 | J134: 1.2196522 | K134: -1.258885213 | L134: 0.039233013 | M134: -1.402093137 | N134: 1.492466021 | O134: -0.090372884 | P134: -0.399297728 | R134: 0.9458862891 | S134: 0.6707909584 | T134: 1.616677247 | V134: ='SG Data'!$AB133*R134/$T134 -> 0.6852293326 | W134: ='SG Data'!$AB133*S134/$T134 -> 0.4859417522 | Y134: 1.492466021 | Z134: 3.359788975 | AA134: 2.267430488 | AB134: -3.698700188 | AC134: 3.104843263 | AD134: 4.003383678 | AE134: -5 | AF134: 2.670189884 | AG134: 4.188003107 | AH134: -3.189059654 | AI134: 0.6746301068 | AJ134: -3.615300483 | AK134: 5 | AL134: 0.288874043 | AU134: 2.285847028 | AV134: 3.024946922 | AW134: 2.478537413 | AX134: 2.894559158 | AY134: 10.68389052 | AZ134: 0.2139526817 | BA134: 0.2831315911 | BB134: 0.2319882826 | BC134: 0.2709274447 | BE134: -1.430113678 | BF134: 1.157623968 | BG134: 1.2196522 | BH134: -1.402093137 | BI134: 0.2392817196 | BJ134: 3.18236289 | BK134: 3.386009875 | BL134: 0.2460813425 | BM134: 7.053735827 | BN134: 0.03392269366 | BO134: 0.4511599198 | BP134: 0.4800307182 | BQ134: 0.03488666837 | BR134: 0 | BS134: 2.587737646 | BT134: 2.649765878 | BU134: 0.028020541 | BV134: 5.265524065 | BW134: 0 | BX134: 0.4914492108 | BY134: 0.5032292789 | BZ134: 0.005321510386
A135: 1174 | B135: 0.458104095 | C135: -0.337784812 | D135: -1.02007855 | E135: 0.572069575 | F135: 0.448008975 | G135: 1.264171309 | H135: 0.004006521 | I135: -1.26817783 | J135: -3.208741277 | K135: 1.410911212 | L135: 1.797830064 | M135: -0.066622435 | N135: 0.503601753 | O135: -0.436979317 | P135: 0.337784812 | R135: 0.1691604443 | S135: 1.401838812 | T135: 1.570999256 | V135: ='SG Data'!$AB134*R135/$T135 -> 0.09466445227 | W135: ='SG Data'!$AB134*S135/$T135 -> 0.7844877913 | Y135: 1.797830064 | Z135: 5.006571341 | AA135: -0.6284199746 | AB135: 2.551696749 | AC135: 2.303901219 | AD135: 3.93408339 | AE135: 1.417061856 | AF135: -1.123967253 | AG135: -5 | AH135: 4.227177991 | AI135: 5 | AJ135: 1.275989351 | AK135: 2.414940839 | AL135: 0.5362478056 | AU135: 1.592148125 | AV135: 2.532349139 | AW135: 5.006571341 | AX135: 0.94058107 | AY135: 10.07164967 | AZ135: 0.158082159 | BA135: 0.2514334017 | BB135: 0.4970954613 | BC135: 0.09338897801 | BE135: 0.572069575 | BF135: 1.264171309 | BG135: -3.208741277 | BH135: -0.066622435 | BI135: 1.771930402 | BJ135: 3.540157823 | BK135: 0.04040744305 | BL135: 0.935548365 | BM135: 6.288044034 | BN135: 0.2817935741 | BO135: 0.5629982558 | BP135: 0.006426075078 | BQ135: 0.148782095 | BR135: 3.780810852 | BS135: 4.472912586 | BT135: 0 | BU135: 3.142118842 | BV135: 11.39584228 | BW135: 0.3317710757 | BX135: 0.3925039042 | BY135: 0 | BZ135: 0.2757250201
A136: 1175 | B136: 0.319366249 | C136: -0.334086716 | D136: 0.187913283 | E136: -0.795506132 | F136: 0.60759285 | G136: 0.688919463 | H136: 0.374435762 | I136: -1.063355225 | J136: 1.087201748 | K136: -1.023609035 | L136: -0.063592713 | M136: 0.768664302 | N136: -0.150893154 | O136: -0.617771148 | P136: 0.334086716 | R136: 4.117279645 | S136: 1.396664251 | T136: 5.513943897 | V136: ='SG Data'!$AB135*R136/$T136 -> 0.2796739867 | W136: ='SG Data'!$AB135*S136/$T136 -> 0.09487105392 | Y136: 1.087201748 | Z136: 2.150556973 | AA136: 0.818346241 | AB136: -3.754512918 | AC136: 2.769838679 | AD136: 3.148004029 | AE136: 1.685667969 | AF136: -5 | AG136: 5 | AH136: -4.815181878 | AI136: -0.3511461238 | AJ136: 3.518814196 | AK136: -0.757089524 | AL136: -2.928052674 | AU136: 1.403098982 | AV136: 1.752274688 | AW136: 2.110810783 | AX136: 1.38643545 | AY136: 6.652619903 | AZ136: 0.2109092361 | BA136: 0.2633961828 | BB136: 0.3172901524 | BC136: 0.2084044287 | BE136: -0.795506132 | BF136: 0.688919463 | BG136: 1.087201748 | BH136: 0.768664302 | BI136: 0.451352733 | BJ136: 1.991562413 | BK136: 2.965962938 | BL136: 2.156883384 | BM136: 7.565761468 | BN136: 0.05965727771 | BO136: 0.2632335716 | BP136: 0.3920243786 | BQ136: 0.2850847721 | BR136: 0 | BS136: 1.484425595 | BT136: 1.88270788 | BU136: 1.564170434 | BV136: 4.931303909 | BW136: 0 | BX136: 0.301020911 | BY136: 0.3817870313 | BZ136: 0.3171920577
A137: 1176 | B137: 0.51921781 | C137: -0.747025046 | D137: -0.835842562 | E137: 1.023623953 | F137: -0.187781391 | G137: -1.51997556 | H137: 0.962279983 | I137: 0.557695577 | J137: -3.211126807 | K137: 0.777157243 | L137: 2.433969564 | M137: -1.087016566 | N137: 0.484591344 | O137: 0.602425221 | P137: 0.747025046 | R137: 0.003920562949 | S137: 2.110711398 | T137: 2.114631961 | V137: ='SG Data'!$AB136*R137/$T137 -> 0.001650026057 | W137: ='SG Data'!$AB136*S137/$T137 -> 0.8883236542 | Y137: 2.433969564 | Z137: 5.645096371 | AA137: -0.7923052347 | AB137: 2.501644758 | AC137: 0.3557020417 | AD137: -2.004211911 | AE137: 2.392977047 | AF137: 1.676276429 | AG137: -5 | AH137: 2.065041565 | AI137: 5 | AJ137: -1.237247159 | AK137: 1.546776013 | AL137: 1.755512709 | AU137: 1.859466515 | AV137: 2.482255543 | AW137: 5.645096371 | AX137: 1.689441787 | AY137: 11.67626022 | AZ137: 0.1592518906 | BA137: 0.2125899472 | BB137: 0.4834678456 | BC137: 0.1446903166 | BE137: 1.023623953 | BF137: -1.51997556 | BG137: -3.211126807 | BH137: -1.087016566 | BI137: 2.783262924 | BJ137: 0.2187172323 | BK137: 0.04031116477 | BL137: 0.3372210712 | BM137: 3.379512392 | BN137: 0.8235693795 | BO137: 0.06471857681 | BP137: 0.01192810089 | BQ137: 0.0997839428 | BR137: 4.23475076 | BS137: 1.691151247 | BT137: 0 | BU137: 2.124110241 | BV137: 8.050012248 | BW137: 0.5260551946 | BX137: 0.2100805806 | BY137: 0 | BZ137: 0.2638642247
A138: 1177 | B138: 0.496480375 | C138: -0.572540965 | D138: 1.197954834 | E138: 2.120640829 | F138: -3.318595663 | G138: -1.366867604 | H138: 0.109608817 | I138: 1.257258787 | J138: -2.037766528 | K138: 1.095784528 | L138: 0.941982 | M138: 0.339048519 | N138: -0.148093323 | O138: -0.190955196 | P138: 0.572540965 | R138: 0.2192624754 | S138: 1.772765869 | T138: 1.992028345 | V138: ='SG Data'!$AB137*R138/$T138 -> 0.1116431303 | W138: ='SG Data'!$AB137*S138/$T138 -> 0.9026493505 | Y138: 2.120640829 | Z138: 5.439236492 | AA138: 3.303647954 | AB138: 5 | AC138: -5 | AD138: -1.411760985 | AE138: 1.302731064 | AF138: 3.412677876 | AG138: -2.645204181 | AH138: 3.115808528 | AI138: 2.833043607 | AJ138: 1.724554425 | AK138: 0.8289473985 | AL138: 0.750146131 | AU138: 5.439236492 | AV138: 2.624126391 | AW138: 3.133551056 | AX138: 0.530003715 | AY138: 11.72691765 | AZ138: 0.4638249071 | BA138: 0.2237694907 | BB138: 0.2672101185 | BC138: 0.04519548364 | BE138: 2.120640829 | BF138: -1.366867604 | BG138: -2.037766528 | BH138: 0.339048519 | BI138: 8.336478033 | BJ138: 0.2549041711 | BK138: 0.1303194509 | BL138: 1.403611445 | BM138: 10.1253131 | BN138: 0.8233303949 | BO138: 0.02517494211 | BP138: 0.01287065888 | BQ138: 0.1386240042 | BR138: 4.158407357 | BS138: 0.670898924 | BT138: 0 | BU138: 2.376815047 | BV138: 7.206121328 | BW138: 0.5770659649 | BX138: 0.09310125287 | BY138: 0 | BZ138: 0.3298327823
A139: 1178 | B139: 0.425216491 | C139: -0.321966839 | D139: 2.006689693 | E139: -0.352345012 | F139: -1.654344681 | G139: 0.583609836 | H139: 0.447370601 | I139: -1.030980437 | J139: -0.219184436 | K139: 0.624087962 | L139: -0.404903525 | M139: -1.547052762 | N139: 0.674351833 | O139: 0.872700928 | P139: 0.321966839 | R139: 0.1561498411 | S139: 1.379839018 | T139: 1.535988859 | V139: ='SG Data'!$AB138*R139/$T139 -> 0.09885439492 | W139: ='SG Data'!$AB138*S139/$T139 -> 0.8735401221 | Y139: 2.006689693 | Z139: 3.661034374 | AA139: 5 | AB139: -1.443628942 | AC139: -5 | AD139: 1.112902225 | AE139: 0.7407690486 | AF139: -3.297300215 | AG139: -1.079905026 | AH139: 1.22346695 | AI139: -1.587190864 | AJ139: -4.706935505 | AK139: 1.36076113 | AL139: 1.902545431 | AU139: 3.661034374 | AV139: 1.614590273 | AW139: 1.028991487 | AX139: 2.41975369 | AY139: 8.724369824 | AZ139: 0.4196331022 | BA139: 0.1850666931 | BB139: 0.1179445058 | BC139: 0.2773556989 | BE139: -0.352345012 | BF139: 0.583609836 | BG139: -0.219184436 | BH139: -1.547052762 | BI139: 0.7030375237 | BJ139: 1.792497387 | BK139: 0.8031735704 | BL139: 0.2128744418 | BM139: 3.511582923 | BN139: 0.2002053032 | BO139: 0.5104528147 | BP139: 0.2287212314 | BQ139: 0.06062065071 | BR139: 1.19470775 | BS139: 2.130662598 | BT139: 1.327868326 | BU139: 0 | BV139: 4.653238674 | BW139: 0.256747576 | BX139: 0.4578880963 | BY139: 0.2853643277 | BZ139: 0
A140: 1180 | B140: 0.911195238 | C140: 0.275440157 | D140: -0.895280817 | E140: 0.09805158 | F140: 0.797229237 | G140: 1.14819726 | H140: 2.009100676 | I140: -3.157297936 | J140: -3.326453049 | K140: 0.983025708 | L140: 2.343427341 | M140: -0.734938188 | N140: -0.295632072 | O140: 1.030570261 | P140: -0.275440157 | R140: 0.07888988655 | S140: =EXP(P140) -> 0.7592378658 | T140: =SUM(R140:S140) -> 0.8381277524 | V140: ='SG Data'!$AB139*R140/$T140 -> 0.05206770385 | W140: ='SG Data'!$AB139*S140/$T140 -> 0.5011006363 | Y140: =MAX(D140:O140) -> 2.343427341 | Z140: =MAX(D140:O140)-MIN(D140:O140) -> 5.66988039 | AA140: =((($Y140-D140)/$Z140*-5+(1-(($Y140-D140)/$Z140))*5)) -> -0.712127832 | AB140: =((($Y140-E140)/$Z140*-5+(1-(($Y140-E140)/$Z140))*5)) -> 1.039818115 | AC140: =((($Y140-F140)/$Z140*-5+(1-(($Y140-F140)/$Z140))*5)) -> 2.272961689 | AD140: =((($Y140-G140)/$Z140*-5+(1-(($Y140-G140)/$Z140))*5)) -> 2.89196597 | AE140: =((($Y140-H140)/$Z140*-5+(1-(($Y140-H140)/$Z140))*5)) -> 4.410346177 | AF140: =((($Y140-I140)/$Z140*-5+(1-(($Y140-I140)/$Z140))*5)) -> -4.701660174 | AG140: =((($Y140-J140)/$Z140*-5+(1-(($Y140-J140)/$Z140))*5)) -> -5 | AH140: =((($Y140-K140)/$Z140*-5+(1-(($Y140-K140)/$Z140))*5)) -> 2.600651972 | AI140: =((($Y140-L140)/$Z140*-5+(1-(($Y140-L140)/$Z140))*5)) -> 5 | AJ140: =((($Y140-M140)/$Z140*-5+(1-(($Y140-M140)/$Z140))*5)) -> -0.4293306336 | AK140: =((($Y140-N140)/$Z140*-5+(1-(($Y140-N140)/$Z140))*5)) -> 0.3454760392 | AL140: =((($Y140-O140)/$Z140*-5+(1-(($Y140-O140)/$Z140))*5)) -> 2.684506569 | AU140: =MAX(D140:F140)-MIN(D140:F140) -> 1.692510054 | AV140: =MAX(G140:I140)-MIN(G140:I140) -> 5.166398612 | AW140: =MAX(J140:L140)-MIN(J140:L140) -> 5.66988039 | AX140: =MAX(M140:O140)-MIN(M140:O140) -> 1.765508449 | AY140: =SUM(AU140:AX140) -> 14.2942975 | AZ140: =AU140/$AY140 -> 0.1184045633 | BA140: =AV140/$AY140 -> 0.3614307461 | BB140: =AW140/$AY140 -> 0.3966533079 | BC140: =AX140/$AY140 -> 0.1235113827 | BE140: =SUMPRODUCT(D140:F140,$D$440:$F$440) -> 0.09805158 | BF140: =SUMPRODUCT(G140:I140,$G$440:$I$440) -> 1.14819726 | BG140: =SUMPRODUCT(J140:L140,$J$440:$L$440) -> -3.326453049 | BH140: =SUMPRODUCT(M140:O140,$M$440:$O$440) -> -0.734938188 | BI140: =EXP(BE140) -> 1.103019677 | BJ140: =EXP(BF140) -> 3.152504638 | BK140: =EXP(BG140) -> 0.03592028688 | BL140: =EXP(BH140) -> 0.4795350991 | BM140: =SUM(BI140:BL140) -> 4.770979701 | BN140: =BI140/$BM140 -> 0.2311935381 | BO140: =BJ140/$BM140 -> 0.6607667262 | BP140: =BK140/$BM140 -> 0.007528912116 | BQ140: =BL140/$BM140 -> 0.1005108236 | BR140: =BE140-MIN($BE140:$BH140) -> 3.424504629 | BS140: =BF140-MIN($BE140:$BH140) -> 4.474650309 | BT140: =BG140-MIN($BE140:$BH140) -> 0 | BU140: =BH140-MIN($BE140:$BH140) -> 2.591514861 | BV140: =SUM(BR140:BU140) -> 10.4906698 | BW140: =BR140/$BV140 -> 0.3264333636 | BX140: =BS140/$BV140 -> 0.4265361883 | BY140: =BT140/$BV140 -> 0 | BZ140: =BU140/$BV140 -> 0.2470304481
A141: 1181 | B141: 0.506307966 | C141: -1.156853624 | D141: 0.869403633 | E141: 0.286384595 | F141: -1.155788228 | G141: 2.084140416 | H141: 0.933765116 | I141: -3.017905532 | J141: -2.622154532 | K141: 1.210457812 | L141: 1.41169672 | M141: -0.576108986 | N141: -0.293626499 | O141: 0.869735486 | P141: 1.156853624 | R141: 0.1374366588 | S141: 3.17991232 | T141: 3.317348979 | V141: ='SG Data'!$AB140*R141/$T141 -> 0.02944756211 | W141: ='SG Data'!$AB140*S141/$T141 -> 0.6813368888 | Y141: 2.084140416 | Z141: 5.102045948 | AA141: 2.6191183 | AB141: 1.476402135 | AC141: -1.350253755 | AD141: 5 | AE141: 2.74526668 | AF141: -5 | AG141: -4.22432882 | AH141: 3.287583819 | AI141: 3.682011681 | AJ141: -0.2140835836 | AK141: 0.3395815341 | AL141: 2.619768731 | AU141: 2.025191861 | AV141: 5.102045948 | AW141: 4.033851252 | AX141: 1.445844472 | AY141: 12.60693353 | AZ141: 0.1606411151 | BA141: 0.4047015822 | BB141: 0.3199708511 | BC141: 0.1146864516 | BE141: 0.286384595 | BF141: 2.084140416 | BG141: -2.622154532 | BH141: -0.576108986 | BI141: 1.331604485 | BJ141: 8.037679451 | BK141: 0.07264617558 | BL141: 0.5620811829 | BM141: 10.00401129 | BN141: 0.1331070554 | BO141: 0.8034456594 | BP141: 0.007261704675 | BQ141: 0.0561855806 | BR141: 2.908539127 | BS141: 4.706294948 | BT141: 0 | BU141: 2.046045546 | BV141: 9.660879621 | BW141: 0.3010635927 | BX141: 0.4871497351 | BY141: 0 | BZ141: 0.2117866723
A142: 1183 | B142: 0.297910065 | C142: 0.091575765 | D142: 0.03097583 | E142: 0.120557798 | F142: -0.151533627 | G142: -0.346703193 | H142: 0.781420468 | I142: -0.434717276 | J142: 0.364389804 | K142: -0.987323128 | L142: 0.622933324 | M142: 0.194073313 | N142: 0.102249356 | O142: -0.296322669 | P142: -0.091575765 | R142: 1.527898844 | S142: 0.9124921786 | T142: 2.440391023 | V142: ='SG Data'!$AB141*R142/$T142 -> 0.2344980494 | W142: ='SG Data'!$AB141*S142/$T142 -> 0.1400469912 | Y142: 0.781420468 | Z142: 1.768743596 | AA142: 0.7571880984 | AB142: 1.263660423 | AC142: -0.2746712249 | AD142: -1.378107395 | AE142: 5 | AF142: -1.87571532 | AG142: 2.642220925 | AH142: -5 | AI142: 4.103956366 | AJ142: 1.679297348 | AK142: 1.160149422 | AL142: -1.093269479 | AU142: 0.272091425 | AV142: 1.216137744 | AW142: 1.610256452 | AX142: 0.490395982 | AY142: 3.588881603 | AZ142: 0.07581510206 | BA142: 0.338862598 | BB142: 0.4486791792 | BC142: 0.1366431207 | BE142: 0.120557798 | BF142: -0.346703193 | BG142: 0.364389804 | BH142: 0.194073313 | BI142: 1.128125943 | BJ142: 0.7070151442 | BK142: 1.43963528 | BL142: 1.214185295 | BM142: 4.488961662 | BN142: 0.251311111 | BO142: 0.1575008203 | BP142: 0.3207056305 | BQ142: 0.2704824382 | BR142: 0.467260991 | BS142: 0 | BT142: 0.711092997 | BU142: 0.540776506 | BV142: 1.719130494 | BW142: 0.2718007694 | BX142: 0 | BY142: 0.4136352647 | BZ142: 0.3145639658
A143: 1185 | B143: 0.416682634 | C143: -0.956438868 | D143: -1.229268886 | E143: 0.414269061 | F143: 0.814999825 | G143: 0.217284768 | H143: -0.865291689 | I143: 0.648006921 | J143: -3.005847593 | K143: 2.085131141 | L143: 0.920716453 | M143: -1.018072385 | N143: -0.398296715 | O143: 1.416369099 | P143: 0.956438868 | R143: 0.01292224522 | S143: 2.602412418 | T143: 2.615334663 | V143: ='SG Data'!$AB142*R143/$T143 -> 0.003479539057 | W143: ='SG Data'!$AB142*S143/$T143 -> 0.7007447619 | Y143: 2.085131141 | Z143: 5.090978734 | AA143: -1.510339564 | AB143: 1.717994383 | AC143: 2.50513333 | AD143: 1.331066244 | AE143: -0.7953941357 | AF143: 2.177116042 | AG143: -5 | AH143: 5 | AI143: 2.712788152 | AJ143: -1.095494969 | AK143: 0.1219048718 | AL143: 3.686378245 | AU143: 2.044268711 | AV143: 1.51329861 | AW143: 5.090978734 | AX143: 2.434441484 | AY143: 11.08298754 | AZ143: 0.184451052 | BA143: 0.1365424805 | BB143: 0.4593507586 | BC143: 0.2196557088 | BE143: 0.414269061 | BF143: 0.217284768 | BG143: -3.005847593 | BH143: -1.018072385 | BI143: 1.513264233 | BJ143: 1.242697932 | BK143: 0.04949678342 | BL143: 0.3612906988 | BM143: 3.166749647 | BN143: 0.4778603935 | BO143: 0.3924206429 | BP143: 0.01563015361 | BQ143: 0.11408881 | BR143: 3.420116654 | BS143: 3.223132361 | BT143: 0 | BU143: 1.987775208 | BV143: 8.631024223 | BW143: 0.3962584933 | BX143: 0.3734356755 | BY143: 0 | BZ143: 0.2303058312
A144: 1187 | B144: 0.547707968 | C144: -0.978448775 | D144: -0.319209923 | E144: 1.169898009 | F144: -0.850688086 | G144: 2.259084756 | H144: 0.264555119 | I144: -2.523639875 | J144: -3.130689088 | K144: 1.826112316 | L144: 1.304576772 | M144: -0.96073344 | N144: 0.193882455 | O144: 0.766850986 | P144: 0.978448775 | R144: 0.1938077602 | S144: 2.660326275 | T144: 2.854134035 | V144: ='SG Data'!$AB143*R144/$T144 -> 0.05705785625 | W144: ='SG Data'!$AB143*S144/$T144 -> 0.7832117455 | Y144: 2.259084756 | Z144: 5.389773844 | AA144: 0.2163212156 | AB144: 2.979160576 | AC144: -0.7697649883 | AD144: 5 | AE144: 1.299418687 | AF144: -3.873701883 | AG144: -5 | AH144: 4.196677908 | AI144: 3.229038895 | AJ144: -0.9739393325 | AK144: 1.16829507 | AL144: 2.231361068 | AU144: 2.020586095 | AV144: 4.782724631 | AW144: 4.956801404 | AX144: 1.727584426 | AY144: 13.48769656 | AZ144: 0.1498095755 | BA144: 0.3545990682 | BB144: 0.3675054064 | BC144: 0.1280859499 | BE144: 1.169898009 | BF144: 2.259084756 | BG144: -3.130689088 | BH144: -0.96073344 | BI144: 3.221664041 | BJ144: 9.574322314 | BK144: 0.04368768222 | BL144: 0.38261216 | BM144: 13.2222862 | BN144: 0.2436540847 | BO144: 0.7241049068 | BP144: 0.003304094433 | BQ144: 0.02893691411 | BR144: 4.300587097 | BS144: 5.389773844 | BT144: 0 | BU144: 2.169955648 | BV144: 11.86031659 | BW144: 0.3626030608 | BX144: 0.4544376032 | BY144: 0 | BZ144: 0.182959336
A145: 1188 | B145: 0.721588012 | C145: -0.822380194 | D145: 1.466080124 | E145: 1.70721008 | F145: -3.173290204 | G145: 3.484779551 | H145: -0.345047172 | I145: -3.13973238 | J145: 0.242864523 | K145: 0.782804809 | L145: -1.025669332 | M145: 0.518859079 | N145: 0.114713381 | O145: -0.633572461 | P145: 0.822380194 | R145: 169.2425747 | S145: 2.275910504 | T145: 171.5184852 | V145: ='SG Data'!$AB144*R145/$T145 -> 0.6297870015 | W145: ='SG Data'!$AB144*S145/$T145 -> 0.008469138778 | Y145: 3.484779551 | Z145: 6.658069755 | AA145: 1.968041037 | AB145: 2.330202992 | AC145: -5 | AD145: 5 | AE145: -0.7521577033 | AF145: -4.949598269 | AG145: 0.1308485082 | AH145: 0.941804695 | AI145: -1.774409174 | AJ145: 0.5453748892 | AK145: -0.06162640827 | AL145: -1.185504453 | AU145: 4.880500284 | AV145: 6.624511931 | AW145: 1.808474141 | AX145: 1.15243154 | AY145: 14.4659179 | AZ145: 0.337379233 | BA145: 0.4579392734 | BB145: 0.1250162039 | BC145: 0.0796652897 | BE145: 1.70721008 | BF145: 3.484779551 | BG145: 0.242864523 | BH145: 0.518859079 | BI145: 5.513557615 | BJ145: 32.61523632 | BK145: 1.274895893 | BL145: 1.680109683 | BM145: 41.08379951 | BN145: 0.1342027193 | BO145: 0.7938709834 | BP145: 0.0310315966 | BQ145: 0.04089470067 | BR145: 1.464345557 | BS145: 3.241915028 | BT145: 0 | BU145: 0.275994556 | BV145: 4.982255141 | BW145: 0.2939121975 | BX145: 0.6506922942 | BY145: 0 | BZ145: 0.0553955083
A146: 1189 | B146: 0.337750154 | C146: -0.686472123 | D146: -1.625229213 | E146: 0.547357537 | F146: 1.077871676 | G146: 1.502611549 | H146: -1.033308454 | I146: -0.469303095 | J146: -0.22478545 | K146: 0.367332418 | L146: -0.142546968 | M146: -0.277141869 | N146: 0.465419469 | O146: -0.1882776 | P146: 0.686472123 | R146: 2.366872927 | S146: 1.986694342 | T146: 4.35356727 | V146: ='SG Data'!$AB145*R146/$T146 -> 0.3535633793 | W146: ='SG Data'!$AB145*S146/$T146 -> 0.2967723181 | Y146: 1.502611549 | Z146: 3.127840762 | AA146: -5 | AB146: 1.945963415 | AC146: 3.642066827 | AD146: 5 | AE146: -3.10757387 | AF146: -1.304395889 | AG146: -0.5226500658 | AH146: 1.370406241 | AI146: -0.2597259329 | AJ146: -0.6900384432 | AK146: 1.683999734 | AL146: -0.4059310485 | AU146: 2.703100889 | AV146: 2.535920003 | AW146: 0.592117868 | AX146: 0.742561338 | AY146: 6.573700098 | AZ146: 0.4111993016 | BA146: 0.3857675229 | BB146: 0.09007375742 | BC146: 0.1129594181 | BE146: 0.547357537 | BF146: 1.502611549 | BG146: -0.22478545 | BH146: -0.277141869 | BI146: 1.728679007 | BJ146: 4.493408517 | BK146: 0.7986875588 | BL146: 0.7579469603 | BM146: 7.778722043 | BN146: 0.2222317493 | BO146: 0.5776538218 | BP146: 0.102675935 | BQ146: 0.09743849389 | BR146: 0.824499406 | BS146: 1.779753418 | BT146: 0.052356419 | BU146: 0 | BV146: 2.656609243 | BW146: 0.3103578022 | BX146: 0.6699342113 | BY146: 0.01970798646 | BZ146: 0
A147: 1190 | B147: 0.455347654 | C147: -0.796145039 | D147: 1.157875634 | E147: 1.362996633 | F147: -2.520872267 | G147: 1.763869152 | H147: -0.435023565 | I147: -1.328845587 | J147: -1.050333459 | K147: -0.230984718 | L147: 1.281318177 | M147: 0.937563222 | N147: 0.136480492 | O147: -1.074043714 | P147: 0.796145039 | R147: 9.188479848 | S147: 2.21697807 | T147: 11.40545792 | V147: ='SG Data'!$AB146*R147/$T147 -> 0.261538648 | W147: ='SG Data'!$AB146*S147/$T147 -> 0.06310352275 | Y147: 1.763869152 | Z147: 4.284741419 | AA147: 3.585694074 | AB147: 4.06441841 | AC147: -5 | AD147: 5 | AE147: -0.1319146291 | AF147: -2.217972887 | AG147: -1.567963701 | AH147: 0.3442841121 | AI147: 3.873792073 | AJ147: 3.07151506 | AK147: 1.201897616 | AL147: -1.623300191 | AU147: 3.8838689 | AV147: 3.092714739 | AW147: 2.331651636 | AX147: 2.011606936 | AY147: 11.31984221 | AZ147: 0.3431027419 | BA147: 0.2732118241 | BB147: 0.2059791641 | BC147: 0.17770627 | BE147: 1.362996633 | BF147: 1.763869152 | BG147: -1.050333459 | BH147: 0.937563222 | BI147: 3.907886274 | BJ147: 5.834970161 | BK147: 0.3498210787 | BL147: 2.553750906 | BM147: 12.64642842 | BN147: 0.3090110618 | BO147: 0.4613927322 | BP147: 0.02766165015 | BQ147: 0.2019345559 | BR147: 2.413330092 | BS147: 2.814202611 | BT147: 0 | BU147: 1.987896681 | BV147: 7.215429384 | BW147: 0.3344679802 | BX147: 0.3900256605 | BY147: 0 | BZ147: 0.2755063594
A148: 1191 | B148: 0.672806037 | C148: -1.736231146 | D148: 4.037455834 | E148: -0.735059223 | F148: -3.302396611 | G148: 2.009910051 | H148: 1.533934802 | I148: -3.543844853 | J148: -0.054676443 | K148: 0.46273234 | L148: -0.408055897 | M148: 0.014037431 | N148: -0.259138077 | O148: 0.245100647 | P148: 1.736231146 | R148: 0.6053071099 | S148: 5.67591138 | T148: 6.28121849 | V148: ='SG Data'!$AB147*R148/$T148 -> 0.027450532 | W148: ='SG Data'!$AB147*S148/$T148 -> 0.2574012173 | Y148: 4.037455834 | Z148: 7.581300687 | AA148: 5 | AB148: -1.295113799 | AC148: -4.681521348 | AD148: 2.325596403 | AE148: 1.69776845 | AF148: -5 | AG148: -0.3976651843 | AH148: 0.2848150448 | AI148: -0.8637850081 | AJ148: -0.3070291881 | AK148: -0.66735721 | AL148: -0.002248748032 | AU148: 7.339852445 | AV148: 5.553754904 | AW148: 0.870788237 | AX148: 0.504238724 | AY148: 14.26863431 | AZ148: 0.5144046925 | BA148: 0.3892282039 | BB148: 0.06102814173 | BC148: 0.03533896188 | BE148: -0.735059223 | BF148: 2.009910051 | BG148: -0.054676443 | BH148: 0.014037431 | BI148: 0.4794770621 | BJ148: 7.46264606 | BK148: 0.9467914394 | BL148: 1.014136418 | BM148: 9.903050979 | BN148: 0.0484171053 | BO148: 0.7535703972 | BP148: 0.09560603509 | BQ148: 0.1024064625 | BR148: 0 | BS148: 2.744969274 | BT148: 0.68038278 | BU148: 0.749096654 | BV148: 4.174448708 | BW148: 0 | BX148: 0.6575644992 | BY148: 0.1629874572 | BZ148: 0.1794480437
A149: 1193 | B149: 0.97769286 | C149: -0.182054575 | D149: 5.450446421 | E149: -1.551643405 | F149: -3.898803017 | G149: -0.338470748 | H149: 0.008767014 | I149: 0.329703734 | J149: 0.102176088 | K149: 0.441881114 | L149: -0.544057202 | M149: -0.011914004 | N149: 0.474442107 | O149: -0.462528104 | P149: 0.182054575 | R149: 0.1378062392 | S149: 1.199679665 | T149: 1.337485904 | V149: ='SG Data'!$AB148*R149/$T149 -> 0.1543462699 | W149: ='SG Data'!$AB148*S149/$T149 -> 1.343669796 | Y149: 5.450446421 | Z149: 9.349249438 | AA149: 5 | AB149: -2.489467334 | AC149: -5 | AD149: -1.191852306 | AE149: -0.8204452059 | AF149: -0.4771698209 | AG149: -0.7205344327 | AH149: -0.3571843817 | AI149: -1.411748518 | AJ149: -0.8425657174 | AK149: -0.3223569945 | AL149: -1.324544622 | AU149: 9.349249438 | AV149: 0.668174482 | AW149: 0.985938316 | AX149: 0.936970211 | AY149: 11.94033245 | AZ149: 0.7829974148 | BA149: 0.05595945381 | BB149: 0.08257209926 | BC149: 0.07847103212 | BE149: -1.551643405 | BF149: -0.338470748 | BG149: 0.102176088 | BH149: -0.011914004 | BI149: 0.2118994509 | BJ149: 0.7128596317 | BK149: 1.107578486 | BL149: 0.9881566867 | BM149: 3.020494255 | BN149: 0.07015389966 | BO149: 0.2360076105 | BP149: 0.3666878306 | BQ149: 0.3271506592 | BR149: 0 | BS149: 1.213172657 | BT149: 1.653819493 | BU149: 1.539729401 | BV149: 4.406721551 | BW149: 0 | BX149: 0.2753005024 | BY149: 0.3752947569 | BZ149: 0.3494047407
A150: 1195 | R150: 1 | S150: 1 | T150: 2 | V150: ='SG Data'!$AB149*R150/$T150 -> 0 | W150: ='SG Data'!$AB149*S150/$T150 -> 0 | Y150: 0 | Z150: 0 | AU150: 0 | AV150: 0 | AW150: 0 | AX150: 0 | AY150: 0 | BE150: 0 | BF150: 0 | BG150: 0 | BH150: 0 | BI150: 1 | BJ150: 1 | BK150: 1 | BL150: 1 | BM150: 4 | BN150: 0.25 | BO150: 0.25 | BP150: 0.25 | BQ150: 0.25 | BR150: 0 | BS150: 0 | BT150: 0 | BU150: 0 | BV150: 0
A151: 1196 | B151: 0.4479862 | C151: -0.938904673 | D151: -1.255159149 | E151: -0.176358305 | F151: 1.431517454 | G151: 1.045882958 | H151: -0.404935412 | I151: -0.640947546 | J151: -2.246156596 | K151: -0.074653198 | L151: 2.320809794 | M151: -0.843759465 | N151: -0.420264527 | O151: 1.264023992 | P151: 0.938904673 | R151: 0.04245561588 | S151: 2.557178937 | T151: 2.599634553 | V151: ='SG Data'!$AB150*R151/$T151 -> 0.01160808991 | W151: ='SG Data'!$AB150*S151/$T151 -> 0.699176361 | Y151: 2.320809794 | Z151: 4.56696639 | AA151: -2.830075016 | AB151: -0.4678924383 | AC151: 3.052772313 | AD151: 2.208372633 | AE151: -0.9683934 | AF151: -1.485174374 | AG151: -5 | AH151: -0.2451951415 | AI151: 5 | AJ151: -1.929258919 | AK151: -1.001958602 | AL151: 2.68602238 | AU151: 2.686676603 | AV151: 1.686830504 | AW151: 4.56696639 | AX151: 2.107783457 | AY151: 11.04825695 | AZ151: 0.2431765132 | BA151: 0.152678428 | BB151: 0.4133653307 | BC151: 0.190779728 | BE151: -0.176358305 | BF151: 1.045882958 | BG151: -2.246156596 | BH151: -0.843759465 | BI151: 0.8383175561 | BJ151: 2.845910234 | BK151: 0.1058050958 | BL151: 0.4300905698 | BM151: 4.220123456 | BN151: 0.1986476379 | BO151: 0.6743665828 | BP151: 0.02507156412 | BQ151: 0.1019142151 | BR151: 2.069798291 | BS151: 3.292039554 | BT151: 0 | BU151: 1.402397131 | BV151: 6.764234976 | BW151: 0.3059914829 | BX151: 0.4866832045 | BY151: 0 | BZ151: 0.2073253126
A152: 1197 | B152: 0.605113633 | C152: -1.386850211 | D152: 1.541844457 | E152: -0.631367312 | F152: -0.910477145 | G152: 4.368689355 | H152: -1.273482552 | I152: -3.095206804 | J152: 0.026381103 | K152: -0.187537584 | L152: 0.161156481 | M152: 0.054026783 | N152: 0.077303923 | O152: -0.131330706 | P152: 1.386850211 | R152: 11.36887909 | S152: 4.002224018 | T152: 15.37110311 | V152: ='SG Data'!$AB151*R152/$T152 -> 1.079107738 | W152: ='SG Data'!$AB151*S152/$T152 -> 0.3798818577 | Y152: 4.368689355 | Z152: 7.463896159 | AA152: 1.212641712 | AB152: -1.698990126 | AC152: -2.072936691 | AD152: 5 | AE152: -2.559285106 | AF152: -5 | AG152: -0.8177500859 | AH152: -1.104354672 | AI152: -0.6371803471 | AJ152: -0.7807108782 | AK152: -0.7495245654 | AL152: -1.029049661 | AU152: 2.452321602 | AV152: 7.463896159 | AW152: 0.348694065 | AX152: 0.208634629 | AY152: 10.47354646 | AZ152: 0.2341443381 | BA152: 0.7126426747 | BB152: 0.03329283605 | BC152: 0.0199201512 | BE152: -0.631367312 | BF152: 4.368689355 | BG152: 0.026381103 | BH152: 0.054026783 | BI152: 0.5318640795 | BJ152: 78.94010142 | BK152: 1.026732165 | BL152: 1.055512872 | BM152: 81.55421054 | BN152: 0.006521601717 | BO152: 0.9679463623 | BP152: 0.01258956659 | BQ152: 0.01294246937 | BR152: 0 | BS152: 5.000056667 | BT152: 0.657748415 | BU152: 0.685394095 | BV152: 6.343199177 | BW152: 0 | BX152: 0.7882547162 | BY152: 0.1036934828 | BZ152: 0.108051801
A153: 1199 | B153: 0.425368743 | C153: -0.929661972 | D153: 0.21384755 | E153: -0.198458329 | F153: -0.015389221 | G153: 2.4263708 | H153: 0.100761246 | I153: -2.527132047 | J153: -1.498299865 | K153: 1.148451369 | L153: 0.349848497 | M153: -0.21843151 | N153: -0.377084383 | O153: 0.595515894 | P153: 0.929661972 | R153: 0.6580457139 | S153: 2.533652587 | T153: 3.191698301 | V153: ='SG Data'!$AB152*R153/$T153 -> 0.2169162707 | W153: ='SG Data'!$AB152*S153/$T153 -> 0.8351858525 | Y153: 2.4263708 | Z153: 4.953502847 | AA153: 0.5334168197 | AB153: -0.2989353394 | AC153: 0.07063971412 | AD153: 5 | AE153: 0.3051211924 | AF153: -5 | AG153: -2.923020913 | AH153: 2.42017019 | AI153: 0.8079719198 | AJ153: -0.3392566668 | AK153: -0.6595408736 | AL153: 1.303918737 | AU153: 0.412305879 | AV153: 4.953502847 | AW153: 2.646751234 | AX153: 0.972600277 | AY153: 8.985160237 | AZ153: 0.04588742639 | BA153: 0.5512982202 | BB153: 0.2945691745 | BC153: 0.1082451789 | BE153: -0.198458329 | BF153: 2.4263708 | BG153: -1.498299865 | BH153: -0.21843151 | BI153: 0.81999394 | BJ153: 11.31773314 | BK153: 0.2235098342 | BL153: 0.8037785284 | BM153: 13.16501544 | BN153: 0.06228583199 | BO153: 0.8596824811 | BP153: 0.01697755959 | BQ153: 0.06105412727 | BR153: 1.299841536 | BS153: 3.924670665 | BT153: 0 | BU153: 1.279868355 | BV153: 6.504380556 | BW153: 0.1998409418 | BX153: 0.6033888441 | BY153: 0 | BZ153: 0.1967702142
A154: 1201 | B154: 0.35976587 | C154: -0.677908841 | D154: -0.354221918 | E154: -0.123016326 | F154: 0.477238244 | G154: 0.115422869 | H154: -0.007770973 | I154: -0.107651896 | J154: -2.162624033 | K154: 0.700926254 | L154: 1.461697779 | M154: -0.181407908 | N154: 0.941355405 | O154: -0.759947497 | P154: 0.677908841 | R154: 0.04833814691 | S154: 1.969754353 | T154: 2.0180925 | V154: ='SG Data'!$AB153*R154/$T154 -> 0.01324970609 | W154: ='SG Data'!$AB153*S154/$T154 -> 0.5399186341 | Y154: 1.461697779 | Z154: 3.624321812 | AA154: -0.0103710189 | AB154: 0.6275568584 | AC154: 2.283741384 | AD154: 1.285443236 | AE154: 0.9455345628 | AF154: 0.6699494239 | AG154: -5 | AH154: 2.900927223 | AI154: 5 | AJ154: 0.4664464906 | AK154: 3.564304162 | AL154: -1.12982343 | AU154: 0.831460162 | AV154: 0.223074765 | AW154: 3.624321812 | AX154: 1.701302902 | AY154: 6.380159641 | AZ154: 0.1303196485 | BA154: 0.03496382184 | BB154: 0.568061305 | BC154: 0.2666552246 | BE154: -0.123016326 | BF154: 0.115422869 | BG154: -2.162624033 | BH154: -0.181407908 | BI154: 0.8842492262 | BJ154: 1.122347943 | BK154: 0.1150229008 | BL154: 0.8340950552 | BM154: 2.955715126 | BN154: 0.2991659171 | BO154: 0.3797212843 | BP154: 0.03891542179 | BQ154: 0.2821973769 | BR154: 2.039607707 | BS154: 2.278046902 | BT154: 0 | BU154: 1.981216125 | BV154: 6.298870734 | BW154: 0.3238052967 | BX154: 0.3616595733 | BY154: 0 | BZ154: 0.31453513
A155: 1205 | B155: 0.964708802 | C155: -0.363778563 | D155: -0.324213615 | E155: -0.008320727 | F155: 0.332534342 | G155: 5.256124585 | H155: -1.423760294 | I155: -3.832364291 | J155: -0.201560536 | K155: 0.260804098 | L155: -0.059243562 | M155: 0.159702974 | N155: -0.073681078 | O155: -0.086021895 | P155: 0.363778563 | R155: 126.7438009 | S155: 1.438755585 | T155: 128.1825565 | V155: ='SG Data'!$AB154*R155/$T155 -> 0.8780277619 | W155: ='SG Data'!$AB154*S155/$T155 -> 0.009967093756 | Y155: 5.256124585 | Z155: 9.088488876 | AA155: -1.140006635 | AB155: -0.7924319255 | AC155: -0.417391505 | AD155: 5 | AE155: -2.349830065 | AF155: -5 | AG155: -1.00505232 | AH155: -0.4963157849 | AI155: -0.8484619605 | AJ155: -0.6075566362 | AK155: -0.8643474572 | AL155: -0.8779259708 | AU155: 0.656747957 | AV155: 9.088488876 | AW155: 0.462364634 | AX155: 0.245724869 | AY155: 10.45332634 | AZ155: 0.06282669611 | BA155: 0.8694351046 | BB155: 0.04423134026 | BC155: 0.02350685907 | BE155: -0.008320727 | BF155: 5.256124585 | BG155: -0.201560536 | BH155: 0.159702974 | BI155: 0.9917137944 | BJ155: 191.7369892 | BK155: 0.8174540907 | BL155: 1.17316236 | BM155: 194.7193194 | BN155: 0.005093042628 | BO155: 0.984683953 | BP155: 0.004198114974 | BQ155: 0.006024889379 | BR155: 0.193239809 | BS155: 5.457685121 | BT155: 0 | BU155: 0.36126351 | BV155: 6.01218844 | BW155: 0.0321413427 | BX155: 0.9077701365 | BY155: 0 | BZ155: 0.06008852078
A156: 1207 | B156: 0.462334863 | C156: -1.168446066 | D156: 1.448837375 | E156: 1.258114675 | F156: -2.70695205 | G156: 0.714309856 | H156: -0.332466239 | I156: -0.381843617 | J156: 0.280488435 | K156: 1.546651931 | L156: -1.827140366 | M156: 0.116074406 | N156: 0.013766068 | O156: -0.129840474 | P156: 1.168446066 | R156: 3.321914608 | S156: 3.216989763 | T156: 6.538904371 | V156: ='SG Data'!$AB155*R156/$T156 -> 0.6091544459 | W156: ='SG Data'!$AB155*S156/$T156 -> 0.5899139043 | Y156: 1.546651931 | Z156: 4.253603981 | AA156: 4.770043106 | AB156: 4.321664035 | AC156: -5 | AD156: 3.04320741 | AE156: 0.5822916793 | AF156: 0.4662080518 | AG156: 2.023315989 | AH156: 5 | AI156: -2.931608848 | AJ156: 1.636787225 | AK156: 1.396265685 | AL156: 1.058654232 | AU156: 4.155789425 | AV156: 1.096153473 | AW156: 3.373792297 | AX156: 0.24591488 | AY156: 8.871650075 | AZ156: 0.4684347771 | BA156: 0.1235568878 | BB156: 0.3802891535 | BC156: 0.02771918165 | BE156: 1.258114675 | BF156: 0.714309856 | BG156: 0.280488435 | BH156: 0.116074406 | BI156: 3.518781184 | BJ156: 2.042776386 | BK156: 1.323776233 | BL156: 1.123079433 | BM156: 8.008413235 | BN156: 0.4393855662 | BO156: 0.2550787935 | BP156: 0.1652981926 | BQ156: 0.1402374478 | BR156: 1.142040269 | BS156: 0.59823545 | BT156: 0.164414029 | BU156: 0 | BV156: 1.904689748 | BW156: 0.5995938552 | BX156: 0.3140855095 | BY156: 0.08632063525 | BZ156: 0
A157: 1208 | B157: 0.346799373 | C157: -0.462843668 | D157: -1.237689699 | E157: -0.769038665 | F157: 2.006728365 | G157: -1.003808621 | H157: 1.055998074 | I157: -0.052189454 | J157: 0.11778513 | K157: 0.274775885 | L157: -0.392561015 | M157: 0.194018635 | N157: 0.311457371 | O157: -0.505476006 | P157: 0.462843668 | R157: 0.1460381794 | S157: 1.588584976 | T157: 1.734623156 | V157: ='SG Data'!$AB156*R157/$T157 -> 0.07492701543 | W157: ='SG Data'!$AB156*S157/$T157 -> 0.8150466649 | Y157: 2.006728365 | Z157: 3.244418064 | AA157: -5 | AB157: -3.55551589 | AC157: 5 | AD157: -4.279127802 | AE157: 2.069643085 | AF157: -1.346031178 | AG157: -0.8221326529 | AH157: -0.3382531037 | AI157: -2.395130136 | AJ157: -0.5871644598 | AK157: -0.2251928098 | AL157: -2.743158623 | AU157: 3.244418064 | AV157: 2.059806695 | AW157: 0.6673369 | AX157: 0.816933377 | AY157: 6.788495036 | AZ157: 0.4779289146 | BA157: 0.3034261179 | BB157: 0.09830410076 | BC157: 0.1203408668 | BE157: -0.769038665 | BF157: -1.003808621 | BG157: 0.11778513 | BH157: 0.194018635 | BI157: 0.463458393 | BJ157: 0.3664809926 | BK157: 1.125002356 | BL157: 1.214118908 | BM157: 3.16906065 | BN157: 0.1462447218 | BO157: 0.115643414 | BP157: 0.3549955272 | BQ157: 0.383116337 | BR157: 0.234769956 | BS157: 0 | BT157: 1.121593751 | BU157: 1.197827256 | BV157: 2.554190963 | BW157: 0.09191558478 | BX157: 0 | BY157: 0.4391189881 | BZ157: 0.4689654272
A158: 1211 | B158: 0.378783235 | C158: -0.551836579 | D158: -0.066192697 | E158: -0.003818571 | F158: 0.070011268 | G158: -1.744904177 | H158: 0.306960529 | I158: 1.437943648 | J158: -0.771172426 | K158: 1.883013682 | L158: -1.111841257 | M158: -0.853957242 | N158: 1.01476195 | O158: -0.160804708 | P158: 0.551836579 | R158: 0.01972853932 | S158: 1.736439199 | T158: 1.756167738 | V158: ='SG Data'!$AB157*R158/$T158 -> 0.006065173167 | W158: ='SG Data'!$AB157*S158/$T158 -> 0.5338359958 | Y158: 1.883013682 | Z158: 3.627917859 | AA158: -0.3727963387 | AB158: -0.2008681738 | AC158: 0.002636541226 | AD158: -5 | AE158: 0.6557639554 | AF158: 3.773208073 | AG158: -2.316003865 | AH158: 5 | AI158: -3.255024109 | AJ158: -2.544192097 | AK158: 2.6067492 | AL158: -0.633585074 | AU158: 0.136203965 | AV158: 3.182847825 | AW158: 2.994854939 | AX158: 1.868719192 | AY158: 8.182625921 | AZ158: 0.01664550797 | BA158: 0.388976333 | BB158: 0.3660016928 | BC158: 0.2283764662 | BE158: -0.003818571 | BF158: -1.744904177 | BG158: -0.771172426 | BH158: -0.853957242 | BI158: 0.9961887105 | BJ158: 0.1746617248 | BK158: 0.4624705379 | BL158: 0.4257268898 | BM158: 2.059047863 | BN158: 0.483810371 | BO158: 0.08482645203 | BP158: 0.2246040736 | BQ158: 0.2067591033 | BR158: 1.741085606 | BS158: 0 | BT158: 0.973731751 | BU158: 0.890946935 | BV158: 3.605764292 | BW158: 0.4828617361 | BX158: 0 | BY158: 0.2700486422 | BZ158: 0.2470896217
A159: 1212 | B159: 0.974758999 | C159: -0.248096308 | D159: 5.594903681 | E159: -1.705980246 | F159: -3.888923434 | G159: 0.172321227 | H159: 0.006601883 | I159: -0.17892311 | J159: -0.390459751 | K159: 0.293220222 | L159: 0.097239529 | M159: -0.34568073 | N159: 0.298986137 | O159: 0.046694593 | P159: 0.248096308 | R159: 0.08062908746 | S159: 1.281583353 | T159: 1.36221244 | V159: ='SG Data'!$AB158*R159/$T159 -> 0.1081280428 | W159: ='SG Data'!$AB158*S159/$T159 -> 1.718673794 | Y159: 5.594903681 | Z159: 9.483827115 | AA159: 5 | AB159: -2.69824654 | AC159: -5 | AD159: -0.7177154204 | AE159: -0.8924543122 | AF159: -1.088076808 | AG159: -1.311126679 | AH159: -0.5902362988 | AI159: -0.7968835633 | AJ159: -1.263910486 | AK159: -0.5841565644 | AL159: -0.8501794905 | AU159: 9.483827115 | AV159: 0.351244337 | AW159: 0.683679973 | AX159: 0.644666867 | AY159: 11.16341829 | AZ159: 0.8495450826 | BA159: 0.03146386956 | BB159: 0.06124288772 | BC159: 0.05774816012 | BE159: -1.705980246 | BF159: 0.172321227 | BG159: -0.390459751 | BH159: -0.34568073 | BI159: 0.1815942918 | BJ159: 1.188059409 | BK159: 0.6767456685 | BL159: 0.7077384107 | BM159: 2.75413778 | BN159: 0.06593507891 | BO159: 0.4313725397 | BP159: 0.2457196127 | BQ159: 0.2569727687 | BR159: 0 | BS159: 1.878301473 | BT159: 1.315520495 | BU159: 1.360299516 | BV159: 4.554121484 | BW159: 0 | BX159: 0.412439914 | BY159: 0.2888637248 | BZ159: 0.2986963613
A160: 1214 | B160: 0.974740705 | C160: -0.234803077 | D160: 5.789795743 | E160: -1.742072954 | F160: -4.047722789 | G160: -0.079401676 | H160: -0.021395957 | I160: 0.100797632 | J160: -0.151100698 | K160: 0.191623442 | L160: -0.040522744 | M160: -0.084451211 | N160: 0.306482262 | O160: -0.222031051 | P160: 0.234803077 | R160: 0.1010813525 | S160: 1.264659704 | T160: 1.365741056 | V160: ='SG Data'!$AB159*R160/$T160 -> 0.08874555689 | W160: ='SG Data'!$AB159*S160/$T160 -> 1.110322793 | Y160: 5.789795743 | Z160: 9.837518532 | AA160: 5 | AB160: -2.656268878 | AC160: -5 | AD160: -0.9661360738 | AE160: -0.9071723027 | AF160: -0.7829605022 | AG160: -1.039019313 | AH160: -0.6906345668 | AI160: -0.9266149975 | AJ160: -0.9712690094 | AK160: -0.57387868 | AL160: -1.111121188 | AU160: 9.837518532 | AV160: 0.180199308 | AW160: 0.34272414 | AX160: 0.528513313 | AY160: 10.88895529 | AZ160: 0.90344007 | BA160: 0.01654881512 | BB160: 0.03147447398 | BC160: 0.04853664092 | BE160: -1.742072954 | BF160: -0.079401676 | BG160: -0.151100698 | BH160: -0.084451211 | BI160: 0.1751569318 | BJ160: 0.9236688343 | BK160: 0.8597611181 | BL160: 0.9190164922 | BM160: 2.877603376 | BN160: 0.06086903192 | BO160: 0.3209854568 | BP160: 0.2987767964 | BQ160: 0.3193687149 | BR160: 0 | BS160: 1.662671278 | BT160: 1.590972256 | BU160: 1.657621743 | BV160: 4.911265277 | BW160: 0 | BX160: 0.3385423479 | BY160: 0.3239434578 | BZ160: 0.3375141943
A161: 1215 | B161: 0.583220486 | C161: -1.500209165 | D161: -3.01823745 | E161: 1.80437287 | F161: 1.21386458 | G161: 2.832119214 | H161: -0.267428816 | I161: -2.564690398 | J161: -0.154536645 | K161: 1.33030309 | L161: -1.175766445 | M161: -0.063241141 | N161: 0.576844966 | O161: -0.513603824 | P161: 1.500209165 | R161: 18.51359141 | S161: 4.482626581 | T161: 22.99621799 | V161: ='SG Data'!$AB160*R161/$T161 -> 0.8470170546 | W161: ='SG Data'!$AB160*S161/$T161 -> 0.2050850686 | Y161: 2.832119214 | Z161: 5.850356664 | AA161: -5 | AB161: 3.243275747 | AC161: 2.233921405 | AD161: 5 | AE161: -0.2980496883 | AF161: -4.224753159 | AG161: -0.105083383 | AH161: 2.432949459 | AI161: -1.850668924 | AJ161: 0.05096779344 | AK161: 1.145065374 | AL161: -0.7188360132 | AU161: 4.82261032 | AV161: 5.396809612 | AW161: 2.506069535 | AX161: 1.09044879 | AY161: 13.81593826 | AZ161: 0.3490613689 | BA161: 0.3906220129 | BB161: 0.1813897463 | BC161: 0.07892687197 | BE161: 1.80437287 | BF161: 2.832119214 | BG161: -0.154536645 | BH161: -0.063241141 | BI161: 6.076159711 | BJ161: 16.98140996 | BK161: 0.8568120937 | BL161: 0.9387170832 | BM161: 24.85309885 | BN161: 0.2444829817 | BO161: 0.6832713322 | BP161: 0.03447506079 | BQ161: 0.03777062526 | BR161: 1.958909515 | BS161: 2.986655859 | BT161: 0 | BU161: 0.091295504 | BV161: 5.036860878 | BW161: 0.3889147551 | BX161: 0.5929597683 | BY161: 0 | BZ161: 0.0181254766
A162: 1216 | B162: 0.977667311 | C162: -0.312978242 | D162: 5.440132886 | E162: -1.592589594 | F162: -3.847543293 | G162: 0.038140646 | H162: -0.111386241 | I162: 0.073245595 | J162: -1.175880287 | K162: 0.501436539 | L162: 0.674443748 | M162: 0.03771192 | N162: 0.275566656 | O162: -0.313278576 | P162: 0.312978242 | R162: 0.04950925996 | S162: 1.367491777 | T162: 1.417001037 | V162: ='SG Data'!$AB161*R162/$T162 -> 0.04472830276 | W162: ='SG Data'!$AB161*S162/$T162 -> 1.235437295 | Y162: 5.440132886 | Z162: 9.287676179 | AA162: 5 | AB162: -2.572101293 | AC162: -5 | AD162: -0.8163012317 | AE162: -0.9772961718 | AF162: -0.7785038879 | AG162: -2.123432219 | AH162: -0.3174725861 | AI162: -0.1311964868 | AJ162: -0.8167628391 | AK162: -0.5606656934 | AL162: -1.194672759 | AU162: 9.287676179 | AV162: 0.184631836 | AW162: 1.850324035 | AX162: 0.588845232 | AY162: 11.91147728 | AZ162: 0.7797249627 | BA162: 0.01550033062 | BB162: 0.1553395932 | BC162: 0.04943511355 | BE162: -1.592589594 | BF162: 0.038140646 | BG162: -1.175880287 | BH162: 0.03771192 | BI162: 0.2033982104 | BJ162: 1.038877337 | BK162: 0.30854725 | BL162: 1.038432038 | BM162: 2.589254835 | BN162: 0.07855472841 | BO162: 0.401226377 | BP162: 0.119164497 | BQ162: 0.4010543977 | BR162: 0 | BS162: 1.63073024 | BT162: 0.416709307 | BU162: 1.630301514 | BV162: 3.677741061 | BW162: 0 | BX162: 0.4434053983 | BY162: 0.1133057766 | BZ162: 0.4432888251
A163: 1217 | B163: 0.576851823 | C163: -1.714386217 | D163: 1.679589993 | E163: 0.712299285 | F163: -2.391889278 | G163: 3.245628575 | H163: -0.17558129 | I163: -3.070047285 | J163: 0.061829872 | K163: 0.937664455 | L163: -0.999494327 | M163: 1.2544926 | N163: -1.13875344 | O163: -0.11573916 | P163: 1.714386217 | R163: 35.15841932 | S163: 5.553265966 | T163: 40.71168528 | V163: ='SG Data'!$AB162*R163/$T163 -> 0.2803594469 | W163: ='SG Data'!$AB162*S163/$T163 -> 0.04428272387 | Y163: 3.245628575 | Z163: 6.31567586 | AA163: 2.520394307 | AB163: 0.9888231344 | AC163: -3.926230506 | AD163: 5 | AE163: -0.4170130653 | AF163: -5 | AG163: -0.04110529669 | AH163: 1.345657739 | AI163: -1.721565508 | AJ163: 1.847311326 | AK163: -1.94206307 | AL163: -0.3222613217 | AU163: 4.071479271 | AV163: 6.31567586 | AW163: 1.937158782 | AX163: 2.39324604 | AY163: 14.71755995 | AZ163: 0.2766409163 | BA163: 0.4291252001 | BB163: 0.131622279 | BC163: 0.1626116046 | BE163: 0.712299285 | BF163: 3.245628575 | BG163: 0.061829872 | BH163: 1.2544926 | BI163: 2.038673365 | BJ163: 25.67784544 | BK163: 1.06378135 | BL163: 3.506058949 | BM163: 32.2863591 | BN163: 0.06314348912 | BO163: 0.7953156117 | BP163: 0.03294832183 | BQ163: 0.1085925774 | BR163: 0.650469413 | BS163: 3.183798703 | BT163: 0 | BU163: 1.192662728 | BV163: 5.026930844 | BW163: 0.1293969289 | BX163: 0.6333484191 | BY163: 0 | BZ163: 0.237254652
A164: 1218 | B164: 0.513237953 | C164: -1.604775102 | D164: 0.622677772 | E164: 0.351775744 | F164: -0.974453516 | G164: 3.574599619 | H164: -1.200165477 | I164: -2.374434142 | J164: 0.417367231 | K164: -0.203412025 | L164: -0.213955206 | M164: 0.208130706 | N164: 0.158618455 | O164: -0.366749161 | P164: 1.604775102 | R164: 19.0505924 | S164: 4.976740218 | T164: 24.02733261 | V164: ='SG Data'!$AB163*R164/$T164 -> 0.3756048138 | W164: ='SG Data'!$AB163*S164/$T164 -> 0.09812228113 | Y164: 3.574599619 | Z164: 5.949033761 | AA164: 0.03798101407 | AB164: -0.4173904612 | AC164: -2.646709227 | AD164: 5 | AE164: -3.026118674 | AF164: -5 | AG164: -0.3071347631 | AH164: -1.3506307 | AI164: -1.36835321 | AJ164: -0.6588499044 | AK164: -0.7420772872 | AL164: -1.625191482 | AU164: 1.597131288 | AV164: 5.949033761 | AW164: 0.631322437 | AX164: 0.574879867 | AY164: 8.752367353 | AZ164: 0.1824799193 | BA164: 0.6797056752 | BB164: 0.07213162011 | BC164: 0.06568278545 | BE164: 0.351775744 | BF164: 3.574599619 | BG164: 0.417367231 | BH164: 0.208130706 | BI164: 1.421589688 | BJ164: 35.68033223 | BK164: 1.517959853 | BL164: 1.231374107 | BM164: 39.85125588 | BN164: 0.03567239367 | BO164: 0.8953377113 | BP164: 0.03809064029 | BQ164: 0.03089925474 | BR164: 0.143645038 | BS164: 3.366468913 | BT164: 0.209236525 | BU164: 0 | BV164: 3.719350476 | BW164: 0.03862100088 | BX164: 0.9051227989 | BY164: 0.0562562002 | BZ164: 0
A165: 1219 | B165: 0.831583533 | C165: -1.183427075 | D165: -2.703218411 | E165: 0.570418927 | F165: 2.132799485 | G165: 4.79718457 | H165: -0.982873129 | I165: -3.814311441 | J165: 0.139880877 | K165: 0.42692891 | L165: -0.566809787 | M165: -0.888050313 | N165: -0.785573971 | O165: 1.673624284 | P165: 1.183427075 | R165: 31.0626765 | S165: 3.26554632 | T165: 34.32822282 | V165: ='SG Data'!$AB164*R165/$T165 -> 1.653023367 | W165: ='SG Data'!$AB164*S165/$T165 -> 0.1737784693 | Y165: 4.79718457 | Z165: 8.611496011 | AA165: -3.709756088 | AB165: 0.09171735364 | AC165: 1.90601368 | AD165: 5 | AE165: -1.712025055 | AF165: -5 | AG165: -0.4082399702 | AH165: -0.07490876663 | AI165: -1.228876319 | AJ165: -1.601913159 | AK165: -1.482913693 | AL165: 1.372801797 | AU165: 4.836017896 | AV165: 8.611496011 | AW165: 0.993738697 | AX165: 2.561674597 | AY165: 17.0029272 | AZ165: 0.2844226667 | BA165: 0.5064713804 | BB165: 0.0584451539 | BC165: 0.150660799 | BE165: 0.570418927 | BF165: 4.79718457 | BG165: 0.139880877 | BH165: -0.888050313 | BI165: 1.769007981 | BJ165: 121.1687946 | BK165: 1.150136783 | BL165: 0.411457184 | BM165: 124.4993965 | BN165: 0.01420896832 | BO165: 0.9732480475 | BP165: 0.009238091228 | BQ165: 0.003304892999 | BR165: 1.45846924 | BS165: 5.685234883 | BT165: 1.02793119 | BU165: 0 | BV165: 8.171635313 | BW165: 0.1784794823 | BX165: 0.6957279253 | BY165: 0.1257925924 | BZ165: 0
A166: 1221 | B166: 0.393650574 | C166: -1.102443977 | D166: 0.636027466 | E166: 1.901251614 | F166: -2.53727908 | G166: -0.586606375 | H166: -0.486551356 | I166: 1.073157731 | J166: -0.809825966 | K166: 0.540860151 | L166: 0.268965815 | M166: 0.302310784 | N166: -0.679007975 | O166: 0.376697191 | P166: 1.102443977 | R166: 0.7442979008 | S166: 3.011517116 | T166: 3.755815017 | V166: ='SG Data'!$AB165*R166/$T166 -> 0.2176602983 | W166: ='SG Data'!$AB165*S166/$T166 -> 0.8806792456 | Y166: 1.901251614 | Z166: 4.438530694 | AA166: 2.149452746 | AB166: 5 | AC166: -5 | AD166: -0.6051386383 | AE166: -0.3797148981 | AF166: 3.134306283 | AG166: -1.108051891 | AH166: 1.935040993 | AI166: 1.322463645 | AJ166: 1.397589788 | AK166: -0.8133192421 | AL166: 1.565182201 | AU166: 4.438530694 | AV166: 1.659764106 | AW166: 1.350686117 | AX166: 1.055705166 | AY166: 8.504686083 | AZ166: 0.5218923604 | BA166: 0.1951587736 | BB166: 0.1588166928 | BC166: 0.1241321732 | BE166: 1.901251614 | BF166: -0.586606375 | BG166: -0.809825966 | BH166: 0.302310784 | BI166: 6.69426784 | BJ166: 0.5562116593 | BK166: 0.4449354934 | BL166: 1.352981646 | BM166: 9.04839664 | BN166: 0.7398291772 | BO166: 0.06147074244 | BP166: 0.04917285472 | BQ166: 0.1495272257 | BR166: 2.71107758 | BS166: 0.223219591 | BT166: 0 | BU166: 1.11213675 | BV166: 4.046433921 | BW166: 0.6699918083 | BX166: 0.05516452149 | BY166: 0 | BZ166: 0.2748436702
A167: 1222 | B167: 0.505481117 | C167: -1.057383639 | D167: -2.451159844 | E167: 0.430719831 | F167: 2.020440012 | G167: 0.62016601 | H167: 1.323587955 | I167: -1.943753965 | J167: -1.221212211 | K167: 0.720101012 | L167: 0.501111199 | M167: -0.396673522 | N167: -0.258564279 | O167: 0.655237801 | P167: 1.057383639 | R167: 0.1970331026 | S167: 2.878829071 | T167: 3.075862174 | V167: ='SG Data'!$AB166*R167/$T167 -> 0.06228949732 | W167: ='SG Data'!$AB166*S167/$T167 -> 0.9101050197 | Y167: 2.020440012 | Z167: 4.471599856 | AA167: -5 | AB167: 1.444851435 | AC167: 5 | AD167: 1.868516757 | AE167: 3.441604617 | AF167: -3.865269936 | AG167: -2.249423757 | AH167: 2.092005005 | AI167: 1.60227019 | AJ167: -0.4054781551 | AK167: -0.09661947489 | AL167: 1.946949068 | AU167: 4.471599856 | AV167: 3.26734192 | AW167: 1.941313223 | AX167: 1.051911323 | AY167: 10.73216632 | AZ167: 0.4166539841 | BA167: 0.3044438394 | BB167: 0.1808873591 | BC167: 0.09801481746 | BE167: 0.430719831 | BF167: 0.62016601 | BG167: -1.221212211 | BH167: -0.396673522 | BI167: 1.538364488 | BJ167: 1.859236668 | BK167: 0.2948725025 | BL167: 0.6725535637 | BM167: 4.365027222 | BN167: 0.3524295289 | BO167: 0.4259393066 | BP167: 0.06755341662 | BQ167: 0.1540777479 | BR167: 1.651932042 | BS167: 1.841378221 | BT167: 0 | BU167: 0.824538689 | BV167: 4.317848952 | BW167: 0.3825821747 | BX167: 0.4264573035 | BY167: 0 | BZ167: 0.1909605218
A168: 1226 | B168: 0.456945863 | C168: -0.555500901 | D168: -1.422881532 | E168: 0.704169746 | F168: 0.718711786 | G168: 0.181938523 | H168: -1.785751444 | I168: 1.603812921 | J168: -1.972294294 | K168: 0.234013367 | L168: 1.738280927 | M168: -0.103363696 | N168: 0.939755992 | O168: -0.836392296 | P168: 0.555500901 | R168: 0.1746361483 | S168: 1.742813743 | T168: 1.917449892 | V168: ='SG Data'!$AB167*R168/$T168 -> 0.02993147568 | W168: ='SG Data'!$AB167*S168/$T168 -> 0.2987066977 | Y168: 1.738280927 | Z168: 3.710575221 | AA168: -3.519332639 | AB168: 2.213070429 | AC168: 2.252261226 | AD168: 0.8056573137 | AE168: -4.49726703 | AF168: 4.637608732 | AG168: -5 | AH168: 0.9459990152 | AI168: 5 | AJ168: 0.0367678505 | AK168: 2.847975348 | AL168: -1.938744183 | AU168: 2.141593318 | AV168: 3.389564365 | AW168: 3.710575221 | AX168: 1.776148288 | AY168: 11.01788119 | AZ168: 0.1943743339 | BA168: 0.3076421234 | BB168: 0.336777567 | BC168: 0.1612059757 | BE168: 0.704169746 | BF168: 0.181938523 | BG168: -1.972294294 | BH168: -0.103363696 | BI168: 2.022167075 | BJ168: 1.199540447 | BK168: 0.1391372679 | BL168: 0.9017989332 | BM168: 4.262643724 | BN168: 0.4743927024 | BO168: 0.2814076252 | BP168: 0.0326410737 | BQ168: 0.2115585987 | BR168: 2.67646404 | BS168: 2.154232817 | BT168: 0 | BU168: 1.868930598 | BV168: 6.699627455 | BW168: 0.3994944582 | BX168: 0.3215451652 | BY168: 0 | BZ168: 0.2789603766
A169: 1228 | B169: 0.617362632 | C169: -2.074295109 | D169: -0.862779254 | E169: 0.326939833 | F169: 0.535839421 | G169: 3.344080444 | H169: -0.894636254 | I169: -2.44944419 | J169: 1.6198765 | K169: 0.687262824 | L169: -2.307139323 | M169: 0.599702183 | N169: -0.176325291 | O169: -0.423376892 | P169: 2.074295109 | R169: 45.4359595 | S169: 7.9589343 | T169: 53.3948938 | V169: ='SG Data'!$AB168*R169/$T169 -> 0.2423923268 | W169: ='SG Data'!$AB168*S169/$T169 -> 0.04245942256 | Y169: 3.344080444 | Z169: 5.793524634 | AA169: -2.261313214 | AB169: -0.207780758 | AC169: 0.1527935058 | AD169: 5 | AE169: -2.316300466 | AF169: -5 | AG169: 2.023911948 | AH169: 0.4141601394 | AI169: -4.754372552 | AJ169: 0.2630247831 | AK169: -1.076449066 | AL169: -1.502876183 | AU169: 1.398618675 | AV169: 5.793524634 | AW169: 3.927015823 | AX169: 1.023079075 | AY169: 12.14223821 | AZ169: 0.1151862326 | BA169: 0.4771381137 | BB169: 0.3234177881 | BC169: 0.08425786561 | BE169: 0.326939833 | BF169: 3.344080444 | BG169: 1.6198765 | BH169: 0.599702183 | BI169: 1.38671804 | BJ169: 28.33450852 | BK169: 5.052466298 | BL169: 1.821576223 | BM169: 36.59526908 | BN169: 0.03789336914 | BO169: 0.7742669812 | BP169: 0.1380633734 | BQ169: 0.04977627625 | BR169: 0 | BS169: 3.017140611 | BT169: 1.292936667 | BU169: 0.27276235 | BV169: 4.582839628 | BW169: 0 | BX169: 0.6583561407 | BY169: 0.2821256627 | BZ169: 0.05951819661
A170: 1231 | B170: 0.412213568 | C170: 0.105964055 | D170: 0.0717397 | E170: 0.107146471 | F170: -0.178886171 | G170: 0.247127085 | H170: 0.031828972 | I170: -0.278956056 | J170: -0.824233186 | K170: 0.593504733 | L170: 0.230728454 | M170: 0.640623833 | N170: -2.027058415 | O170: 1.386434582 | P170: -0.105964055 | R170: 1.318676073 | S170: 0.8994569785 | T170: 2.218133051 | V170: ='SG Data'!$AB169*R170/$T170 -> 0.522654413 | W170: ='SG Data'!$AB169*S170/$T170 -> 0.3564978306 | Y170: 1.386434582 | Z170: 3.413492997 | AA170: 1.148534996 | AB170: 1.252260918 | AC170: 0.4143138586 | AD170: 1.662341191 | AE170: 1.031614504 | AF170: 0.1211540804 | AG170: -1.47626279 | AH170: 2.677071991 | AI170: 1.614300574 | AJ170: 2.815109773 | AK170: -5 | AL170: 5 | AU170: 0.286032642 | AV170: 0.526083141 | AW170: 1.417737919 | AX170: 3.413492997 | AY170: 5.643346699 | AZ170: 0.0506849317 | BA170: 0.09322183609 | BB170: 0.2512228992 | BC170: 0.604870333 | BE170: 0.107146471 | BF170: 0.247127085 | BG170: -0.824233186 | BH170: 0.640623833 | BI170: 1.113097279 | BJ170: 1.280341815 | BK170: 0.4385711661 | BL170: 1.897664336 | BM170: 4.729674596 | BN170: 0.2353433109 | BO170: 0.2707039964 | BP170: 0.09272755603 | BQ170: 0.4012251366 | BR170: 0.931379657 | BS170: 1.071360271 | BT170: 0 | BU170: 1.464857019 | BV170: 3.467596947 | BW170: 0.2685951312 | BX170: 0.3089633217 | BY170: 0 | BZ170: 0.4224415471
A171: 1232 | B171: 0.57041364 | C171: -1.944083932 | D171: 2.72087511 | E171: -0.010880753 | F171: -2.709994357 | G171: 1.676031278 | H171: 0.224792581 | I171: -1.900823859 | J171: -1.603876052 | K171: 1.503999793 | L171: 0.099876259 | M171: -0.656657389 | N171: 0.657837801 | O171: -0.001180412 | P171: 1.944083932 | R171: 0.07890845878 | S171: 6.987228146 | T171: 7.066136605 | V171: ='SG Data'!$AB170*R171/$T171 -> 0.01132673495 | W171: ='SG Data'!$AB170*S171/$T171 -> 1.002965746 | Y171: 2.72087511 | Z171: 5.430869467 | AA171: 5 | AB171: -0.03005251664 | AC171: -5 | AD171: 3.076102108 | AE171: 0.4038988708 | AF171: -3.510053495 | AG171: -2.963275841 | AH171: 2.759336098 | AI171: 0.1738872257 | AJ171: -1.21913769 | AK171: 1.201276202 | AL171: -0.0121910286 | AU171: 5.430869467 | AV171: 3.576855137 | AW171: 3.107875845 | AX171: 1.31449519 | AY171: 13.43009564 | AZ171: 0.4043805504 | BA171: 0.2663313228 | BB171: 0.2314112966 | BC171: 0.09787683017 | BE171: -0.010880753 | BF171: 1.676031278 | BG171: -1.603876052 | BH171: -0.656657389 | BI171: 0.9891782283 | BJ171: 5.344303771 | BK171: 0.2011154713 | BL171: 0.5185818581 | BM171: 7.053179329 | BN171: 0.1402457221 | BO171: 0.7577155666 | BP171: 0.02851415821 | BQ171: 0.0735245531 | BR171: 1.592995299 | BS171: 3.27990733 | BT171: 0 | BU171: 0.947218663 | BV171: 5.820121292 | BW171: 0.2737048283 | BX171: 0.5635462159 | BY171: 0 | BZ171: 0.1627489558
A172: 1235 | B172: 0.253885553 | C172: -0.189225211 | D172: -0.296549982 | E172: 0.408097032 | F172: -0.111547049 | G172: -0.041306516 | H172: -0.077582821 | I172: 0.118889337 | J172: 0.641592489 | K172: -0.421500947 | L172: -0.220091543 | M172: -0.001199615 | N172: -0.207082015 | O172: 0.208281629 | P172: 0.189225211 | R172: 2.265868613 | S172: 1.208313047 | T172: 3.47418166 | V172: ='SG Data'!$AB171*R172/$T172 -> 0.2645207011 | W172: ='SG Data'!$AB171*S172/$T172 -> 0.1410601712 | Y172: 0.641592489 | Z172: 1.063093436 | AA172: -3.824647385 | AB172: 2.803622437 | AC172: -2.084415278 | AD172: -1.423696938 | AE172: -1.764930397 | AF172: 0.08318710003 | AG172: 5 | AH172: -5 | AI172: -3.105440245 | AJ172: -1.046430937 | AK172: -2.983065978 | AL172: 0.9240566697 | AU172: 0.704647014 | AV172: 0.196472158 | AW172: 1.063093436 | AX172: 0.415363644 | AY172: 2.379576252 | AZ172: 0.2961228973 | BA172: 0.08256602739 | BB172: 0.4467574574 | BC172: 0.174553618 | BE172: 0.408097032 | BF172: -0.041306516 | BG172: 0.641592489 | BH172: -0.001199615 | BI172: 1.503953086 | BJ172: 0.959534972 | BK172: 1.89950341 | BL172: 0.9988011043 | BM172: 5.361792572 | BN172: 0.2804944551 | BO172: 0.1789578689 | BP172: 0.3542664854 | BQ172: 0.1862811906 | BR172: 0.449403548 | BS172: 0 | BT172: 0.682899005 | BU172: 0.040106901 | BV172: 1.172409454 | BW172: 0.3833162096 | BX172: 0 | BY172: 0.5824748365 | BZ172: 0.03420895393
A173: 1237 | B173: 0.388997366 | C173: -0.753018992 | D173: -0.58551309 | E173: -1.642989187 | F173: 2.228502277 | G173: -0.317765979 | H173: 0.600098216 | I173: -0.282332237 | J173: -0.850158729 | K173: 0.470341466 | L173: 0.379817263 | M173: -0.8293939 | N173: 1.81530019 | O173: -0.98590629 | P173: 0.753018992 | R173: 0.01235954318 | S173: 2.12340088 | T173: 2.135760423 | V173: ='SG Data'!$AB172*R173/$T173 -> 0.007333066474 | W173: ='SG Data'!$AB172*S173/$T173 -> 1.259839427 | Y173: 2.228502277 | Z173: 3.871491464 | AA173: -2.2685563 | AB173: -5 | AC173: 5 | AD173: -1.576969831 | AE173: 0.7938585784 | AF173: -1.485445047 | AG173: -2.952131716 | AH173: 0.4586989863 | AI173: 0.2248764302 | AJ173: -2.898496498 | AK173: 3.932705675 | AL173: -3.302765477 | AU173: 3.871491464 | AV173: 0.917864195 | AW173: 1.320500195 | AX173: 2.80120648 | AY173: 8.911062334 | AZ173: 0.4344590262 | BA173: 0.1030027802 | BB173: 0.1481866186 | BC173: 0.314351575 | BE173: -1.642989187 | BF173: -0.317765979 | BG173: -0.850158729 | BH173: -0.8293939 | BI173: 0.1934010654 | BJ173: 0.7277730827 | BK173: 0.4273470942 | BL173: 0.4363136559 | BM173: 1.784834898 | BN173: 0.1083579583 | BO173: 0.4077537275 | BP173: 0.2394322829 | BQ173: 0.2444560314 | BR173: 0 | BS173: 1.325223208 | BT173: 0.792830458 | BU173: 0.813595287 | BV173: 2.931648953 | BW173: 0 | BX173: 0.4520402099 | BY173: 0.270438402 | BZ173: 0.2775213881
A174: 1238 | B174: 0.828448481 | C174: 0.430152644 | D174: 2.652596396 | E174: 1.76716044 | F174: -4.419756836 | G174: -2.170846141 | H174: 1.016031601 | I174: 1.15481454 | J174: -4.35481361 | K174: 2.334030084 | L174: 2.020783526 | M174: 0.26364213 | N174: 0.330958952 | O174: -0.594601082 | P174: -0.430152644 | R174: 0.01716806105 | S174: 0.650409806 | T174: 0.667577867 | V174: ='SG Data'!$AB173*R174/$T174 -> 0.02500701305 | W174: ='SG Data'!$AB173*S174/$T174 -> 0.947387504 | Y174: 2.652596396 | Z174: 7.072353232 | AA174: 5 | AB174: 3.748032052 | AC174: -5 | AD174: -1.820138049 | AE174: 2.685968529 | AF174: 2.882201572 | AG174: -4.908173102 | AH174: 4.549561084 | AI174: 4.10664407 | AJ174: 1.622122527 | AK174: 1.717305587 | AL174: 0.4086039378 | AU174: 7.072353232 | AV174: 3.325660681 | AW174: 6.688843694 | AX174: 0.925560034 | AY174: 18.01241764 | AZ174: 0.3926376444 | BA174: 0.1846315551 | BB174: 0.3713462472 | BC174: 0.05138455328 | BE174: 1.76716044 | BF174: -2.170846141 | BG174: -4.35481361 | BH174: 0.26364213 | BI174: 5.854206367 | BJ174: 0.1140810474 | BK174: 0.01284483351 | BL174: 1.301662287 | BM174: 7.282794535 | BN174: 0.8038406602 | BO174: 0.01566446051 | BP174: 0.001763723176 | BQ174: 0.1787311561 | BR174: 6.12197405 | BS174: 2.183967469 | BT174: 0 | BU174: 4.61845574 | BV174: 12.92439726 | BW174: 0.4736757875 | BX174: 0.1689802182 | BY174: 0 | BZ174: 0.3573439943
A175: 1244 | B175: 0.425685068 | C175: -0.99520828 | D175: 1.595818039 | E175: -0.582276718 | F175: -1.013541321 | G175: 0.907688719 | H175: -1.234740652 | I175: 0.327051932 | J175: 0.639740523 | K175: 1.338062163 | L175: -1.977802685 | M175: -0.664951315 | N175: 0.946685021 | O175: -0.281733705 | P175: 0.99520828 | R175: 0.499070919 | S175: 2.70528774 | T175: 3.204358659 | V175: ='SG Data'!$AB174*R175/$T175 -> 0.1824069937 | W175: ='SG Data'!$AB174*S175/$T175 -> 0.9887640912 | Y175: 1.595818039 | Z175: 3.573620724 | AA175: 5 | AB175: -1.094924239 | AC175: -2.30172439 | AD175: 3.07441983 | AE175: -2.920702586 | AF175: 1.449634125 | AG175: 2.324625108 | AH175: 4.278726267 | AI175: -5 | AJ175: -1.326271109 | AK175: 3.183542496 | AL175: -0.2539200128 | AU175: 2.60935936 | AV175: 2.142429371 | AW175: 3.315864848 | AX175: 1.611636336 | AY175: 9.679289915 | AZ175: 0.2695816928 | BA175: 0.221341585 | BB175: 0.3425731512 | BC175: 0.166503571 | BE175: -0.582276718 | BF175: 0.907688719 | BG175: 0.639740523 | BH175: -0.664951315 | BI175: 0.5586250859 | BJ175: 2.478587196 | BK175: 1.89598885 | BL175: 0.5142985657 | BM175: 5.447499698 | BN175: 0.1025470614 | BO175: 0.4549953802 | BP175: 0.3480475365 | BQ175: 0.09441002189 | BR175: 0.082674597 | BS175: 1.572640034 | BT175: 1.304691838 | BU175: 0 | BV175: 2.960006469 | BW175: 0.02793054605 | BX175: 0.5312961477 | BY175: 0.4407733063 | BZ175: 0
A176: 1247 | B176: 0.458313318 | C176: -0.947952808 | D176: -0.579287128 | E176: -0.40494328 | F176: 0.984230408 | G176: -0.585395834 | H176: 0.225964646 | I176: 0.359431188 | J176: -2.345787923 | K176: -0.001652232 | L176: 2.347440156 | M176: -0.680868743 | N176: 0.316156199 | O176: 0.364712544 | P176: 0.947952808 | R176: 0.006978309469 | S176: 2.58042163 | T176: 2.587399939 | V176: ='SG Data'!$AB175*R176/$T176 -> 0.002831247562 | W176: ='SG Data'!$AB175*S176/$T176 -> 1.046931564 | Y176: 2.347440156 | Z176: 4.693228079 | AA176: -1.236064463 | AB176: -0.864584865 | AC176: 2.095368635 | AD176: -1.249080464 | AE176: 0.4797093295 | AF176: 0.7640904415 | AG176: -5 | AH176: -0.005280690515 | AI176: 5 | AJ176: -1.452507417 | AK176: 0.6718831414 | AL176: 0.7753435831 | AU176: 1.563517536 | AV176: 0.944827022 | AW176: 4.693228079 | AX176: 1.045581287 | AY176: 8.247153924 | AZ176: 0.1895826791 | BA176: 0.1145640097 | BB176: 0.5690724488 | BC176: 0.1267808624 | BE176: -0.40494328 | BF176: -0.585395834 | BG176: -2.345787923 | BH176: -0.680868743 | BI176: 0.6670146429 | BJ176: 0.556885384 | BK176: 0.09577171166 | BL176: 0.5061770635 | BM176: 1.825848802 | BN176: 0.3653175674 | BO176: 0.3050008212 | BP176: 0.05245325437 | BQ176: 0.277228357 | BR176: 1.940844643 | BS176: 1.760392089 | BT176: 0 | BU176: 1.66491918 | BV176: 5.366155912 | BW176: 0.3616824921 | BX176: 0.3280545921 | BY176: 0 | BZ176: 0.3102629158
A177: 1248 | B177: 0.496355686 | C177: 0.901457099 | D177: -0.749536803 | E177: 1.411565928 | F177: -0.662029125 | G177: -1.954612983 | H177: -0.103361355 | I177: 2.057974338 | J177: -0.260955944 | K177: 0.139914673 | L177: 0.121041271 | M177: -0.791880469 | N177: 0.719034872 | O177: 0.072845597 | P177: -0.901457099 | R177: 0.4993608147 | S177: 0.4059776789 | T177: 0.9053384936 | V177: ='SG Data'!$AB176*R177/$T177 -> 0.4245362762 | W177: ='SG Data'!$AB176*S177/$T177 -> 0.3451457282 | Y177: 2.057974338 | Z177: 4.012587321 | AA177: -1.996760236 | AB177: 3.389048366 | AC177: -1.778677311 | AD177: -5 | AE177: -0.3863891801 | AF177: 5 | AG177: -0.7791397333 | AH177: 0.2198930227 | AI177: 0.1728575304 | AJ177: -2.102287325 | AK177: 1.66315183 | AL177: 0.05274631505 | AU177: 2.161102731 | AV177: 4.012587321 | AW177: 0.400870617 | AX177: 1.510915341 | AY177: 8.08547601 | AZ177: 0.2672820658 | BA177: 0.4962710069 | BB177: 0.04957909918 | BC177: 0.1868678281 | BE177: 1.411565928 | BF177: -1.954612983 | BG177: -0.260955944 | BH177: -0.791880469 | BI177: 4.1023744 | BJ177: 0.1416192752 | BK177: 0.7703148559 | BL177: 0.4529921561 | BM177: 5.467300687 | BN177: 0.7503473167 | BO177: 0.02590296076 | BP177: 0.1408949132 | BQ177: 0.08285480936 | BR177: 3.366178911 | BS177: 0 | BT177: 1.693657039 | BU177: 1.162732514 | BV177: 6.222568464 | BW177: 0.5409629368 | BX177: 0 | BY177: 0.2721797356 | BZ177: 0.1868573276
A178: 1250 | B178: 0.528114359 | C178: -0.875953418 | D178: 2.672974785 | E178: -1.114491726 | F178: -1.558483059 | G178: -1.805624456 | H178: 0.425154994 | I178: 1.380469462 | J178: 1.09947202 | K178: -0.297902312 | L178: -0.801569708 | M178: -0.118075079 | N178: 1.063029479 | O178: -0.9449544 | P178: 0.875953418 | R178: 0.05992433122 | S178: 2.401163515 | T178: 2.461087847 | V178: ='SG Data'!$AB177*R178/$T178 -> 0.02919577579 | W178: ='SG Data'!$AB177*S178/$T178 -> 1.169872574 | Y178: 2.672974785 | Z178: 4.478599241 | AA178: 5 | AB178: -3.456810505 | AC178: -4.448172556 | AD178: -5 | AE178: -0.019024186 | AF178: 2.114041124 | AG178: 1.486618515 | AH178: -1.633496183 | AI178: -2.758105394 | AJ178: -1.231970564 | AK178: 1.405248116 | AL178: -3.078260613 | AU178: 4.231457844 | AV178: 3.186093918 | AW178: 1.901041728 | AX178: 2.007983879 | AY178: 11.32657737 | AZ178: 0.3735866278 | BA178: 0.2812936171 | BB178: 0.1678390273 | BC178: 0.1772807278 | BE178: -1.114491726 | BF178: -1.805624456 | BG178: 1.09947202 | BH178: -0.118075079 | BI178: 0.3280819921 | BJ178: 0.1643717816 | BK178: 3.002580303 | BL178: 0.8886293327 | BM178: 4.383663409 | BN178: 0.07484196697 | BO178: 0.03749644218 | BP178: 0.6849477304 | BQ178: 0.2027138605 | BR178: 0.69113273 | BS178: 0 | BT178: 2.905096476 | BU178: 1.687549377 | BV178: 5.283778583 | BW178: 0.1308027426 | BX178: 0 | BY178: 0.5498141965 | BZ178: 0.3193830609
A179: 1253 | B179: 0.455339353 | C179: -1.168003209 | D179: 0.7536688 | E179: 1.864445825 | F179: -2.618114624 | G179: 1.902021781 | H179: -1.846641004 | I179: -0.055380777 | J179: -0.39320205 | K179: 0.433164573 | L179: -0.039962523 | M179: 0.559842995 | N179: -0.36270829 | O179: -0.197134705 | P179: 1.168003209 | R179: 15.88071281 | S179: 3.215565412 | T179: 19.09627822 | V179: ='SG Data'!$AB178*R179/$T179 -> 0.9971608021 | W179: ='SG Data'!$AB178*S179/$T179 -> 0.2019075481 | Y179: 1.902021781 | Z179: 4.520136405 | AA179: 2.459472728 | AB179: 4.916869863 | AC179: -5 | AD179: 5 | AE179: -3.293251462 | AF179: 0.6695940507 | AG179: -0.07777559204 | AH179: 1.750413978 | AI179: 0.7037042027 | AJ179: 2.030667516 | AK179: -0.01031355712 | AL179: 0.3559886297 | AU179: 4.482560449 | AV179: 3.748662785 | AW179: 0.826366623 | AX179: 0.922551285 | AY179: 9.980141142 | AZ179: 0.4491480015 | BA179: 0.3756122014 | BB179: 0.08280109582 | BC179: 0.0924387012 | BE179: 1.864445825 | BF179: 1.902021781 | BG179: -0.39320205 | BH179: 0.559842995 | BI179: 6.452359159 | BJ179: 6.69942553 | BK179: 0.6748923718 | BL179: 1.750397658 | BM179: 15.57707472 | BN179: 0.4142214938 | BO179: 0.4300823904 | BP179: 0.04332600209 | BQ179: 0.1123701137 | BR179: 2.257647875 | BS179: 2.295223831 | BT179: 0 | BU179: 0.953045045 | BV179: 5.505916751 | BW179: 0.4100403215 | BX179: 0.4168649718 | BY179: 0 | BZ179: 0.1730947067
A180: 1255 | B180: 0.507712701 | C180: -1.414904021 | D180: -0.235638341 | E180: 1.017612936 | F180: -0.781974595 | G180: -0.736922504 | H180: 0.641227636 | I180: 0.095694867 | J180: 1.761885814 | K180: -0.068678967 | L180: -1.693206847 | M180: -0.260083854 | N180: 1.092573534 | O180: -0.83248968 | P180: 1.414904021 | R180: 1.444247422 | S180: 4.116091389 | T180: 5.560338811 | V180: ='SG Data'!$AB179*R180/$T180 -> 0.2525706297 | W180: ='SG Data'!$AB179*S180/$T180 -> 0.7198238874 | Y180: 1.761885814 | Z180: 3.455092661 | AA180: -0.7813909813 | AB180: 2.845867098 | AC180: -2.362640191 | AD180: -2.232246898 | AE180: 1.756503261 | AF180: 0.1775795601 | AG180: 5 | AH180: -0.2981640743 | AI180: -5 | AJ180: -0.8521431012 | AK180: 3.062823937 | AL180: -2.50884491 | AU180: 1.799587531 | AV180: 1.37815014 | AW180: 3.455092661 | AX180: 1.925063214 | AY180: 8.557893546 | AZ180: 0.2102839351 | BA180: 0.1610384767 | BB180: 0.4037316709 | BC180: 0.2249459173 | BE180: 1.017612936 | BF180: -0.736922504 | BG180: 1.761885814 | BH180: -0.260083854 | BI180: 2.766582865 | BJ180: 0.4785844934 | BK180: 5.823408912 | BL180: 0.7709869328 | BM180: 9.839563203 | BN180: 0.2811692763 | BO180: 0.04863879458 | BP180: 0.5918361203 | BQ180: 0.07835580877 | BR180: 1.75453544 | BS180: 0 | BT180: 2.498808318 | BU180: 0.47683865 | BV180: 4.730182408 | BW180: 0.3709234208 | BX180: 0 | BY180: 0.5282689128 | BZ180: 0.1008076664
A181: 1256 | B181: 0.402100054 | C181: -0.977844703 | D181: 2.363639476 | E181: 0.451766984 | F181: -2.81540646 | G181: 1.270748659 | H181: -0.797088216 | I181: -0.473660443 | J181: -0.371528976 | K181: -0.235667117 | L181: 0.607196094 | M181: 0.479200725 | N181: -0.802905355 | O181: 0.32370463 | P181: 0.977844703 | R181: 2.345134342 | S181: 2.658719732 | T181: 5.003854074 | V181: ='SG Data'!$AB180*R181/$T181 -> 0.2075142262 | W181: ='SG Data'!$AB180*S181/$T181 -> 0.2352624998 | Y181: 2.363639476 | Z181: 5.179045936 | AA181: 5 | AB181: 1.308446545 | AC181: -5 | AD181: 2.889783504 | AE181: -1.10291496 | AF181: -0.4784219991 | AG181: -0.2812206839 | AH181: -0.0188907863 | AI181: 1.608558017 | AJ181: 1.361417191 | AK181: -1.114147027 | AL181: 1.06117638 | AU181: 5.179045936 | AV181: 2.067836875 | AW181: 0.97872507 | AX181: 1.28210608 | AY181: 9.507713961 | AZ181: 0.5447204194 | BA181: 0.2174904381 | BB181: 0.1029401046 | BC181: 0.1348490379 | BE181: 0.451766984 | BF181: 1.270748659 | BG181: -0.371528976 | BH181: 0.479200725 | BI181: 1.571085818 | BJ181: 3.563519425 | BK181: 0.6896790214 | BL181: 1.61478323 | BM181: 7.439067494 | BN181: 0.211193919 | BO181: 0.4790277044 | BP181: 0.09271041322 | BQ181: 0.2170679634 | BR181: 0.82329596 | BS181: 1.642277635 | BT181: 0 | BU181: 0.850729701 | BV181: 3.316303296 | BW181: 0.2482571365 | BX181: 0.495213341 | BY181: 0 | BZ181: 0.2565295225
A182: 1257 | B182: 0.787107542 | C182: -0.246784787 | D182: 4.995061356 | E182: -1.027776226 | F182: -3.967285131 | G182: 0.334135106 | H182: -0.358714347 | I182: 0.024579241 | J182: 0.33526573 | K182: 1.374035362 | L182: -1.709301092 | M182: -0.165521117 | N182: 0.930673926 | O182: -0.765152809 | P182: 0.246784787 | R182: 0.4626977277 | S182: 1.279903631 | T182: 1.742601359 | V182: ='SG Data'!$AB181*R182/$T182 -> 0.2693162287 | W182: ='SG Data'!$AB181*S182/$T182 -> 0.7449762521 | Y182: 4.995061356 | Z182: 8.962346487 | AA182: 5 | AB182: -1.720157038 | AC182: -5 | AD182: -0.2005646699 | AE182: -0.9736316943 | AF182: -0.5459606725 | AG182: -0.1993031432 | AH182: 0.9597344298 | AI182: -2.480588323 | AJ182: -0.7580707022 | AK182: 0.4650409512 | AL182: -1.427127286 | AU182: 8.962346487 | AV182: 0.692849453 | AW182: 3.083336454 | AX182: 1.695826735 | AY182: 14.43435913 | AZ182: 0.6209036651 | BA182: 0.04800001488 | BB182: 0.2136109007 | BC182: 0.1174854193 | BE182: -1.027776226 | BF182: 0.334135106 | BG182: 0.33526573 | BH182: -0.165521117 | BI182: 0.3578017468 | BJ182: 1.396731838 | BK182: 1.398311909 | BL182: 0.8474519674 | BM182: 4.000297461 | BN182: 0.08944378518 | BO182: 0.3491569943 | BP182: 0.3495519828 | BQ182: 0.2118472378 | BR182: 0 | BS182: 1.361911332 | BT182: 1.363041956 | BU182: 0.862255109 | BV182: 3.587208397 | BW182: 0 | BX182: 0.3796577119 | BY182: 0.379972894 | BZ182: 0.2403693941
A183: 1258 | B183: 0.331135007 | C183: -0.146828849 | D183: -1.133838048 | E183: 0.323237195 | F183: 0.810600853 | G183: 0.287845865 | H183: 0.501498788 | I183: -0.789344653 | J183: -0.460525376 | K183: -0.471500233 | L183: 0.932025609 | M183: 0.716104122 | N183: 0.08990663 | O183: -0.806010752 | P183: 0.146828849 | R183: 2.054090061 | S183: 1.158155727 | T183: 3.212245787 | V183: ='SG Data'!$AB182*R183/$T183 -> 1.168159519 | W183: ='SG Data'!$AB182*S183/$T183 -> 0.6586423171 | Y183: 0.932025609 | Z183: 2.065863657 | AA183: -5 | AB183: 2.053104584 | AC183: 4.412232479 | AD183: 1.881789649 | AE183: 2.915995959 | AF183: -3.332448544 | AG183: -1.740769074 | AH183: -1.793893862 | AI183: 5 | AJ183: 3.9548125 | AK183: 0.9236468673 | AL183: -3.413122304 | AU183: 1.944438901 | AV183: 1.290843441 | AW183: 1.403525842 | AX183: 1.522114874 | AY183: 6.160923058 | AZ183: 0.3156083728 | BA183: 0.2095211105 | BB183: 0.2278109674 | BC183: 0.2470595493 | BE183: 0.323237195 | BF183: 0.287845865 | BG183: -0.460525376 | BH183: 0.716104122 | BI183: 1.381593019 | BJ183: 1.333551741 | BK183: 0.6309520713 | BL183: 2.04644496 | BM183: 5.392541792 | BN183: 0.2562044157 | BO183: 0.2472955784 | BP183: 0.117004577 | BQ183: 0.3794954289 | BR183: 0.783762571 | BS183: 0.748371241 | BT183: 0 | BU183: 1.176629498 | BV183: 2.70876331 | BW183: 0.2893433207 | BX183: 0.2762778269 | BY183: 0 | BZ183: 0.4343788524
A184: 1259 | B184: 0.388191932 | C184: -0.867983313 | D184: -2.869217238 | E184: 2.150720816 | F184: 0.718496422 | G184: -0.148672885 | H184: 0.68862625 | I184: -0.539953365 | J184: -0.31357804 | K184: 0.644005197 | L184: -0.330427157 | M184: -0.722243181 | N184: 0.335233192 | O184: 0.387009989 | P184: 0.867983313 | R184: 1.103231276 | S184: 2.382102052 | T184: 3.485333328 | V184: ='SG Data'!$AB183*R184/$T184 -> 0.1850588793 | W184: ='SG Data'!$AB183*S184/$T184 -> 0.3995799846 | Y184: 2.150720816 | Z184: 5.019938054 | AA184: -5 | AB184: 5 | AC184: 2.146928152 | AD184: 0.4194779372 | AE184: 2.087425083 | AF184: -0.3599748683 | AG184: 0.0909775589 | AH184: 1.998537427 | AI184: 0.05741316664 | AJ184: -0.7231064728 | AK184: 1.383446161 | AL184: 1.486588464 | AU184: 5.019938054 | AV184: 1.228579615 | AW184: 0.974432354 | AX184: 1.10925317 | AY184: 8.332203193 | AZ184: 0.6024742721 | BA184: 0.1474495504 | BB184: 0.1169477426 | BC184: 0.1331284349 | BE184: 2.150720816 | BF184: -0.148672885 | BG184: -0.31357804 | BH184: -0.722243181 | BI184: 8.591048731 | BJ184: 0.8618509932 | BK184: 0.730827343 | BL184: 0.4856616063 | BM184: 10.66938867 | BN184: 0.8052053397 | BO184: 0.08077791704 | BP184: 0.06849758364 | BQ184: 0.04551915964 | BR184: 2.872963997 | BS184: 0.573570296 | BT184: 0.408665141 | BU184: 0 | BV184: 3.855199434 | BW184: 0.7452179962 | BX184: 0.1487783721 | BY184: 0.1060036317 | BZ184: 0
A185: 1261 | Y185: 0 | Z185: 0 | AU185: 0 | AV185: 0 | AW185: 0 | AX185: 0 | AY185: 0 | BE185: 0 | BF185: 0 | BG185: 0 | BH185: 0 | BI185: 1 | BJ185: 1 | BK185: 1 | BL185: 1 | BM185: 4 | BN185: 0.25 | BO185: 0.25 | BP185: 0.25 | BQ185: 0.25 | BR185: 0 | BS185: 0 | BT185: 0 | BU185: 0 | BV185: 0
A186: 1262 | B186: 0.63085668 | C186: -1.609854038 | D186: 3.55446463 | E186: -1.690073481 | F186: -1.864391149 | G186: -1.247504188 | H186: 0.587501076 | I186: 0.660003111 | J186: 2.052312313 | K186: -0.780273477 | L186: -1.272038836 | M186: -0.653646233 | N186: 0.570501119 | O186: 0.083145114 | P186: 1.609854038 | R186: =EXP(SUMPRODUCT(C186:O186,C$440:O$440)) -> 0.04290505504 | S186: 5.002081061 | T186: 5.044986116 | V186: ='SG Data'!$AB185*R186/$T186 -> 0.008947596378 | W186: ='SG Data'!$AB185*S186/$T186 -> 1.043154527 | Y186: 3.55446463 | Z186: 5.418855779 | AA186: 5 | AB186: -4.678312775 | AC186: -5 | AD186: -3.861591845 | AE186: -0.4752583848 | AF186: -0.3414625468 | AG186: 2.227916043 | AH186: -2.999360536 | AI186: -3.906868282 | AJ186: -2.765681603 | AK186: -0.5066302421 | AL186: -1.40600093 | AU186: 5.418855779 | AV186: 1.907507299 | AW186: 3.324351149 | AX186: 1.224147352 | AY186: 11.87486158 | AZ186: 0.4563300164 | BA186: 0.160634066 | BB186: 0.2799486231 | BC186: 0.1030872944 | BE186: -1.690073481 | BF186: -1.247504188 | BG186: 2.052312313 | BH186: -0.653646233 | BI186: 0.1845059658 | BJ186: 0.287220752 | BK186: 7.785883708 | BL186: 0.5201457423 | BM186: 8.777756168 | BN186: 0.02101971874 | BO186: 0.03272143206 | BP186: 0.8870015934 | BQ186: 0.05925725577 | BR186: 0 | BS186: 0.442569293 | BT186: 3.742385794 | BU186: 1.036427248 | BV186: 5.221382335 | BW186: 0 | BX186: 0.08476094348 | BY186: 0.7167423402 | BZ186: 0.1984967163
A187: 1266 | B187: 0.507112364 | C187: -1.426979439 | D187: -0.157244714 | E187: 0.085376041 | F187: 0.071868673 | G187: 3.717101393 | H187: -1.133412918 | I187: -2.583688475 | J187: -0.10747069 | K187: 0.010045591 | L187: 0.097425099 | M187: 0.112593671 | N187: -0.151821183 | O187: 0.039227512 | P187: 1.426979439 | R187: 10.81161453 | S187: 4.16609622 | T187: 14.97771075 | V187: ='SG Data'!$AB186*R187/$T187 -> 0.6346133485 | W187: ='SG Data'!$AB186*S187/$T187 -> 0.2445388951 | Y187: 3.717101393 | Z187: 6.300789868 | AA187: -1.148984791 | AB187: -0.7639207593 | AC187: -0.7853583382 | AD187: 5 | AE187: -2.698263889 | AF187: -5 | AG187: -1.069988308 | AH187: -0.8834779126 | AI187: -0.744797668 | AJ187: -0.7207235879 | AK187: -1.140377091 | AL187: -0.8371632098 | AU187: 0.242620755 | AV187: 6.300789868 | AW187: 0.204895789 | AX187: 0.264414854 | AY187: 7.012721266 | AZ187: 0.03459723348 | BA187: 0.8984800093 | BB187: 0.02921772893 | BC187: 0.03770502833 | BE187: 0.085376041 | BF187: 3.717101393 | BG187: -0.10747069 | BH187: 0.112593671 | BI187: 1.089126546 | BJ187: 41.14495803 | BK187: 0.8981028455 | BL187: 1.119177086 | BM187: 44.25136451 | BN187: 0.02461227033 | BO187: 0.9298008883 | BP187: 0.02029548366 | BQ187: 0.02529135765 | BR187: 0.192846731 | BS187: 3.824572083 | BT187: 0 | BU187: 0.220064361 | BV187: 4.237483175 | BW187: 0.04550973373 | BX187: 0.9025574675 | BY187: 0 | BZ187: 0.05193279877
A188: 1267 | B188: 0.504323864 | C188: -1.018231589 | D188: 0.489131082 | E188: 1.021205944 | F188: -1.510337026 | G188: -0.92101597 | H188: 0.075879794 | I188: 0.845136176 | J188: -3.048679341 | K188: 0.121103987 | L188: 2.927575355 | M188: -0.579554221 | N188: -0.508724769 | O188: 1.08827899 | P188: 1.018231589 | R188: 0.01060663875 | S188: 2.76829495 | T188: 2.778901588 | V188: ='SG Data'!$AB187*R188/$T188 -> 0.001254361219 | W188: ='SG Data'!$AB187*S188/$T188 -> 0.3273838122 | Y188: 2.927575355 | Z188: 5.976254696 | AA188: 0.9197785285 | AB188: 1.810093431 | AC188: -2.425909046 | AD188: -1.439804728 | AE188: 0.22828978 | AF188: 1.515477862 | AG188: -5 | AH188: 0.3039629153 | AI188: 5 | AJ188: -0.8684406111 | AK188: -0.7499224829 | AL188: 1.922326008 | AU188: 2.53154297 | AV188: 1.766152146 | AW188: 5.976254696 | AX188: 1.667833211 | AY188: 11.94178302 | AZ188: 0.2119903674 | BA188: 0.1478968545 | BB188: 0.5004491109 | BC188: 0.1396636673 | BE188: 1.021205944 | BF188: -0.92101597 | BG188: -3.048679341 | BH188: -0.579554221 | BI188: 2.776541099 | BJ188: 0.3981143633 | BK188: 0.0474215107 | BL188: 0.5601480131 | BM188: 3.782224986 | BN188: 0.7341025743 | BO188: 0.1052593023 | BP188: 0.01253799308 | BQ188: 0.1481001303 | BR188: 4.069885285 | BS188: 2.127663371 | BT188: 0 | BU188: 2.46912512 | BV188: 8.666673776 | BW188: 0.4696017631 | BX188: 0.2454994183 | BY188: 0 | BZ188: 0.2848988186
A189: 1268 | B189: 0.39831244 | C189: -0.260142912 | D189: -0.8157185 | E189: 0.754360243 | F189: 0.061358257 | G189: 0.827670072 | H189: -0.219313512 | I189: -0.60835656 | J189: 0.302660644 | K189: -1.729324284 | L189: 1.426663639 | M189: 1.743837104 | N189: -0.331397744 | O189: -1.41243936 | P189: 0.260142912 | R189: 29.03160752 | S189: 1.297115447 | T189: 30.32872297 | V189: ='SG Data'!$AB188*R189/$T189 -> 0.5168103798 | W189: ='SG Data'!$AB188*S189/$T189 -> 0.02309078911 | Y189: 1.743837104 | Z189: 3.473161388 | AA189: -2.369526832 | AB189: 2.151077216 | AC189: 0.1557711864 | AD189: 2.362152432 | AE189: -0.6523449293 | AF189: -1.772485932 | AG189: 0.8505341417 | AH189: -5 | AI189: 4.086787426 | AJ189: 5 | AK189: -0.9750602295 | AL189: -4.0876182 | AU189: 1.570078743 | AV189: 1.436026632 | AW189: 3.155987923 | AX189: 3.156276464 | AY189: 9.318369762 | AZ189: 0.1684928569 | BA189: 0.1541070669 | BB189: 0.3386845557 | BC189: 0.3387155205 | BE189: 0.754360243 | BF189: 0.827670072 | BG189: 0.302660644 | BH189: 1.743837104 | BI189: 2.126250804 | BJ189: 2.287981693 | BK189: 1.353455083 | BL189: 5.719246718 | BM189: 11.4869343 | BN189: 0.1851016772 | BO189: 0.1991812291 | BP189: 0.1178256137 | BQ189: 0.4978914799 | BR189: 0.451699599 | BS189: 0.525009428 | BT189: 0 | BU189: 1.44117646 | BV189: 2.417885487 | BW189: 0.1868159602 | BX189: 0.2171357704 | BY189: 0 | BZ189: 0.5960482693
A190: 1269 | B190: 0.463367288 | C190: -0.980469883 | D190: -1.325279993 | E190: 0.427971999 | F190: 0.897307994 | G190: -0.430100575 | H190: -0.720967698 | I190: 1.151068273 | J190: 2.218923644 | K190: -0.559109697 | L190: -1.659813947 | M190: 0.08569327 | N190: -0.887070284 | O190: 0.801377013 | P190: 0.980469883 | R190: 3.750984936 | S190: 2.665708519 | T190: 6.416693454 | V190: ='SG Data'!$AB189*R190/$T190 -> 0.3233637582 | W190: ='SG Data'!$AB189*S190/$T190 -> 0.2298045819 | Y190: 2.218923644 | Z190: 3.878737591 | AA190: -4.137518468 | AB190: 0.382642927 | AC190: 1.592665477 | AD190: -1.829604109 | AE190: -2.579505633 | AF190: 2.246899678 | AG190: 5 | AH190: -2.162210064 | AI190: -5 | AJ190: -0.499805862 | AK190: -3.007744415 | AL190: 1.34534021 | AU190: 2.222587987 | AV190: 1.872035971 | AW190: 3.878737591 | AX190: 1.688447297 | AY190: 9.661808846 | AZ190: 0.2300384972 | BA190: 0.1937562625 | BB190: 0.4014504585 | BC190: 0.1747547818 | BE190: 0.427971999 | BF190: -0.430100575 | BG190: 2.218923644 | BH190: 0.08569327 | BI190: 1.534143123 | BJ190: 0.6504436731 | BK190: 9.197425832 | BL190: 1.089472103 | BM190: 12.47148473 | BN190: 0.1230120676 | BO190: 0.05215446974 | BP190: 0.7374764136 | BQ190: 0.08735704904 | BR190: 0.858072574 | BS190: 0 | BT190: 2.649024219 | BU190: 0.515793845 | BV190: 4.022890638 | BW190: 0.2132975145 | BX190: 0 | BY190: 0.6584877536 | BZ190: 0.128214732
A191: 1270 | B191: 0.706342764 | C191: -0.92566865 | D191: 1.538635418 | E191: -0.543597421 | F191: -0.995037997 | G191: 0.545046384 | H191: -0.193185583 | I191: -0.351860802 | J191: 3.87599597 | K191: -1.62653714 | L191: -2.249458831 | M191: 0.005158521 | N191: 0.131976702 | O191: -0.137135222 | P191: 0.92566865 | R191: 19.23891025 | S191: 2.523555071 | T191: 21.76246532 | V191: ='SG Data'!$AB190*R191/$T191 -> 0.9280333005 | W191: ='SG Data'!$AB190*S191/$T191 -> 0.1217295112 | Y191: 3.87599597 | Z191: 6.125454801 | AA191: 1.184184476 | AB191: -2.215126933 | AC191: -2.952118047 | AD191: -0.4378812581 | AE191: -1.64306845 | AF191: -1.902110797 | AG191: 5 | AH191: -3.983060505 | AI191: -5 | AJ191: -1.319265385 | AK191: -1.112230666 | AL191: -1.551564451 | AU191: 2.533673415 | AV191: 0.896907186 | AW191: 6.125454801 | AX191: 0.269111924 | AY191: 9.825147326 | AZ191: 0.2578763789 | BA191: 0.09128689436 | BB191: 0.6234466108 | BC191: 0.0273901159 | BE191: -0.543597421 | BF191: 0.545046384 | BG191: 3.87599597 | BH191: 0.005158521 | BI191: 0.5806556279 | BJ191: 1.724688378 | BK191: 48.23071072 | BL191: 1.005171849 | BM191: 51.54122657 | BN191: 0.01126584807 | BO191: 0.03346230761 | BP191: 0.9357695562 | BQ191: 0.01950228809 | BR191: 0 | BS191: 1.088643805 | BT191: 4.419593391 | BU191: 0.548755942 | BV191: 6.056993138 | BW191: 0 | BX191: 0.1797333727 | BY191: 0.7296678881 | BZ191: 0.09059873926
A192: 1271 | B192: 0.491229675 | C192: 0.324583792 | D192: 0.881517871 | E192: -1.234975022 | F192: 0.353457151 | G192: 0.647787446 | H192: -0.214436747 | I192: -0.433350699 | J192: -2.400913314 | K192: 0.838885374 | L192: 1.56202794 | M192: -1.145814528 | N192: 2.266843 | O192: -1.121028472 | P192: -0.324583792 | R192: 0.02216298717 | S192: 0.7228281379 | T192: 0.7449911251 | V192: ='SG Data'!$AB191*R192/$T192 -> 0.01832803888 | W192: ='SG Data'!$AB191*S192/$T192 -> 0.59775436 | Y192: 2.266843 | Z192: 4.667756314 | AA192: 2.032139135 | AB192: -2.502144042 | AC192: 0.9008446022 | AD192: 1.531405144 | AE192: -0.3157868151 | AF192: -0.7847786332 | AG192: -5 | AH192: 1.940805111 | AI192: 3.490034585 | AJ192: -2.311130441 | AK192: 5 | AL192: -2.258029863 | AU192: 2.116492893 | AV192: 1.081138145 | AW192: 3.962941254 | AX192: 3.412657528 | AY192: 10.57322982 | AZ192: 0.2001746797 | BA192: 0.1022524019 | BB192: 0.3748089582 | BC192: 0.3227639601 | BE192: -1.234975022 | BF192: 0.647787446 | BG192: -2.400913314 | BH192: -1.145814528 | BI192: 0.2908420269 | BJ192: 1.911307277 | BK192: 0.09063513714 | BL192: 0.317964821 | BM192: 2.610749262 | BN192: 0.1114017463 | BO192: 0.7320914745 | BP192: 0.0347161401 | BQ192: 0.1217906391 | BR192: 1.165938292 | BS192: 3.04870076 | BT192: 0 | BU192: 1.255098786 | BV192: 5.469737838 | BW192: 0.2131616407 | BX192: 0.5573760298 | BY192: 0 | BZ192: 0.2294623295
A193: 1273 | B193: 0.505975667 | C193: -1.434834293 | D193: 0.131307288 | E193: 0.015828178 | F193: -0.147135467 | G193: 3.711016838 | H193: -1.092521341 | I193: -2.618495497 | J193: 0.030776491 | K193: 0.023427222 | L193: -0.054203714 | M193: -0.101518512 | N193: -0.016217178 | O193: 0.11773569 | P193: 1.434834293 | R193: 9.219019638 | S193: 4.198949156 | T193: 13.41796879 | V193: ='SG Data'!$AB192*R193/$T193 -> 0.3398211428 | W193: ='SG Data'!$AB192*S193/$T193 -> 0.1547769455 | Y193: 3.711016838 | Z193: 6.329512335 | AA193: -0.655585076 | AB193: -0.838030585 | AC193: -1.095496937 | AD193: 5 | AE193: -2.589112596 | AF193: -5 | AG193: -0.8144137371 | AH193: -0.8260248512 | AI193: -0.9486740095 | AJ193: -1.023426685 | AK193: -0.8886590605 | AL193: -0.6770268511 | AU193: 0.278442755 | AV193: 6.329512335 | AW193: 0.084980205 | AX193: 0.219254202 | AY193: 6.912189497 | AZ193: 0.04028285902 | BA193: 0.9157029531 | BB193: 0.01229425279 | BC193: 0.03171993506 | BE193: 0.015828178 | BF193: 3.711016838 | BG193: 0.030776491 | BH193: -0.101518512 | BI193: 1.015954107 | BJ193: 40.89536936 | BK193: 1.031254983 | BL193: 0.9034644543 | BM193: 43.8460429 | BN193: 0.02317094177 | BO193: 0.9327037664 | BP193: 0.02351991001 | BQ193: 0.0206053818 | BR193: 0.11734669 | BS193: 3.81253535 | BT193: 0.132295003 | BU193: 0 | BV193: 4.062177043 | BW193: 0.02888763556 | BX193: 0.9385448516 | BY193: 0.03256751284 | BZ193: 0
A194: 1274 | B194: 0.381598965 | C194: -1.030176702 | D194: -2.169931402 | E194: 0.455620713 | F194: 1.714310689 | G194: -0.238863017 | H194: -0.510635792 | I194: 0.749498809 | J194: 0.860190949 | K194: 0.24067349 | L194: -1.100864439 | M194: 0.039582941 | N194: 0.252606782 | O194: -0.292189723 | P194: 1.030176702 | R194: 1.090193152 | S194: 2.801560832 | T194: 3.891753984 | V194: ='SG Data'!$AB193*R194/$T194 -> 0.09094168665 | W194: ='SG Data'!$AB193*S194/$T194 -> 0.2337004841 | Y194: 1.714310689 | Z194: 3.884242091 | AA194: -5 | AB194: 1.759496585 | AC194: 5 | AD194: -0.02845512777 | AE194: -0.728135448 | AF194: 2.516087161 | AG194: 2.801064609 | AH194: 1.206113923 | AI194: -2.247681947 | AJ194: 0.6884053343 | AK194: 1.23683624 | AL194: -0.1657449896 | AU194: 3.884242091 | AV194: 1.260134601 | AW194: 1.961055388 | AX194: 0.544796505 | AY194: 7.650228585 | AZ194: 0.507728893 | BA194: 0.1647185554 | BB194: 0.25633945 | BC194: 0.07121310154 | BE194: 0.455620713 | BF194: -0.238863017 | BG194: 0.860190949 | BH194: 0.039582941 | BI194: 1.577152038 | BJ194: 0.7875227522 | BK194: 2.36361198 | BL194: 1.040376785 | BM194: 5.768663555 | BN194: 0.2733998998 | BO194: 0.1365173657 | BP194: 0.4097330269 | BQ194: 0.1803497076 | BR194: 0.69448373 | BS194: 0 | BT194: 1.099053966 | BU194: 0.278445958 | BV194: 2.071983654 | BW194: 0.3351781896 | BX194: 0 | BY194: 0.5304356354 | BZ194: 0.134386175
A195: 1275 | B195: 0.501359761 | C195: -0.717759493 | D195: -3.600906671 | E195: 1.242758294 | F195: 2.358148377 | G195: 1.305084863 | H195: -0.843856204 | I195: -0.461228658 | J195: -1.772627232 | K195: 0.199112545 | L195: 1.573514688 | M195: -0.08328673 | N195: -0.745689184 | O195: 0.828975914 | P195: 0.717759493 | R195: 0.9745004503 | S195: 2.049835391 | T195: 3.024335842 | V195: ='SG Data'!$AB194*R195/$T195 -> 0.1526441809 | W195: ='SG Data'!$AB194*S195/$T195 -> 0.321082914 | Y195: 2.358148377 | Z195: 5.959055048 | AA195: -5 | AB195: 3.128243364 | AC195: 5 | AD195: 3.232834727 | AE195: -0.3733428458 | AF195: 0.2687514844 | AG195: -1.931930609 | AH195: 1.376882216 | AI195: 3.683291759 | AJ195: 0.9029827929 | AK195: -0.208606962 | AL195: 2.433867533 | AU195: 5.959055048 | AV195: 2.148941067 | AW195: 3.34614192 | AX195: 1.574665098 | AY195: 13.02880313 | AZ195: 0.457375477 | BA195: 0.1649377188 | BB195: 0.2568265009 | BC195: 0.1208603033 | BE195: 1.242758294 | BF195: 1.305084863 | BG195: -1.772627232 | BH195: -0.08328673 | BI195: 3.46515822 | BJ195: 3.688002055 | BK195: 0.1698860719 | BL195: 0.9200872928 | BM195: 8.24313364 | BN195: 0.4203690455 | BO195: 0.4474029194 | BP195: 0.02060940406 | BQ195: 0.1116186311 | BR195: 3.015385526 | BS195: 3.077712095 | BT195: 0 | BU195: 1.689340502 | BV195: 7.782438123 | BW195: 0.3874602635 | BX195: 0.3954688809 | BY195: 0 | BZ195: 0.2170708556
A196: 1276 | B196: 0.406987581 | C196: -0.654685823 | D196: 2.908189508 | E196: -0.844828465 | F196: -2.063361042 | G196: 1.814399486 | H196: -0.793749296 | I196: -1.020650191 | J196: -0.284402047 | K196: 0.680117319 | L196: -0.395715272 | M196: 0.074460133 | N196: 0.567261341 | O196: -0.641721474 | P196: 0.654685823 | R196: 1.110647617 | S196: 1.924537777 | T196: 3.035185394 | V196: ='SG Data'!$AB195*R196/$T196 -> 0.3217030322 | W196: ='SG Data'!$AB195*S196/$T196 -> 0.5574492114 | Y196: 2.908189508 | Z196: 4.97155055 | AA196: 5 | AB196: -2.548988862 | AC196: -5 | AD196: 2.799901638 | AE196: -2.446245928 | AF196: -2.902644576 | AG196: -1.421722002 | AH196: 0.5183555581 | AI196: -1.645622421 | AJ196: -0.6998905 | AK196: 0.2913519767 | AL196: -2.140450341 | AU196: 4.97155055 | AV196: 2.835049677 | AW196: 1.075832591 | AX196: 1.208982815 | AY196: 10.09141563 | AZ196: 0.4926514506 | BA196: 0.2809367665 | BB196: 0.106608689 | BC196: 0.1198030939 | BE196: -0.844828465 | BF196: 1.814399486 | BG196: -0.284402047 | BH196: 0.074460133 | BI196: 0.4296310487 | BJ196: 6.137389482 | BK196: 0.752464058 | BL196: 1.077302394 | BM196: 8.396786983 | BN196: 0.05116612456 | BO196: 0.7309211839 | BP196: 0.0896133318 | BQ196: 0.1282993598 | BR196: 0 | BS196: 2.659227951 | BT196: 0.560426418 | BU196: 0.919288598 | BV196: 4.138942967 | BW196: 0 | BX196: 0.6424896338 | BY196: 0.1354032714 | BZ196: 0.2221070948
A197: 1277 | B197: 0.287463764 | C197: -0.250186309 | D197: 0.061828692 | E197: -0.932060692 | F197: 0.870232 | G197: -0.081490973 | H197: 0.506752185 | I197: -0.425261213 | J197: -0.292315989 | K197: 0.319496995 | L197: -0.027181006 | M197: -1.074734973 | N197: 0.624025723 | O197: 0.45070925 | P197: 0.250186309 | R197: 0.07202161937 | S197: 1.284264664 | T197: 1.356286284 | V197: ='SG Data'!$AB196*R197/$T197 -> 0.04087171346 | W197: ='SG Data'!$AB196*S197/$T197 -> 0.7288102909 | Y197: 0.870232 | Z197: 1.944966973 | AA197: 0.8436142144 | AB197: -4.266443683 | AC197: 5 | AD197: 0.1067396711 | AE197: 3.131177444 | AF197: -1.660746588 | AG197: -0.9772119791 | AH197: 2.168409476 | AI197: 0.3859730347 | AJ197: -5 | AK197: 3.734136464 | AL197: 2.843034068 | AU197: 1.802292692 | AV197: 0.932013398 | AW197: 0.611812984 | AX197: 1.698760696 | AY197: 5.04487977 | AZ197: 0.3572518621 | BA197: 0.1847444222 | BB197: 0.1212740465 | BC197: 0.3367296692 | BE197: -0.932060692 | BF197: -0.081490973 | BG197: -0.292315989 | BH197: -1.074734973 | BI197: 0.3937414938 | BJ197: 0.9217410304 | BK197: 0.7465326026 | BL197: 0.3413882204 | BM197: 2.403403347 | BN197: 0.1638266395 | BO197: 0.383514915 | BP197: 0.3106147803 | BQ197: 0.1420436652 | BR197: 0.142674281 | BS197: 0.993244 | BT197: 0.782418984 | BU197: 0 | BV197: 1.918337265 | BW197: 0.07437392976 | BX197: 0.5177629701 | BY197: 0.4078631001 | BZ197: 0
A198: 1279 | B198: 0.509041087 | C198: -1.449596185 | D198: 3.556665467 | E198: -1.16600795 | F198: -2.390657517 | G198: 0.103829621 | H198: -0.083485008 | I198: -0.020344613 | J198: -0.565954595 | K198: 0.305131855 | L198: 0.26082274 | M198: 0.018136829 | N198: -0.026679065 | O198: 0.008542236 | P198: 1.449596185 | R198: 0.04690681617 | S198: 4.261393353 | T198: 4.308300169 | V198: ='SG Data'!$AB197*R198/$T198 -> 0.01305491179 | W198: ='SG Data'!$AB197*S198/$T198 -> 1.186013438 | Y198: 3.556665467 | Z198: 5.947322984 | AA198: 5 | AB198: -2.940838979 | AC198: -5 | AD198: -0.8056975471 | AE198: -1.120653754 | AF198: -1.014487677 | AG198: -1.931892001 | AH198: -0.4672221784 | AI198: -0.5417247993 | AJ198: -0.9497838734 | AK198: -1.025138607 | AL198: -0.9659164981 | AU198: 5.947322984 | AV198: 0.187314629 | AW198: 0.87108645 | AX198: 0.044815894 | AY198: 7.050539957 | AZ198: 0.8435273072 | BA198: 0.02656741613 | BB198: 0.1235488991 | BC198: 0.006356377564 | BE198: -1.16600795 | BF198: 0.103829621 | BG198: -0.565954595 | BH198: 0.018136829 | BI198: 0.311608418 | BJ198: 1.109411418 | BK198: 0.5678178519 | BL198: 1.0183023 | BM198: 3.007139988 | BN198: 0.1036228507 | BO198: 0.3689257642 | BP198: 0.1888232188 | BQ198: 0.3386281663 | BR198: 0 | BS198: 1.269837571 | BT198: 0.600053355 | BU198: 1.184144779 | BV198: 3.054035705 | BW198: 0 | BX198: 0.4157900214 | BY198: 0.1964788277 | BZ198: 0.387731151
A199: 1281 | B199: 0.505828901 | C199: -1.3722376 | D199: 3.693156933 | E199: -1.096538527 | F199: -2.596618406 | G199: 0.094793039 | H199: -0.092920693 | I199: -0.001872347 | J199: -0.016156157 | K199: 0.05311555 | L199: -0.036959394 | M199: 0.058195586 | N199: -0.014449306 | O199: -0.04374628 | P199: 1.3722376 | R199: 0.097106821 | S199: 3.944166295 | T199: 4.041273116 | V199: ='SG Data'!$AB198*R199/$T199 -> 0.02881213724 | W199: ='SG Data'!$AB198*S199/$T199 -> 1.170256213 | Y199: 3.693156933 | Z199: 6.289775339 | AA199: 5 | AB199: -2.615050144 | AC199: -5 | AD199: -0.7209736438 | AE199: -1.01941631 | AF199: -0.8746601919 | AG199: -0.897369763 | AH199: -0.7872359294 | AI199: -0.930444453 | AJ199: -0.7791592721 | AK199: -0.8946560714 | AL199: -0.9412348003 | AU199: 6.289775339 | AV199: 0.187713732 | AW199: 0.090074944 | AX199: 0.101941866 | AY199: 6.669505881 | AZ199: 0.9430646664 | BA199: 0.02814507332 | BB199: 0.01350548985 | BC199: 0.01528477039 | BE199: -1.096538527 | BF199: 0.094793039 | BG199: -0.016156157 | BH199: 0.058195586 | BI199: 0.3340253045 | BJ199: 1.099431292 | BK199: 0.9839736537 | BL199: 1.059922281 | BM199: 3.477352532 | BN199: 0.09605736014 | BO199: 0.3161690631 | BP199: 0.2829663213 | BQ199: 0.3048072554 | BR199: 0 | BS199: 1.191331566 | BT199: 1.08038237 | BU199: 1.154734113 | BV199: 3.426448049 | BW199: 0 | BX199: 0.347687036 | BY199: 0.3153068001 | BZ199: 0.337006164
A200: 1282 | B200: 0.30058411 | C200: -0.402108853 | D200: 1.011622057 | E200: -0.183924388 | F200: -0.827697669 | G200: -0.091784513 | H200: 0.198436464 | I200: -0.106651951 | J200: -0.342090193 | K200: -0.762107645 | L200: 1.104197838 | M200: 0.621636011 | N200: 0.151331569 | O200: -0.77296758 | P200: 0.402108853 | R200: 0.6714794034 | S200: 1.494974056 | T200: 2.16645346 | V200: ='SG Data'!$AB199*R200/$T200 -> 0.1714512469 | W200: ='SG Data'!$AB199*S200/$T200 -> 0.3817170933 | Y200: 1.104197838 | Z200: 1.931895507 | AA200: 4.520803373 | AB200: -1.667659929 | AC200: -5 | AD200: -1.190719667 | AE200: 0.3115405532 | AF200: -1.267677442 | AG200: -2.486367797 | AH200: -4.66048876 | AI200: 5 | AJ200: 2.502132878 | AK200: 0.0677132094 | AL200: -4.716702644 | AU200: 1.839319726 | AV200: 0.305088415 | AW200: 1.866305483 | AX200: 1.394603591 | AY200: 5.405317215 | AZ200: 0.340279701 | BA200: 0.05644227764 | BB200: 0.3452721475 | BC200: 0.2580058738 | BE200: -0.183924388 | BF200: -0.091784513 | BG200: -0.342090193 | BH200: 0.621636011 | BI200: 0.8319987105 | BJ200: 0.9123017175 | BK200: 0.7102841392 | BL200: 1.861971758 | BM200: 4.316556325 | BN200: 0.192745941 | BO200: 0.2113494297 | BP200: 0.1645487944 | BQ200: 0.431355835 | BR200: 0.158165805 | BS200: 0.25030568 | BT200: 0 | BU200: 0.963726204 | BV200: 1.372197689 | BW200: 0.1152645907 | BX200: 0.1824122588 | BY200: 0 | BZ200: 0.7023231505
... 247 more rows

Sheet SG Data (hidden)
A1: ID | B1: Final Wgt | C1: Total | D1: Registered as - Republican | E1: Registered as - Democrat | F1: Registered as - Ind/Other | G1: Not Registered | H1: Registered Voter | I1: Male | J1: Female | K1: Age <30 | L1: Age 30-49 | M1: Age 50+ | N1: Married | O1: Not Married | P1: Children under 18 | Q1: Education - No college | R1: Education - Less than 4 yrs college | S1: Education - 4+ years college | T1: Household Income - <$50k | U1: Household Income - <$50k | V1: Voted in past year | W1: Voted 1+ years ago/never voted | X1: Either good handle or follow closely WY budget | Y1: Completely Understood Survey | Z1: Use | AA1: RLH | AB1: ProdWgt Exclude RLH | AC1: ProdWgt All
A2: 1001 | B2: 0.6745781724 | C2: 1 | D2: 0 | E2: 0 | F2: 1 | G2: 0 | H2: 1 | I2: 1 | J2: 0 | K2: 0 | L2: 0 | M2: 1 | N2: 1 | O2: 0 | P2: 0 | Q2: 0 | R2: 0 | S2: 1 | T2: 0 | U2: 1 | V2: 1 | W2: 0 | X2: 0 | Y2: 1 | Z2: =OFFSET(B2,0,Summary!B$2) -> 1 | AA2: 1 | AB2: =Z2*B2*AA2 -> 0.6745781724 | AC2: =B2*Z2 -> 0.6745781724 | AJ2: 0.6745781724
A3: 1002 | B3: 0.5600269911 | C3: 1 | D3: 0 | E3: 1 | F3: 0 | G3: 0 | H3: 1 | I3: 0 | J3: 1 | K3: 0 | L3: 0 | M3: 1 | N3: 1 | O3: 0 | P3: 0 | Q3: 0 | R3: 0 | S3: 1 | T3: 0 | U3: 1 | V3: 1 | W3: 0 | X3: 1 | Y3: 1 | Z3: =OFFSET(B3,0,Summary!B$2) -> 1 | AA3: 1 | AB3: 0.5600269911 | AC3: =B3*Z3 -> 0.5600269911 | AJ3: 0.5600269911
A4: 1004 | B4: 1.19906835 | C4: 1 | D4: 1 | E4: 0 | F4: 0 | G4: 0 | H4: 1 | I4: 0 | J4: 1 | K4: 0 | L4: 0 | M4: 1 | N4: 1 | O4: 0 | P4: 0 | Q4: 0 | R4: 1 | S4: 0 | T4: 1 | U4: 0 | V4: 1 | W4: 0 | X4: 1 | Y4: 1 | Z4: =OFFSET(B4,0,Summary!B$2) -> 1 | AA4: 1 | AB4: 1.19906835 | AC4: 1.19906835 | AJ4: 1.19906835
A5: 1005 | B5: 0.3745450406 | C5: 1 | D5: 0 | E5: 0 | F5: 1 | G5: 0 | H5: 1 | I5: 0 | J5: 1 | K5: 0 | L5: 1 | M5: 0 | N5: 1 | O5: 0 | P5: 0 | Q5: 0 | R5: 1 | S5: 0 | T5: 0 | U5: 1 | V5: 1 | W5: 0 | X5: 1 | Y5: 1 | Z5: =OFFSET(B5,0,Summary!B$2) -> 1 | AA5: 1 | AB5: 0.3745450406 | AC5: 0.3745450406 | AJ5: 0.3745450406
A6: 1006 | B6: 1.826801837 | C6: 1 | D6: 1 | E6: 0 | F6: 0 | G6: 0 | H6: 1 | I6: 1 | J6: 0 | K6: 0 | L6: 0 | M6: 1 | N6: 1 | O6: 0 | P6: 0 | Q6: 0 | R6: 0 | S6: 1 | T6: 0 | U6: 1 | V6: 1 | W6: 0 | X6: 1 | Y6: 1 | Z6: =OFFSET(B6,0,Summary!B$2) -> 1 | AA6: 1 | AB6: 1.826801837 | AC6: 1.826801837 | AJ6: 1.826801837
A7: 1007 | B7: 1.052102123 | C7: 1 | D7: 1 | E7: 0 | F7: 0 | G7: 0 | H7: 1 | I7: 0 | J7: 1 | K7: 0 | L7: 0 | M7: 1 | N7: 1 | O7: 0 | P7: 0 | Q7: 0 | R7: 0 | S7: 1 | T7: 0 | U7: 0 | V7: 1 | W7: 0 | X7: 1 | Y7: 1 | Z7: =OFFSET(B7,0,Summary!B$2) -> 1 | AA7: 1 | AB7: 1.052102123 | AC7: 1.052102123 | AJ7: 1.052102123
A8: 1008 | B8: 1.19906835 | C8: 1 | D8: 1 | E8: 0 | F8: 0 | G8: 0 | H8: 1 | I8: 0 | J8: 1 | K8: 0 | L8: 0 | M8: 1 | N8: 1 | O8: 0 | P8: 0 | Q8: 0 | R8: 1 | S8: 0 | T8: 1 | U8: 0 | V8: 1 | W8: 0 | X8: 0 | Y8: 1 | Z8: =OFFSET(B8,0,Summary!B$2) -> 1 | AA8: 1 | AB8: 1.19906835 | AC8: 1.19906835 | AJ8: 1.19906835
A9: 1011 | B9: 1.049762812 | C9: 1 | D9: 0 | E9: 0 | F9: 0 | G9: 1 | H9: 0 | I9: 0 | J9: 1 | K9: 0 | L9: 0 | M9: 1 | N9: 0 | O9: 1 | P9: 0 | Q9: 1 | R9: 0 | S9: 0 | T9: 1 | U9: 0 | V9: 0 | W9: 1 | X9: 0 | Y9: 0 | Z9: =OFFSET(B9,0,Summary!B$2) -> 1 | AA9: 1 | AB9: 1.049762812 | AC9: 1.049762812 | AJ9: 1.049762812
A10: 1012 | B10: 0.7129558721 | C10: 1 | D10: 0 | E10: 1 | F10: 0 | G10: 0 | H10: 1 | I10: 1 | J10: 0 | K10: 1 | L10: 0 | M10: 0 | N10: 0 | O10: 1 | P10: 0 | Q10: 0 | R10: 0 | S10: 1 | T10: 0 | U10: 1 | V10: 1 | W10: 0 | X10: 1 | Y10: 1 | Z10: =OFFSET(B10,0,Summary!B$2) -> 1 | AA10: 1 | AB10: 0.7129558721 | AC10: 0.7129558721 | AJ10: 0.7129558721
A11: 1013 | B11: 1.014292481 | C11: 1 | D11: 1 | E11: 0 | F11: 0 | G11: 0 | H11: 1 | I11: 0 | J11: 1 | K11: 0 | L11: 1 | M11: 0 | N11: 0 | O11: 1 | P11: 0 | Q11: 0 | R11: 1 | S11: 0 | T11: 1 | U11: 0 | V11: 1 | W11: 0 | X11: 0 | Y11: 1 | Z11: =OFFSET(B11,0,Summary!B$2) -> 1 | AA11: 1 | AB11: 1.014292481 | AC11: 1.014292481 | AJ11: 1.014292481
A12: 1014 | B12: 0.8225489788 | C12: 1 | D12: 0 | E12: 1 | F12: 0 | G12: 0 | H12: 1 | I12: 1 | J12: 0 | K12: 0 | L12: 1 | M12: 0 | N12: 1 | O12: 0 | P12: 1 | Q12: 0 | R12: 0 | S12: 1 | T12: 0 | U12: 1 | V12: 1 | W12: 0 | X12: 1 | Y12: 1 | Z12: =OFFSET(B12,0,Summary!B$2) -> 1 | AA12: 1 | AB12: 0.8225489788 | AC12: 0.8225489788 | AJ12: 0.8225489788
A13: 1015 | B13: 0.7107844509 | C13: 1 | D13: 0 | E13: 0 | F13: 0 | G13: 1 | H13: 0 | I13: 0 | J13: 1 | K13: 0 | L13: 1 | M13: 0 | N13: 0 | O13: 1 | P13: 1 | Q13: 0 | R13: 1 | S13: 0 | T13: 0 | U13: 1 | V13: 0 | W13: 1 | X13: 1 | Y13: 0 | Z13: =OFFSET(B13,0,Summary!B$2) -> 1 | AA13: 1 | AB13: 0.7107844509 | AC13: 0.7107844509 | AJ13: 0.7107844509
A14: 1016 | B14: 1.19906835 | C14: 1 | D14: 1 | E14: 0 | F14: 0 | G14: 0 | H14: 1 | I14: 0 | J14: 1 | K14: 0 | L14: 0 | M14: 1 | N14: 1 | O14: 0 | P14: 0 | Q14: 0 | R14: 1 | S14: 0 | T14: 1 | U14: 0 | V14: 1 | W14: 0 | X14: 1 | Y14: 1 | Z14: =OFFSET(B14,0,Summary!B$2) -> 1 | AA14: 1 | AB14: 1.19906835 | AC14: 1.19906835 | AJ14: 1.19906835
A15: 1017 | B15: 1.049762812 | C15: 1 | D15: 0 | E15: 0 | F15: 0 | G15: 1 | H15: 0 | I15: 0 | J15: 1 | K15: 0 | L15: 0 | M15: 1 | N15: 0 | O15: 1 | P15: 0 | Q15: 1 | R15: 0 | S15: 0 | T15: 1 | U15: 0 | V15: 0 | W15: 1 | X15: 0 | Y15: 0 | Z15: =OFFSET(B15,0,Summary!B$2) -> 1 | AA15: 1 | AB15: 1.049762812 | AC15: 1.049762812 | AJ15: 1.049762812
A16: 1019 | B16: 1.761151628 | C16: 1 | D16: 1 | E16: 0 | F16: 0 | G16: 0 | H16: 1 | I16: 1 | J16: 0 | K16: 0 | L16: 1 | M16: 0 | N16: 1 | O16: 0 | P16: 1 | Q16: 0 | R16: 1 | S16: 0 | T16: 0 | U16: 1 | V16: 1 | W16: 0 | X16: 1 | Y16: 1 | Z16: =OFFSET(B16,0,Summary!B$2) -> 1 | AA16: 1 | AB16: 1.761151628 | AC16: 1.761151628 | AJ16: 1.761151628
A17: 1020 | B17: 0.4106096084 | C17: 1 | D17: 0 | E17: 1 | F17: 0 | G17: 0 | H17: 1 | I17: 0 | J17: 1 | K17: 1 | L17: 0 | M17: 0 | N17: 1 | O17: 0 | P17: 1 | Q17: 0 | R17: 0 | S17: 1 | T17: 0 | U17: 1 | V17: 0 | W17: 1 | X17: 1 | Y17: 1 | Z17: =OFFSET(B17,0,Summary!B$2) -> 1 | AA17: 1 | AB17: 0.4106096084 | AC17: 0.4106096084 | AJ17: 0.4106096084
A18: 1021 | B18: 0.4055808722 | C18: 1 | D18: 0 | E18: 0 | F18: 1 | G18: 0 | H18: 1 | I18: 0 | J18: 1 | K18: 1 | L18: 0 | M18: 0 | N18: 1 | O18: 0 | P18: 1 | Q18: 1 | R18: 0 | S18: 0 | T18: 0 | U18: 1 | V18: 0 | W18: 1 | X18: 0 | Y18: 1 | Z18: =OFFSET(B18,0,Summary!B$2) -> 1 | AA18: 1 | AB18: 0.4055808722 | AC18: 0.4055808722 | AJ18: 0.4055808722
A19: 1023 | B19: 0.7713971784 | C19: 1 | D19: 1 | E19: 0 | F19: 0 | G19: 0 | H19: 1 | I19: 0 | J19: 1 | K19: 1 | L19: 0 | M19: 0 | N19: 0 | O19: 1 | P19: 0 | Q19: 0 | R19: 0 | S19: 1 | T19: 0 | U19: 1 | V19: 1 | W19: 0 | X19: 1 | Y19: 1 | Z19: =OFFSET(B19,0,Summary!B$2) -> 1 | AA19: 1 | AB19: 0.7713971784 | AC19: 0.7713971784 | AJ19: 0.7713971784
A20: 1024 | B20: 1.822740008 | C20: 1 | D20: 0 | E20: 0 | F20: 0 | G20: 1 | H20: 0 | I20: 1 | J20: 0 | K20: 0 | L20: 0 | M20: 1 | N20: 0 | O20: 1 | P20: 0 | Q20: 1 | R20: 0 | S20: 0 | T20: 1 | U20: 0 | V20: 0 | W20: 1 | X20: 1 | Y20: 1 | Z20: =OFFSET(B20,0,Summary!B$2) -> 1 | AA20: 1 | AB20: 1.822740008 | AC20: 1.822740008 | AJ20: 1.822740008
A21: 1026 | B21: 0.584638864 | C21: 1 | D21: 0 | E21: 1 | F21: 0 | G21: 0 | H21: 1 | I21: 0 | J21: 1 | K21: 1 | L21: 0 | M21: 0 | N21: 0 | O21: 1 | P21: 0 | Q21: 1 | R21: 0 | S21: 0 | T21: 1 | U21: 0 | V21: 0 | W21: 1 | X21: 1 | Y21: 1 | Z21: =OFFSET(B21,0,Summary!B$2) -> 1 | AA21: 1 | AB21: 0.584638864 | AC21: 0.584638864 | AJ21: 0.584638864
A22: 1027 | B22: 0.8899736803 | C22: 1 | D22: 1 | E22: 0 | F22: 0 | G22: 0 | H22: 1 | I22: 0 | J22: 1 | K22: 0 | L22: 1 | M22: 0 | N22: 0 | O22: 1 | P22: 0 | Q22: 0 | R22: 0 | S22: 1 | T22: 0 | U22: 1 | V22: 1 | W22: 0 | X22: 0 | Y22: 1 | Z22: =OFFSET(B22,0,Summary!B$2) -> 1 | AA22: 1 | AB22: 0.8899736803 | AC22: 0.8899736803 | AJ22: 0.8899736803
A23: 1028 | B23: 0.3286381734 | C23: 1 | D23: 0 | E23: 0 | F23: 1 | G23: 0 | H23: 1 | I23: 0 | J23: 1 | K23: 0 | L23: 1 | M23: 0 | N23: 1 | O23: 0 | P23: 1 | Q23: 0 | R23: 0 | S23: 1 | T23: 0 | U23: 1 | V23: 1 | W23: 0 | X23: 0 | Y23: 1 | Z23: =OFFSET(B23,0,Summary!B$2) -> 1 | AA23: 1 | AB23: 0.3286381734 | AC23: 0.3286381734 | AJ23: 0.3286381734
A24: 1029 | B24: 0.8899736803 | C24: 1 | D24: 1 | E24: 0 | F24: 0 | G24: 0 | H24: 1 | I24: 0 | J24: 1 | K24: 0 | L24: 1 | M24: 0 | N24: 0 | O24: 1 | P24: 1 | Q24: 0 | R24: 0 | S24: 1 | T24: 0 | U24: 1 | V24: 1 | W24: 0 | X24: 1 | Y24: 1 | Z24: =OFFSET(B24,0,Summary!B$2) -> 1 | AA24: 1 | AB24: 0.8899736803 | AC24: 0.8899736803 | AJ24: 0.8899736803
A25: 1030 | B25: 0.7107844509 | C25: 1 | D25: 0 | E25: 0 | F25: 0 | G25: 1 | H25: 0 | I25: 0 | J25: 1 | K25: 0 | L25: 1 | M25: 0 | N25: 1 | O25: 0 | P25: 1 | Q25: 0 | R25: 1 | S25: 0 | T25: 1 | U25: 0 | V25: 0 | W25: 1 | X25: 0 | Y25: 0 | Z25: =OFFSET(B25,0,Summary!B$2) -> 1 | AA25: 1 | AB25: 0.7107844509 | AC25: 0.7107844509 | AJ25: 0.7107844509
A26: 1032 | B26: 0.4737270949 | C26: 1 | D26: 0 | E26: 1 | F26: 0 | G26: 0 | H26: 1 | I26: 0 | J26: 1 | K26: 0 | L26: 1 | M26: 0 | N26: 0 | O26: 1 | P26: 0 | Q26: 0 | R26: 0 | S26: 1 | T26: 0 | U26: 1 | V26: 1 | W26: 0 | X26: 0 | Y26: 1 | Z26: =OFFSET(B26,0,Summary!B$2) -> 1 | AA26: 1 | AB26: 0.4737270949 | AC26: 0.4737270949 | AJ26: 0.4737270949
A27: 1033 | B27: 0.4055808722 | C27: 1 | D27: 0 | E27: 0 | F27: 1 | G27: 0 | H27: 1 | I27: 0 | J27: 1 | K27: 1 | L27: 0 | M27: 0 | N27: 1 | O27: 0 | P27: 1 | Q27: 1 | R27: 0 | S27: 0 | T27: 0 | U27: 1 | V27: 1 | W27: 0 | X27: 1 | Y27: 1 | Z27: =OFFSET(B27,0,Summary!B$2) -> 1 | AA27: 1 | AB27: 0.4055808722 | AC27: 0.4055808722 | AJ27: 0.4055808722
A28: 1034 | B28: 0.4737270949 | C28: 1 | D28: 0 | E28: 1 | F28: 0 | G28: 0 | H28: 1 | I28: 0 | J28: 1 | K28: 0 | L28: 1 | M28: 0 | N28: 1 | O28: 0 | P28: 1 | Q28: 0 | R28: 0 | S28: 1 | T28: 0 | U28: 1 | V28: 1 | W28: 0 | X28: 1 | Y28: 1 | Z28: =OFFSET(B28,0,Summary!B$2) -> 1 | AA28: 1 | AB28: 0.4737270949 | AC28: 0.4737270949 | AJ28: 0.4737270949
A29: 1035 | B29: 0.3246421708 | C29: 1 | D29: 0 | E29: 0 | F29: 1 | G29: 0 | H29: 1 | I29: 0 | J29: 1 | K29: 1 | L29: 0 | M29: 0 | N29: 0 | O29: 1 | P29: 0 | Q29: 0 | R29: 1 | S29: 0 | T29: 1 | U29: 0 | V29: 0 | W29: 1 | X29: 0 | Y29: 0 | Z29: =OFFSET(B29,0,Summary!B$2) -> 1 | AA29: 1 | AB29: 0.3246421708 | AC29: 0.3246421708 | AJ29: 0.3246421708
A30: 1036 | B30: 0.7696820044 | C30: 1 | D30: 0 | E30: 0 | F30: 0 | G30: 1 | H30: 0 | I30: 0 | J30: 1 | K30: 1 | L30: 0 | M30: 0 | N30: 1 | O30: 0 | P30: 1 | Q30: 1 | R30: 0 | S30: 0 | T30: 1 | U30: 0 | V30: 0 | W30: 1 | X30: 0 | Y30: 1 | Z30: =OFFSET(B30,0,Summary!B$2) -> 1 | AA30: 1 | AB30: 0.7696820044 | AC30: 0.7696820044 | AJ30: 0.7696820044
A31: 1037 | B31: 0.8899736803 | C31: 1 | D31: 1 | E31: 0 | F31: 0 | G31: 0 | H31: 1 | I31: 0 | J31: 1 | K31: 0 | L31: 1 | M31: 0 | N31: 1 | O31: 0 | P31: 1 | Q31: 0 | R31: 0 | S31: 1 | T31: 0 | U31: 1 | V31: 0 | W31: 1 | X31: 0 | Y31: 0 | Z31: =OFFSET(B31,0,Summary!B$2) -> 1 | AA31: 1 | AB31: 0.8899736803 | AC31: 0.8899736803 | AJ31: 0.8899736803
